Workbook

Sheet Introduction
A2: The goal of this worksheet is to help planners make better investment decisions for at-grade crossing separation projects. This worksheet enables comparison of different at grade crossings on a corridor based on four different evaluation modules
A4: Inputs Required
A5: 1 | B5: Safety Module
B6: The safety module provides quantitative method to prioritize grade crossings along a corridor for grade separation based on safety and engineering (SE) factors. The inputs required in this module are
C8: Highway Name
C9: 5 Year Accident History - USER INPUT REQUIRED
C10: Total Daylight Thru Trains (DayThru)
C11: Total Night time Thru Trains (NghtThru)
C12: Total Switching Trains (TotalSwt)
C13: Main Tracks (MainTrk)
C14: Number of Siding tracks (SidingTrk)
C15: Number of Yard tracks (YardTrk)
C16: Number of Transit tracks (TransitTrk)
C17: Number of Industry tracks (IndustryTrk)
C18: Number of Other tracks (OthrTrk)
C19: Maximum Timetable Speed (MaxTtSpd)
C20: Number of Traffic Lanes Crossing Railroad (TraficLn)
C21: Is the HW Paved? (HwyPved)
C22: Presence of Nearby HW Intersection (HwyNear)
C23: Approximate Intersecting Roadway Distance in Feet(HwynDist)
C24: Type of Warning Device (WdCode)
C25: Smallest Crossing Angle (Xangle)
C26: AADT (Aadt)
C27: Posted Highway Speed Limit (HwySpeed)
C28: Crossing Surface (XSurfaceIDs)
B30: All inputs are either pulled from the FRA inventory data base or calculated except for the 5-Year Accident History that needs to be input by the user.
A32: 2 | B32: Economic Module
B33: The economic module evaluates economic factors such as the value of time savings to commuters and commercial vehicle drivers, supply chain savings, and impacts to land-use and economic development opportunities to prioritize grade crossings. The User inputs required in this module are
C35: Economic Module should be edit from:
C36: Percentage of Trucks (PctTruk)
C37: Average cost of fuel per gallon
C38: Crossing operating cost/life cycle cost
C39: Construction cost
C40: Economic Losses
C41: Impacts to Land Use
C42: Supply Chain Savings
C44: To:
C45: Average cost of fuel per gallon
C46: Land Use Density near Project
C47: Economic Losses
C48: Impacts to Land Use
A50: 3 | B50: Environmental Module
B51: The environmental module ranks crossings based on the presence of any sensitive environmental factor inside the project buffer. The user inputs required in this module are
C53: Coastal Management Areas
C54: Critical Habitat for Threatened and Endangered Species
C55: Wetlands
C56: Wild and Scenic Rivers
C57: Air Quality Non Attainment Areas
C58: Superfund Sites
C59: Tribal Lands
C60: Federal or State Owned Lands
C61: Military Installations
C62: Historical Properties
C63: Parks and Recreation Areas
C64: Environmental Justice
C65: Community Severance
A67: 4 | B67: Community Module
B68: The community/livability module evaluates factors that affect the security of citizenry, without being directly involved in a train accident/collision to prioritize grade crossings. The user inputs required in this module are
C70: Presence of Hazardous Train Cars
C71: Population Density
C72: Vulnerable Population
C73: Emergency Response Delays

Sheet Download

Sheet Process

Sheet 4.1 Safety Module - V1 (hidden)
BH2: Constants | BI2: (to be modified)
BH3: k1 | BI3: =2/3 -> 0.6666666667
BH4: k2 | BI4: =1/3 -> 0.3333333333
BH5: k21 | BI5: 0.2
BH6: F | BI6: 46.5
BH7: I | BI7: 2.7
BH8: P | BI8: 0.1
BH9: k22 | BI9: 0.2
BH10: k23 | BI10: 0.2
AB11: Default Values | BH11: k24 | BI11: 0.2
B12: Safety Module | AB12: No | AC12: 7000 | BH12: k25 | BI12: 0.2
B14: Inputs | AQ14: Calculated Values
B15: Data Directly Coming From FRA Inventory Database | W15: Data Compiled From FRA Accident Database | AB15: User Inputs
B16: Crossing ID | C16: State Name (StateName) | D16: County Name (CountyName) | E16: Highway Name (Highway) | F16: Total Daylight Thru Trains (DayThru) | G16: Total Night time Thru Trains (NghtThru) | H16: Total Switching Trains (TotalSwt) | I16: Main Tracks (MainTrk) | J16: Number of Siding tracks (SidingTrk) | K16: Number of Yard tracks (YardTrk) | L16: Number of Transit tracks (TransitTrk) | M16: Number of Industry tracks (IndustryTrk) | N16: Number of Other tracks (OthrTrk) | O16: Maximum Timetable Speed (MaxTtSpd) | P16: Number of Traffic Lanes Crossing Railroad (TraficLn) | Q16: Is the HW Paved? (HwyPved) | R16: Presence of Nearby HW Intersection (HwyNear) | S16: Type of Warning Device (WdCode) | T16: Smallest Crossing Angle (Xangle) | U16: Functional Classification of Road at Crossing (HwyClassrdtpID) | V16: AADT (Aadt) | W16: 10 Year Accident History | X16: Sum of Number of of Fatalities (TotKld) | Y16: Sum of Number of Injuries (TotInj) | Z16: Sum of Number of PDO Accidents | AA16: Average Speed of Trains Involved in Accidents at Crossing | AB16: Presence of Quad Gates | AC16: Length of Train | AD16: Exposure | AE16: Exposure Index Factor EI | AF16: Main Tracks Factor MT | AG16: Day Through Trains Factor DT | AH16: Highway Paaved Factor HP | AI16: Maximum Speed Factor MS | AJ16: Highway Type Factor HT | AK16: Highway Lanes Factor HL | AL16: Initial Collission prediction formula | AM16: Formula Weighing Factor | AN16: Zero Inflated Passive | AO16: Zero Inflated Flashing Lights | AP16: Zero Inflated Gates | AQ16: AATT | AR16: Total Number of Tracks | AS16: USDOT Accident Prediction Value | AT16: Zero Inflated Negative Binomial Accident Prediction Value | AU16: Queue Length | AV16: X (reflects the speeds commonly maintained by the trains at that crossing) | AW16: Normalized Factor for Accident Severity | AX16: Normalized maximum timetaable train speed | AY16: Normalized number of tracks | AZ16: Distance to Nearby HW intersection | BA16: Queue Length/Distance to Nearby HW intersection | BB16: Normalized Maximum Queue Length | BC16: Normalized angle of crossing value | BD16: Score for Engineering Factors | BE16: Score for Safety and Engineering Factors | BI16: Prioritization
B17: 088995W | C17: SOUTH DAKOTA | D17: LAWRENCE | E17: CORD | F17: 1 | G17: 0 | H17: 2 | I17: 1 | N17: 0 | O17: 25 | P17: 2 | Q17: 2 | R17: 2 | S17: 3 | T17: 1 | U17: 19 | V17: 46 | W17: 0 | X17: 0 | Y17: 0 | AB17: No | AC17: 7000 | AD17: =V17*AQ17 -> 138 | AE17: =(AD17+0.2^(IF(S17=1,0.3116,IF(S17=2,0.2963,IF(S17=3,0.3334,0)))))/0.2 -> 692.923704 | AF17: =EXP(IF(S17=1,0.2912*I17,IF(S17=2,0.1088*I17,IF(S17=3,0.2094*I17,0)))) -> 1.232938075 | AG17: =IF(S17=1,1,IF(S17=2,((F17+0.2^0.047)/0.2),IF(S17=3,((F17+0.2^0.1336)/0.2),0))) -> 9.032622898 | AH17: =IF(OR(S17=1,S17=2),1,IF(S17=3,EXP(-0.616*(Q17-1)),0)) -> 0.5401005246 | AI17: =IF(OR(S17=1,S17=2),1,IF(S17=3,EXP(0.0077*O17),0)) -> 1.212276504 | AJ17: =IF(OR(S17=1,S17=2),1,IF(S17=3,EXP(-0.1*(U17-1)),0)) -> 0.1652988882 | AK17: =IF(S17=1,EXP(0.1036*(P17-1)),IF(S17=2,EXP(0.139*(P17-1)),IF(S17=3,1,0))) -> 1 | AL17: =PRODUCT(AF17:AK17)*IF(S17=1,0.001088,IF(S17=2, 0.003646,IF(S17=3, 0.002268,0))) -> 0.002733659468 | AM17: =1/(0.05+AL17) -> 18.96322027 | AN17: =(1-(1/(1+EXP(-0.9006+0.1462*AQ17))))*EXP(-2.6846-(10^-5*AD17)+(0.02164*O17)) -> 0.04524904472 | AO17: =(1-(1/(1+EXP(-1.7+(0.63*I17)))))*EXP(-2.3506-(AD17*1.34*10^-6)-(0.3586*AR17)+(0.2992*P17)+IF(T17=1,0.6071,IF(T17=2,-0.5835,0))) -> 0.05676716624 | AP17: =(1-(1/(1+EXP(-0.8641+(0.0945*AQ17)))))*EXP(-3.3215+(AD17*9.35*10^-7)+(0.284*AR17)+(IF(IF(AB17="Yes",1,0)=1,1.1149,0))+(IF(R17>1,-0.3013,0))) -> 0.01273149644 | AQ17: =SUM(F17:H17) -> 3 | AR17: =SUM(I17:N17) -> 1 | AS17: =(AM17/AM17+10)*AL17+(AM17/AM17+10)*(W17/10) -> 0.03007025415 | AT17: ="N/A" -> N/A | AU17: =(25*(V17*((50+(AC17/(1.466*O17)))/60)/(24*60)))/P17 -> 1.603850077 | AV17: =AA17 -> 0 | AW17: =($BI$6*X17+$BI$7*Y17+$BI$8*Z17) -> 0 | AX17: =IF(((O17-AV17)/110)>0,(O17-AV17)/110,0) -> 0.2272727273 | AY17: =R17 -> 2 | BA17: =AU17/IF(AZ17=1,75,IF(AZ17=2,200,IF(AZ17=3,500,1000))) -> 0.001603850077 | BB17: =IF(BA17>0.75,1,IF(BA17>0.5,0.5,0)) -> 0 | BC17: =IF(T17=1,1,IF(T17=2,0.5, IF(T17=3, 0,0))) -> 1 | BD17: =$BI$5*($BI$6*X17+$BI$7*Y17+$BI$8*Z17)+$BI$9*AX17+$BI$10*AY17+$BI$11*BB17+$BI$12*BC17 -> 0.6454545455 | BE17: =AS17*$BI$3+$BI$4*BD17 -> 0.2351983512 | BG17: Min | BH17: =MIN(BE17:BE18) -> 0.2351983512 | BI17: =10*(BE17-$BH$17)/$BH$19 -> 
B18: 088997K | C18: SOUTH DAKOTA | D18: LAWRENCE | F18: 1 | G18: 0 | H18: 2 | I18: 1 | N18: 0 | O18: 25 | P18: 2 | Q18: 2 | R18: 2 | S18: 3 | T18: 1 | U18: 19 | V18: 46 | W18: 0 | X18: 0 | Y18: 0 | AB18: No | AC18: 7000 | AD18: =V18*AQ18 -> 138 | AE18: =(AD18+0.2^(IF(S18=1,0.3116,IF(S18=2,0.2963,IF(S18=3,0.3334,0)))))/0.2 -> 692.923704 | AF18: =EXP(IF(S18=1,0.2912*I18,IF(S18=2,0.1088*I18,IF(S18=3,0.2094*I18,0)))) -> 1.232938075 | AG18: =IF(S18=1,1,IF(S18=2,((F18+0.2^0.047)/0.2),IF(S18=3,((F18+0.2^0.1336)/0.2),0))) -> 9.032622898 | AH18: =IF(OR(S18=1,S18=2),1,IF(S18=3,EXP(-0.616*(Q18-1)),0)) -> 0.5401005246 | AI18: =IF(OR(S18=1,S18=2),1,IF(S18=3,EXP(0.0077*O18),0)) -> 1.212276504 | AJ18: =IF(OR(S18=1,S18=2),1,IF(S18=3,EXP(-0.1*(U18-1)),0)) -> 0.1652988882 | AK18: =IF(S18=1,EXP(0.1036*(P18-1)),IF(S18=2,EXP(0.139*(P18-1)),IF(S18=3,1,0))) -> 1 | AL18: =PRODUCT(AF18:AK18)*IF(S18=1,0.001088,IF(S18=2, 0.003646,IF(S18=3, 0.002268,0))) -> 0.002733659468 | AM18: =1/(0.05+AL18) -> 18.96322027 | AN18: =(1-(1/(1+EXP(-0.9006+0.1462*AQ18))))*EXP(-2.6846-(10^-5*AD18)+(0.02164*O18)) -> 0.04524904472 | AO18: =(1-(1/(1+EXP(-1.7+(0.63*I18)))))*EXP(-2.3506-(AD18*1.34*10^-6)-(0.3586*AR18)+(0.2992*P18)+IF(T18=1,0.6071,IF(T18=2,-0.5835,0))) -> 0.05676716624 | AP18: =(1-(1/(1+EXP(-0.8641+(0.0945*AQ18)))))*EXP(-3.3215+(AD18*9.35*10^-7)+(0.284*AR18)+(IF(IF(AB18="Yes",1,0)=1,1.1149,0))+(IF(R18>1,-0.3013,0))) -> 0.01273149644 | AQ18: =SUM(F18:H18) -> 3 | AR18: =SUM(I18:N18) -> 1 | AS18: =(AM18/AM18+10)*AL18+(AM18/AM18+10)*(W18/10) -> 0.03007025415 | AT18: ="N/A" -> N/A | AU18: =(25*(V18*((50+(AC18/(1.466*O18)))/60)/(24*60)))/P18 -> 1.603850077 | AV18: =AA18 -> 0 | AW18: =($BI$6*X18+$BI$7*Y18+$BI$8*Z18) -> 0 | AX18: =IF(((O18-AV18)/110)>0,(O18-AV18)/110,0) -> 0.2272727273 | AY18: =R18 -> 2 | BA18: =AU18/IF(AZ18=1,75,IF(AZ18=2,200,IF(AZ18=3,500,1000))) -> 0.001603850077 | BB18: =IF(BA18>0.75,1,IF(BA18>0.5,0.5,0)) -> 0 | BC18: =IF(T18=1,1,IF(T18=2,0.5, IF(T18=3, 0,0))) -> 1 | BD18: =$BI$5*($BI$6*X18+$BI$7*Y18+$BI$8*Z18)+$BI$9*AX18+$BI$10*AY18+$BI$11*BB18+$BI$12*BC18 -> 0.6454545455 | BE18: =AS18*$BI$3+$BI$4*BD18 -> 0.2351983512 | BG18: Max | BH18: =MAX(BE17:BE18) -> 0.2351983512 | BI18: =10*(BE18-$BH$17)/$BH$19 -> 
BG19: Range | BH19: =BH18-BH17 -> 0

Sheet Safety Module
E13: 5 | F13: =E13+1 -> 6 | G13: =F13+1 -> 7 | H13: 8 | I13: 9 | J13: 10 | K13: 11 | L13: 12 | M13: 13 | N13: 14 | O13: 15 | P13: 16 | Q13: 17 | R13: 18 | S13: 19 | T13: 20 | U13: 21 | V13: 22 | W13: 23 | X13: 24 | Y13: 25 | Z13: 26 | BD13: Constants | BI13: Gates | BJ13: FL | BK13: XB
B14: Inputs | Z14: Calculated Values | BD14: k1 | BE14: 1 | BG14: Angle | BH14: k21 | BI14: 0 | BJ14: 0 | BK14: 0.002
B15: Data Directly Coming From FRA Inventory Database | E15: Data Compiled From FRA Accident Database | F15: Data Directly Coming From FRA Inventory Database | BD15: k2 | BE15: 1 | BG15: Distance | BH15: k22 | BI15: 0.011 | BJ15: 0 | BK15: 0
B16: DOT Crossing Inventory Number (CrossingID) | C16: State Name (StateName) | D16: County Name (CountyName) | E16: 5 Year Accident History | F16: Highway Name (Highway) | G16: Total Daylight Thru Trains (DayThru) | H16: Total Night time Thru Trains (NghtThru) | I16: Total Switching Trains (TotalSwt) | J16: Number of Main Tracks (MainTrk) | K16: Number of Siding tracks (SidingTrk) | L16: Number of Yard tracks (YardTrk) | M16: Number of Transit tracks (TransitTrk) | N16: Number of Industry tracks (IndustryTrk) | O16: Number of Other tracks (OthrTrk) | P16: Maximum Timetable Speed (MaxTtSpd) | Q16: Number of Traffic Lanes Crossing Railroad (TraficLn) | R16: Is the HW Paved? (HwyPved) | S16: Intersecting Roadway within 500 feet? (HwyNear) | T16: Approximate Intersecting Roadway Distance in feet (HwynDist) | U16: Type of Warning Device (WdCode) | V16: Smallest Crossing Angle (Xangle) | W16: AADT (Aadt) | X16: Posted Highway Speed Limit (HwySpeed) | Y16: Crossing Surface (XSurfaceIDs) | Z16: Warning Device | AA16: Exposure | AB16: Exposure Index Factor EI | AC16: Main Tracks Factor MT | AD16: Day Through Trains Factor DT | AE16: Highway Paved Factor HP | AF16: Maximum Speed Factor MS | AG16: Highway Lanes Factor HL | AH16: Initial Collission prediction formula | AI16: Formula Weighing Factor | AJ16: Zero Inflated Passive | AK16: Zero Inflated Flashing Lights | AL16: Zero Inflated Gates | AM16: AATT | AN16: Total Number of Tracks | AO16: USDOT Accident Prediction Value | AP16: Zero Inflated Negative Binomial Accident Prediction Value | AQ16: Normalized value for angle of crossing | AR16: Normalized value for distance to nearby HW intersection | AS16: Normalized number of tracks | AT16: Normalized maximum timetaable train speed | AU16: Normalized highway speed | AV16: surface_index | AW16: Normalized value for surface | AX16: Site Related Adjustments | AY16: Safety Score | AZ16: Min | BA16: Max | BB16: NORMALIZED SAFETY SCORE | BD16: F | BE16: 5 | BG16: Tracks | BH16: k23 | BI16: 0 | BJ16: 0 | BK16: 0
B17: 386218L | C17: SOUTH DAKOTA | D17: JACKSON | G17: 0 | H17: 0 | I17: 0 | J17: 0 | O17: 0 | P17: 0 | U17: 1 | Z17: =IF(OR(U17=2,U17=3,U17=4),3,IF(OR(U17=5,U17=6,U17=7),2,IF(OR(U17=8,U17=9),1,0))) -> 0 | AA17: =W17*AM17 -> 0 | AB17: =((AA17+0.2)/0.2)^(IF(Z17=1,0.2942,IF(Z17=2,0.4106,IF(Z17=3,0.37,0)))) -> 1 | AC17: =EXP(IF(Z17=1,0.1512*J17,IF(Z17=2,0.1917*J17,IF(Z17=3,0,0)))) -> 1 | AD17: =IF(Z17=1,((G17+0.2)/0.2)^0.1781,IF(Z17=2,((G17+0.2)/0.2)^0.1131,IF(Z17=3,((G17+0.2)/0.2)^0.178,0))) -> 0 | AE17: =IF(OR(Z17=1,Z17=2),1,IF(Z17=3,EXP(-0.5966*(R17-1)),0)) -> 0 | AF17: =IF(OR(Z17=1,Z17=2),1,IF(Z17=3,EXP(0.0077*P17),0)) -> 0 | AG17: =IF(Z17=1,EXP(0.142*(Q17-1)),IF(Z17=2,EXP(0.1826*(Q17-1)),IF(Z17=3,1,0))) -> 0 | AH17: =PRODUCT(AB17:AG17)*IF(Z17=1,0.0005745,IF(Z17=2, 0.0003351,IF(Z17=3, 0.0006938,0))) -> 0 | AI17: =1/(0.05+AH17) -> 20 | AJ17: ="N/A" -> N/A | AK17: N/A | AL17: N/A | AM17: =SUM(G17:I17) -> 0 | AN17: =SUM(J17:O17) -> 0 | AO17: =IF(Z17=3,0.5086,IF(Z17=2,0.3106,IF(Z17=1,0.4846,0)))*((AI17/(AI17+5))*AH17+(5/(5+AI17))*(E17/5)) -> 0 | AP17: ="N/A" -> N/A | AQ17: =IF(Z17=3,IF(V17=1,0.5,IF(V17=2,-0.25, IF(V17=3,-0.25,0))),0) -> 0 | AR17: =IF(Z17=1,IF(S17=2,-1,IF(T17<75,1,IF(T17<200,0.5,IF(T17<500,-0.5)))),0) -> 0 | AS17: =IF(Z17=1,IF(AN17>=3,1,IF(AN17>=2,0.75,0.5)),IF(Z17=2,IF(AN17>=3,1,IF(AN17>=2,0.75,0.5)),IF(AN17>=3,1,IF(AN17>=2,0.75,0.5)))) -> 0.5 | AT17: =IF(Z17=1,ROUNDDOWN(P17/10,0),IF(Z17=2,ROUNDDOWN(P17/10,0),ROUNDDOWN(P17/10,0)))/10 -> 0 | AU17: =IF(Z17=1,0,IF(Z17=2,IF(X17<=20,-2,IF(X17<=30,-2,IF(X17<=40,-1,IF(X17<=50,0,IF(X17<=60,1,2))))),IF(X17<=20,-2,IF(X17<=30,-2,IF(X17<=40,-1,IF(X17<=50,0,IF(X17<=60,1,2))))))) -> -2 | AV17: =IF(RIGHT(Y17,2)="18",0,IF(Y17=11,1,IF(OR(RIGHT(Y17,2)="12",RIGHT(Y17,2)="13"),2,IF(OR(RIGHT(Y17,2)="14",RIGHT(Y17,2)="15"),3,IF(Y17=16,4,IF(Y17="12,16",2,IF(Y17="14,16",3,IF(Y17="13,20",2,IF(Y17="11,16",4,2))))))))) -> 2 | AW17: =IF(Z17=1,IF(AV17=0,1,IF(AV17=1,0.5,IF(AV17=2,0,IF(AV17=3,-0.5,-1)))),IF(Z17=2,IF(AV17=0,1,IF(AV17=1,0.5,IF(AV17=2,0,IF(AV17=3,-0.5,-1)))),IF(AV17=0,1,IF(AV17=1,0.5,IF(AV17=2,0,IF(AV17=3,-0.5,-1)))))) -> 0 | AX17: =IF(Z17=1,$BI$14*AQ17+$BI$15*AR17+$BI$16*AS17+$BI$17*AT17+$BI$18*AU17+$BI$19*AW17,IF(Z17=2,$BJ$14*AQ17+$BJ$15*AR17+$BJ$16*AS17+$BJ$17*AT17+$BJ$18*AU17+$BJ$19*A17,$BK$14*AQ17+$BK$15*AR17+$BK$16*AS17+$BK$17*AT17+$BK$18*AU17+$BK$19*AW17)) -> 0 | AY17: =AO17*$BE$14+$BE$15*AX17 -> 0 | AZ17: =MIN(AY17:AY18) -> 0 | BA17: =MAX(AY17:AY18) -> 0 | BB17: =10*(AY17-$AZ$17)/($BA$17-$AZ$17) ->  | BD17: I | BE17: 3 | BG17: TrnSpd | BH17: k24 | BI17: 0.017 | BJ17: 0.047 | BK17: 0.038
B18: 386204D | C18: SOUTH DAKOTA | D18: JONES | G18: 0 | H18: 0 | I18: 0 | J18: 0 | O18: 0 | P18: 0 | U18: 1 | Z18: =IF(OR(U18=2,U18=3,U18=4),3,IF(OR(U18=5,U18=6,U18=7),2,IF(OR(U18=8,U18=9),1,0))) -> 0 | AA18: =W18*AM18 -> 0 | AB18: =((AA18+0.2)/0.2)^(IF(Z18=1,0.2942,IF(Z18=2,0.4106,IF(Z18=3,0.37,0)))) -> 1 | AC18: =EXP(IF(Z18=1,0.1512*J18,IF(Z18=2,0.1917*J18,IF(Z18=3,0,0)))) -> 1 | AD18: =IF(Z18=1,((G18+0.2)/0.2)^0.1781,IF(Z18=2,((G18+0.2)/0.2)^0.1131,IF(Z18=3,((G18+0.2)/0.2)^0.178,0))) -> 0 | AE18: =IF(OR(Z18=1,Z18=2),1,IF(Z18=3,EXP(-0.5966*(R18-1)),0)) -> 0 | AF18: =IF(OR(Z18=1,Z18=2),1,IF(Z18=3,EXP(0.0077*P18),0)) -> 0 | AG18: =IF(Z18=1,EXP(0.142*(Q18-1)),IF(Z18=2,EXP(0.1826*(Q18-1)),IF(Z18=3,1,0))) -> 0 | AH18: =PRODUCT(AB18:AG18)*IF(Z18=1,0.0005745,IF(Z18=2, 0.0003351,IF(Z18=3, 0.0006938,0))) -> 0 | AI18: =1/(0.05+AH18) -> 20 | AJ18: N/A | AK18: N/A | AL18: N/A | AM18: =SUM(G18:I18) -> 0 | AN18: =SUM(J18:O18) -> 0 | AO18: =IF(Z18=3,0.5086,IF(Z18=2,0.3106,IF(Z18=1,0.4846,0)))*((AI18/(AI18+5))*AH18+(5/(5+AI18))*(E18/5)) -> 0 | AP18: ="N/A" -> N/A | AQ18: =IF(Z18=3,IF(V18=1,0.5,IF(V18=2,-0.25, IF(V18=3,-0.25,0))),0) -> 0 | AR18: =IF(Z18=1,IF(S18=2,-1,IF(T18<75,1,IF(T18<200,0.5,IF(T18<500,-0.5)))),0) -> 0 | AS18: =IF(Z18=1,IF(AN18>=3,1,IF(AN18>=2,0.75,0.5)),IF(Z18=2,IF(AN18>=3,1,IF(AN18>=2,0.75,0.5)),IF(AN18>=3,1,IF(AN18>=2,0.75,0.5)))) -> 0.5 | AT18: =IF(Z18=1,ROUNDDOWN(P18/10,0),IF(Z18=2,ROUNDDOWN(P18/10,0),ROUNDDOWN(P18/10,0)))/10 -> 0 | AU18: =IF(Z18=1,0,IF(Z18=2,IF(X18<=20,-2,IF(X18<=30,-2,IF(X18<=40,-1,IF(X18<=50,0,IF(X18<=60,1,2))))),IF(X18<=20,-2,IF(X18<=30,-2,IF(X18<=40,-1,IF(X18<=50,0,IF(X18<=60,1,2))))))) -> -2 | AV18: =IF(RIGHT(Y18,2)="18",0,IF(Y18=11,1,IF(OR(RIGHT(Y18,2)="12",RIGHT(Y18,2)="13"),2,IF(OR(RIGHT(Y18,2)="14",RIGHT(Y18,2)="15"),3,IF(Y18=16,4,IF(Y18="12,16",2,IF(Y18="14,16",3,IF(Y18="13,20",2,IF(Y18="11,16",4,2))))))))) -> 2 | AW18: =IF(Z18=1,IF(AV18=0,1,IF(AV18=1,0.5,IF(AV18=2,0,IF(AV18=3,-0.5,-1)))),IF(Z18=2,IF(AV18=0,1,IF(AV18=1,0.5,IF(AV18=2,0,IF(AV18=3,-0.5,-1)))),IF(AV18=0,1,IF(AV18=1,0.5,IF(AV18=2,0,IF(AV18=3,-0.5,-1)))))) -> 0 | AX18: =IF(Z18=1,$BI$14*AQ18+$BI$15*AR18+$BI$16*AS18+$BI$17*AT18+$BI$18*AU18+$BI$19*AW18,IF(Z18=2,$BJ$14*AQ18+$BJ$15*AR18+$BJ$16*AS18+$BJ$17*AT18+$BJ$18*AU18+$BJ$19*A18,$BK$14*AQ18+$BK$15*AR18+$BK$16*AS18+$BK$17*AT18+$BK$18*AU18+$BK$19*AW18)) -> 0 | AY18: =AO18*$BE$14+$BE$15*AX18 -> 0 | BB18: =10*(AY18-$AZ$17)/($BA$17-$AZ$17) ->  | BD18: P | BE18: 1 | BG18: HwySpd | BH18: k25 | BI18: 0 | BJ18: 0.005 | BK18: 0
BG19: Surface | BH19: k26 | BI19: 0.017 | BJ19: 0.005 | BK19: 0.001

Sheet Economic Module
F11: Default Values
F12: 2.5 | G12: Medium | H12: Yes | I12: Low
Z13: User Defined
B14: Inputs | J14: Calculated Values | Y14: Factor for Vehicle operating cost/ delay – Passenger Vehicles (EC1) | Z14: 1
B15: Data Directly Coming from FRA Inventory Database | F15: User Inputs | Y15: Factor for Vehicle operating cost/ delay – Commercial Vehicles Score (EC2) | Z15: 1
B16: Crossing ID | C16: Street/Highway | D16: Percentage of Trucks (PctTruk) | E16: AADT (Aadt) | F16: Average cost of fuel per gallon | G16: Land Use Density near Project (EC4) | H16: Economic Losses (EC5) | I16: Impacts to Land Use (EC6) | J16: Supply Chain Savings (PctTruk) (EC7) | K16: Vehicle operating and delay costs – Passenger vehicles (EC1) | L16: Min | M16: Max | N16: Vehicle Operating Cost/Delay - Passenger Vehicles (EC1) Score | O16: Vehicle operating and delay costs – Commercial vehicles (EC2) | P16: Min | Q16: Max | R16: Vehicle operating cost/delay and accident cost – Commercial vehicles (EC2) Score | S16: Score for Economic Factors | W16: Normalized Score for Economic Factors | Y16: Factor for Density near project (EC4) | Z16: 1
B17: 386218L | C17: PRIVATE ROAD | F17: 2.5 | G17: Medium | H17: Yes | I17: Low | J17: =IF(D17<=6%,1,IF(D17<11%,2,IF(D17<=16%,3,IF(D17<=26%,4,IF(D17>25%,5,0))))) -> 1 | K17: =+((('Safety Module'!AM17*2.5)*(+E17-(D17*E17)))*(13/60))+(((('Safety Module'!AM17*2.5)*(+E17-(D17*E17)))/60)*1.5*F17) -> 0 | L17: =MIN(K17:K18) -> 0 | M17: =MAX(K17:K18) -> 0 | N17: =5*(K17-$L$17)/($M$17-$L$17) ->  | O17: =+((('Safety Module'!AM17*2.5)*((D17*E17)))*(26.68/60))+((('Safety Module'!AM17*2.5)*(D17*E17))/60*1.5*F17) -> 0 | P17: =MIN(O17:O18) -> 0 | Q17: =MAX(O17:O18) -> 0 | R17: =5*(O17-$P$17)/($Q$17-$P$17) ->  | S17: =(N17*$Z$14+R17*$Z$15+IF(H17 = "Yes",1, 0)*$Z$17+IF(I17="Low",1,IF(I17="Medium",3,IF(I17="High",5,0)))*$Z$18+J17*$Z$19+IF(G17="Low",1,IF(G17="Medium",3,IF(G17="High",5,0)))*$Z$16)+IF(G17="Low",1,IF(G17="Medium",3,IF(G17="High",5,0)))*$Z$16 ->  | U17: Min | V17: =MIN(S17:S18) ->  | W17: =IF($V$19 = 0, 0, 10*(S17-$V$17)/$V$19) ->  | Y17: Factor for Economic Loss (EC5) | Z17: 1
B18: 386204D | C18: PRIVATE ROAD | F18: 2.5 | G18: Medium | H18: Yes | I18: Low | J18: =IF(D18<=6%,1,IF(D18<11%,2,IF(D18<=16%,3,IF(D18<=26%,4,IF(D18>25%,5,0))))) -> 1 | K18: =+((('Safety Module'!AM18*2.5)*(+E18-(D18*E18)))*(13/60))+(((('Safety Module'!AM18*2.5)*(+E18-(D18*E18)))/60)*1.5*F18) -> 0 | N18: =5*(K18-$L$17)/($M$17-$L$17) ->  | O18: =+((('Safety Module'!AM18*2.5)*((D18*E18)))*(26.68/60))+((('Safety Module'!AM18*2.5)*(D18*E18))/60*1.5*F18) -> 0 | R18: =5*(O18-$P$17)/($Q$17-$P$17) ->  | S18: =(N18*$Z$14+R18*$Z$15+IF(H18 = "Yes",1, 0)*$Z$17+IF(I18="Low",1,IF(I18="Medium",3,IF(I18="High",5,0)))*$Z$18+J18*$Z$19+IF(G18="Low",1,IF(G18="Medium",3,IF(G18="High",5,0)))*$Z$16)+IF(G18="Low",1,IF(G18="Medium",3,IF(G18="High",5,0)))*$Z$16 ->  | U18: Max | V18: =MAX(S17:S18) ->  | W18: =IF($V$19 = 0, 0, 10*(S18-$V$17)/$V$19) ->  | Y18: Factor for Impacts to Land Use (EC6) | Z18: 1
U19: Range | V19: =V18-V17 ->  | Y19: Supply Chain Savings (EC7) | Z19: 1

Sheet Environmental Module
D11: Default Values
D12: No | E12: Yes | F12: No | G12: No | H12: Yes | I12: Yes | J12: No | K12: Yes | L12: Yes | M12: No | N12: Yes | O12: Yes | P12: Yes
B14: Inputs | Q14: Calculated Value
D15: User Inputs | W15: Number of Factors Affected | X15: Score
B16: Crossing ID | C16: Street/Highway | D16: Coastal Management Areas | E16: Critical Habitat for Threatened and Endangered Species | F16: Wetlands | G16: Wild and Scenic Rivers | H16: Air Quality Non Attainment Areas | I16: Superfund Sites | J16: Tribal Lands | K16: Federal or State Owned Lands | L16: Military Installations | M16: Historical Properties | N16: Parks and Recreation Areas | O16: Environmental Justice | P16: Community Severance | Q16: Score for Environmental Factors | S16: Total | T16: Max | U16: Score | W16: 0 to 3 | X16: 2
B17: 386218L | C17: PRIVATE ROAD | D17: No | E17: Yes | F17: No | G17: No | H17: Yes | I17: Yes | J17: No | K17: Yes | L17: Yes | M17: No | N17: Yes | O17: Yes | P17: Yes | Q17: =IF(D17="Yes", 1, 0)+IF(E17="Yes", 1, 0)+IF(F17="Yes", 1, 0)+IF(G17="Yes", 1, 0)+IF(H17="Yes", 1, 0)+IF(I17="Yes", 1, 0)+IF(J17="Yes", 1, 0)+IF(K17="Yes", 1, 0)+IF(L17="Yes", 1, 0)+IF(M17="Yes", 1, 0)+IF(N17="Yes", 1, 0)+IF(O17="Yes", 1, 0)+IF(P17="Yes", 1, 0) -> 8 | S17: =IF(D17="Yes", 1, 0)+IF(E17="Yes", 1, 0)+IF(F17="Yes", 1, 0)+IF(G17="Yes", 1, 0)+IF(H17="Yes", 1, 0)+IF(I17="Yes", 1, 0)+IF(J17="Yes", 1, 0)+IF(K17="Yes", 1, 0)+IF(L17="Yes", 1, 0)+IF(M17="Yes", 1, 0)+IF(N17="Yes", 1, 0)+IF(O17="Yes", 1, 0)+IF(P17="Yes", 1, 0) -> 8 | T17: =13 -> 13 | U17: =IF(AND(Q17>0,Q17<4),X16,IF(AND(Q17>3,Q17<7),X17,IF(AND(Q17>6,Q17<10),X18,IF(AND(Q17>9,Q17<13),X19,IF(Q17>12,X20,0))))) -> 6 | W17: 4 to 6 | X17: 4
B18: 386204D | C18: PRIVATE ROAD | D18: No | E18: Yes | F18: No | G18: No | H18: Yes | I18: Yes | J18: No | K18: Yes | L18: Yes | M18: No | N18: Yes | O18: Yes | P18: Yes | Q18: =IF(D18="Yes", 1, 0)+IF(E18="Yes", 1, 0)+IF(F18="Yes", 1, 0)+IF(G18="Yes", 1, 0)+IF(H18="Yes", 1, 0)+IF(I18="Yes", 1, 0)+IF(J18="Yes", 1, 0)+IF(K18="Yes", 1, 0)+IF(L18="Yes", 1, 0)+IF(M18="Yes", 1, 0)+IF(N18="Yes", 1, 0)+IF(O18="Yes", 1, 0)+IF(P18="Yes", 1, 0) -> 8 | S18: =IF(D18="Yes", 1, 0)+IF(E18="Yes", 1, 0)+IF(F18="Yes", 1, 0)+IF(G18="Yes", 1, 0)+IF(H18="Yes", 1, 0)+IF(I18="Yes", 1, 0)+IF(J18="Yes", 1, 0)+IF(K18="Yes", 1, 0)+IF(L18="Yes", 1, 0)+IF(M18="Yes", 1, 0)+IF(N18="Yes", 1, 0)+IF(O18="Yes", 1, 0)+IF(P18="Yes", 1, 0) -> 8 | U18: =IF(AND(Q18>0,Q18<4),X16,IF(AND(Q18>3,Q18<7),X17,IF(AND(Q18>6,Q18<10),X18,IF(AND(Q18>9,Q18<13),X19,IF(Q18>12,X20,0))))) -> 6 | W18: 7 to 9 | X18: 6
Q19: =IF(D19="Yes", 1, 0)+IF(E19="Yes", 1, 0)+IF(F19="Yes", 1, 0)+IF(G19="Yes", 1, 0)+IF(H19="Yes", 1, 0)+IF(I19="Yes", 1, 0)+IF(J19="Yes", 1, 0)+IF(K19="Yes", 1, 0)+IF(L19="Yes", 1, 0)+IF(M19="Yes", 1, 0)+IF(N19="Yes", 1, 0)+IF(O19="Yes", 1, 0)+IF(P19="Yes", 1, 0) -> 0 | S19: =IF(D19="Yes", 1, 0)+IF(E19="Yes", 1, 0)+IF(F19="Yes", 1, 0)+IF(G19="Yes", 1, 0)+IF(H19="Yes", 1, 0)+IF(I19="Yes", 1, 0)+IF(J19="Yes", 1, 0)+IF(K19="Yes", 1, 0)+IF(L19="Yes", 1, 0)+IF(M19="Yes", 1, 0)+IF(N19="Yes", 1, 0)+IF(O19="Yes", 1, 0)+IF(P19="Yes", 1, 0) -> 0 | U19: =IF(AND(Q19>0,Q19<4),X16,IF(AND(Q19>3,Q19<7),X17,IF(AND(Q19>6,Q19<10),X18,IF(AND(Q19>9,Q19<13),X19,IF(Q19>12,X20,0))))) -> 0 | W19: 10 to 12 | X19: 8
Q20: =IF(D20="Yes", 1, 0)+IF(E20="Yes", 1, 0)+IF(F20="Yes", 1, 0)+IF(G20="Yes", 1, 0)+IF(H20="Yes", 1, 0)+IF(I20="Yes", 1, 0)+IF(J20="Yes", 1, 0)+IF(K20="Yes", 1, 0)+IF(L20="Yes", 1, 0)+IF(M20="Yes", 1, 0)+IF(N20="Yes", 1, 0)+IF(O20="Yes", 1, 0)+IF(P20="Yes", 1, 0) -> 0 | S20: =IF(D20="Yes", 1, 0)+IF(E20="Yes", 1, 0)+IF(F20="Yes", 1, 0)+IF(G20="Yes", 1, 0)+IF(H20="Yes", 1, 0)+IF(I20="Yes", 1, 0)+IF(J20="Yes", 1, 0)+IF(K20="Yes", 1, 0)+IF(L20="Yes", 1, 0)+IF(M20="Yes", 1, 0)+IF(N20="Yes", 1, 0)+IF(O20="Yes", 1, 0)+IF(P20="Yes", 1, 0) -> 0 | U20: =IF(AND(Q20>0,Q20<4),X16,IF(AND(Q20>3,Q20<7),X17,IF(AND(Q20>6,Q20<10),X18,IF(AND(Q20>9,Q20<13),X19,IF(Q20>12,X20,0))))) -> 0 | W20: 13 | X20: 10
Q21: =IF(D21="Yes", 1, 0)+IF(E21="Yes", 1, 0)+IF(F21="Yes", 1, 0)+IF(G21="Yes", 1, 0)+IF(H21="Yes", 1, 0)+IF(I21="Yes", 1, 0)+IF(J21="Yes", 1, 0)+IF(K21="Yes", 1, 0)+IF(L21="Yes", 1, 0)+IF(M21="Yes", 1, 0)+IF(N21="Yes", 1, 0)+IF(O21="Yes", 1, 0)+IF(P21="Yes", 1, 0) -> 0 | S21: =IF(D21="Yes", 1, 0)+IF(E21="Yes", 1, 0)+IF(F21="Yes", 1, 0)+IF(G21="Yes", 1, 0)+IF(H21="Yes", 1, 0)+IF(I21="Yes", 1, 0)+IF(J21="Yes", 1, 0)+IF(K21="Yes", 1, 0)+IF(L21="Yes", 1, 0)+IF(M21="Yes", 1, 0)+IF(N21="Yes", 1, 0)+IF(O21="Yes", 1, 0)+IF(P21="Yes", 1, 0) -> 0 | U21: =IF(AND(Q21>0,Q21<4),X16,IF(AND(Q21>3,Q21<7),X17,IF(AND(Q21>6,Q21<10),X18,IF(AND(Q21>9,Q21<13),X19,IF(Q21>12,X20,0))))) -> 0
Q22: 0 | S22: 0 | U22: =IF(AND(Q22>0,Q22<4),X16,IF(AND(Q22>3,Q22<7),X17,IF(AND(Q22>6,Q22<10),X18,IF(AND(Q22>9,Q22<13),X19,IF(Q22>12,X20,0))))) -> 0
Q23: 0 | S23: 0 | U23: =IF(AND(Q23>0,Q23<4),X16,IF(AND(Q23>3,Q23<7),X17,IF(AND(Q23>6,Q23<10),X18,IF(AND(Q23>9,Q23<13),X19,IF(Q23>12,X20,0))))) -> 0
Q24: 0 | S24: 0 | U24: =IF(AND(Q24>0,Q24<4),X16,IF(AND(Q24>3,Q24<7),X17,IF(AND(Q24>6,Q24<10),X18,IF(AND(Q24>9,Q24<13),X19,IF(Q24>12,X20,0))))) -> 0
Q25: 0 | S25: 0 | U25: =IF(AND(Q25>0,Q25<4),X16,IF(AND(Q25>3,Q25<7),X17,IF(AND(Q25>6,Q25<10),X18,IF(AND(Q25>9,Q25<13),X19,IF(Q25>12,X20,0))))) -> 0
Q26: 0 | S26: 0 | U26: =IF(AND(Q26>0,Q26<4),X16,IF(AND(Q26>3,Q26<7),X17,IF(AND(Q26>6,Q26<10),X18,IF(AND(Q26>9,Q26<13),X19,IF(Q26>12,X20,0))))) -> 0
Q27: 0 | S27: 0 | U27: =IF(AND(Q27>0,Q27<4),X16,IF(AND(Q27>3,Q27<7),X17,IF(AND(Q27>6,Q27<10),X18,IF(AND(Q27>9,Q27<13),X19,IF(Q27>12,X20,0))))) -> 0
Q28: 0 | S28: 0 | U28: =IF(AND(Q28>0,Q28<4),X16,IF(AND(Q28>3,Q28<7),X17,IF(AND(Q28>6,Q28<10),X18,IF(AND(Q28>9,Q28<13),X19,IF(Q28>12,X20,0))))) -> 0
Q29: 0 | S29: 0 | U29: =IF(AND(Q29>0,Q29<4),X16,IF(AND(Q29>3,Q29<7),X17,IF(AND(Q29>6,Q29<10),X18,IF(AND(Q29>9,Q29<13),X19,IF(Q29>12,X20,0))))) -> 0
Q30: 0 | S30: 0 | U30: =IF(AND(Q30>0,Q30<4),X16,IF(AND(Q30>3,Q30<7),X17,IF(AND(Q30>6,Q30<10),X18,IF(AND(Q30>9,Q30<13),X19,IF(Q30>12,X20,0))))) -> 0
Q31: 0 | S31: 0 | U31: =IF(AND(Q31>0,Q31<4),X16,IF(AND(Q31>3,Q31<7),X17,IF(AND(Q31>6,Q31<10),X18,IF(AND(Q31>9,Q31<13),X19,IF(Q31>12,X20,0))))) -> 0
Q32: 0 | S32: 0 | U32: =IF(AND(Q32>0,Q32<4),X16,IF(AND(Q32>3,Q32<7),X17,IF(AND(Q32>6,Q32<10),X18,IF(AND(Q32>9,Q32<13),X19,IF(Q32>12,X20,0))))) -> 0
Q33: 0 | S33: 0 | U33: =IF(AND(Q33>0,Q33<4),X16,IF(AND(Q33>3,Q33<7),X17,IF(AND(Q33>6,Q33<10),X18,IF(AND(Q33>9,Q33<13),X19,IF(Q33>12,X20,0))))) -> 0
Q34: 0 | S34: 0 | U34: =IF(AND(Q34>0,Q34<4),X16,IF(AND(Q34>3,Q34<7),X17,IF(AND(Q34>6,Q34<10),X18,IF(AND(Q34>9,Q34<13),X19,IF(Q34>12,X20,0))))) -> 0
Q35: 0 | S35: 0 | U35: =IF(AND(Q35>0,Q35<4),X16,IF(AND(Q35>3,Q35<7),X17,IF(AND(Q35>6,Q35<10),X18,IF(AND(Q35>9,Q35<13),X19,IF(Q35>12,X20,0))))) -> 0
Q36: 0 | S36: 0 | U36: =IF(AND(Q36>0,Q36<4),X16,IF(AND(Q36>3,Q36<7),X17,IF(AND(Q36>6,Q36<10),X18,IF(AND(Q36>9,Q36<13),X19,IF(Q36>12,X20,0))))) -> 0
Q37: 0 | S37: 0 | U37: =IF(AND(Q37>0,Q37<4),X16,IF(AND(Q37>3,Q37<7),X17,IF(AND(Q37>6,Q37<10),X18,IF(AND(Q37>9,Q37<13),X19,IF(Q37>12,X20,0))))) -> 0
Q38: 0 | S38: 0 | U38: =IF(AND(Q38>0,Q38<4),X16,IF(AND(Q38>3,Q38<7),X17,IF(AND(Q38>6,Q38<10),X18,IF(AND(Q38>9,Q38<13),X19,IF(Q38>12,X20,0))))) -> 0
Q39: 0 | S39: 0 | U39: =IF(AND(Q39>0,Q39<4),X16,IF(AND(Q39>3,Q39<7),X17,IF(AND(Q39>6,Q39<10),X18,IF(AND(Q39>9,Q39<13),X19,IF(Q39>12,X20,0))))) -> 0
Q40: 0 | S40: 0 | U40: =IF(AND(Q40>0,Q40<4),X16,IF(AND(Q40>3,Q40<7),X17,IF(AND(Q40>6,Q40<10),X18,IF(AND(Q40>9,Q40<13),X19,IF(Q40>12,X20,0))))) -> 0
Q41: 0 | S41: 0 | U41: =IF(AND(Q41>0,Q41<4),X16,IF(AND(Q41>3,Q41<7),X17,IF(AND(Q41>6,Q41<10),X18,IF(AND(Q41>9,Q41<13),X19,IF(Q41>12,X20,0))))) -> 0
Q42: 0 | S42: 0 | U42: =IF(AND(Q42>0,Q42<4),X16,IF(AND(Q42>3,Q42<7),X17,IF(AND(Q42>6,Q42<10),X18,IF(AND(Q42>9,Q42<13),X19,IF(Q42>12,X20,0))))) -> 0
Q43: 0 | S43: 0 | U43: =IF(AND(Q43>0,Q43<4),X16,IF(AND(Q43>3,Q43<7),X17,IF(AND(Q43>6,Q43<10),X18,IF(AND(Q43>9,Q43<13),X19,IF(Q43>12,X20,0))))) -> 0
Q44: 0 | S44: 0 | U44: =IF(AND(Q44>0,Q44<4),X16,IF(AND(Q44>3,Q44<7),X17,IF(AND(Q44>6,Q44<10),X18,IF(AND(Q44>9,Q44<13),X19,IF(Q44>12,X20,0))))) -> 0
Q45: 0 | S45: 0 | U45: =IF(AND(Q45>0,Q45<4),X16,IF(AND(Q45>3,Q45<7),X17,IF(AND(Q45>6,Q45<10),X18,IF(AND(Q45>9,Q45<13),X19,IF(Q45>12,X20,0))))) -> 0
Q46: 0 | S46: 0 | U46: =IF(AND(Q46>0,Q46<4),X16,IF(AND(Q46>3,Q46<7),X17,IF(AND(Q46>6,Q46<10),X18,IF(AND(Q46>9,Q46<13),X19,IF(Q46>12,X20,0))))) -> 0
Q47: 0 | S47: 0 | U47: =IF(AND(Q47>0,Q47<4),X16,IF(AND(Q47>3,Q47<7),X17,IF(AND(Q47>6,Q47<10),X18,IF(AND(Q47>9,Q47<13),X19,IF(Q47>12,X20,0))))) -> 0
Q48: 0 | S48: 0 | U48: =IF(AND(Q48>0,Q48<4),X16,IF(AND(Q48>3,Q48<7),X17,IF(AND(Q48>6,Q48<10),X18,IF(AND(Q48>9,Q48<13),X19,IF(Q48>12,X20,0))))) -> 0
Q49: 0 | S49: 0 | U49: =IF(AND(Q49>0,Q49<4),X16,IF(AND(Q49>3,Q49<7),X17,IF(AND(Q49>6,Q49<10),X18,IF(AND(Q49>9,Q49<13),X19,IF(Q49>12,X20,0))))) -> 0
Q50: 0 | S50: 0 | U50: =IF(AND(Q50>0,Q50<4),X16,IF(AND(Q50>3,Q50<7),X17,IF(AND(Q50>6,Q50<10),X18,IF(AND(Q50>9,Q50<13),X19,IF(Q50>12,X20,0))))) -> 0
Q51: 0 | S51: 0 | U51: =IF(AND(Q51>0,Q51<4),X16,IF(AND(Q51>3,Q51<7),X17,IF(AND(Q51>6,Q51<10),X18,IF(AND(Q51>9,Q51<13),X19,IF(Q51>12,X20,0))))) -> 0
Q52: 0 | S52: 0 | U52: =IF(AND(Q52>0,Q52<4),X16,IF(AND(Q52>3,Q52<7),X17,IF(AND(Q52>6,Q52<10),X18,IF(AND(Q52>9,Q52<13),X19,IF(Q52>12,X20,0))))) -> 0
Q53: 0 | S53: 0 | U53: =IF(AND(Q53>0,Q53<4),X16,IF(AND(Q53>3,Q53<7),X17,IF(AND(Q53>6,Q53<10),X18,IF(AND(Q53>9,Q53<13),X19,IF(Q53>12,X20,0))))) -> 0
Q54: 0 | S54: 0 | U54: =IF(AND(Q54>0,Q54<4),X16,IF(AND(Q54>3,Q54<7),X17,IF(AND(Q54>6,Q54<10),X18,IF(AND(Q54>9,Q54<13),X19,IF(Q54>12,X20,0))))) -> 0
Q55: 0 | S55: 0 | U55: =IF(AND(Q55>0,Q55<4),X16,IF(AND(Q55>3,Q55<7),X17,IF(AND(Q55>6,Q55<10),X18,IF(AND(Q55>9,Q55<13),X19,IF(Q55>12,X20,0))))) -> 0
Q56: 0 | S56: 0 | U56: =IF(AND(Q56>0,Q56<4),X16,IF(AND(Q56>3,Q56<7),X17,IF(AND(Q56>6,Q56<10),X18,IF(AND(Q56>9,Q56<13),X19,IF(Q56>12,X20,0))))) -> 0
Q57: 0 | S57: 0 | U57: =IF(AND(Q57>0,Q57<4),X16,IF(AND(Q57>3,Q57<7),X17,IF(AND(Q57>6,Q57<10),X18,IF(AND(Q57>9,Q57<13),X19,IF(Q57>12,X20,0))))) -> 0
Q58: 0 | S58: 0 | U58: =IF(AND(Q58>0,Q58<4),X16,IF(AND(Q58>3,Q58<7),X17,IF(AND(Q58>6,Q58<10),X18,IF(AND(Q58>9,Q58<13),X19,IF(Q58>12,X20,0))))) -> 0
Q59: 0 | S59: 0 | U59: =IF(AND(Q59>0,Q59<4),X16,IF(AND(Q59>3,Q59<7),X17,IF(AND(Q59>6,Q59<10),X18,IF(AND(Q59>9,Q59<13),X19,IF(Q59>12,X20,0))))) -> 0
Q60: 0 | S60: 0 | U60: =IF(AND(Q60>0,Q60<4),X16,IF(AND(Q60>3,Q60<7),X17,IF(AND(Q60>6,Q60<10),X18,IF(AND(Q60>9,Q60<13),X19,IF(Q60>12,X20,0))))) -> 0
Q61: 0 | S61: 0 | U61: =IF(AND(Q61>0,Q61<4),X16,IF(AND(Q61>3,Q61<7),X17,IF(AND(Q61>6,Q61<10),X18,IF(AND(Q61>9,Q61<13),X19,IF(Q61>12,X20,0))))) -> 0
Q62: 0 | S62: 0 | U62: =IF(AND(Q62>0,Q62<4),X16,IF(AND(Q62>3,Q62<7),X17,IF(AND(Q62>6,Q62<10),X18,IF(AND(Q62>9,Q62<13),X19,IF(Q62>12,X20,0))))) -> 0
Q63: 0 | S63: 0 | U63: =IF(AND(Q63>0,Q63<4),X16,IF(AND(Q63>3,Q63<7),X17,IF(AND(Q63>6,Q63<10),X18,IF(AND(Q63>9,Q63<13),X19,IF(Q63>12,X20,0))))) -> 0
Q64: 0 | S64: 0 | U64: =IF(AND(Q64>0,Q64<4),X16,IF(AND(Q64>3,Q64<7),X17,IF(AND(Q64>6,Q64<10),X18,IF(AND(Q64>9,Q64<13),X19,IF(Q64>12,X20,0))))) -> 0
Q65: 0 | S65: 0 | U65: =IF(AND(Q65>0,Q65<4),X16,IF(AND(Q65>3,Q65<7),X17,IF(AND(Q65>6,Q65<10),X18,IF(AND(Q65>9,Q65<13),X19,IF(Q65>12,X20,0))))) -> 0
Q66: 0 | S66: 0 | U66: =IF(AND(Q66>0,Q66<4),X16,IF(AND(Q66>3,Q66<7),X17,IF(AND(Q66>6,Q66<10),X18,IF(AND(Q66>9,Q66<13),X19,IF(Q66>12,X20,0))))) -> 0
Q67: 0 | S67: 0 | U67: =IF(AND(Q67>0,Q67<4),X16,IF(AND(Q67>3,Q67<7),X17,IF(AND(Q67>6,Q67<10),X18,IF(AND(Q67>9,Q67<13),X19,IF(Q67>12,X20,0))))) -> 0
Q68: 0 | S68: 0 | U68: =IF(AND(Q68>0,Q68<4),X16,IF(AND(Q68>3,Q68<7),X17,IF(AND(Q68>6,Q68<10),X18,IF(AND(Q68>9,Q68<13),X19,IF(Q68>12,X20,0))))) -> 0
Q69: 0 | S69: 0 | U69: =IF(AND(Q69>0,Q69<4),X16,IF(AND(Q69>3,Q69<7),X17,IF(AND(Q69>6,Q69<10),X18,IF(AND(Q69>9,Q69<13),X19,IF(Q69>12,X20,0))))) -> 0
Q70: 0 | S70: 0 | U70: =IF(AND(Q70>0,Q70<4),X16,IF(AND(Q70>3,Q70<7),X17,IF(AND(Q70>6,Q70<10),X18,IF(AND(Q70>9,Q70<13),X19,IF(Q70>12,X20,0))))) -> 0
Q71: 0 | S71: 0 | U71: =IF(AND(Q71>0,Q71<4),X16,IF(AND(Q71>3,Q71<7),X17,IF(AND(Q71>6,Q71<10),X18,IF(AND(Q71>9,Q71<13),X19,IF(Q71>12,X20,0))))) -> 0
Q72: 0 | S72: 0 | U72: =IF(AND(Q72>0,Q72<4),X16,IF(AND(Q72>3,Q72<7),X17,IF(AND(Q72>6,Q72<10),X18,IF(AND(Q72>9,Q72<13),X19,IF(Q72>12,X20,0))))) -> 0
Q73: 0 | S73: 0 | U73: =IF(AND(Q73>0,Q73<4),X16,IF(AND(Q73>3,Q73<7),X17,IF(AND(Q73>6,Q73<10),X18,IF(AND(Q73>9,Q73<13),X19,IF(Q73>12,X20,0))))) -> 0
Q74: 0 | S74: 0 | U74: =IF(AND(Q74>0,Q74<4),X16,IF(AND(Q74>3,Q74<7),X17,IF(AND(Q74>6,Q74<10),X18,IF(AND(Q74>9,Q74<13),X19,IF(Q74>12,X20,0))))) -> 0
Q75: 0 | S75: 0 | U75: =IF(AND(Q75>0,Q75<4),X16,IF(AND(Q75>3,Q75<7),X17,IF(AND(Q75>6,Q75<10),X18,IF(AND(Q75>9,Q75<13),X19,IF(Q75>12,X20,0))))) -> 0
Q76: 0 | S76: 0 | U76: =IF(AND(Q76>0,Q76<4),X16,IF(AND(Q76>3,Q76<7),X17,IF(AND(Q76>6,Q76<10),X18,IF(AND(Q76>9,Q76<13),X19,IF(Q76>12,X20,0))))) -> 0
Q77: 0 | S77: 0 | U77: =IF(AND(Q77>0,Q77<4),X16,IF(AND(Q77>3,Q77<7),X17,IF(AND(Q77>6,Q77<10),X18,IF(AND(Q77>9,Q77<13),X19,IF(Q77>12,X20,0))))) -> 0
Q78: 0 | S78: 0 | U78: =IF(AND(Q78>0,Q78<4),X16,IF(AND(Q78>3,Q78<7),X17,IF(AND(Q78>6,Q78<10),X18,IF(AND(Q78>9,Q78<13),X19,IF(Q78>12,X20,0))))) -> 0
Q79: 0 | S79: 0 | U79: =IF(AND(Q79>0,Q79<4),X16,IF(AND(Q79>3,Q79<7),X17,IF(AND(Q79>6,Q79<10),X18,IF(AND(Q79>9,Q79<13),X19,IF(Q79>12,X20,0))))) -> 0
Q80: 0 | S80: 0 | U80: =IF(AND(Q80>0,Q80<4),X16,IF(AND(Q80>3,Q80<7),X17,IF(AND(Q80>6,Q80<10),X18,IF(AND(Q80>9,Q80<13),X19,IF(Q80>12,X20,0))))) -> 0
Q81: =IF(D81="Yes", 1, 0)+IF(E81="Yes", 1, 0)+IF(F81="Yes", 1, 0)+IF(G81="Yes", 1, 0)+IF(H81="Yes", 1, 0)+IF(I81="Yes", 1, 0)+IF(J81="Yes", 1, 0)+IF(K81="Yes", 1, 0)+IF(L81="Yes", 1, 0)+IF(M81="Yes", 1, 0)+IF(N81="Yes", 1, 0)+IF(O81="Yes", 1, 0)+IF(P81="Yes", 1, 0) -> 0 | S81: =IF(D81="Yes", 1, 0)+IF(E81="Yes", 1, 0)+IF(F81="Yes", 1, 0)+IF(G81="Yes", 1, 0)+IF(H81="Yes", 1, 0)+IF(I81="Yes", 1, 0)+IF(J81="Yes", 1, 0)+IF(K81="Yes", 1, 0)+IF(L81="Yes", 1, 0)+IF(M81="Yes", 1, 0)+IF(N81="Yes", 1, 0)+IF(O81="Yes", 1, 0)+IF(P81="Yes", 1, 0) -> 0 | U81: =IF(AND(Q81>0,Q81<4),X16,IF(AND(Q81>3,Q81<7),X17,IF(AND(Q81>6,Q81<10),X18,IF(AND(Q81>9,Q81<13),X19,IF(Q81>12,X20,0))))) -> 0
Q82: 0 | S82: 0 | U82: =IF(AND(Q82>0,Q82<4),X16,IF(AND(Q82>3,Q82<7),X17,IF(AND(Q82>6,Q82<10),X18,IF(AND(Q82>9,Q82<13),X19,IF(Q82>12,X20,0))))) -> 0
Q83: 0 | S83: 0 | U83: =IF(AND(Q83>0,Q83<4),X16,IF(AND(Q83>3,Q83<7),X17,IF(AND(Q83>6,Q83<10),X18,IF(AND(Q83>9,Q83<13),X19,IF(Q83>12,X20,0))))) -> 0
Q84: 0 | S84: 0 | U84: =IF(AND(Q84>0,Q84<4),X16,IF(AND(Q84>3,Q84<7),X17,IF(AND(Q84>6,Q84<10),X18,IF(AND(Q84>9,Q84<13),X19,IF(Q84>12,X20,0))))) -> 0
Q85: 0 | S85: 0 | U85: =IF(AND(Q85>0,Q85<4),X16,IF(AND(Q85>3,Q85<7),X17,IF(AND(Q85>6,Q85<10),X18,IF(AND(Q85>9,Q85<13),X19,IF(Q85>12,X20,0))))) -> 0
Q86: 0 | S86: 0 | U86: =IF(AND(Q86>0,Q86<4),X16,IF(AND(Q86>3,Q86<7),X17,IF(AND(Q86>6,Q86<10),X18,IF(AND(Q86>9,Q86<13),X19,IF(Q86>12,X20,0))))) -> 0
Q87: 0 | S87: 0 | U87: =IF(AND(Q87>0,Q87<4),X16,IF(AND(Q87>3,Q87<7),X17,IF(AND(Q87>6,Q87<10),X18,IF(AND(Q87>9,Q87<13),X19,IF(Q87>12,X20,0))))) -> 0
Q88: 0 | S88: 0 | U88: =IF(AND(Q88>0,Q88<4),X16,IF(AND(Q88>3,Q88<7),X17,IF(AND(Q88>6,Q88<10),X18,IF(AND(Q88>9,Q88<13),X19,IF(Q88>12,X20,0))))) -> 0
Q89: 0 | S89: 0 | U89: =IF(AND(Q89>0,Q89<4),X16,IF(AND(Q89>3,Q89<7),X17,IF(AND(Q89>6,Q89<10),X18,IF(AND(Q89>9,Q89<13),X19,IF(Q89>12,X20,0))))) -> 0
Q90: 0 | S90: 0 | U90: =IF(AND(Q90>0,Q90<4),X16,IF(AND(Q90>3,Q90<7),X17,IF(AND(Q90>6,Q90<10),X18,IF(AND(Q90>9,Q90<13),X19,IF(Q90>12,X20,0))))) -> 0
Q91: 0 | S91: 0 | U91: =IF(AND(Q91>0,Q91<4),X16,IF(AND(Q91>3,Q91<7),X17,IF(AND(Q91>6,Q91<10),X18,IF(AND(Q91>9,Q91<13),X19,IF(Q91>12,X20,0))))) -> 0
Q92: 0 | S92: 0 | U92: =IF(AND(Q92>0,Q92<4),X16,IF(AND(Q92>3,Q92<7),X17,IF(AND(Q92>6,Q92<10),X18,IF(AND(Q92>9,Q92<13),X19,IF(Q92>12,X20,0))))) -> 0
Q93: 0 | S93: 0 | U93: =IF(AND(Q93>0,Q93<4),X16,IF(AND(Q93>3,Q93<7),X17,IF(AND(Q93>6,Q93<10),X18,IF(AND(Q93>9,Q93<13),X19,IF(Q93>12,X20,0))))) -> 0
Q94: 0 | S94: 0 | U94: =IF(AND(Q94>0,Q94<4),X16,IF(AND(Q94>3,Q94<7),X17,IF(AND(Q94>6,Q94<10),X18,IF(AND(Q94>9,Q94<13),X19,IF(Q94>12,X20,0))))) -> 0
Q95: 0 | S95: 0 | U95: =IF(AND(Q95>0,Q95<4),X16,IF(AND(Q95>3,Q95<7),X17,IF(AND(Q95>6,Q95<10),X18,IF(AND(Q95>9,Q95<13),X19,IF(Q95>12,X20,0))))) -> 0
Q96: 0 | S96: 0 | U96: =IF(AND(Q96>0,Q96<4),X16,IF(AND(Q96>3,Q96<7),X17,IF(AND(Q96>6,Q96<10),X18,IF(AND(Q96>9,Q96<13),X19,IF(Q96>12,X20,0))))) -> 0
Q97: 0 | S97: 0 | U97: =IF(AND(Q97>0,Q97<4),X16,IF(AND(Q97>3,Q97<7),X17,IF(AND(Q97>6,Q97<10),X18,IF(AND(Q97>9,Q97<13),X19,IF(Q97>12,X20,0))))) -> 0
Q98: 0 | S98: 0 | U98: =IF(AND(Q98>0,Q98<4),X16,IF(AND(Q98>3,Q98<7),X17,IF(AND(Q98>6,Q98<10),X18,IF(AND(Q98>9,Q98<13),X19,IF(Q98>12,X20,0))))) -> 0
Q99: 0 | S99: 0 | U99: =IF(AND(Q99>0,Q99<4),X16,IF(AND(Q99>3,Q99<7),X17,IF(AND(Q99>6,Q99<10),X18,IF(AND(Q99>9,Q99<13),X19,IF(Q99>12,X20,0))))) -> 0
Q100: 0 | S100: 0 | U100: =IF(AND(Q100>0,Q100<4),X16,IF(AND(Q100>3,Q100<7),X17,IF(AND(Q100>6,Q100<10),X18,IF(AND(Q100>9,Q100<13),X19,IF(Q100>12,X20,0))))) -> 0
Q101: 0 | S101: 0 | U101: =IF(AND(Q101>0,Q101<4),X16,IF(AND(Q101>3,Q101<7),X17,IF(AND(Q101>6,Q101<10),X18,IF(AND(Q101>9,Q101<13),X19,IF(Q101>12,X20,0))))) -> 0
Q102: 0 | S102: 0 | U102: =IF(AND(Q102>0,Q102<4),X16,IF(AND(Q102>3,Q102<7),X17,IF(AND(Q102>6,Q102<10),X18,IF(AND(Q102>9,Q102<13),X19,IF(Q102>12,X20,0))))) -> 0
Q103: 0 | S103: 0 | U103: =IF(AND(Q103>0,Q103<4),X16,IF(AND(Q103>3,Q103<7),X17,IF(AND(Q103>6,Q103<10),X18,IF(AND(Q103>9,Q103<13),X19,IF(Q103>12,X20,0))))) -> 0
Q104: 0 | S104: 0 | U104: =IF(AND(Q104>0,Q104<4),X16,IF(AND(Q104>3,Q104<7),X17,IF(AND(Q104>6,Q104<10),X18,IF(AND(Q104>9,Q104<13),X19,IF(Q104>12,X20,0))))) -> 0
Q105: 0 | S105: 0 | U105: =IF(AND(Q105>0,Q105<4),X16,IF(AND(Q105>3,Q105<7),X17,IF(AND(Q105>6,Q105<10),X18,IF(AND(Q105>9,Q105<13),X19,IF(Q105>12,X20,0))))) -> 0
Q106: 0 | S106: 0 | U106: =IF(AND(Q106>0,Q106<4),X16,IF(AND(Q106>3,Q106<7),X17,IF(AND(Q106>6,Q106<10),X18,IF(AND(Q106>9,Q106<13),X19,IF(Q106>12,X20,0))))) -> 0
Q107: 0 | S107: 0 | U107: =IF(AND(Q107>0,Q107<4),X16,IF(AND(Q107>3,Q107<7),X17,IF(AND(Q107>6,Q107<10),X18,IF(AND(Q107>9,Q107<13),X19,IF(Q107>12,X20,0))))) -> 0
Q108: 0 | S108: 0 | U108: =IF(AND(Q108>0,Q108<4),X16,IF(AND(Q108>3,Q108<7),X17,IF(AND(Q108>6,Q108<10),X18,IF(AND(Q108>9,Q108<13),X19,IF(Q108>12,X20,0))))) -> 0
Q109: 0 | S109: 0 | U109: =IF(AND(Q109>0,Q109<4),X16,IF(AND(Q109>3,Q109<7),X17,IF(AND(Q109>6,Q109<10),X18,IF(AND(Q109>9,Q109<13),X19,IF(Q109>12,X20,0))))) -> 0
Q110: 0 | S110: 0 | U110: =IF(AND(Q110>0,Q110<4),X16,IF(AND(Q110>3,Q110<7),X17,IF(AND(Q110>6,Q110<10),X18,IF(AND(Q110>9,Q110<13),X19,IF(Q110>12,X20,0))))) -> 0
Q111: 0 | S111: 0 | U111: =IF(AND(Q111>0,Q111<4),X16,IF(AND(Q111>3,Q111<7),X17,IF(AND(Q111>6,Q111<10),X18,IF(AND(Q111>9,Q111<13),X19,IF(Q111>12,X20,0))))) -> 0
Q112: 0 | S112: 0 | U112: =IF(AND(Q112>0,Q112<4),X16,IF(AND(Q112>3,Q112<7),X17,IF(AND(Q112>6,Q112<10),X18,IF(AND(Q112>9,Q112<13),X19,IF(Q112>12,X20,0))))) -> 0
Q113: 0 | S113: 0 | U113: =IF(AND(Q113>0,Q113<4),X16,IF(AND(Q113>3,Q113<7),X17,IF(AND(Q113>6,Q113<10),X18,IF(AND(Q113>9,Q113<13),X19,IF(Q113>12,X20,0))))) -> 0
Q114: 0 | S114: 0 | U114: =IF(AND(Q114>0,Q114<4),X16,IF(AND(Q114>3,Q114<7),X17,IF(AND(Q114>6,Q114<10),X18,IF(AND(Q114>9,Q114<13),X19,IF(Q114>12,X20,0))))) -> 0
Q115: 0 | S115: 0 | U115: =IF(AND(Q115>0,Q115<4),X16,IF(AND(Q115>3,Q115<7),X17,IF(AND(Q115>6,Q115<10),X18,IF(AND(Q115>9,Q115<13),X19,IF(Q115>12,X20,0))))) -> 0
Q116: 0 | S116: 0 | U116: =IF(AND(Q116>0,Q116<4),X16,IF(AND(Q116>3,Q116<7),X17,IF(AND(Q116>6,Q116<10),X18,IF(AND(Q116>9,Q116<13),X19,IF(Q116>12,X20,0))))) -> 0
Q117: 0 | S117: 0 | U117: =IF(AND(Q117>0,Q117<4),X16,IF(AND(Q117>3,Q117<7),X17,IF(AND(Q117>6,Q117<10),X18,IF(AND(Q117>9,Q117<13),X19,IF(Q117>12,X20,0))))) -> 0
Q118: 0 | S118: 0 | U118: =IF(AND(Q118>0,Q118<4),X16,IF(AND(Q118>3,Q118<7),X17,IF(AND(Q118>6,Q118<10),X18,IF(AND(Q118>9,Q118<13),X19,IF(Q118>12,X20,0))))) -> 0
Q119: 0 | S119: 0 | U119: =IF(AND(Q119>0,Q119<4),X16,IF(AND(Q119>3,Q119<7),X17,IF(AND(Q119>6,Q119<10),X18,IF(AND(Q119>9,Q119<13),X19,IF(Q119>12,X20,0))))) -> 0
Q120: 0 | S120: 0 | U120: =IF(AND(Q120>0,Q120<4),X16,IF(AND(Q120>3,Q120<7),X17,IF(AND(Q120>6,Q120<10),X18,IF(AND(Q120>9,Q120<13),X19,IF(Q120>12,X20,0))))) -> 0
Q121: 0 | S121: 0 | U121: =IF(AND(Q121>0,Q121<4),X16,IF(AND(Q121>3,Q121<7),X17,IF(AND(Q121>6,Q121<10),X18,IF(AND(Q121>9,Q121<13),X19,IF(Q121>12,X20,0))))) -> 0
Q122: 0 | S122: 0 | U122: =IF(AND(Q122>0,Q122<4),X16,IF(AND(Q122>3,Q122<7),X17,IF(AND(Q122>6,Q122<10),X18,IF(AND(Q122>9,Q122<13),X19,IF(Q122>12,X20,0))))) -> 0
Q123: 0 | S123: 0 | U123: =IF(AND(Q123>0,Q123<4),X16,IF(AND(Q123>3,Q123<7),X17,IF(AND(Q123>6,Q123<10),X18,IF(AND(Q123>9,Q123<13),X19,IF(Q123>12,X20,0))))) -> 0
Q124: 0 | S124: 0 | U124: =IF(AND(Q124>0,Q124<4),X16,IF(AND(Q124>3,Q124<7),X17,IF(AND(Q124>6,Q124<10),X18,IF(AND(Q124>9,Q124<13),X19,IF(Q124>12,X20,0))))) -> 0
Q125: 0 | S125: 0 | U125: =IF(AND(Q125>0,Q125<4),X16,IF(AND(Q125>3,Q125<7),X17,IF(AND(Q125>6,Q125<10),X18,IF(AND(Q125>9,Q125<13),X19,IF(Q125>12,X20,0))))) -> 0
Q126: 0 | S126: 0 | U126: =IF(AND(Q126>0,Q126<4),X16,IF(AND(Q126>3,Q126<7),X17,IF(AND(Q126>6,Q126<10),X18,IF(AND(Q126>9,Q126<13),X19,IF(Q126>12,X20,0))))) -> 0
Q127: 0 | S127: 0 | U127: =IF(AND(Q127>0,Q127<4),X16,IF(AND(Q127>3,Q127<7),X17,IF(AND(Q127>6,Q127<10),X18,IF(AND(Q127>9,Q127<13),X19,IF(Q127>12,X20,0))))) -> 0
Q128: 0 | S128: 0 | U128: =IF(AND(Q128>0,Q128<4),X16,IF(AND(Q128>3,Q128<7),X17,IF(AND(Q128>6,Q128<10),X18,IF(AND(Q128>9,Q128<13),X19,IF(Q128>12,X20,0))))) -> 0
Q129: 0 | S129: 0 | U129: =IF(AND(Q129>0,Q129<4),X16,IF(AND(Q129>3,Q129<7),X17,IF(AND(Q129>6,Q129<10),X18,IF(AND(Q129>9,Q129<13),X19,IF(Q129>12,X20,0))))) -> 0
Q130: 0 | S130: 0 | U130: =IF(AND(Q130>0,Q130<4),X16,IF(AND(Q130>3,Q130<7),X17,IF(AND(Q130>6,Q130<10),X18,IF(AND(Q130>9,Q130<13),X19,IF(Q130>12,X20,0))))) -> 0
Q131: 0 | S131: 0 | U131: =IF(AND(Q131>0,Q131<4),X16,IF(AND(Q131>3,Q131<7),X17,IF(AND(Q131>6,Q131<10),X18,IF(AND(Q131>9,Q131<13),X19,IF(Q131>12,X20,0))))) -> 0
Q132: 0 | S132: 0 | U132: =IF(AND(Q132>0,Q132<4),X16,IF(AND(Q132>3,Q132<7),X17,IF(AND(Q132>6,Q132<10),X18,IF(AND(Q132>9,Q132<13),X19,IF(Q132>12,X20,0))))) -> 0
Q133: 0 | S133: 0 | U133: =IF(AND(Q133>0,Q133<4),X16,IF(AND(Q133>3,Q133<7),X17,IF(AND(Q133>6,Q133<10),X18,IF(AND(Q133>9,Q133<13),X19,IF(Q133>12,X20,0))))) -> 0
Q134: 0 | S134: 0 | U134: =IF(AND(Q134>0,Q134<4),X16,IF(AND(Q134>3,Q134<7),X17,IF(AND(Q134>6,Q134<10),X18,IF(AND(Q134>9,Q134<13),X19,IF(Q134>12,X20,0))))) -> 0
Q135: 0 | S135: 0 | U135: =IF(AND(Q135>0,Q135<4),X16,IF(AND(Q135>3,Q135<7),X17,IF(AND(Q135>6,Q135<10),X18,IF(AND(Q135>9,Q135<13),X19,IF(Q135>12,X20,0))))) -> 0
Q136: 0 | S136: 0 | U136: =IF(AND(Q136>0,Q136<4),X16,IF(AND(Q136>3,Q136<7),X17,IF(AND(Q136>6,Q136<10),X18,IF(AND(Q136>9,Q136<13),X19,IF(Q136>12,X20,0))))) -> 0
Q137: 0 | S137: 0 | U137: =IF(AND(Q137>0,Q137<4),X16,IF(AND(Q137>3,Q137<7),X17,IF(AND(Q137>6,Q137<10),X18,IF(AND(Q137>9,Q137<13),X19,IF(Q137>12,X20,0))))) -> 0
Q138: 0 | S138: 0 | U138: =IF(AND(Q138>0,Q138<4),X16,IF(AND(Q138>3,Q138<7),X17,IF(AND(Q138>6,Q138<10),X18,IF(AND(Q138>9,Q138<13),X19,IF(Q138>12,X20,0))))) -> 0
Q139: 0 | S139: 0 | U139: =IF(AND(Q139>0,Q139<4),X16,IF(AND(Q139>3,Q139<7),X17,IF(AND(Q139>6,Q139<10),X18,IF(AND(Q139>9,Q139<13),X19,IF(Q139>12,X20,0))))) -> 0
Q140: 0 | S140: 0 | U140: =IF(AND(Q140>0,Q140<4),X16,IF(AND(Q140>3,Q140<7),X17,IF(AND(Q140>6,Q140<10),X18,IF(AND(Q140>9,Q140<13),X19,IF(Q140>12,X20,0))))) -> 0
Q141: 0 | S141: 0 | U141: =IF(AND(Q141>0,Q141<4),X16,IF(AND(Q141>3,Q141<7),X17,IF(AND(Q141>6,Q141<10),X18,IF(AND(Q141>9,Q141<13),X19,IF(Q141>12,X20,0))))) -> 0
Q142: 0 | S142: 0 | U142: =IF(AND(Q142>0,Q142<4),X16,IF(AND(Q142>3,Q142<7),X17,IF(AND(Q142>6,Q142<10),X18,IF(AND(Q142>9,Q142<13),X19,IF(Q142>12,X20,0))))) -> 0
Q143: 0 | S143: 0 | U143: =IF(AND(Q143>0,Q143<4),X16,IF(AND(Q143>3,Q143<7),X17,IF(AND(Q143>6,Q143<10),X18,IF(AND(Q143>9,Q143<13),X19,IF(Q143>12,X20,0))))) -> 0
Q144: 0 | S144: 0 | U144: =IF(AND(Q144>0,Q144<4),X16,IF(AND(Q144>3,Q144<7),X17,IF(AND(Q144>6,Q144<10),X18,IF(AND(Q144>9,Q144<13),X19,IF(Q144>12,X20,0))))) -> 0
Q145: =IF(D145="Yes", 1, 0)+IF(E145="Yes", 1, 0)+IF(F145="Yes", 1, 0)+IF(G145="Yes", 1, 0)+IF(H145="Yes", 1, 0)+IF(I145="Yes", 1, 0)+IF(J145="Yes", 1, 0)+IF(K145="Yes", 1, 0)+IF(L145="Yes", 1, 0)+IF(M145="Yes", 1, 0)+IF(N145="Yes", 1, 0)+IF(O145="Yes", 1, 0)+IF(P145="Yes", 1, 0) -> 0 | S145: =IF(D145="Yes", 1, 0)+IF(E145="Yes", 1, 0)+IF(F145="Yes", 1, 0)+IF(G145="Yes", 1, 0)+IF(H145="Yes", 1, 0)+IF(I145="Yes", 1, 0)+IF(J145="Yes", 1, 0)+IF(K145="Yes", 1, 0)+IF(L145="Yes", 1, 0)+IF(M145="Yes", 1, 0)+IF(N145="Yes", 1, 0)+IF(O145="Yes", 1, 0)+IF(P145="Yes", 1, 0) -> 0 | U145: =IF(AND(Q145>0,Q145<4),X16,IF(AND(Q145>3,Q145<7),X17,IF(AND(Q145>6,Q145<10),X18,IF(AND(Q145>9,Q145<13),X19,IF(Q145>12,X20,0))))) -> 0
Q146: 0 | S146: 0 | U146: =IF(AND(Q146>0,Q146<4),X16,IF(AND(Q146>3,Q146<7),X17,IF(AND(Q146>6,Q146<10),X18,IF(AND(Q146>9,Q146<13),X19,IF(Q146>12,X20,0))))) -> 0
Q147: 0 | S147: 0 | U147: =IF(AND(Q147>0,Q147<4),X16,IF(AND(Q147>3,Q147<7),X17,IF(AND(Q147>6,Q147<10),X18,IF(AND(Q147>9,Q147<13),X19,IF(Q147>12,X20,0))))) -> 0
Q148: 0 | S148: 0 | U148: =IF(AND(Q148>0,Q148<4),X16,IF(AND(Q148>3,Q148<7),X17,IF(AND(Q148>6,Q148<10),X18,IF(AND(Q148>9,Q148<13),X19,IF(Q148>12,X20,0))))) -> 0
Q149: 0 | S149: 0 | U149: =IF(AND(Q149>0,Q149<4),X16,IF(AND(Q149>3,Q149<7),X17,IF(AND(Q149>6,Q149<10),X18,IF(AND(Q149>9,Q149<13),X19,IF(Q149>12,X20,0))))) -> 0
Q150: 0 | S150: 0 | U150: =IF(AND(Q150>0,Q150<4),X16,IF(AND(Q150>3,Q150<7),X17,IF(AND(Q150>6,Q150<10),X18,IF(AND(Q150>9,Q150<13),X19,IF(Q150>12,X20,0))))) -> 0
Q151: 0 | S151: 0 | U151: =IF(AND(Q151>0,Q151<4),X16,IF(AND(Q151>3,Q151<7),X17,IF(AND(Q151>6,Q151<10),X18,IF(AND(Q151>9,Q151<13),X19,IF(Q151>12,X20,0))))) -> 0
Q152: 0 | S152: 0 | U152: =IF(AND(Q152>0,Q152<4),X16,IF(AND(Q152>3,Q152<7),X17,IF(AND(Q152>6,Q152<10),X18,IF(AND(Q152>9,Q152<13),X19,IF(Q152>12,X20,0))))) -> 0
Q153: 0 | S153: 0 | U153: =IF(AND(Q153>0,Q153<4),X16,IF(AND(Q153>3,Q153<7),X17,IF(AND(Q153>6,Q153<10),X18,IF(AND(Q153>9,Q153<13),X19,IF(Q153>12,X20,0))))) -> 0
Q154: 0 | S154: 0 | U154: =IF(AND(Q154>0,Q154<4),X16,IF(AND(Q154>3,Q154<7),X17,IF(AND(Q154>6,Q154<10),X18,IF(AND(Q154>9,Q154<13),X19,IF(Q154>12,X20,0))))) -> 0
Q155: 0 | S155: 0 | U155: =IF(AND(Q155>0,Q155<4),X16,IF(AND(Q155>3,Q155<7),X17,IF(AND(Q155>6,Q155<10),X18,IF(AND(Q155>9,Q155<13),X19,IF(Q155>12,X20,0))))) -> 0
Q156: 0 | S156: 0 | U156: =IF(AND(Q156>0,Q156<4),X16,IF(AND(Q156>3,Q156<7),X17,IF(AND(Q156>6,Q156<10),X18,IF(AND(Q156>9,Q156<13),X19,IF(Q156>12,X20,0))))) -> 0
Q157: 0 | S157: 0 | U157: =IF(AND(Q157>0,Q157<4),X16,IF(AND(Q157>3,Q157<7),X17,IF(AND(Q157>6,Q157<10),X18,IF(AND(Q157>9,Q157<13),X19,IF(Q157>12,X20,0))))) -> 0
Q158: 0 | S158: 0 | U158: =IF(AND(Q158>0,Q158<4),X16,IF(AND(Q158>3,Q158<7),X17,IF(AND(Q158>6,Q158<10),X18,IF(AND(Q158>9,Q158<13),X19,IF(Q158>12,X20,0))))) -> 0
Q159: 0 | S159: 0 | U159: =IF(AND(Q159>0,Q159<4),X16,IF(AND(Q159>3,Q159<7),X17,IF(AND(Q159>6,Q159<10),X18,IF(AND(Q159>9,Q159<13),X19,IF(Q159>12,X20,0))))) -> 0
Q160: 0 | S160: 0 | U160: =IF(AND(Q160>0,Q160<4),X16,IF(AND(Q160>3,Q160<7),X17,IF(AND(Q160>6,Q160<10),X18,IF(AND(Q160>9,Q160<13),X19,IF(Q160>12,X20,0))))) -> 0
Q161: 0 | S161: 0 | U161: =IF(AND(Q161>0,Q161<4),X16,IF(AND(Q161>3,Q161<7),X17,IF(AND(Q161>6,Q161<10),X18,IF(AND(Q161>9,Q161<13),X19,IF(Q161>12,X20,0))))) -> 0
Q162: 0 | S162: 0 | U162: =IF(AND(Q162>0,Q162<4),X16,IF(AND(Q162>3,Q162<7),X17,IF(AND(Q162>6,Q162<10),X18,IF(AND(Q162>9,Q162<13),X19,IF(Q162>12,X20,0))))) -> 0
Q163: 0 | S163: 0 | U163: =IF(AND(Q163>0,Q163<4),X16,IF(AND(Q163>3,Q163<7),X17,IF(AND(Q163>6,Q163<10),X18,IF(AND(Q163>9,Q163<13),X19,IF(Q163>12,X20,0))))) -> 0
Q164: 0 | S164: 0 | U164: =IF(AND(Q164>0,Q164<4),X16,IF(AND(Q164>3,Q164<7),X17,IF(AND(Q164>6,Q164<10),X18,IF(AND(Q164>9,Q164<13),X19,IF(Q164>12,X20,0))))) -> 0
Q165: 0 | S165: 0 | U165: =IF(AND(Q165>0,Q165<4),X16,IF(AND(Q165>3,Q165<7),X17,IF(AND(Q165>6,Q165<10),X18,IF(AND(Q165>9,Q165<13),X19,IF(Q165>12,X20,0))))) -> 0
Q166: 0 | S166: 0 | U166: =IF(AND(Q166>0,Q166<4),X16,IF(AND(Q166>3,Q166<7),X17,IF(AND(Q166>6,Q166<10),X18,IF(AND(Q166>9,Q166<13),X19,IF(Q166>12,X20,0))))) -> 0
Q167: 0 | S167: 0 | U167: =IF(AND(Q167>0,Q167<4),X16,IF(AND(Q167>3,Q167<7),X17,IF(AND(Q167>6,Q167<10),X18,IF(AND(Q167>9,Q167<13),X19,IF(Q167>12,X20,0))))) -> 0
Q168: 0 | S168: 0 | U168: =IF(AND(Q168>0,Q168<4),X16,IF(AND(Q168>3,Q168<7),X17,IF(AND(Q168>6,Q168<10),X18,IF(AND(Q168>9,Q168<13),X19,IF(Q168>12,X20,0))))) -> 0
Q169: 0 | S169: 0 | U169: =IF(AND(Q169>0,Q169<4),X16,IF(AND(Q169>3,Q169<7),X17,IF(AND(Q169>6,Q169<10),X18,IF(AND(Q169>9,Q169<13),X19,IF(Q169>12,X20,0))))) -> 0
Q170: 0 | S170: 0 | U170: =IF(AND(Q170>0,Q170<4),X16,IF(AND(Q170>3,Q170<7),X17,IF(AND(Q170>6,Q170<10),X18,IF(AND(Q170>9,Q170<13),X19,IF(Q170>12,X20,0))))) -> 0
Q171: 0 | S171: 0 | U171: =IF(AND(Q171>0,Q171<4),X16,IF(AND(Q171>3,Q171<7),X17,IF(AND(Q171>6,Q171<10),X18,IF(AND(Q171>9,Q171<13),X19,IF(Q171>12,X20,0))))) -> 0
Q172: 0 | S172: 0 | U172: =IF(AND(Q172>0,Q172<4),X16,IF(AND(Q172>3,Q172<7),X17,IF(AND(Q172>6,Q172<10),X18,IF(AND(Q172>9,Q172<13),X19,IF(Q172>12,X20,0))))) -> 0
Q173: 0 | S173: 0 | U173: =IF(AND(Q173>0,Q173<4),X16,IF(AND(Q173>3,Q173<7),X17,IF(AND(Q173>6,Q173<10),X18,IF(AND(Q173>9,Q173<13),X19,IF(Q173>12,X20,0))))) -> 0
Q174: 0 | S174: 0 | U174: =IF(AND(Q174>0,Q174<4),X16,IF(AND(Q174>3,Q174<7),X17,IF(AND(Q174>6,Q174<10),X18,IF(AND(Q174>9,Q174<13),X19,IF(Q174>12,X20,0))))) -> 0
Q175: 0 | S175: 0 | U175: =IF(AND(Q175>0,Q175<4),X16,IF(AND(Q175>3,Q175<7),X17,IF(AND(Q175>6,Q175<10),X18,IF(AND(Q175>9,Q175<13),X19,IF(Q175>12,X20,0))))) -> 0
Q176: 0 | S176: 0 | U176: =IF(AND(Q176>0,Q176<4),X16,IF(AND(Q176>3,Q176<7),X17,IF(AND(Q176>6,Q176<10),X18,IF(AND(Q176>9,Q176<13),X19,IF(Q176>12,X20,0))))) -> 0
Q177: 0 | S177: 0 | U177: =IF(AND(Q177>0,Q177<4),X16,IF(AND(Q177>3,Q177<7),X17,IF(AND(Q177>6,Q177<10),X18,IF(AND(Q177>9,Q177<13),X19,IF(Q177>12,X20,0))))) -> 0
Q178: 0 | S178: 0 | U178: =IF(AND(Q178>0,Q178<4),X16,IF(AND(Q178>3,Q178<7),X17,IF(AND(Q178>6,Q178<10),X18,IF(AND(Q178>9,Q178<13),X19,IF(Q178>12,X20,0))))) -> 0
Q179: 0 | S179: 0 | U179: =IF(AND(Q179>0,Q179<4),X16,IF(AND(Q179>3,Q179<7),X17,IF(AND(Q179>6,Q179<10),X18,IF(AND(Q179>9,Q179<13),X19,IF(Q179>12,X20,0))))) -> 0
Q180: 0 | S180: 0 | U180: =IF(AND(Q180>0,Q180<4),X16,IF(AND(Q180>3,Q180<7),X17,IF(AND(Q180>6,Q180<10),X18,IF(AND(Q180>9,Q180<13),X19,IF(Q180>12,X20,0))))) -> 0
Q181: 0 | S181: 0 | U181: =IF(AND(Q181>0,Q181<4),X16,IF(AND(Q181>3,Q181<7),X17,IF(AND(Q181>6,Q181<10),X18,IF(AND(Q181>9,Q181<13),X19,IF(Q181>12,X20,0))))) -> 0
Q182: 0 | S182: 0 | U182: =IF(AND(Q182>0,Q182<4),X16,IF(AND(Q182>3,Q182<7),X17,IF(AND(Q182>6,Q182<10),X18,IF(AND(Q182>9,Q182<13),X19,IF(Q182>12,X20,0))))) -> 0
Q183: 0 | S183: 0 | U183: =IF(AND(Q183>0,Q183<4),X16,IF(AND(Q183>3,Q183<7),X17,IF(AND(Q183>6,Q183<10),X18,IF(AND(Q183>9,Q183<13),X19,IF(Q183>12,X20,0))))) -> 0
Q184: 0 | S184: 0 | U184: =IF(AND(Q184>0,Q184<4),X16,IF(AND(Q184>3,Q184<7),X17,IF(AND(Q184>6,Q184<10),X18,IF(AND(Q184>9,Q184<13),X19,IF(Q184>12,X20,0))))) -> 0
Q185: 0 | S185: 0 | U185: =IF(AND(Q185>0,Q185<4),X16,IF(AND(Q185>3,Q185<7),X17,IF(AND(Q185>6,Q185<10),X18,IF(AND(Q185>9,Q185<13),X19,IF(Q185>12,X20,0))))) -> 0
Q186: 0 | S186: 0 | U186: =IF(AND(Q186>0,Q186<4),X16,IF(AND(Q186>3,Q186<7),X17,IF(AND(Q186>6,Q186<10),X18,IF(AND(Q186>9,Q186<13),X19,IF(Q186>12,X20,0))))) -> 0
Q187: 0 | S187: 0 | U187: =IF(AND(Q187>0,Q187<4),X16,IF(AND(Q187>3,Q187<7),X17,IF(AND(Q187>6,Q187<10),X18,IF(AND(Q187>9,Q187<13),X19,IF(Q187>12,X20,0))))) -> 0
Q188: 0 | S188: 0 | U188: =IF(AND(Q188>0,Q188<4),X16,IF(AND(Q188>3,Q188<7),X17,IF(AND(Q188>6,Q188<10),X18,IF(AND(Q188>9,Q188<13),X19,IF(Q188>12,X20,0))))) -> 0
Q189: 0 | S189: 0 | U189: =IF(AND(Q189>0,Q189<4),X16,IF(AND(Q189>3,Q189<7),X17,IF(AND(Q189>6,Q189<10),X18,IF(AND(Q189>9,Q189<13),X19,IF(Q189>12,X20,0))))) -> 0
Q190: 0 | S190: 0 | U190: =IF(AND(Q190>0,Q190<4),X16,IF(AND(Q190>3,Q190<7),X17,IF(AND(Q190>6,Q190<10),X18,IF(AND(Q190>9,Q190<13),X19,IF(Q190>12,X20,0))))) -> 0
Q191: 0 | S191: 0 | U191: =IF(AND(Q191>0,Q191<4),X16,IF(AND(Q191>3,Q191<7),X17,IF(AND(Q191>6,Q191<10),X18,IF(AND(Q191>9,Q191<13),X19,IF(Q191>12,X20,0))))) -> 0
Q192: 0 | S192: 0 | U192: =IF(AND(Q192>0,Q192<4),X16,IF(AND(Q192>3,Q192<7),X17,IF(AND(Q192>6,Q192<10),X18,IF(AND(Q192>9,Q192<13),X19,IF(Q192>12,X20,0))))) -> 0
Q193: 0 | S193: 0 | U193: =IF(AND(Q193>0,Q193<4),X16,IF(AND(Q193>3,Q193<7),X17,IF(AND(Q193>6,Q193<10),X18,IF(AND(Q193>9,Q193<13),X19,IF(Q193>12,X20,0))))) -> 0
Q194: 0 | S194: 0 | U194: =IF(AND(Q194>0,Q194<4),X16,IF(AND(Q194>3,Q194<7),X17,IF(AND(Q194>6,Q194<10),X18,IF(AND(Q194>9,Q194<13),X19,IF(Q194>12,X20,0))))) -> 0
Q195: 0 | S195: 0 | U195: =IF(AND(Q195>0,Q195<4),X16,IF(AND(Q195>3,Q195<7),X17,IF(AND(Q195>6,Q195<10),X18,IF(AND(Q195>9,Q195<13),X19,IF(Q195>12,X20,0))))) -> 0
Q196: 0 | S196: 0 | U196: =IF(AND(Q196>0,Q196<4),X16,IF(AND(Q196>3,Q196<7),X17,IF(AND(Q196>6,Q196<10),X18,IF(AND(Q196>9,Q196<13),X19,IF(Q196>12,X20,0))))) -> 0
Q197: 0 | S197: 0 | U197: =IF(AND(Q197>0,Q197<4),X16,IF(AND(Q197>3,Q197<7),X17,IF(AND(Q197>6,Q197<10),X18,IF(AND(Q197>9,Q197<13),X19,IF(Q197>12,X20,0))))) -> 0
Q198: 0 | S198: 0 | U198: =IF(AND(Q198>0,Q198<4),X16,IF(AND(Q198>3,Q198<7),X17,IF(AND(Q198>6,Q198<10),X18,IF(AND(Q198>9,Q198<13),X19,IF(Q198>12,X20,0))))) -> 0
Q199: 0 | S199: 0 | U199: =IF(AND(Q199>0,Q199<4),X16,IF(AND(Q199>3,Q199<7),X17,IF(AND(Q199>6,Q199<10),X18,IF(AND(Q199>9,Q199<13),X19,IF(Q199>12,X20,0))))) -> 0
Q200: 0 | S200: 0 | U200: =IF(AND(Q200>0,Q200<4),X16,IF(AND(Q200>3,Q200<7),X17,IF(AND(Q200>6,Q200<10),X18,IF(AND(Q200>9,Q200<13),X19,IF(Q200>12,X20,0))))) -> 0
Q201: 0 | S201: 0 | U201: =IF(AND(Q201>0,Q201<4),X16,IF(AND(Q201>3,Q201<7),X17,IF(AND(Q201>6,Q201<10),X18,IF(AND(Q201>9,Q201<13),X19,IF(Q201>12,X20,0))))) -> 0
Q202: 0 | S202: 0 | U202: =IF(AND(Q202>0,Q202<4),X16,IF(AND(Q202>3,Q202<7),X17,IF(AND(Q202>6,Q202<10),X18,IF(AND(Q202>9,Q202<13),X19,IF(Q202>12,X20,0))))) -> 0
Q203: 0 | S203: 0 | U203: =IF(AND(Q203>0,Q203<4),X16,IF(AND(Q203>3,Q203<7),X17,IF(AND(Q203>6,Q203<10),X18,IF(AND(Q203>9,Q203<13),X19,IF(Q203>12,X20,0))))) -> 0
Q204: 0 | S204: 0 | U204: =IF(AND(Q204>0,Q204<4),X16,IF(AND(Q204>3,Q204<7),X17,IF(AND(Q204>6,Q204<10),X18,IF(AND(Q204>9,Q204<13),X19,IF(Q204>12,X20,0))))) -> 0
Q205: 0 | S205: 0 | U205: =IF(AND(Q205>0,Q205<4),X16,IF(AND(Q205>3,Q205<7),X17,IF(AND(Q205>6,Q205<10),X18,IF(AND(Q205>9,Q205<13),X19,IF(Q205>12,X20,0))))) -> 0
Q206: 0 | S206: 0 | U206: =IF(AND(Q206>0,Q206<4),X16,IF(AND(Q206>3,Q206<7),X17,IF(AND(Q206>6,Q206<10),X18,IF(AND(Q206>9,Q206<13),X19,IF(Q206>12,X20,0))))) -> 0
Q207: 0 | S207: 0 | U207: =IF(AND(Q207>0,Q207<4),X16,IF(AND(Q207>3,Q207<7),X17,IF(AND(Q207>6,Q207<10),X18,IF(AND(Q207>9,Q207<13),X19,IF(Q207>12,X20,0))))) -> 0
Q208: 0 | S208: 0 | U208: =IF(AND(Q208>0,Q208<4),X16,IF(AND(Q208>3,Q208<7),X17,IF(AND(Q208>6,Q208<10),X18,IF(AND(Q208>9,Q208<13),X19,IF(Q208>12,X20,0))))) -> 0
Q209: =IF(D209="Yes", 1, 0)+IF(E209="Yes", 1, 0)+IF(F209="Yes", 1, 0)+IF(G209="Yes", 1, 0)+IF(H209="Yes", 1, 0)+IF(I209="Yes", 1, 0)+IF(J209="Yes", 1, 0)+IF(K209="Yes", 1, 0)+IF(L209="Yes", 1, 0)+IF(M209="Yes", 1, 0)+IF(N209="Yes", 1, 0)+IF(O209="Yes", 1, 0)+IF(P209="Yes", 1, 0) -> 0 | S209: =IF(D209="Yes", 1, 0)+IF(E209="Yes", 1, 0)+IF(F209="Yes", 1, 0)+IF(G209="Yes", 1, 0)+IF(H209="Yes", 1, 0)+IF(I209="Yes", 1, 0)+IF(J209="Yes", 1, 0)+IF(K209="Yes", 1, 0)+IF(L209="Yes", 1, 0)+IF(M209="Yes", 1, 0)+IF(N209="Yes", 1, 0)+IF(O209="Yes", 1, 0)+IF(P209="Yes", 1, 0) -> 0 | U209: =IF(AND(Q209>0,Q209<4),X16,IF(AND(Q209>3,Q209<7),X17,IF(AND(Q209>6,Q209<10),X18,IF(AND(Q209>9,Q209<13),X19,IF(Q209>12,X20,0))))) -> 0
Q210: 0 | S210: 0 | U210: =IF(AND(Q210>0,Q210<4),X16,IF(AND(Q210>3,Q210<7),X17,IF(AND(Q210>6,Q210<10),X18,IF(AND(Q210>9,Q210<13),X19,IF(Q210>12,X20,0))))) -> 0
Q211: 0 | S211: 0 | U211: =IF(AND(Q211>0,Q211<4),X16,IF(AND(Q211>3,Q211<7),X17,IF(AND(Q211>6,Q211<10),X18,IF(AND(Q211>9,Q211<13),X19,IF(Q211>12,X20,0))))) -> 0
... 15 more rows

Sheet Community Livability Module
G11: Default Values
G12: Yes | H12: Low | I12: Yes | J12: Yes
U13: User Defined Weights
B14: Inputs (Note: The user input values are provided for illustrative purposes only and not based on factual data) | K14: Calculated Values | T14: Factor Presence of Hazardous Trains | U14: 1
B15: Data Directly Coming From FRA Inventory Database | G15: User Inputs | T15: Factor for Maximum TT Train Speed | U15: 1
B16: Crossing ID | C16: Street/Highway | D16: Maximum Timetable Speed (MaxTtSpd) | E16: Posted HW Speed Limit (HwySpeed) | F16: Percentage of Truck in Traffic (PctTruk) | G16: Presence of Hazardous Train Cars | H16: Population Density | I16: Vulnerable Population | J16: Emergency Response Delays | K16: Score for Maximum Timetable Speed (MaxTtSpd) | L16: Score for Posted HW Speed Limit (HwySpeed) | M16: Score for Percentage of Truck in Traffic (PctTruk) | N16: Score for Community/Livability Factors | R16: Normalized Score for Community/Livability Factors | T16: Factor for % truck in traffic | U16: 1
B17: 386218L | C17: PRIVATE ROAD | D17: 0 | G17: Yes | H17: Low | I17: Yes | J17: Yes | K17: =IF('Safety Module'!P17>=80,10,IF('Safety Module'!P17>=60,8,IF('Safety Module'!P17>=40,6,IF('Safety Module'!P17>=25,4,IF('Safety Module'!P17>=10,2,0))))) -> 0 | L17: =IF(E17<=35,2,IF(E17<=40,4,IF(E17<=50,6,IF(E17<=64,8,10)))) -> 2 | M17: =IF(F17>=20%, 10,IF(F17>=15%,8,IF(F17>=10%,6,IF(F17>=5%,4,0)))) -> 0 | N17: =IF(G17="Yes", 1, 0)*$U$14+K17*$U$15+M17*$U$16+L17*$U$17+IF(H17="Low", 1, IF(H17="Medium", 3, IF(H17="High", 5, 0)))*$U$18+IF(I17="Yes", 1, 0)*$U$19+IF(J17="Yes", 1, 0)*$U$20 -> 6 | P17: Min | Q17: =MIN(N17:N18) -> 6 | R17: =10*(N17-$Q$17)/$Q$19 ->  | T17: Factor for Highway Speed | U17: 1
B18: 386204D | C18: PRIVATE ROAD | D18: 0 | G18: Yes | H18: Low | I18: Yes | J18: Yes | K18: =IF('Safety Module'!P18>=80,10,IF('Safety Module'!P18>=60,8,IF('Safety Module'!P18>=40,6,IF('Safety Module'!P18>=25,4,IF('Safety Module'!P18>=10,2,0))))) -> 0 | L18: =IF(E18<=35,2,IF(E18<=40,4,IF(E18<=50,6,IF(E18<=64,8,10)))) -> 2 | M18: =IF(F18>=20%, 10,IF(F18>=15%,8,IF(F18>=10%,6,IF(F18>=5%,4,0)))) -> 0 | N18: =IF(G18="Yes", 1, 0)*$U$14+K18*$U$15+M18*$U$16+L18*$U$17+IF(H18="Low", 1, IF(H18="Medium", 3, IF(H18="High", 5, 0)))*$U$18+IF(I18="Yes", 1, 0)*$U$19+IF(J18="Yes", 1, 0)*$U$20 -> 6 | P18: Max | Q18: =MAX(N17:N18) -> 6 | R18: =10*(N18-$Q$17)/$Q$19 ->  | T18: Factor for Population Density | U18: 1
P19: Range | Q19: =Q18-Q17 -> 0 | T19: Factor for Vulnerable Population | U19: 1
T20: Factor for Emergency Response Delays | U20: 1

Sheet 4.1 Safety Module - Old (hidden)
BH2: Constants | BI2: (to be modified)
BH3: k1 | BI3: =2/3 -> 0.6666666667
BH4: k2 | BI4: =1/3 -> 0.3333333333
BH5: k21 | BI5: 0.2
BH6: F | BI6: 46.5
BH7: I | BI7: 2.7
BH8: P | BI8: 0.1
BH9: k22 | BI9: 0.2
BH10: k23 | BI10: 0.2
BH11: k24 | BI11: 0.2
B12: Safety Module | BH12: k25 | BI12: 0.2
B14: Inputs | AN14: Calculated Values | AQ14: Calculated Values
B15: Data Directly Coming From FRA Inventory Database | W15: Data Compiled From FRA Accident Database | AB15: User Inputs
B16: Crossing ID | C16: State Name (StateName) | D16: County Name (CountyName) | E16: Highway Name (Highway) | F16: Total Daylight Thru Trains (DayThru) | G16: Total Night time Thru Trains (NghtThru) | H16: Total Switching Trains (TotalSwt) | I16: Main Tracks (MainTrk) | J16: Number of Siding tracks (SidingTrk) | K16: Number of Yard tracks (YardTrk) | L16: Number of Transit tracks (TransitTrk) | M16: Number of Industry tracks (IndustryTrk) | N16: Number of Other tracks (OthrTrk) | O16: Maximum Timetable Speed (MaxTtSpd) | P16: Number of Traffic Lanes Crossing Railroad (TraficLn) | Q16: Is the HW Paved? (HwyPved) | R16: Presence of Nearby HW Intersection (HwyNear) | S16: Type of Warning Device (WdCode) | T16: Smallest Crossing Angle (Xangle) | U16: Functional Classification of Road at Crossing (HwyClassrdtpID) | V16: AADT (Aadt) | W16: 10 Year Accident History | X16: Sum of Number of of Fatalities (TotKld) | Y16: Sum of Number of Injuries (TotInj) | Z16: Sum of Number of PDO Accidents | AA16: Average Speed of Trains Involved in Accidents at Crossing | AB16: Presence of Quad Gates | AC16: Length of Train | AD16: Exposure | AE16: Exposure Index Factor EI | AF16: Main Tracks Factor MT | AG16: Day Through Trains Factor DT | AH16: Highway Paaved Factor HP | AI16: Maximum Speed Factor MS | AJ16: Highway Type Factor HT | AK16: Highway Lanes Factor HL | AL16: Initial Collission prediction formula | AM16: Formula Weighing Factor | AN16: Zero Inflated Passive | AO16: Zero Inflated Flashing Lights | AP16: Zero Inflated Gates | AQ16: AATT | AR16: Total Number of Tracks | AS16: USDOT Accident Prediction Value | AT16: Zero Inflated Negative Binomial Accident Prediction Value | AU16: Queue Length | AV16: X (reflects the speeds commonly maintained by the trains at that crossing) | AW16: Normalized Factor for Accident Severity | AX16: Normalized maximum timetaable train speed | AY16: Normalized number of tracks | AZ16: Distance to Nearby HW intersection | BA16: Queue Length/Distance to Nearby HW intersection | BB16: Normalized Maximum Queue Length | BC16: Normalized angle of crossing value | BD16: Score for Engineering Factors | BE16: Score for Safety and Engineering Factors | BI16: Prioritzation
B17: 608846J | C17: IL | D17: COOK | E17: VERMONT | F17: 69 | G17: 40 | H17: 0 | I17: 4 | J17: 0 | K17: 0 | L17: 0 | M17: 0 | N17: 0 | O17: 60 | P17: 2 | Q17: 1 | R17: 4 | S17: 1 | T17: 2 | U17: 5 | V17: 8900 | W17: 4 | X17: 0 | Y17: 0 | Z17: =W17-(IF(X17>0,1,0))-(IF(Y17>0,1,0)) -> 4 | AA17: 18 | AB17: 0 | AC17: 7500 | AD17: =V17*AQ17 -> 970100 | AE17: =(AD17+0.2^(IF(S17=1,0.3116,IF(S17=2,0.2963,IF(S17=3,0.3334,0)))))/0.2 -> 4850503.028 | AF17: =EXP(IF(S17=1,0.2912*I17,IF(S17=2,0.1088*I17,IF(S17=3,0.2094*I17,0)))) -> 3.205281763 | AG17: =IF(S17=1,1,IF(S17=2,((F17+0.2^0.047)/0.2),IF(S17=3,((F17+0.2^0.1336)/0.2),0))) -> 1 | AH17: =IF(OR(S17=1,S17=2),1,IF(S17=3,EXP(-0.616*(Q17-1)),0)) -> 1 | AI17: =IF(OR(S17=1,S17=2),1,IF(S17=3,EXP(0.0077*O17),0)) -> 1 | AJ17: =IF(OR(S17=1,S17=2),1,IF(S17=3,EXP(-0.1*(U17-1)),0)) -> 1 | AK17: =IF(S17=1,EXP(0.1036*(P17-1)),IF(S17=2,EXP(0.139*(P17-1)),IF(S17=3,1,0))) -> 1.109156703 | AL17: =PRODUCT(AF17:AK17)*IF(S17=1,0.001088,IF(S17=2, 0.003646,IF(S17=3, 0.002268,0))) -> 0.003868013812 | AM17: =1/(0.05+AL17) -> 18.56389217 | AN17: =(1-(1/(1+EXP(-0.9006+0.1462*AQ17))))*EXP(-2.6846-(10^-5*AD17)+(0.02164*O17)) -> 1.530700034e-05 | AO17: =(1-(1/(1+EXP(-1.7+(0.63*I17)))))*EXP(-2.3506-(AD17*1.34*10^-6)-(0.3586*AR17)+(0.2992*P17)+IF(T17=1,0.6071,IF(T17=2,-0.5835,0))) -> 0.008935020565 | AP17: =(1-(1/(1+EXP(-0.8641+(0.0945*AQ17)))))*EXP(-3.3215+(AD17*9.35*10^-7)+(0.284*AR17)+(IF(AB17=1,1.1149,0))+(IF(R17>1,-0.3013,0))) -> 0.1167364716 | AQ17: =SUM(F17:H17) -> 109 | AR17: 2 | AS17: =(AM17/AM17+10)*AL17+(AM17/AM17+10)*(W17/10) -> 4.442548152 | AT17: N/A | AU17: =(25*(V17*((50+(AC17/(1.466*O17)))/60)/(24*60)))/P17 -> 174.1706694 | AV17: =AA17 -> 18 | AW17: =($BI$6*X17+$BI$7*Y17+$BI$8*Z17) -> 0.4 | AX17: =IF(((O17-AV17)/110)>0,(O17-AV17)/110,0) -> 0.3818181818 | AY17: =IF(AR17>=3,1,IF(AR17>=2,0.75,0.5)) -> 0.75 | AZ17: =R17 -> 4 | BA17: =AU17/IF(AZ17=1,75,IF(AZ17=2,200,IF(AZ17=3,500,1000))) -> 0.1741706694 | BB17: =IF(BA17>0.75,1,IF(BA17>0.5,0.5,0)) -> 0 | BC17: =IF(T17=1,1,IF(T17=2,0.5, IF(T17=3, 0,0))) -> 0.5 | BD17: =$BI$5*$AW$17+$BI$9*AX17+$BI$10*AY17+$BI$11*BB17+$BI$12*BC17 -> 0.4063636364 | BE17: =AS17*$BI$3+$BI$4*BD17 -> 3.097153313 | BG17: Min | BH17: =MIN(BE17:BE24) -> 1.165237629 | BI17: =10*(BE17-$BH$17)/$BH$19 -> 2.480338205
B18: 608311K | C18: IL | D18: COOK | E18: 119TH | F18: 42 | G18: 19 | H18: 5 | I18: 2 | J18: 0 | K18: 1 | L18: 0 | M18: 0 | N18: 1 | O18: 60 | P18: 4 | Q18: 1 | R18: 1 | S18: 1 | T18: 3 | U18: 3 | V18: 21000 | W18: 7 | X18: 1 | Y18: 3 | Z18: 3 | AA18: 46.8 | AB18: 0 | AC18: 7500 | AD18: 1386000 | AE18: 6930003.028 | AF18: 1.790330071 | AG18: 1 | AH18: 1 | AI18: 1 | AJ18: 1 | AK18: 1.364516291 | AL18: 0.002657912788 | AM18: =1/(0.05+AL18) -> 18.99049824 | AN18: 2.391060473e-07 | AO18: 0.006578197875 | AP18: 0.3078262067 | AQ18: =SUM(F18:H18) -> 66 | AR18: 3 | AS18: =(AM18/AM18+10)*AL18+(AM18/AM18+10)*(W18/10) -> 7.729237041 | AT18: N/A | AU18: 205.4822505 | AV18: =AA18 -> 46.8 | AW18: =($BI$6*X18+$BI$7*Y18+$BI$8*Z18) -> 54.9 | AX18: =IF(((O18-AV18)/110)>0,(O18-AV18)/110,0) -> 0.12 | AY18: 1 | AZ18: 1 | BA18: 2.739763339 | BB18: =IF(BA18>0.75,1,IF(BA18>0.5,0.5,0)) -> 1 | BC18: 0 | BD18: =$BI$5*($BI$6*X18+$BI$7*Y18+$BI$8*Z18)+$BI$9*AX18+$BI$10*AY18+$BI$11*BB18+$BI$12*BC18 -> 11.404 | BE18: =AS18*$BI$3+$BI$4*BD18 -> 8.954158027 | BG18: Max | BH18: =MAX(BE17:BE24) -> 8.954158027 | BI18: =10*(BE18-$BH$17)/$BH$19 -> 10
B19: 608310D | C19: IL | D19: COOK | E19: 115TH | F19: 42 | G19: 19 | H19: 5 | I19: 2 | J19: 0 | K19: 0 | L19: 0 | M19: 0 | N19: 0 | O19: 60 | P19: 2 | Q19: 1 | R19: 2 | S19: 1 | T19: 3 | U19: 5 | V19: 6200 | W19: 2 | X19: 0 | Y19: 4 | Z19: 0 | AA19: 55 | AB19: 0 | AC19: 7500 | AD19: 409200 | AE19: 2046003.028 | AF19: 1.790330071 | AG19: 1 | AH19: 1 | AI19: 1 | AJ19: 1 | AK19: 1.109156703 | AL19: 0.00216050318 | AM19: 19.1715942 | AN19: 0.00417617856 | AO19: 0.01916092078 | AP19: 0.06878098733 | AQ19: 66 | AR19: 2 | AS19: 2.223765535 | AT19: N/A | AU19: 121.3323765 | AV19: 55 | AW19: 10.8 | AX19: 0.04545454545 | AY19: 0.75 | AZ19: 2 | BA19: 0.6066618823 | BB19: 0.5 | BC19: 0 | BD19: 2.419090909 | BE19: 2.288873993 | BG19: Range | BH19: =BH18-BH17 -> 7.788920398 | BI19: 1.442608611
B20: 608309J | C20: IL | D20: COOK | E20: MONTERY AVE | F20: 42 | G20: 19 | H20: 5 | I20: 3 | J20: 0 | K20: 0 | L20: 0 | M20: 0 | N20: 0 | O20: 60 | P20: 4 | Q20: 1 | R20: 1 | S20: 1 | T20: 3 | U20: 5 | V20: 19700 | W20: 2 | X20: 1 | Y20: 3 | Z20: 0 | AA20: 68.5 | AB20: 0 | AC20: 7500 | AD20: 1300200 | AE20: 6501003.028 | AF20: 2.395519218 | AG20: 1 | AH20: 1 | AI20: 1 | AJ20: 1 | AK20: 1.364516291 | AL20: 0.003556372798 | AM20: 18.67191424 | AN20: 5.6391705e-07 | AO20: 0.01475872406 | AP20: 0.2138580249 | AQ20: 66 | AR20: 2 | AS20: 2.239120101 | AT20: N/A | AU20: 192.7619207 | AV20: 68.5 | AW20: 54.6 | AX20: 0 | AY20: 0.75 | AZ20: 1 | BA20: 2.570158942 | BB20: 1 | BC20: 0 | BD20: 11.27 | BE20: 5.249413401 | BI20: 5.243571076
B21: 608308C | C21: IL | D21: COOK | E21: 111TH | F21: 42 | G21: 19 | H21: 5 | I21: 3 | J21: 0 | K21: 0 | L21: 0 | M21: 0 | N21: 0 | O21: 60 | P21: 4 | Q21: 1 | R21: 1 | S21: 1 | T21: 3 | U21: 3 | V21: 11800 | W21: 2 | X21: 1 | Y21: 0 | Z21: 1 | AA21: 64.5 | AB21: 0 | AC21: 7500 | AD21: 778800 | AE21: 3894003.028 | AF21: 2.395519218 | AG21: 1 | AH21: 1 | AI21: 1 | AJ21: 1 | AK21: 1.364516291 | AL21: 0.003556372798 | AM21: 18.67191424 | AN21: 0.0001036636877 | AO21: 0.02968109674 | AP21: 0.131341836 | AQ21: 66 | AR21: 2 | AS21: 2.239120101 | AT21: N/A | AU21: 115.461455 | AV21: 64.5 | AW21: 46.6 | AX21: 0 | AY21: 0.75 | AZ21: 1 | BA21: 1.539486067 | BB21: 1 | BC21: 0 | BD21: 9.67 | BE21: 4.716080067 | BI21: 4.558837755
B22: 608304A | C22: IL | D22: COOK | E22: 103ST | F22: 42 | G22: 19 | H22: 5 | I22: 3 | J22: 0 | K22: 0 | L22: 0 | M22: 0 | N22: 0 | O22: 60 | P22: 5 | Q22: 1 | R22: 1 | S22: 1 | T22: 3 | U22: 3 | V22: 11300 | W22: 2 | X22: 0 | Y22: 3 | Z22: 0 | AA22: 27.5 | AB22: 0 | AC22: 7500 | AD22: 745800 | AE22: 3729003.028 | AF22: 2.395519218 | AG22: 1 | AH22: 1 | AI22: 1 | AJ22: 1 | AK22: 1.513462391 | AL22: 0.003944574729 | AM22: 18.53754534 | AN22: 0.0001441928857 | AO22: 0.04184324481 | AP22: 0.1273511663 | AQ22: 66 | AR22: 2 | AS22: 2.243390322 | AT22: N/A | AU22: 88.45521639 | AV22: 27.5 | AW22: 8.1 | AX22: 0.2954545455 | AY22: 0.75 | AZ22: 1 | BA22: 1.179402885 | BB22: 1 | BC22: 0 | BD22: 2.029090909 | BE22: 2.171957184 | BI22: 1.292502046
B23: 609012G | C23: IL | D23: COOK | E23: 97TH STREET | F23: 42 | G23: 19 | H23: 5 | I23: 2 | J23: 0 | K23: 0 | L23: 0 | M23: 0 | N23: 0 | O23: 60 | P23: 2 | Q23: 2 | R23: 1 | S23: 1 | T23: 3 | U23: 5 | V23: 1450 | W23: 1 | X23: 0 | Y23: 2 | Z23: 0 | AA23: 50 | AB23: 0 | AC23: 7500 | AD23: 95700 | AE23: 478503.0281 | AF23: 1.790330071 | AG23: 1 | AH23: 1 | AI23: 1 | AJ23: 1 | AK23: 1.109156703 | AL23: 0.00216050318 | AM23: 19.1715942 | AN23: 0.09600464812 | AO23: 0.02916480951 | AP23: 0.06934574988 | AQ23: 66 | AR23: 2 | AS23: 1.123765535 | AT23: N/A | AU23: 28.3761203 | AV23: 50 | AW23: 5.4 | AX23: 0.09090909091 | AY23: 0.75 | AZ23: 1 | BA23: 0.3783482707 | BB23: 0 | BC23: 0 | BD23: 1.248181818 | BE23: 1.165237629 | BI23: 0
B24: 609011A | C24: IL | D24: COOK | E24: 95TH STREET | F24: 42 | G24: 19 | H24: 5 | I24: 2 | J24: 0 | K24: 0 | L24: 0 | M24: 0 | N24: 0 | O24: 60 | P24: 5 | Q24: 1 | R24: 1 | S24: 1 | T24: 3 | U24: 3 | V24: 18500 | W24: 3 | X24: 0 | Y24: 4 | Z24: 0 | AA24: 53.3 | AB24: 0 | AC24: 7500 | AD24: 1221000 | AE24: 6105003.028 | AF24: 1.790330071 | AG24: 1 | AH24: 1 | AI24: 1 | AJ24: 1 | AK24: 1.513462391 | AL24: 0.002948041786 | AM24: 18.88643973 | AN24: 1.245020365e-06 | AO24: 0.0158419396 | AP24: 0.1985935671 | AQ24: 66 | AR24: 2 | AS24: 3.33242846 | AT24: N/A | AU24: 144.8160622 | AV24: 53.3 | AW24: 10.8 | AX24: 0.06090909091 | AY24: 0.75 | AZ24: 1 | BA24: 1.93088083 | BB24: 1 | BC24: 0 | BD24: 2.522181818 | BE24: 3.062346246 | BI24: 2.435650282

Sheet 4.2 Economic Module - Old (hidden)
Q1: (to be modified)
P2: Factor for EC1 | Q2: 1
P3: Factor for EC2 | Q3: 1
P4: Factor for EC3 | Q4: 1
P5: Factor for EC4 | Q5: 1
P6: Factor for EC5 | Q6: 1
P7: Factor for EC6 | Q7: 1
P8: Factor for EC7 | Q8: 1
B12: Economic Module
B14: Inputs | K14: Calculated Values
B15: Data Directly Coming from FRA Inventory Database | D15: User Inputs
B16: Crossing ID | C16: Percentage of Trucks (PctTruk) | D16: Average cost of fuel per gallon | E16: Crossing operating cost/life cycle cost over 20 years (EC3) | F16: Construction cost (EC4) | G16: Density near Project | H16: Economic Losses (EC5) | I16: Impacts to Land Use (EC6) | J16: Supply Chain Savings (EC7) | K16: Vehicle operating cost/delay and accident cost – Passenger vehicles (EC1) | L16: Vehicle operating cost/delay and accident cost – Commercial vehicles (EC2) | M16: Score for Economic Factors | Q16: Prioritization
B17: 608846J | C17: 12 | D17: 2 | E17: =30000*20 -> 600000 | F17: 45000000 | G17: 5 | H17: 1 | I17: 5 | J17: =IF(C17<5,1, IF(C17<10,2, IF(C17<15, 3, IF(C17<25,4,5)))) -> 3 | K17: =(('4.1 Safety Module - Old'!V17-('4.1 Safety Module - Old'!V17)*'4.2 Economic Module - Old'!C17%)*2.5*'4.1 Safety Module - Old'!AQ17/60)*(13+1.5*D17) -> 569125.3333 | L17: =((('4.1 Safety Module - Old'!V17)*'4.2 Economic Module - Old'!C17%)*2.5/60)*'4.1 Safety Module - Old'!AQ17*(26.68+1.5*D17) -> 143962.84 | M17: =(K17*$Q$2+L17*$Q$3+E17*$Q$4+F17*$Q$5+H17*$Q$6+I17*$Q$7+J17*$Q$8)/1000000 -> 46.31309717 | O17: Min | P17: =MIN(M17:M24) -> 25.26707694 | Q17: =10*(M17-$P$17)/$P$19 -> 10
B18: 608311K | C18: 5 | D18: 2 | E18: =10000*20 -> 200000 | F18: 25000000 | G18: 5 | H18: 0 | I18: 5 | J18: =IF(C18<5,1, IF(C18<10,2, IF(C18<15, 3, IF(C18<25,4,5)))) -> 2 | K18: =(('4.1 Safety Module - Old'!V18-('4.1 Safety Module - Old'!V18)*'4.2 Economic Module - Old'!C18%)*2.5*'4.1 Safety Module - Old'!AQ18/60)*(13+1.5*D18) -> 877800 | L18: =((('4.1 Safety Module - Old'!V18)*'4.2 Economic Module - Old'!C18%)*2.5/60)*'4.1 Safety Module - Old'!AQ18*(26.68+1.5*D18) -> 85701 | M18: =(K18*$Q$2+L18*$Q$3+E18*$Q$4+F18*$Q$5+H18*$Q$6+I18*$Q$7+J18*$Q$8)/1000000 -> 26.163508 | O18: Max | P18: =MAX(M17:M24) -> 46.31309717 | Q18: =10*(M18-$P$17)/$P$19 -> 0.4259385148
B19: 608310D | C19: 2 | D19: 2 | E19: 200000 | F19: 25000000 | G19: 3 | H19: 0 | I19: 2 | J19: 1 | K19: =(('4.1 Safety Module - Old'!V19-('4.1 Safety Module - Old'!V19)*'4.2 Economic Module - Old'!C19%)*2.5*'4.1 Safety Module - Old'!AQ19/60)*(13+1.5*D19) -> 267344 | L19: =((('4.1 Safety Module - Old'!V19)*'4.2 Economic Module - Old'!C19%)*2.5/60)*'4.1 Safety Module - Old'!AQ19*(26.68+1.5*D19) -> 10120.88 | M19: 25.47746788 | O19: Range | P19: =P18-P17 -> 21.04602023 | Q19: 0.09996709006
B20: 608309J | C20: 5 | D20: 2 | E20: 200000 | F20: 25000000 | G20: 3 | H20: 0 | I20: 2 | J20: 2 | K20: =(('4.1 Safety Module - Old'!V20-('4.1 Safety Module - Old'!V20)*'4.2 Economic Module - Old'!C20%)*2.5*'4.1 Safety Module - Old'!AQ20/60)*(13+1.5*D20) -> 823460 | L20: =((('4.1 Safety Module - Old'!V20)*'4.2 Economic Module - Old'!C20%)*2.5/60)*'4.1 Safety Module - Old'!AQ20*(26.68+1.5*D20) -> 80395.7 | M20: 26.1038597 | Q20: 0.3975966718
B21: 608308C | C21: 4 | D21: 2 | E21: 200000 | F21: 25000000 | G21: 4 | H21: 0 | I21: 2 | J21: 1 | K21: =(('4.1 Safety Module - Old'!V21-('4.1 Safety Module - Old'!V21)*'4.2 Economic Module - Old'!C21%)*2.5*'4.1 Safety Module - Old'!AQ21/60)*(13+1.5*D21) -> 498432 | L21: =((('4.1 Safety Module - Old'!V21)*'4.2 Economic Module - Old'!C21%)*2.5/60)*'4.1 Safety Module - Old'!AQ21*(26.68+1.5*D21) -> 38524.64 | M21: 25.73695964 | Q21: 0.2232643962
B22: 608304A | C22: 4 | D22: 2 | E22: 200000 | F22: 25000000 | G22: 4 | H22: 0 | I22: 2 | J22: 1 | K22: =(('4.1 Safety Module - Old'!V22-('4.1 Safety Module - Old'!V22)*'4.2 Economic Module - Old'!C22%)*2.5*'4.1 Safety Module - Old'!AQ22/60)*(13+1.5*D22) -> 477312 | L22: =((('4.1 Safety Module - Old'!V22)*'4.2 Economic Module - Old'!C22%)*2.5/60)*'4.1 Safety Module - Old'!AQ22*(26.68+1.5*D22) -> 36892.24 | M22: 25.71420724 | Q22: 0.2124536112
B23: 609012G | C23: 6 | D23: 2 | E23: 200000 | F23: 25000000 | G23: 4 | H23: 0 | I23: 2 | J23: 2 | K23: =(('4.1 Safety Module - Old'!V23-('4.1 Safety Module - Old'!V23)*'4.2 Economic Module - Old'!C23%)*2.5*'4.1 Safety Module - Old'!AQ23/60)*(13+1.5*D23) -> 59972 | L23: =((('4.1 Safety Module - Old'!V23)*'4.2 Economic Module - Old'!C23%)*2.5/60)*'4.1 Safety Module - Old'!AQ23*(26.68+1.5*D23) -> 7100.94 | M23: 25.26707694 | Q23: 0
B24: 609011A | C24: 15 | D24: 2 | E24: 200000 | F24: 25000000 | G24: 3 | H24: 0 | I24: 2 | J24: 4 | K24: =(('4.1 Safety Module - Old'!V24-('4.1 Safety Module - Old'!V24)*'4.2 Economic Module - Old'!C24%)*2.5*'4.1 Safety Module - Old'!AQ24/60)*(13+1.5*D24) -> 691900 | L24: =((('4.1 Safety Module - Old'!V24)*'4.2 Economic Module - Old'!C24%)*2.5/60)*'4.1 Safety Module - Old'!AQ24*(26.68+1.5*D24) -> 226495.5 | M24: 26.1184015 | Q24: 0.4045061967

Sheet 4.3 Environmental Module - Old (hidden)
U2: Number of Factors Affected | V2: Score
U3: 0 to 3 | V3: 1
U4: 4 to 6 | V4: 2
U5: 7 to 9 | V5: 3
U6: 10 to 12 | V6: 4
U7: 13 and above | V7: 5
B12: Environmental Module
B14: Inputs | R14: Calculated Value
C15: User Inputs
B16: Crossing ID | C16: Coastal Management Areas | D16: Critical Habitat for Threatened and Endangered Species | E16: Wetlands | F16: Wild and Scenic Rivers | G16: Air Quality Non Attainment Areas | H16: Superfund Sites | I16: Tribal Lands | J16: Federal or State Owned Lands | K16: Military Installations | L16: Historical Properties | M16: Parks and Recreation Areas | N16: Low Income Population | O16: Minority Populations | P16: Limited English Proficienty | Q16: Community Severance | R16: Score for Environmental Factors | T16: Total | U16: Max | V16: Score
B17: 608846J | C17: 0 | D17: 0 | E17: 0 | F17: 0 | G17: 1 | H17: 1 | I17: 0 | J17: 0 | K17: 0 | L17: 1 | M17: 0 | N17: 1 | O17: 1 | P17: 1 | Q17: 1 | R17: =IF(SUM(C17:Q17)<3,1,IF(SUM(C17:Q17)<6,2,IF(SUM(C17:Q17)<9,3,IF(SUM(C17:Q17)<12,4,5)))) -> 3 | T17: =SUM(C17:Q17) -> 7 | U17: =COUNT(C17:Q17) -> 15 | V17: =10*T17/$U$17 -> 4.666666667
B18: 608311K | C18: 0 | D18: 0 | E18: 0 | F18: 0 | G18: 1 | H18: 1 | I18: 0 | J18: 0 | K18: 0 | L18: 1 | M18: 1 | N18: 1 | O18: 1 | P18: 1 | Q18: 1 | R18: =IF(SUM(C18:Q18)<3,1,IF(SUM(C18:Q18)<6,2,IF(SUM(C18:Q18)<9,3,IF(SUM(C18:Q18)<12,4,5)))) -> 3 | T18: =SUM(C18:Q18) -> 8 | V18: =10*T18/$U$17 -> 5.333333333
B19: 608310D | C19: 0 | D19: 1 | E19: 1 | F19: 0 | G19: 1 | H19: 0 | I19: 0 | J19: 0 | K19: 0 | L19: 0 | M19: 1 | N19: 0 | O19: 0 | P19: 0 | Q19: 0 | R19: =IF(SUM(C19:Q19)<3,1,IF(SUM(C19:Q19)<6,2,IF(SUM(C19:Q19)<9,3,IF(SUM(C19:Q19)<12,4,5)))) -> 2 | T19: 4 | V19: 2.666666667
B20: 608309J | C20: 0 | D20: 1 | E20: 1 | F20: 0 | G20: 1 | H20: 0 | I20: 0 | J20: 0 | K20: 0 | L20: 0 | M20: 1 | N20: 0 | O20: 0 | P20: 0 | Q20: 0 | R20: 2 | T20: 4 | V20: 2.666666667
B21: 608308C | C21: 0 | D21: 1 | E21: 1 | F21: 0 | G21: 1 | H21: 0 | I21: 0 | J21: 0 | K21: 0 | L21: 0 | M21: 1 | N21: 0 | O21: 0 | P21: 0 | Q21: 0 | R21: 2 | T21: 4 | V21: 2.666666667
B22: 608304A | C22: 0 | D22: 1 | E22: 1 | F22: 0 | G22: 1 | H22: 0 | I22: 0 | J22: 0 | K22: 0 | L22: 0 | M22: 1 | N22: 0 | O22: 0 | P22: 0 | Q22: 0 | R22: 2 | T22: 4 | V22: 2.666666667
B23: 609012G | C23: 0 | D23: 1 | E23: 1 | F23: 0 | G23: 1 | H23: 0 | I23: 0 | J23: 0 | K23: 0 | L23: 0 | M23: 1 | N23: 0 | O23: 0 | P23: 0 | Q23: 0 | R23: 2 | T23: 4 | V23: 2.666666667
B24: 609011A | C24: 0 | D24: 1 | E24: 1 | F24: 0 | G24: 1 | H24: 0 | I24: 0 | J24: 0 | K24: 0 | L24: 0 | M24: 1 | N24: 0 | O24: 0 | P24: 0 | Q24: 0 | R24: 2 | T24: 4 | V24: 2.666666667

Sheet 4.4 Community Livability - Old (hidden)
Q1: (to be modified)
P2: Factor for Speed Limit | Q2: 1
P3: Factor for Maximum TT Train Speed | Q3: 1
P4: Factor for % truck in traffic | Q4: 1
P5: Factor for Presence of Hazardous Train Cars | Q5: 1
P6: Factor for Population Density | Q6: 1
P7: Factor for Vulnerable Population | Q7: 1
P8: Factor for Emergency Response Delays | Q8: 1
B12: Community and Livability Module
B14: Inputs (Note: The user input values are provided for illustrative purposes only and not based on factual data) | J14: Calculated Values
B15: Data Directly Coming From FRA Inventory Database | F15: User Inputs
B16: Crossing ID | C16: Maximum Timetable Speed (MaxTtSpd) | D16: Posted HW Speed Limit (HwySpeed) | E16: Percentage of Truck in Traffic (PctTruk) | F16: Presence of Hazardous Train Cars | G16: Population Density | H16: Vulnerable Populaition | I16: Emergency Response Delays | J16: Score for Maximum Timetable Speed (MaxTtSpd) | K16: Score for Posted HW Speed Limit (HwySpeed) | L16: Score for Percentage of Truck in Traffic (PctTruk) | M16: Score for Community/Livability Factors
B17: 608846J | C17: ='4.1 Safety Module - Old'!O17 -> 60 | D17: 30 | E17: ='4.2 Economic Module - Old'!C17 -> 12 | F17: 6 | G17: 2 | H17: 0 | I17: 0 | J17: =IF('4.1 Safety Module - Old'!O17>80,10,IF('4.1 Safety Module - Old'!O17>60,8,IF('4.1 Safety Module - Old'!O17>40,6,IF('4.1 Safety Module - Old'!O17>25,4,IF('4.1 Safety Module - Old'!O17>10,2,0))))) -> 6 | K17: =IF(D17<=30,2,IF(D17<=40,4,IF(D17<=50,6,IF(D17<=60,8,10)))) -> 2 | L17: =IF('4.2 Economic Module - Old'!C17>20,10,IF('4.2 Economic Module - Old'!C17>15,8,IF('4.2 Economic Module - Old'!C17>10,6,4))) -> 6 | M17: =K17*$Q$2+J17*$Q$3+L17*$Q$4+F17*$Q$5+G17*$Q$6+H17*$Q$7+I17*$Q$8 -> 22 | O17: Min | P17: =MIN(M17:M24) -> 22 | Q17: =10*(M17-$P$17)/$P$19 -> 0
B18: 608311K | C18: ='4.1 Safety Module - Old'!O18 -> 60 | D18: 35 | E18: ='4.2 Economic Module - Old'!C18 -> 5 | F18: 6 | G18: 2 | H18: 1 | I18: 8 | J18: =IF('4.1 Safety Module - Old'!O18>80,10,IF('4.1 Safety Module - Old'!O18>60,8,IF('4.1 Safety Module - Old'!O18>40,6,IF('4.1 Safety Module - Old'!O18>25,4,IF('4.1 Safety Module - Old'!O18>10,2,0))))) -> 6 | K18: =IF(D18<=30,2,IF(D18<=40,4,IF(D18<=50,6,IF(D18<=60,8,10)))) -> 4 | L18: =IF('4.2 Economic Module - Old'!C18>20,10,IF('4.2 Economic Module - Old'!C18>15,8,IF('4.2 Economic Module - Old'!C18>10,6,4))) -> 4 | M18: 31 | O18: Max | P18: =MAX(M17:M24) -> 50 | Q18: =10*(M18-$P$17)/$P$19 -> 3.214285714
B19: 608310D | C19: ='4.1 Safety Module - Old'!O19 -> 60 | D19: 30 | E19: ='4.2 Economic Module - Old'!C19 -> 2 | F19: 6 | G19: 4 | H19: 0 | I19: 15 | J19: =IF('4.1 Safety Module - Old'!O19>80,10,IF('4.1 Safety Module - Old'!O19>60,8,IF('4.1 Safety Module - Old'!O19>40,6,IF('4.1 Safety Module - Old'!O19>25,4,IF('4.1 Safety Module - Old'!O19>10,2,0))))) -> 6 | K19: 2 | L19: =IF('4.2 Economic Module - Old'!C19>20,10,IF('4.2 Economic Module - Old'!C19>15,8,IF('4.2 Economic Module - Old'!C19>10,6,4))) -> 4 | M19: 37 | O19: Range | P19: =P18-P17 -> 28 | Q19: 5.357142857
B20: 608309J | C20: ='4.1 Safety Module - Old'!O20 -> 60 | D20: 30 | E20: ='4.2 Economic Module - Old'!C20 -> 5 | F20: 6 | G20: 4 | H20: 3 | I20: 25 | J20: =IF('4.1 Safety Module - Old'!O20>80,10,IF('4.1 Safety Module - Old'!O20>60,8,IF('4.1 Safety Module - Old'!O20>40,6,IF('4.1 Safety Module - Old'!O20>25,4,IF('4.1 Safety Module - Old'!O20>10,2,0))))) -> 6 | K20: 2 | L20: =IF('4.2 Economic Module - Old'!C20>20,10,IF('4.2 Economic Module - Old'!C20>15,8,IF('4.2 Economic Module - Old'!C20>10,6,4))) -> 4 | M20: 50 | Q20: 10
B21: 608308C | C21: ='4.1 Safety Module - Old'!O21 -> 60 | D21: 30 | E21: ='4.2 Economic Module - Old'!C21 -> 4 | F21: 6 | G21: 4 | H21: 1 | I21: 23 | J21: =IF('4.1 Safety Module - Old'!O21>80,10,IF('4.1 Safety Module - Old'!O21>60,8,IF('4.1 Safety Module - Old'!O21>40,6,IF('4.1 Safety Module - Old'!O21>25,4,IF('4.1 Safety Module - Old'!O21>10,2,0))))) -> 6 | K21: 2 | L21: =IF('4.2 Economic Module - Old'!C21>20,10,IF('4.2 Economic Module - Old'!C21>15,8,IF('4.2 Economic Module - Old'!C21>10,6,4))) -> 4 | M21: 46 | Q21: 8.571428571
B22: 608304A | C22: ='4.1 Safety Module - Old'!O22 -> 60 | D22: 30 | E22: ='4.2 Economic Module - Old'!C22 -> 4 | F22: 6 | G22: 2 | H22: 2 | I22: 16 | J22: =IF('4.1 Safety Module - Old'!O22>80,10,IF('4.1 Safety Module - Old'!O22>60,8,IF('4.1 Safety Module - Old'!O22>40,6,IF('4.1 Safety Module - Old'!O22>25,4,IF('4.1 Safety Module - Old'!O22>10,2,0))))) -> 6 | K22: 2 | L22: =IF('4.2 Economic Module - Old'!C22>20,10,IF('4.2 Economic Module - Old'!C22>15,8,IF('4.2 Economic Module - Old'!C22>10,6,4))) -> 4 | M22: 38 | Q22: 5.714285714
B23: 609012G | C23: ='4.1 Safety Module - Old'!O23 -> 60 | D23: 30 | E23: ='4.2 Economic Module - Old'!C23 -> 6 | F23: 6 | G23: 4 | H23: 2 | I23: 4 | J23: =IF('4.1 Safety Module - Old'!O23>80,10,IF('4.1 Safety Module - Old'!O23>60,8,IF('4.1 Safety Module - Old'!O23>40,6,IF('4.1 Safety Module - Old'!O23>25,4,IF('4.1 Safety Module - Old'!O23>10,2,0))))) -> 6 | K23: 2 | L23: =IF('4.2 Economic Module - Old'!C23>20,10,IF('4.2 Economic Module - Old'!C23>15,8,IF('4.2 Economic Module - Old'!C23>10,6,4))) -> 4 | M23: 28 | Q23: 2.142857143
B24: 609011A | C24: ='4.1 Safety Module - Old'!O24 -> 60 | D24: 30 | E24: ='4.2 Economic Module - Old'!C24 -> 15 | F24: 6 | G24: 2 | H24: 0 | I24: 5 | J24: =IF('4.1 Safety Module - Old'!O24>80,10,IF('4.1 Safety Module - Old'!O24>60,8,IF('4.1 Safety Module - Old'!O24>40,6,IF('4.1 Safety Module - Old'!O24>25,4,IF('4.1 Safety Module - Old'!O24>10,2,0))))) -> 6 | K24: 2 | L24: =IF('4.2 Economic Module - Old'!C24>20,10,IF('4.2 Economic Module - Old'!C24>15,8,IF('4.2 Economic Module - Old'!C24>10,6,4))) -> 6 | M24: 27 | Q24: 1.785714286

Sheet Accident (hidden)
A1: IYR | B1: IMO | C1: RAILROAD | D1: INCDTNO | E1: IYR2 | F1: IMO2 | G1: RR2 | H1: INCDTNO2 | I1: IYR3 | J1: IMO3 | K1: RR3 | L1: INCDTNO3 | M1: DUMMY1 | N1: GXID | O1: YEAR | P1: MONTH | Q1: DAY | R1: TIMEHR | S1: TIMEMIN | T1: AMPM | U1: TYPE | V1: CARS | W1: CARSDMG | X1: CARSHZD | Y1: EVACUATE | Z1: DIVISION | AA1: STATION | AB1: MILEPOST | AC1: STATE | AD1: TEMP | AE1: VISIBLTY | AF1: WEATHER | AG1: TRNSPD | AH1: TYPSPD | AI1: TRNNBR | AJ1: TRNDIR | AK1: Column1 | AL1: TYPEQ | AM1: EQATT | AN1: TRKNAME | AO1: TRKCLAS | AP1: TRKDNSTY | AQ1: TYPTRK | AR1: RRCAR1 | AS1: CARNBR1 | AT1: POSITON1 | AU1: LOADED1 | AV1: RRCAR2 | AW1: CARNBR2 | AX1: POSITON2 | AY1: LOADED2 | AZ1: HEADEND1 | BA1: MIDMAN1 | BB1: MIDREM1 | BC1: RMAN1 | BD1: RREM1 | BE1: HEADEND2 | BF1: MIDMAN2 | BG1: MIDREM2 | BH1: RMAN2 | BI1: RREM2 | BJ1: LOADF1 | BK1: LOADP1 | BL1: EMPTYF1 | BM1: EMPTYP1 | BN1: CABOOSE1 | BO1: LOADF2 | BP1: LOADP2 | BQ1: EMPTYF2 | BR1: EMPTYP2 | BS1: CABOOSE2 | BT1: EQPDMG | BU1: TRKDMG | BV1: CAUSE | BW1: CAUSE2 | BX1: CASKLDRR | BY1: CASINJRR | BZ1: CASKLD | CA1: CASINJ | CB1: ACCAUSE | CC1: ACCTRK | CD1: ACCTRKCL | CE1: HIGHSPD | CF1: ACCDMG | CG1: DUMMY2 | CH1: STCNTY | CI1: TOTINJ | CJ1: DUMMY3 | CK1: TOTKLD | CL1: ENGRS | CM1: FIREMEN | CN1: CONDUCTR | CO1: BRAKEMEN | CP1: ENGHR | CQ1: ENGMIN | CR1: CDTRHR | CS1: CDTRMIN | CT1: JOINTCD | CU1: REGION | CV1: DUMMY4 | CW1: TYPRR | CX1: DUMMY5 | CY1: RRDIV | CZ1: METHOD | DA1: NARRLEN | DB1: DUMMY6 | DC1: YEAR4 | DD1: RREMPKLD | DE1: RREMPINJ | DF1: PASSKLD | DG1: PASSINJ | DH1: OTHERKLD | DI1: OTHERINJ | DJ1: COUNTY | DK1: CNTYCD | DL1: ALCOHOL | DM1: DRUG | DN1: DUMMY7 | DO1: PASSTRN | DP1: SSB1 | DQ1: SSB2 | DR1: NARR1 | DS1: NARR2 | DT1: NARR3 | DU1: NARR4 | DV1: NARR5 | DW1: NARR6 | DX1: NARR7 | DY1: NARR8 | DZ1: NARR9 | EA1: NARR10 | EB1: NARR11 | EC1: NARR12 | ED1: NARR13 | EE1: NARR14 | EF1: NARR15 | EG1: RCL | EH1: Latitude | EI1: Longitud | EJ1: SIGNAL | EK1: MOPERA | EL1: ADJUNCT1 | EM1: ADJUNCT2 | EN1: ADJUNCT3 | EO1: SUBDIV
A2: 16 | B2: 06 | C2: BNSF | D2: PR0616201 | E2: 16 | F2: 06 | G2: ATK | H2: 143003 | I2: 16 | J2: 06 | K2: BNSF | L2: PR0616201 | N2: 003324M | O2: 16 | P2: 06 | Q2: 26 | R2: 9 | S2: 45 | T2: AM | U2: 07 | V2: 0 | W2: 0 | X2: 0 | Y2: 0 | AA2: TRINIDAD | AB2: 632.7 | AC2: 08 | AD2: 77 | AE2: 2 | AF2: 1 | AG2: 000 | AK2: 0 | AN2: SINGLE MAIN TRACK | AO2: 4 | AP2: 1.37 | AQ2: 1 | AT2: 000 | AX2: 000 | AZ2: 0 | BA2: 0 | BB2: 0 | BC2: 0 | BD2: 0 | BE2: 0 | BF2: 0 | BG2: 0 | BH2: 0 | BI2: 0 | BJ2: 0 | BK2: 0 | BL2: 0 | BM2: 0 | BN2: 0 | BO2: 0 | BP2: 0 | BQ2: 0 | BR2: 0 | BS2: 0 | BT2: 0 | BU2: 0 | BV2: M302 | BX2: 0 | BY2: 0 | BZ2: 5 | CA2: 2 | CB2: M302 | CC2: 1 | CD2: 4 | CE2: 074 | CF2: 34658 | CH2: 08C071 | CI2: 0 | CJ2: 000000 | CK2: 0 | CL2: 0 | CM2: 0 | CN2: 0 | CO2: 0 | CT2: 2 | CU2: 6 | CW2: 1L | DA2: 99 | DC2: 2016 | DD2: 0 | DE2: 0 | DF2: 0 | DG2: 0 | DH2: 0 | DI2: 0 | DJ2: LAS ANIMAS | DK2: 071 | DP2: CWR | DR2: NORTHBOUND VAN DID NOT YIELD AND WAS STRUCK BY AMTRAK TRAIN. AMTRAK EQUIPMENT DAMAGES WERE $34,658. | EH2: 37.216703 | EI2: -104.464547 | EJ2: 1 | EK2: 2 | EL2: P | EM2: D | EO2: RATON
A3: 16 | B3: 06 | C3: ATK | D3: 143003 | I3: 16 | J3: 06 | K3: BNSF | L3: PR0616201 | N3: 003324M | O3: 16 | P3: 06 | Q3: 26 | R3: 9 | S3: 45 | T3: AM | U3: 07 | V3: 0 | W3: 0 | X3: 0 | Y3: 0 | AA3: TRINIDAD | AB3: 0632.7 | AC3: 08 | AD3: 77 | AE3: 2 | AF3: 1 | AG3: 074 | AH3: E | AI3: 3 | AJ3: 4 | AK3: 0 | AL3: 2 | AM3: Y | AN3: SINGLE MAIN | AO3: 4 | AQ3: 1 | AR3: AMT | AS3: 000183 | AT3: 001 | AX3: 000 | AZ3: 2 | BA3: 0 | BB3: 0 | BC3: 0 | BD3: 0 | BE3: 0 | BF3: 0 | BG3: 0 | BH3: 0 | BI3: 0 | BJ3: 0 | BK3: 10 | BL3: 0 | BM3: 0 | BN3: 0 | BO3: 0 | BP3: 0 | BQ3: 0 | BR3: 0 | BS3: 0 | BT3: 34658 | BU3: 0 | BV3: M302 | BX3: 5 | BY3: 2 | BZ3: 5 | CA3: 2 | CB3: M302 | CC3: 1 | CD3: 4 | CE3: 074 | CF3: 34658 | CH3: 08C071 | CI3: 2 | CJ3: 000000 | CK3: 5 | CL3: 1 | CM3: 2 | CN3: 2 | CO3: 0 | CP3: 02 | CQ3: 10 | CR3: 02 | CS3: 10 | CT3: 1 | CU3: 6 | CW3: 1L | DA3: 162 | DC3: 2016 | DD3: 0 | DE3: 0 | DF3: 0 | DG3: 1 | DH3: 5 | DI3: 1 | DJ3: LAS ANIMAS | DK3: 071 | DO3: Y | DP3: CWR | DR3: TRAIN 3 OPERATING WITH LOCOMOTIVES E/183-E/112 AND 10 CARS STRUCK AN OCCUPIED VEHICLE AT MP 632.75, | DS3: A COUNTY RD CROSSING. AMTRAKS EQUIPMENT DAMAGE IS $34,658.00. | EG3: 0 | EH3: 37.216703 | EI3: -104.464547 | EJ3: 1 | EK3: 2 | EL3: D | EM3: P | EO3: RATON
A4: 16 | B4: 10 | C4: BNSF | D4: CH1016201 | I4: 16 | J4: 10 | K4: BNSF | L4: CH1016201 | N4: 004413H | O4: 16 | P4: 10 | Q4: 06 | R4: 9 | S4: 40 | T4: AM | U4: 07 | V4: 0 | W4: 0 | X4: 0 | Y4: 0 | AA4: COAL CITY | AB4: 62.6 | AC4: 17 | AD4: 64 | AE4: 2 | AF4: 3 | AG4: 062 | AH4: R | AI4: SLHG | AJ4: 3 | AK4: 5463 | AL4: 1 | AM4: Y | AN4: MAIN 2 TRACK | AO4: 5 | AP4: 53.70 | AQ4: 1 | AR4: BNSF | AS4: 007937 | AT4: 001 | AX4: 000 | AZ4: 4 | BA4: 0 | BB4: 0 | BC4: 0 | BD4: 0 | BE4: 0 | BF4: 0 | BG4: 0 | BH4: 0 | BI4: 0 | BJ4: 73 | BK4: 0 | BL4: 0 | BM4: 0 | BN4: 0 | BO4: 0 | BP4: 0 | BQ4: 0 | BR4: 0 | BS4: 0 | BT4: 500 | BU4: 20000 | BV4: M302 | BX4: 1 | BY4: 0 | BZ4: 1 | CA4: 0 | CB4: M302 | CC4: 1 | CD4: 5 | CE4: 062 | CF4: 20500 | CH4: 17C063 | CI4: 0 | CJ4: 000000 | CK4: 1 | CL4: 1 | CM4: 0 | CN4: 1 | CO4: 0 | CP4: 05 | CQ4: 55 | CR4: 05 | CS4: 55 | CT4: 1 | CU4: 4 | CW4: 1L | DA4: 100 | DC4: 2016 | DD4: 0 | DE4: 0 | DF4: 0 | DG4: 0 | DH4: 1 | DI4: 0 | DJ4: GRUNDY | DK4: 063 | DO4: N | DP4: OTH | DR4: EASTBOUND S-LHGLPCQ-02L STRUCK VEHICLE THAT WENT AROUND GATES, EJECTING THE DRIVER FROM THE VEHICLE. | EG4: 0 | EH4: 41.25731 | EI4: -88.355648 | EJ4: 1 | EK4: 1 | EL4: Q | EO4: CHILLICOTHE
A5: 16 | B5: 05 | C5: BNSF | D5: SF0516200 | I5: 16 | J5: 05 | K5: BNSF | L5: SF0516200 | N5: 011717R | O5: 16 | P5: 05 | Q5: 09 | R5: 5 | S5: 0 | T5: AM | U5: 07 | V5: 1 | W5: 1 | X5: 0 | Y5: 0 | AA5: ENID | AB5: 537.9 | AC5: 40 | AD5: 65 | AE5: 1 | AF5: 1 | AG5: 050 | AH5: R | AI5: QATG | AJ5: 4 | AK5: 6676 | AL5: 1 | AM5: Y | AN5: MAIN 1 TRACK | AO5: 5 | AP5: 26.62 | AQ5: 1 | AR5: DTTX | AS5: 721674 | AT5: 040 | AU5: Y | AX5: 000 | AZ5: 4 | BA5: 0 | BB5: 0 | BC5: 0 | BD5: 0 | BE5: 0 | BF5: 0 | BG5: 0 | BH5: 0 | BI5: 0 | BJ5: 78 | BK5: 0 | BL5: 0 | BM5: 0 | BN5: 0 | BO5: 3 | BP5: 0 | BQ5: 0 | BR5: 0 | BS5: 0 | BT5: 177923 | BU5: 635563 | BV5: M302 | BX5: 1 | BY5: 0 | BZ5: 1 | CA5: 0 | CB5: M302 | CC5: 1 | CD5: 5 | CE5: 050 | CF5: 813486 | CH5: 40C047 | CI5: 0 | CJ5: 000000 | CK5: 1 | CL5: 1 | CM5: 0 | CN5: 1 | CO5: 0 | CP5: 04 | CQ5: 20 | CR5: 04 | CS5: 20 | CT5: 1 | CU5: 5 | CW5: 1L | DA5: 174 | DC5: 2016 | DD5: 0 | DE5: 0 | DF5: 0 | DG5: 0 | DH5: 1 | DI5: 0 | DJ5: GARFIELD | DK5: 047 | DO5: N | DP5: CWR | DR5: WESTBOUND TRUCK-TRAILER WENT THRU THE GATE AND TRAIN STRUCK BY HIGHWAY USER ON A DRY PAVEMENT ROAD W | DS5: HILE MOVING OVER CROSSING AT 20 MPH. NO HAZARDOUS MATERIALS WERE RELEASED. | EG5: 0 | EH5: 36.39756 | EI5: -97.756172 | EJ5: 1 | EK5: 1 | EL5: Q | EO5: AVARD
A6: 16 | B6: 06 | C6: BNSF | D6: KS0616200 | I6: 16 | J6: 06 | K6: BNSF | L6: KS0616200 | N6: 014580J | O6: 16 | P6: 06 | Q6: 08 | R6: 1 | S6: 20 | T6: PM | U6: 07 | V6: 2 | W6: 0 | X6: 0 | Y6: 0 | AA6: PANHANDLE | AB6: 528.4 | AC6: 48 | AD6: 85 | AE6: 2 | AF6: 1 | AG6: 032 | AH6: R | AI6: ZLAC | AJ6: 3 | AK6: 4955 | AL6: 1 | AM6: Y | AN6: MAIN 2 TRACK | AO6: 5 | AP6: 88.20 | AQ6: 1 | AR6: BNSF | AS6: 007911 | AT6: 001 | AX6: 000 | AZ6: 4 | BA6: 0 | BB6: 0 | BC6: 0 | BD6: 0 | BE6: 4 | BF6: 0 | BG6: 0 | BH6: 0 | BI6: 0 | BJ6: 71 | BK6: 0 | BL6: 0 | BM6: 0 | BN6: 0 | BO6: 2 | BP6: 0 | BQ6: 0 | BR6: 0 | BS6: 0 | BT6: 11592 | BU6: 87164 | BV6: M302 | BX6: 0 | BY6: 0 | BZ6: 0 | CA6: 0 | CB6: M302 | CC6: 1 | CD6: 5 | CE6: 032 | CF6: 98756 | CH6: 48C065 | CI6: 0 | CJ6: 000000 | CK6: 0 | CL6: 1 | CM6: 0 | CN6: 1 | CO6: 0 | CP6: 01 | CR6: 01 | CT6: 1 | CU6: 5 | CW6: 1L | DA6: 152 | DC6: 2016 | DD6: 0 | DE6: 0 | DF6: 0 | DG6: 0 | DH6: 0 | DI6: 0 | DJ6: CARSON | DK6: 065 | DO6: N | DP6: CWR | DR6: EASTBOUND X-LACMEM7-06L STRUCK AN UNOCCUPIED TRUCK TRAILER STUCK ON THE XING CAUSING LOCOMOTIVE AND | DS6: TRACK DAMAGES. NO HAZARDOUS MATERIALS WERE RELEASED. | EG6: 0 | EH6: 35.325247 | EI6: -101.417128 | EJ6: 1 | EK6: 1 | EL6: Q | EO6: PANHANDLE
A7: 16 | B7: 11 | C7: BNSF | D7: KS1116204 | I7: 16 | J7: 11 | K7: BNSF | L7: KS1116204 | N7: 014774P | O7: 16 | P7: 11 | Q7: 24 | R7: 9 | S7: 12 | T7: PM | U7: 07 | V7: 46 | W7: 0 | X7: 0 | Y7: 0 | AA7: FRIONA | AB7: 625.8 | AC7: 48 | AD7: 45 | AE7: 4 | AF7: 1 | AG7: 037 | AH7: R | AI7: HKCK | AJ7: 4 | AK7: 11077 | AL7: 1 | AM7: Y | AN7: MAIN 1 TRACK | AO7: 5 | AP7: 95.50 | AQ7: 1 | AR7: BNSF | AS7: 007887 | AT7: 001 | AX7: 000 | AZ7: 3 | BA7: 0 | BB7: 0 | BC7: 0 | BD7: 1 | BE7: 0 | BF7: 0 | BG7: 0 | BH7: 0 | BI7: 0 | BJ7: 81 | BK7: 0 | BL7: 17 | BM7: 0 | BN7: 0 | BO7: 0 | BP7: 0 | BQ7: 0 | BR7: 0 | BS7: 0 | BT7: 2500 | BU7: 16000 | BV7: M302 | BX7: 0 | BY7: 0 | BZ7: 0 | CA7: 0 | CB7: M302 | CC7: 1 | CD7: 5 | CE7: 037 | CF7: 18500 | CH7: 48C369 | CI7: 0 | CJ7: 000000 | CK7: 0 | CL7: 1 | CM7: 0 | CN7: 1 | CO7: 0 | CP7: 06 | CQ7: 38 | CR7: 06 | CS7: 38 | CT7: 1 | CU7: 5 | CW7: 1L | DA7: 147 | DC7: 2016 | DD7: 0 | DE7: 0 | DF7: 0 | DG7: 0 | DH7: 0 | DI7: 0 | DJ7: PARMER | DK7: 369 | DO7: N | DP7: OTH | DR7: WESTBOUND H-KCKBAR9-24L STRUCK A SEMI TRUCK STOPPED AT STOP SIGN WITH THE REAR OF ITS TRAILER FOULIN | DS7: G MAIN 1. NO HAZARDOUS MATERIALS WERE RELEASED. | EG7: 0 | EH7: 34.599387 | EI7: -102.775851 | EJ7: 1 | EK7: 1 | EL7: Q | EO7: HEREFORD
A8: 16 | B8: 10 | C8: BNSF | D8: RD1016203 | I8: 16 | J8: 10 | K8: BNSF | L8: RD1016203 | N8: 015001B | O8: 16 | P8: 10 | Q8: 27 | R8: 6 | S8: 0 | T8: AM | U8: 07 | V8: 0 | W8: 0 | X8: 0 | Y8: 0 | AA8: SLATON | AB8: 688.6 | AC8: 48 | AD8: 57 | AE8: 1 | AF8: 1 | AG8: 035 | AH8: E | AI8: HLUB | AJ8: 3 | AK8: 9830 | AL8: 1 | AM8: Y | AN8: SINGLE MAIN TRACK | AO8: 4 | AP8: 34.09 | AQ8: 1 | AR8: BNSF | AS8: 007799 | AT8: 001 | AX8: 000 | AZ8: 3 | BA8: 0 | BB8: 0 | BC8: 0 | BD8: 0 | BE8: 0 | BF8: 0 | BG8: 0 | BH8: 0 | BI8: 0 | BJ8: 67 | BK8: 0 | BL8: 42 | BM8: 0 | BN8: 0 | BO8: 0 | BP8: 0 | BQ8: 0 | BR8: 0 | BS8: 0 | BT8: 2533 | BU8: 16000 | BV8: M302 | BX8: 0 | BY8: 0 | BZ8: 0 | CA8: 0 | CB8: M302 | CC8: 1 | CD8: 4 | CE8: 035 | CF8: 18533 | CH8: 48C303 | CI8: 0 | CJ8: 000000 | CK8: 0 | CL8: 1 | CM8: 0 | CN8: 1 | CO8: 0 | CP8: 01 | CQ8: 30 | CR8: 01 | CS8: 30 | CT8: 1 | CU8: 5 | CW8: 1L | DA8: 83 | DC8: 2016 | DD8: 0 | DE8: 0 | DF8: 0 | DG8: 0 | DH8: 0 | DI8: 0 | DJ8: LUBBOCK | DK8: 303 | DO8: N | DP8: CWR | DR8: EASTBOUND HLUBPL1-27A STRUCK TRAILER OF TRACTOR TRAILER THAT WAS FOULING THE TRACK. | EG8: 0 | EH8: 33.453407 | EI8: -101.657418 | EJ8: 1 | EK8: 1 | EL8: Q | EO8: SLATON
A9: 16 | B9: 03 | C9: BNSF | D9: KS0316201 | I9: 16 | J9: 03 | K9: BNSF | L9: KS0316201 | N9: 015001B | O9: 16 | P9: 03 | Q9: 08 | R9: 2 | S9: 56 | T9: PM | U9: 07 | V9: 0 | W9: 0 | X9: 0 | Y9: 0 | AA9: SLATON | AB9: 688.6 | AC9: 48 | AD9: 81 | AE9: 2 | AF9: 1 | AG9: 040 | AH9: E | AI9: UPTN | AJ9: 4 | AK9: 3600 | AL9: 1 | AM9: Y | AN9: SINGLE MAIN TRACK | AO9: 4 | AP9: 33.36 | AQ9: 1 | AR9: BNSF | AS9: 007078 | AT9: 001 | AX9: 000 | AZ9: 1 | BA9: 3 | BB9: 0 | BC9: 0 | BD9: 0 | BE9: 0 | BF9: 0 | BG9: 0 | BH9: 0 | BI9: 0 | BJ9: 0 | BK9: 0 | BL9: 120 | BM9: 0 | BN9: 0 | BO9: 0 | BP9: 0 | BQ9: 0 | BR9: 0 | BS9: 0 | BT9: 300 | BU9: 20000 | BV9: M302 | BW9: M304 | BX9: 0 | BY9: 0 | BZ9: 0 | CA9: 0 | CB9: M302 | CC9: 1 | CD9: 4 | CE9: 040 | CF9: 20300 | CH9: 48C303 | CI9: 0 | CJ9: 000000 | CK9: 0 | CL9: 1 | CM9: 0 | CN9: 1 | CO9: 0 | CP9: 04 | CQ9: 26 | CR9: 04 | CS9: 26 | CT9: 1 | CU9: 5 | CW9: 1L | DA9: 167 | DC9: 2016 | DD9: 0 | DE9: 0 | DF9: 0 | DG9: 0 | DH9: 0 | DI9: 0 | DJ9: LUBBOCK | DK9: 303 | DO9: N | DP9: CWR | DR9: WESTBOUND U-PTNPAN0-08T STRUCK SOUTHBOUND UNOCCUPIED VEHICLE. DRIVER WAS TEXTING WHILE DRIVING AND D | DS9: ID NOT STOP FOR WARNING DEVICES AND EXITED VEHICLE PRIOR TO IMPACT. | EG9: 0 | EH9: 33.453407 | EI9: -101.657418 | EJ9: 1 | EK9: 1 | EL9: Q | EO9: SLATON
A10: 16 | B10: 06 | C10: TXPF | D10: 06292016 | I10: 16 | J10: 06 | K10: TXPF | L10: 06292016 | N10: 018814Y | O10: 16 | P10: 06 | Q10: 29 | R10: 11 | S10: 45 | T10: AM | U10: 07 | V10: 0 | W10: 0 | X10: 0 | Y10: 0 | AA10: MERTZON | AB10: 746.2 | AC10: 48 | AD10: 86 | AE10: 2 | AF10: 1 | AG10: 015 | AH10: E | AJ10: 4 | AK10: 0 | AL10: 9 | AM10: Y | AN10: MAIN LINE | AO10: 2 | AQ10: 1 | AR10: NORD | AS10: 108261 | AT10: 001 | AU10: Y | AX10: 000 | AZ10: 0 | BA10: 0 | BB10: 0 | BC10: 0 | BD10: 0 | BE10: 0 | BF10: 0 | BG10: 0 | BH10: 0 | BI10: 0 | BJ10: 1 | BK10: 0 | BL10: 0 | BM10: 0 | BN10: 0 | BO10: 0 | BP10: 0 | BQ10: 0 | BR10: 0 | BS10: 0 | BT10: 0 | BU10: 0 | BV10: M308 | BW10: M302 | BX10: 0 | BY10: 1 | BZ10: 0 | CA10: 1 | CB10: M308 | CC10: 1 | CD10: 2 | CE10: 015 | CF10: 0 | CH10: 48C235 | CI10: 1 | CJ10: 000000 | CK10: 0 | CL10: 1 | CM10: 0 | CN10: 0 | CO10: 0 | CP10: 04 | CQ10: 45 | CT10: 1 | CU10: 5 | CW10: 3 | DA10: 340 | DC10: 2016 | DD10: 0 | DE10: 0 | DF10: 0 | DG10: 0 | DH10: 0 | DI10: 1 | DJ10: IRION | DK10: 235 | DP10: CWR | DR10: THE TRUCK DRIVER RAN A STOP SIGN AS THE M.O.W. TAMPER WAS PROCEDING THROUGH THE CROSSING AND COLLIDE | DS10: D WITH THE TRUCK. THE DRIVER OF THE TRUCK WAS CITED FOR RUNNING THE STOP SIGN. THE TRUCK DRIVER WAS | DT10: TRANSPORTED TO THE HOSPITAL. NO TEXAS PACIFICO EQUIPMENT WAS INVOLVED, ONLY CONTRACTORS HIRED BY THE | DU10: STATE OF TEXAS WHO OWNS THE MAIN TRACK. | EG10: 0 | EH10: 31.24897 | EI10: -100.81618 | EJ10: 2 | EK10: 2 | EL10: P | EO10: ALPINE
A11: 16 | B11: 03 | C11: TXPF | D11: 03082016 | I11: 16 | J11: 03 | K11: TXPF | L11: 03082016 | N11: 019002W | O11: 16 | P11: 03 | Q11: 08 | R11: 12 | S11: 30 | T11: AM | U11: 07 | V11: 0 | W11: 0 | X11: 0 | Y11: 0 | AA11: FORT STOCKTON | AB11: 910.48 | AC11: 48 | AD11: 48 | AE11: 4 | AF11: 1 | AG11: 009 | AH11: R | AI11: FSYD | AJ11: 3 | AK11: 9500 | AL11: 1 | AM11: Y | AN11: MAIN | AO11: 1 | AP11: 105000 | AQ11: 1 | AR11: PTTX | AS11: 137277 | AT11: 008 | AU11: N | AX11: 000 | AZ11: 2 | BA11: 0 | BB11: 0 | BC11: 3 | BD11: 0 | BE11: 0 | BF11: 0 | BG11: 0 | BH11: 0 | BI11: 0 | BJ11: 0 | BK11: 0 | BL11: 64 | BM11: 0 | BN11: 0 | BO11: 0 | BP11: 0 | BQ11: 0 | BR11: 0 | BS11: 0 | BT11: 0 | BU11: 0 | BV11: M302 | BW11: M302 | BX11: 0 | BY11: 0 | BZ11: 0 | CA11: 0 | CB11: M302 | CC11: 1 | CD11: 1 | CE11: 009 | CF11: 0 | CH11: 48C371 | CI11: 0 | CJ11: 000000 | CK11: 0 | CL11: 1 | CM11: 0 | CN11: 1 | CO11: 0 | CP11: 13 | CR11: 13 | CT11: 1 | CU11: 5 | CW11: 3 | DA11: 729 | DC11: 2016 | DD11: 0 | DE11: 0 | DF11: 0 | DG11: 0 | DH11: 0 | DI11: 0 | DJ11: PECOS | DK11: 371 | DO11: N | DP11: OTH | DR11: FSYD-7 CREW HEADING EASTBOUND OVER US 67 CROSSING AT MP910.48, AT APPROX 1230AM, CONDUCTOR WAS WATCH | DS11: ING THE ROLL BY ON THE CONDUCTORS SIDE WHEN HE SAW APPROACHING TRUCK COME FROM THE ENGINEERS SIDE A | DT11: STRIKE THE 8TH RAILCAR THAT WAS OVER THE CROSSING. CONDUCTOR TO THE ENGINEER OVER THE RADIO TO STOP | DU11: THE TRAIN AND THE ENGINEER PUT THE TRAIN INTO EMERGENCY. CONDUCTOR CHECK ON THE DRIVER OF THE TRUCK | DV11: AND HE WAS OK, THAT CROSSING HAS FLASHING WARNING LIGHTS AND WERE WORKING. DRIVER OF THE TRUCK FAILE | DW11: D TO STOP. 911 WAS CALLED AND DPS ARRIVED WITH EMT. DRIVER REFUSED MEDICAL ATTENTION AND WAS NOT GIV | DX11: EN A SOBRIETY TEST. DPS LATER TOLD THE CREW THAT IN WAS OK TO MOVE THE TRAIN AND THE CREW MOVED IT A | DY11: HEAD AND TIED DOWN THE TRAIN. | EG11: 0 | EH11: 30.639652 | EI11: -103.259747 | EJ11: 2 | EK11: 3 | EO11: ALPINE
A12: 16 | B12: 02 | C12: BNSF | D12: TX0216200 | I12: 16 | J12: 02 | K12: BNSF | L12: TX0216200 | N12: 020558K | O12: 16 | P12: 02 | Q12: 05 | R12: 12 | S12: 35 | T12: PM | U12: 07 | V12: 0 | W12: 0 | X12: 0 | Y12: 0 | AA12: JUSTIN | AB12: 372.4 | AC12: 48 | AD12: 50 | AE12: 2 | AF12: 1 | AG12: 052 | AH12: E | AI12: QHOU | AJ12: 1 | AK12: 4963 | AL12: 1 | AM12: Y | AN12: SINGLE MAIN TRACK | AO12: 4 | AP12: 49.58 | AQ12: 1 | AR12: BNSF | AS12: 007470 | AT12: 001 | AX12: 000 | AZ12: 2 | BA12: 0 | BB12: 0 | BC12: 0 | BD12: 0 | BE12: 0 | BF12: 0 | BG12: 0 | BH12: 0 | BI12: 0 | BJ12: 50 | BK12: 0 | BL12: 0 | BM12: 0 | BN12: 0 | BO12: 0 | BP12: 0 | BQ12: 0 | BR12: 0 | BS12: 0 | BT12: 20357 | BU12: 0 | BV12: M302 | BX12: 1 | BY12: 1 | BZ12: 1 | CA12: 1 | CB12: M302 | CC12: 1 | CD12: 4 | CE12: 052 | CF12: 20357 | CH12: 48C121 | CI12: 1 | CJ12: 000000 | CK12: 1 | CL12: 1 | CM12: 0 | CN12: 1 | CO12: 0 | CP12: 03 | CQ12: 35 | CR12: 03 | CS12: 35 | CT12: 1 | CU12: 5 | CW12: 1L | DA12: 135 | DC12: 2016 | DD12: 0 | DE12: 0 | DF12: 0 | DG12: 0 | DH12: 1 | DI12: 1 | DJ12: DENTON | DK12: 121 | DO12: N | DP12: CWR | DR12: WESTBOUND TRUCK-TRAILER STOPPED AND THEN PROCEEDED AND TRAIN STRUCK HIGHWAY USER ON A DRY GRAVEL/STO | DS12: NE ROAD WHILE MOVING OVER CROSSING. | EG12: 0 | EH12: 33.112652 | EI12: -97.291431 | EJ12: 1 | EK12: 1 | EL12: Q | EO12: FT WORTH
A13: 16 | B13: 09 | C13: BNSF | D13: RD0916208 | I13: 16 | J13: 09 | K13: BNSF | L13: RD0916208 | N13: 020581E | O13: 16 | P13: 09 | Q13: 30 | R13: 2 | S13: 1 | T13: PM | U13: 07 | V13: 0 | W13: 0 | X13: 0 | Y13: 0 | AA13: SANGER | AB13: 392.2 | AC13: 48 | AD13: 85 | AE13: 2 | AF13: 1 | AG13: 040 | AH13: R | AI13: GCNB | AJ13: 2 | AK13: 12958 | AL13: 1 | AM13: Y | AN13: SINGLE MAIN TRACK | AO13: 4 | AP13: 58.17 | AQ13: 1 | AR13: BNSF | AS13: 004623 | AT13: 001 | AX13: 000 | AZ13: 2 | BA13: 0 | BB13: 0 | BC13: 0 | BD13: 1 | BE13: 0 | BF13: 0 | BG13: 0 | BH13: 0 | BI13: 0 | BJ13: 95 | BK13: 0 | BL13: 0 | BM13: 0 | BN13: 0 | BO13: 0 | BP13: 0 | BQ13: 0 | BR13: 0 | BS13: 0 | BT13: 6000 | BU13: 10000 | BV13: M302 | BX13: 1 | BY13: 0 | BZ13: 1 | CA13: 0 | CB13: M302 | CC13: 1 | CD13: 4 | CE13: 040 | CF13: 16000 | CH13: 48C121 | CI13: 0 | CJ13: 000000 | CK13: 1 | CL13: 1 | CM13: 0 | CN13: 1 | CO13: 0 | CP13: 09 | CQ13: 31 | CR13: 09 | CS13: 31 | CT13: 1 | CU13: 5 | CW13: 1L | DA13: 127 | DC13: 2016 | DD13: 0 | DE13: 0 | DF13: 0 | DG13: 0 | DH13: 1 | DI13: 0 | DJ13: DENTON | DK13: 121 | DO13: N | DP13: CWR | DR13: TRUCK WAS CROSSING BOLIVAR STREET MP 292.2 ON THE FT WORTH SUB EAST BOUND AND WAS STRUCK BY THE GCNB | DS13: EAP6-28 MOVING SOUTH BOUND. | EG13: 0 | EH13: 33.362136 | EI13: -97.169237 | EJ13: 1 | EK13: 1 | EL13: Q | EO13: FT WORTH
A14: 16 | B14: 08 | C14: BNSF | D14: GC0816200 | I14: 16 | J14: 08 | K14: BNSF | L14: GC0816200 | N14: 021195X | O14: 16 | P14: 08 | Q14: 22 | R14: 8 | S14: 52 | T14: AM | U14: 07 | V14: 0 | W14: 0 | X14: 0 | Y14: 0 | AA14: BANGS | AB14: 357.9 | AC14: 48 | AD14: 80 | AE14: 1 | AF14: 2 | AG14: 010 | AH14: E | AJ14: 3 | AK14: 0 | AL14: 9 | AM14: Y | AN14: SINGLE MAIN TRACK | AO14: 4 | AP14: 27.25 | AQ14: 1 | AR14: BNXX | AS14: 251471 | AT14: 001 | AU14: N | AX14: 000 | AZ14: 0 | BA14: 0 | BB14: 0 | BC14: 0 | BD14: 0 | BE14: 0 | BF14: 0 | BG14: 0 | BH14: 0 | BI14: 0 | BJ14: 0 | BK14: 0 | BL14: 1 | BM14: 0 | BN14: 0 | BO14: 0 | BP14: 0 | BQ14: 1 | BR14: 0 | BS14: 0 | BT14: 15000 | BU14: 0 | BV14: M302 | BX14: 0 | BY14: 0 | BZ14: 0 | CA14: 0 | CB14: M302 | CC14: 1 | CD14: 4 | CE14: 010 | CF14: 15000 | CH14: 48C049 | CI14: 0 | CJ14: 000000 | CK14: 0 | CL14: 1 | CM14: 0 | CN14: 0 | CO14: 0 | CP14: 01 | CQ14: 52 | CT14: 1 | CU14: 5 | CW14: 1L | DA14: 102 | DC14: 2016 | DD14: 0 | DE14: 0 | DF14: 0 | DG14: 0 | DH14: 0 | DI14: 0 | DJ14: BROWN | DK14: 049 | DL14: 00 | DM14: 00 | DO14: N | DP14: CWR | DR14: SOUTHBOUND TRACTOR TRAILER STOPPED AND THEN CONTINUED AT CROSSING AND WAS STRUCK BY BALLAST REGULATO | DS14: R. | EG14: 0 | EH14: 31.715593 | EI14: -99.132731 | EJ14: 1 | EK14: 2 | EL14: P | EM14: D | EO14: LAMPASAS
A15: 16 | B15: 08 | C15: BNSF | D15: CA0816204 | E15: 16 | F15: 08 | G15: SCAX | H15: 081716 | I15: 16 | J15: 08 | K15: BNSF | L15: CA0816204 | N15: 026521R | O15: 16 | P15: 08 | Q15: 17 | R15: 12 | S15: 56 | T15: PM | U15: 07 | V15: 0 | W15: 0 | X15: 0 | Y15: 0 | AA15: CORONA | AB15: 22.8 | AC15: 06 | AD15: 93 | AE15: 2 | AF15: 1 | AG15: 000 | AK15: 0 | AN15: MAIN 2 TRACK | AO15: 4 | AP15: 52.16 | AQ15: 1 | AT15: 000 | AX15: 000 | AZ15: 0 | BA15: 0 | BB15: 0 | BC15: 0 | BD15: 0 | BE15: 0 | BF15: 0 | BG15: 0 | BH15: 0 | BI15: 0 | BJ15: 0 | BK15: 0 | BL15: 0 | BM15: 0 | BN15: 0 | BO15: 0 | BP15: 0 | BQ15: 0 | BR15: 0 | BS15: 0 | BT15: 0 | BU15: 0 | BV15: M308 | BX15: 0 | BY15: 0 | BZ15: 0 | CA15: 1 | CB15: M308 | CC15: 1 | CD15: 4 | CE15: 060 | CF15: 27953 | CH15: 06C065 | CI15: 0 | CJ15: 000000 | CK15: 0 | CL15: 0 | CM15: 0 | CN15: 0 | CO15: 0 | CT15: 2 | CU15: 7 | CW15: 1L | DA15: 86 | DC15: 2016 | DD15: 0 | DE15: 0 | DF15: 0 | DG15: 0 | DH15: 0 | DI15: 0 | DJ15: RIVERSIDE | DK15: 065 | DP15: CWR | DR15: WESTBOUND SCAX TRAIN 815 STRUCK AN UNOCCUPIED TRUCK ON BNSF RADIO ROAD GRADE CROSSING. | EH15: 33.878087 | EI15: -117.542641 | EJ15: 1 | EK15: 1 | EL15: Q | EO15: SAN BERNARDINO
A16: 16 | B16: 08 | C16: SCAX | D16: 081716 | I16: 16 | J16: 08 | K16: BNSF | L16: CA0816204 | N16: 026521R | O16: 16 | P16: 08 | Q16: 17 | R16: 12 | S16: 56 | T16: PM | U16: 07 | V16: 0 | W16: 0 | X16: 0 | Y16: 0 | AA16: CORONA | AB16: 22.782 | AC16: 06 | AD16: 95 | AE16: 2 | AF16: 1 | AG16: 060 | AH16: R | AI16: 815 | AJ16: 4 | AK16: 0 | AL16: C | AM16: Y | AN16: #2 | AO16: 4 | AP16: 52.16 | AQ16: 1 | AR16: ML | AS16: 000656 | AT16: 001 | AU16: Y | AX16: 000 | AZ16: 1 | BA16: 0 | BB16: 0 | BC16: 1 | BD16: 0 | BE16: 0 | BF16: 0 | BG16: 0 | BH16: 0 | BI16: 0 | BJ16: 0 | BK16: 5 | BL16: 0 | BM16: 0 | BN16: 0 | BO16: 0 | BP16: 0 | BQ16: 0 | BR16: 0 | BS16: 0 | BT16: 27953 | BU16: 0 | BV16: M308 | BX16: 0 | BY16: 1 | BZ16: 0 | CA16: 1 | CB16: M308 | CC16: 1 | CD16: 4 | CE16: 060 | CF16: 27953 | CH16: 06C065 | CI16: 1 | CJ16: 000000 | CK16: 0 | CL16: 1 | CM16: 0 | CN16: 1 | CO16: 0 | CP16: 01 | CQ16: 56 | CR16: 01 | CS16: 56 | CT16: 1 | CU16: 7 | CW16: 3L | DA16: 138 | DC16: 2016 | DD16: 0 | DE16: 0 | DF16: 0 | DG16: 0 | DH16: 0 | DI16: 1 | DJ16: RIVERSIDE | DK16: 065 | DO16: Y | DP16: CWR | DR16: TRAIN 815 STRUCK THE REAR END OF A TRUCK AT THE RADIO ROAD GRADE CROSSING. QUES. 38 CHANGED TO M308 | DS16: 11/8/2016 TO MATCH BNSF POLICE REPORT | EG16: 0 | EH16: 33.878087 | EI16: -117.542641 | EJ16: 1 | EK16: 1 | EL16: Q | EO16: SAN BERNARDINO
A17: 16 | B17: 10 | C17: BNSF | D17: CA1016204 | I17: 16 | J17: 10 | K17: BNSF | L17: CA1016204 | N17: 028445G | O17: 16 | P17: 10 | Q17: 31 | R17: 8 | S17: 5 | T17: AM | U17: 07 | V17: 0 | W17: 0 | X17: 0 | Y17: 0 | AA17: LATON | AB17: 984.1 | AC17: 06 | AD17: 75 | AE17: 1 | AF17: 4 | AG17: 079 | AH17: E | AI17: A711 | AJ17: 4 | AK17: 0 | AL17: 2 | AM17: Y | AN17: SINGLE MAIN TRACK | AO17: 5 | AP17: 52.89 | AQ17: 1 | AR17: CDTX | AS17: 002002 | AT17: 001 | AX17: 000 | AZ17: 2 | BA17: 0 | BB17: 0 | BC17: 0 | BD17: 0 | BE17: 0 | BF17: 0 | BG17: 0 | BH17: 0 | BI17: 0 | BJ17: 0 | BK17: 5 | BL17: 0 | BM17: 0 | BN17: 0 | BO17: 0 | BP17: 0 | BQ17: 0 | BR17: 0 | BS17: 0 | BT17: 1000 | BU17: 100000 | BV17: M302 | BX17: 0 | BY17: 0 | BZ17: 0 | CA17: 0 | CB17: M302 | CC17: 1 | CD17: 5 | CE17: 079 | CF17: 101000 | CH17: 06C019 | CI17: 0 | CJ17: 000000 | CK17: 0 | CL17: 1 | CM17: 0 | CN17: 1 | CO17: 0 | CP17: 04 | CQ17: 40 | CR17: 04 | CS17: 40 | CT17: 1 | CU17: 7 | CW17: 1L | DA17: 103 | DC17: 2016 | DD17: 0 | DE17: 0 | DF17: 0 | DG17: 0 | DH17: 0 | DI17: 0 | DJ17: FRESNO | DK17: 019 | DO17: Y | DP17: OTH | DR17: HIGHWAY USER MISJUDGED THE CROSSING AND GOT STUCK ON THE RAIL AND WAS STRUCK BY WESTBOUND AMTRAK TRA | DS17: IN. | EG17: 0 | EH17: 36.547288 | EI17: -119.735764 | EJ17: 1 | EK17: 1 | EL17: Q | EO17: BAKERSFIELD
A18: 16 | B18: 05 | C18: BNSF | D18: CA0516201 | E18: 16 | F18: 05 | G18: ATK | H18: 142375 | I18: 16 | J18: 05 | K18: BNSF | L18: CA0516201 | N18: 028596W | O18: 16 | P18: 05 | Q18: 13 | R18: 12 | S18: 32 | T18: PM | U18: 07 | V18: 0 | W18: 0 | X18: 0 | Y18: 0 | AA18: MADERA | AB18: 1012.1 | AC18: 06 | AD18: 85 | AE18: 2 | AF18: 1 | AG18: 000 | AK18: 0 | AN18: SINGLE MAIN TRACK | AO18: 5 | AP18: 52.68 | AQ18: 1 | AT18: 000 | AX18: 000 | AZ18: 0 | BA18: 0 | BB18: 0 | BC18: 0 | BD18: 0 | BE18: 0 | BF18: 0 | BG18: 0 | BH18: 0 | BI18: 0 | BJ18: 0 | BK18: 0 | BL18: 0 | BM18: 0 | BN18: 0 | BO18: 0 | BP18: 0 | BQ18: 0 | BR18: 0 | BS18: 0 | BT18: 0 | BU18: 300 | BV18: M302 | BX18: 0 | BY18: 0 | BZ18: 3 | CA18: 4 | CB18: M302 | CC18: 1 | CD18: 5 | CE18: 079 | CF18: 84008 | CH18: 06C039 | CI18: 0 | CJ18: 000000 | CK18: 0 | CL18: 0 | CM18: 0 | CN18: 0 | CO18: 0 | CT18: 2 | CU18: 7 | CW18: 1L | DA18: 107 | DC18: 2016 | DD18: 0 | DE18: 0 | DF18: 0 | DG18: 0 | DH18: 0 | DI18: 0 | DJ18: MADERA | DK18: 039 | DP18: CWR | DR18: AMTRAK 713 REPORTED STRIKING AN OCCUPIED VEHICLE ON THE TRACKS CAUSING $83,708 IN AMTRAK EQUIPMENT D | DS18: AMAGES. | EH18: 36.887627 | EI18: -119.94226 | EJ18: 1 | EK18: 1 | EL18: Q | EO18: STOCKTON
A19: 16 | B19: 05 | C19: ATK | D19: 142375 | I19: 16 | J19: 05 | K19: BNSF | L19: CA0516201 | N19: 028596W | O19: 16 | P19: 05 | Q19: 13 | R19: 12 | S19: 32 | T19: PM | U19: 07 | V19: 0 | W19: 0 | X19: 0 | Y19: 0 | AA19: MADERA | AB19: 1012.0 | AC19: 06 | AD19: 85 | AE19: 2 | AF19: 1 | AG19: 079 | AH19: E | AI19: 713 | AJ19: 4 | AK19: 0 | AL19: 2 | AM19: Y | AN19: SINGLE MAIN | AO19: 5 | AQ19: 1 | AR19: CDTX | AS19: 002004 | AT19: 001 | AX19: 000 | AZ19: 1 | BA19: 0 | BB19: 0 | BC19: 0 | BD19: 0 | BE19: 0 | BF19: 0 | BG19: 0 | BH19: 0 | BI19: 0 | BJ19: 0 | BK19: 5 | BL19: 0 | BM19: 0 | BN19: 0 | BO19: 0 | BP19: 0 | BQ19: 0 | BR19: 0 | BS19: 0 | BT19: 83708 | BU19: 0 | BV19: M302 | BX19: 3 | BY19: 4 | BZ19: 3 | CA19: 4 | CB19: M302 | CC19: 1 | CD19: 5 | CE19: 079 | CF19: 84008 | CH19: 06C039 | CI19: 4 | CJ19: 000000 | CK19: 3 | CL19: 1 | CM19: 0 | CN19: 2 | CO19: 0 | CP19: 03 | CQ19: 32 | CR19: 03 | CS19: 32 | CT19: 1 | CU19: 7 | CW19: 1L | DA19: 169 | DC19: 2016 | DD19: 0 | DE19: 0 | DF19: 0 | DG19: 4 | DH19: 3 | DI19: 0 | DJ19: MADERA | DK19: 039 | DO19: Y | DP19: CWR | DR19: TRAIN 713 OPERATING WITH LOCOMOTIVE CDTX 2004 AND 5 CARS STRUCK AN OCCUPIED FARM PICK-UP TRUCK AT MP | DS19: 1012.9, A PRIVATE CROSSING. AMTRAKS EQUIPMENT DAMAGE IS $83,708.00. | EG19: 0 | EH19: 36.887627 | EI19: -119.94226 | EJ19: 1 | EK19: 1 | EO19: STOCKTON
A20: 16 | B20: 04 | C20: ATK | D20: 141918 | I20: 16 | J20: 04 | K20: BNSF | L20: CA0416200 | N20: 028607G | O20: 16 | P20: 04 | Q20: 11 | R20: 7 | S20: 5 | T20: AM | U20: 07 | V20: 0 | W20: 0 | X20: 0 | Y20: 0 | AA20: MADERA | AB20: 1019.4 | AC20: 06 | AD20: 57 | AE20: 1 | AF20: 2 | AG20: 079 | AH20: E | AI20: 711 | AJ20: 1 | AK20: 0 | AL20: 2 | AM20: Y | AN20: MAIN 1 | AO20: 4 | AQ20: 1 | AR20: AMT | AS20: 002003 | AT20: 001 | AX20: 000 | AZ20: 1 | BA20: 0 | BB20: 0 | BC20: 0 | BD20: 0 | BE20: 0 | BF20: 0 | BG20: 0 | BH20: 0 | BI20: 0 | BJ20: 0 | BK20: 5 | BL20: 0 | BM20: 0 | BN20: 0 | BO20: 0 | BP20: 0 | BQ20: 0 | BR20: 0 | BS20: 0 | BT20: 17661 | BU20: 0 | BV20: M302 | BX20: 0 | BY20: 1 | BZ20: 0 | CA20: 1 | CB20: M302 | CC20: 1 | CD20: 5 | CE20: 079 | CF20: 17661 | CH20: 06C039 | CI20: 1 | CJ20: 000000 | CK20: 0 | CL20: 1 | CM20: 0 | CN20: 2 | CO20: 0 | CP20: 03 | CQ20: 35 | CR20: 03 | CS20: 35 | CT20: 1 | CU20: 7 | CW20: 1L | DA20: 111 | DC20: 2016 | DD20: 0 | DE20: 0 | DF20: 0 | DG20: 0 | DH20: 0 | DI20: 1 | DJ20: MADERA | DK20: 039 | DO20: Y | DP20: CWR | DR20: TRAIN 711 STRUCK AN OCCUPIED VEHICLE AT AVENUE 15 1/2 STREET CROSSING. AMTRAKS EQUIPMENT DAMAGE IS | DS20: $17,661.00. | EG20: 0 | EH20: 36.974426 | EI20: -120.019075 | EJ20: 1 | EK20: 1 | EL20: Q | EO20: STOCKTON
A21: 16 | B21: 04 | C21: BNSF | D21: CA0416200 | E21: 16 | F21: 04 | G21: ATK | H21: 141918 | I21: 16 | J21: 04 | K21: BNSF | L21: CA0416200 | N21: 028607G | O21: 16 | P21: 04 | Q21: 11 | R21: 7 | S21: 5 | T21: AM | U21: 07 | V21: 0 | W21: 0 | X21: 0 | Y21: 0 | AA21: MADERA | AB21: 1019.4 | AC21: 06 | AD21: 62 | AE21: 1 | AF21: 1 | AG21: 000 | AK21: 0 | AN21: SINGLE MAIN TRACK | AO21: 5 | AP21: 52.17 | AQ21: 1 | AT21: 000 | AX21: 000 | AZ21: 0 | BA21: 0 | BB21: 0 | BC21: 0 | BD21: 0 | BE21: 0 | BF21: 0 | BG21: 0 | BH21: 0 | BI21: 0 | BJ21: 0 | BK21: 0 | BL21: 0 | BM21: 0 | BN21: 0 | BO21: 0 | BP21: 0 | BQ21: 0 | BR21: 0 | BS21: 0 | BT21: 0 | BU21: 0 | BV21: M302 | BX21: 0 | BY21: 0 | BZ21: 0 | CA21: 1 | CB21: M302 | CC21: 1 | CD21: 5 | CE21: 079 | CF21: 17661 | CH21: 06C039 | CI21: 0 | CJ21: 000000 | CK21: 0 | CL21: 0 | CM21: 0 | CN21: 0 | CO21: 0 | CT21: 2 | CU21: 7 | CW21: 1L | DA21: 79 | DC21: 2016 | DD21: 0 | DE21: 0 | DF21: 0 | DG21: 0 | DH21: 0 | DI21: 0 | DJ21: MADERA | DK21: 039 | DP21: CWR | DR21: AMTRAK TRAIN STRUCK AN OCCUPIED VEHICLE. AMTRAK''S EQUIPMENT DAMAGE IS $17,661. | EH21: 36.974426 | EI21: -120.019075 | EJ21: 1 | EK21: 1 | EL21: Q | EO21: STOCKTON
A22: 16 | B22: 06 | C22: ATK | D22: 142997 | I22: 16 | J22: 06 | K22: BNSF | L22: CA0616206 | N22: 028706E | O22: 16 | P22: 06 | Q22: 24 | R22: 4 | S22: 50 | T22: PM | U22: 07 | V22: 0 | W22: 0 | X22: 0 | Y22: 0 | AA22: WINTON | AB22: 1065.2 | AC22: 06 | AD22: 92 | AE22: 2 | AF22: 1 | AG22: 070 | AH22: E | AI22: 715 | AJ22: 4 | AK22: 0 | AL22: 2 | AM22: Y | AN22: SINGLE MAIN | AO22: 4 | AQ22: 1 | AR22: CDTX | AS22: 002011 | AT22: 001 | AX22: 000 | AZ22: 1 | BA22: 0 | BB22: 0 | BC22: 0 | BD22: 0 | BE22: 0 | BF22: 0 | BG22: 0 | BH22: 0 | BI22: 0 | BJ22: 0 | BK22: 5 | BL22: 0 | BM22: 0 | BN22: 0 | BO22: 0 | BP22: 0 | BQ22: 0 | BR22: 0 | BS22: 0 | BT22: 26277 | BU22: 0 | BV22: M308 | BX22: 1 | BY22: 2 | BZ22: 1 | CA22: 2 | CB22: M308 | CC22: 1 | CD22: 5 | CE22: 070 | CF22: 26277 | CH22: 06C047 | CI22: 2 | CJ22: 000000 | CK22: 1 | CL22: 1 | CM22: 0 | CN22: 2 | CO22: 0 | CP22: 08 | CQ22: 15 | CR22: 04 | CS22: 35 | CT22: 1 | CU22: 7 | CW22: 1L | DA22: 163 | DC22: 2016 | DD22: 0 | DE22: 0 | DF22: 0 | DG22: 2 | DH22: 1 | DI22: 0 | DJ22: MERCED | DK22: 047 | DO22: Y | DP22: CWR | DR22: TRAIN 715 OPERATING WITH LOCOMOTIVE E/2011 AND 5 CARS STRUCK AN OCCUPIED PICK-UP TRUCK AT MP 1065.23 | DS22: , WINTON WAY CROSSING. AMTRAKS EQUIPMENT DAMAGE IS $26,277.00. | EG22: 0 | EH22: 37.385524 | EI22: -120.613509 | EJ22: 1 | EK22: 1 | EL22: Q | EO22: STOCKTON
A23: 16 | B23: 06 | C23: BNSF | D23: CA0616206 | E23: 16 | F23: 06 | G23: ATK | H23: 142997 | I23: 16 | J23: 06 | K23: BNSF | L23: CA0616206 | N23: 028706E | O23: 16 | P23: 06 | Q23: 24 | R23: 4 | S23: 50 | T23: PM | U23: 07 | V23: 0 | W23: 0 | X23: 0 | Y23: 0 | AA23: WINTON | AB23: 1065.2 | AC23: 06 | AD23: 101 | AE23: 2 | AF23: 1 | AG23: 000 | AK23: 0 | AN23: SINGLE MAIN TRACK | AO23: 5 | AP23: 52.10 | AQ23: 1 | AT23: 000 | AX23: 000 | AZ23: 0 | BA23: 0 | BB23: 0 | BC23: 0 | BD23: 0 | BE23: 0 | BF23: 0 | BG23: 0 | BH23: 0 | BI23: 0 | BJ23: 0 | BK23: 0 | BL23: 0 | BM23: 0 | BN23: 0 | BO23: 0 | BP23: 0 | BQ23: 0 | BR23: 0 | BS23: 0 | BT23: 0 | BU23: 0 | BV23: M308 | BX23: 0 | BY23: 0 | BZ23: 1 | CA23: 2 | CB23: M308 | CC23: 1 | CD23: 5 | CE23: 070 | CF23: 26277 | CH23: 06C047 | CI23: 0 | CJ23: 000000 | CK23: 0 | CL23: 0 | CM23: 0 | CN23: 0 | CO23: 0 | CT23: 2 | CU23: 7 | CW23: 1L | DA23: 68 | DC23: 2016 | DD23: 0 | DE23: 0 | DF23: 0 | DG23: 0 | DH23: 0 | DI23: 0 | DJ23: MERCED | DK23: 047 | DP23: CWR | DR23: SOUTHBOUND AUTO WENT AROUND THE GATE AND WAS STRUCK BY AMTRAK TRAIN. | EH23: 37.385524 | EI23: -120.613509 | EJ23: 1 | EK23: 1 | EO23: STOCKTON
A24: 16 | B24: 03 | C24: BNSF | D24: CA0316203 | E24: 16 | F24: 03 | G24: ATK | H24: 141710 | I24: 16 | J24: 03 | K24: BNSF | L24: CA0316203 | N24: 028706E | O24: 16 | P24: 03 | Q24: 28 | R24: 1 | S24: 31 | T24: PM | U24: 07 | V24: 0 | W24: 0 | X24: 0 | Y24: 0 | AA24: WINTON | AB24: 1065.2 | AC24: 06 | AD24: 67 | AE24: 2 | AF24: 1 | AG24: 000 | AK24: 0 | AN24: SINGLE MAIN TRACK | AO24: 5 | AP24: 52.10 | AQ24: 1 | AT24: 000 | AX24: 000 | AZ24: 0 | BA24: 0 | BB24: 0 | BC24: 0 | BD24: 0 | BE24: 0 | BF24: 0 | BG24: 0 | BH24: 0 | BI24: 0 | BJ24: 0 | BK24: 0 | BL24: 0 | BM24: 0 | BN24: 0 | BO24: 0 | BP24: 0 | BQ24: 0 | BR24: 0 | BS24: 0 | BT24: 0 | BU24: 0 | BV24: M302 | BX24: 0 | BY24: 0 | BZ24: 1 | CA24: 1 | CB24: M302 | CC24: 1 | CD24: 5 | CE24: 069 | CF24: 25257 | CH24: 06C047 | CI24: 0 | CJ24: 000000 | CK24: 0 | CL24: 0 | CM24: 0 | CN24: 0 | CO24: 0 | CT24: 2 | CU24: 7 | CW24: 1L | DA24: 113 | DC24: 2016 | DD24: 0 | DE24: 0 | DF24: 0 | DG24: 0 | DH24: 0 | DI24: 0 | DJ24: MERCED | DK24: 047 | DP24: CWR | DR24: AMTRAK TRAIN 713 STRUCK A PEDESTRIAN WALKING WITH A SHOPPING CART ACROSS THE TRACKS CAUSING DAMAGE T | DS24: O LOCOMOTIVE. | EH24: 37.385524 | EI24: -120.613509 | EJ24: 1 | EK24: 1 | EL24: Q | EO24: STOCKTON
A25: 16 | B25: 03 | C25: ATK | D25: 141710 | I25: 16 | J25: 03 | K25: BNSF | L25: CA0316203 | N25: 028706E | O25: 16 | P25: 03 | Q25: 28 | R25: 1 | S25: 31 | T25: PM | U25: 07 | V25: 0 | W25: 0 | X25: 0 | Y25: 0 | AA25: WINTON | AB25: 1065.2 | AC25: 06 | AD25: 63 | AE25: 2 | AF25: 1 | AG25: 069 | AH25: E | AI25: 713 | AJ25: 4 | AK25: 0 | AL25: 2 | AM25: Y | AN25: SINGLE MAIN | AO25: 4 | AQ25: 1 | AR25: AMT | AS25: 000136 | AT25: 001 | AX25: 000 | AZ25: 1 | BA25: 0 | BB25: 0 | BC25: 0 | BD25: 0 | BE25: 0 | BF25: 0 | BG25: 0 | BH25: 0 | BI25: 0 | BJ25: 0 | BK25: 5 | BL25: 0 | BM25: 0 | BN25: 0 | BO25: 0 | BP25: 0 | BQ25: 0 | BR25: 0 | BS25: 0 | BT25: 25257 | BU25: 0 | BV25: M302 | BX25: 1 | BY25: 1 | BZ25: 1 | CA25: 1 | CB25: M302 | CC25: 1 | CD25: 5 | CE25: 069 | CF25: 25257 | CH25: 06C047 | CI25: 1 | CJ25: 000000 | CK25: 1 | CL25: 1 | CM25: 0 | CN25: 1 | CO25: 1 | CP25: 04 | CQ25: 21 | CR25: 04 | CS25: 21 | CT25: 1 | CU25: 7 | CW25: 1L | DA25: 210 | DC25: 2016 | DD25: 0 | DE25: 0 | DF25: 0 | DG25: 1 | DH25: 1 | DI25: 0 | DJ25: MERCED | DK25: 047 | DO25: Y | DP25: CWR | DR25: TRAIN 713 OPERATING WITH LOCOMOTIVE E/136 AND 5 CARS STRUCK A PEDESTRIAN AT MP 1065.23, WINTON WAY C | DS25: ROSSING. THE PEDESTRIAN WAS PUSHING A SHOPPING CART ACROSS THE TRACK. AMTRAKS EQUIPMENT DAMAGE IS $ | DT25: 25,257.00. | EH25: 37.385524 | EI25: -120.613509 | EJ25: 1 | EK25: 1 | EO25: STOCKTON
A26: 16 | B26: 04 | C26: ATK | D26: 141994 | I26: 16 | J26: 04 | K26: BNSF | L26: CA0416201 | N26: 028743G | O26: 16 | P26: 04 | Q26: 16 | R26: 9 | S26: 59 | T26: PM | U26: 07 | V26: 0 | W26: 0 | X26: 0 | Y26: 0 | AA26: EMPIRE | AB26: 1089.2 | AC26: 06 | AD26: 61 | AE26: 4 | AF26: 1 | AG26: 070 | AH26: E | AI26: 703 | AJ26: 1 | AK26: 0 | AL26: 2 | AM26: Y | AN26: MAIN 2 | AO26: 5 | AQ26: 1 | AR26: CDTX | AS26: 002004 | AT26: 001 | AX26: 000 | AZ26: 1 | BA26: 0 | BB26: 0 | BC26: 0 | BD26: 0 | BE26: 0 | BF26: 0 | BG26: 0 | BH26: 0 | BI26: 0 | BJ26: 0 | BK26: 5 | BL26: 0 | BM26: 0 | BN26: 0 | BO26: 0 | BP26: 0 | BQ26: 0 | BR26: 0 | BS26: 0 | BT26: 18000 | BU26: 0 | BV26: M302 | BX26: 0 | BY26: 0 | BZ26: 0 | CA26: 0 | CB26: M302 | CC26: 1 | CD26: 5 | CE26: 070 | CF26: 18000 | CH26: 06C099 | CI26: 0 | CJ26: 000000 | CK26: 0 | CL26: 1 | CM26: 0 | CN26: 1 | CO26: 1 | CP26: 03 | CQ26: 34 | CR26: 03 | CS26: 34 | CT26: 1 | CU26: 7 | CW26: 1L | DA26: 300 | DC26: 2016 | DD26: 0 | DE26: 0 | DF26: 0 | DG26: 0 | DH26: 0 | DI26: 0 | DJ26: STANISLAUS | DK26: 099 | DO26: Y | DP26: CWR | DR26: TRAIN 703 OPERATING WITH LOCOMOTIVE CDTX 2004 AND 5 CARS STRUCK AN UNOCCUPIED VEHICLE AT MP 1089.27, | DS26: YOSEMITE BLVD CROSSING. THE VEHICLE HAD BEEN INVOLVED IN AN ACCIDENT PRIOR TO BEING STRUCK BY THE | DT26: TRAIN. AMTRAKS EQUIPMENT DAMAGE IS $18,000.00. THE AGE AND GENDER OF THE DRIVER WAS NOT AVAILABLE. | EG26: 0 | EH26: 37.638275 | EI26: -120.903555 | EJ26: 1 | EK26: 1 | EL26: Q | EO26: STOCKTON
A27: 16 | B27: 04 | C27: BNSF | D27: CA0416201 | E27: 16 | F27: 04 | G27: ATK | H27: 141994 | I27: 16 | J27: 04 | K27: BNSF | L27: CA0416201 | N27: 028743G | O27: 16 | P27: 04 | Q27: 16 | R27: 9 | S27: 59 | T27: PM | U27: 07 | V27: 0 | W27: 0 | X27: 0 | Y27: 0 | AA27: EMPIRE | AB27: 1089.3 | AC27: 06 | AD27: 65 | AE27: 4 | AF27: 1 | AG27: 000 | AK27: 0 | AN27: MAIN 1 TRACK | AO27: 5 | AP27: 24.94 | AQ27: 1 | AT27: 000 | AX27: 000 | AZ27: 0 | BA27: 0 | BB27: 0 | BC27: 0 | BD27: 0 | BE27: 0 | BF27: 0 | BG27: 0 | BH27: 0 | BI27: 0 | BJ27: 0 | BK27: 0 | BL27: 0 | BM27: 0 | BN27: 0 | BO27: 0 | BP27: 0 | BQ27: 0 | BR27: 0 | BS27: 0 | BT27: 0 | BU27: 0 | BV27: M302 | BX27: 0 | BY27: 0 | BZ27: 0 | CA27: 0 | CB27: M302 | CC27: 1 | CD27: 5 | CE27: 070 | CF27: 18000 | CH27: 06C099 | CI27: 0 | CJ27: 000000 | CK27: 0 | CL27: 0 | CM27: 0 | CN27: 0 | CO27: 0 | CT27: 2 | CU27: 7 | CW27: 1L | DA27: 93 | DC27: 2016 | DD27: 0 | DE27: 0 | DF27: 0 | DG27: 0 | DH27: 0 | DI27: 0 | DJ27: STANISLAUS | DK27: 099 | DP27: CWR | DR27: AMTRAK TRAIN 703 STRUCK AN UNOCCUPIED VEHICLE CAUSING $18,000 IN DAMAGES TO AMTRAK EQUIPMENT. | EH27: 37.638275 | EI27: -120.903555 | EJ27: 1 | EK27: 1 | EL27: Q | EO27: STOCKTON
A28: 16 | B28: 08 | C28: ATK | D28: 143810 | I28: 16 | J28: 08 | K28: BNSF | L28: CA0816202 | N28: 029641S | O28: 16 | P28: 08 | Q28: 15 | R28: 1 | S28: 2 | T28: PM | U28: 07 | V28: 0 | W28: 0 | X28: 0 | Y28: 0 | AA28: STOCKTON | AB28: 1129.2 | AC28: 06 | AD28: 100 | AE28: 2 | AF28: 1 | AG28: 070 | AH28: E | AI28: 711 | AJ28: 1 | AK28: 0 | AL28: 2 | AM28: Y | AN28: MAIN 1 TRACK | AO28: 5 | AQ28: 1 | AR28: AMT | AS28: 002013 | AT28: 001 | AX28: 000 | AZ28: 1 | BA28: 0 | BB28: 0 | BC28: 0 | BD28: 0 | BE28: 0 | BF28: 0 | BG28: 0 | BH28: 0 | BI28: 0 | BJ28: 0 | BK28: 7 | BL28: 0 | BM28: 0 | BN28: 0 | BO28: 0 | BP28: 0 | BQ28: 0 | BR28: 0 | BS28: 0 | BT28: 41686 | BU28: 0 | BV28: M302 | BX28: 0 | BY28: 2 | BZ28: 0 | CA28: 2 | CB28: M302 | CC28: 1 | CD28: 5 | CE28: 070 | CF28: 69286 | CH28: 06C077 | CI28: 2 | CJ28: 000000 | CK28: 0 | CL28: 1 | CM28: 0 | CN28: 1 | CO28: 0 | CP28: 06 | CR28: 06 | CT28: 2 | CU28: 7 | CW28: 1L | DA28: 151 | DC28: 2016 | DD28: 0 | DE28: 1 | DF28: 0 | DG28: 1 | DH28: 0 | DI28: 0 | DJ28: SAN JOAQUIN | DK28: 077 | DO28: Y | DP28: CWR | DR28: TRAIN 711 STRUCK AN OCCUPIED TRACTOR-TRAILER TRUCK AT CROSSING. THE DRIVERS AGE AND GENDER WAS NOT | DS28: AVAILABLE. AMTRAKS EQUIPMENT DAMAGE IS $41,686.00. | EG28: 0 | EH28: 37.934512 | EI28: -121.430778 | EJ28: 1 | EK28: 1 | EO28: STOCKTON
A29: 16 | B29: 08 | C29: BNSF | D29: CA0816202 | E29: 16 | F29: 08 | G29: ATK | H29: 143810 | I29: 16 | J29: 08 | K29: BNSF | L29: CA0816202 | N29: 029641S | O29: 16 | P29: 08 | Q29: 15 | R29: 1 | S29: 2 | T29: PM | U29: 07 | V29: 0 | W29: 0 | X29: 0 | Y29: 0 | AA29: STOCKTON | AB29: 1129.2 | AC29: 06 | AD29: 100 | AE29: 2 | AF29: 1 | AG29: 000 | AK29: 0 | AN29: MAIN 1 TRACK | AO29: 5 | AP29: 8.36 | AQ29: 1 | AT29: 000 | AX29: 000 | AZ29: 0 | BA29: 0 | BB29: 0 | BC29: 0 | BD29: 0 | BE29: 0 | BF29: 0 | BG29: 0 | BH29: 0 | BI29: 0 | BJ29: 0 | BK29: 0 | BL29: 0 | BM29: 0 | BN29: 0 | BO29: 0 | BP29: 0 | BQ29: 0 | BR29: 0 | BS29: 0 | BT29: 0 | BU29: 27600 | BV29: M302 | BX29: 0 | BY29: 0 | BZ29: 0 | CA29: 2 | CB29: M302 | CC29: 1 | CD29: 5 | CE29: 070 | CF29: 69286 | CH29: 06C077 | CI29: 0 | CJ29: 000000 | CK29: 0 | CL29: 0 | CM29: 0 | CN29: 0 | CO29: 0 | CT29: 1 | CU29: 7 | CW29: 1L | DA29: 237 | DC29: 2016 | DD29: 0 | DE29: 0 | DF29: 0 | DG29: 0 | DH29: 0 | DI29: 0 | DJ29: SAN JOAQUIN | DK29: 077 | DP29: CWR | DR29: NORTHBOUND TRUCK-TRAILER ATTEMPTED TO MAKE LEFT TURN AT INTERSECTION NORTH OF XING. TRAILER WAS TOO | DS29: LONG TO NAVIGATE AROUND CROSSING GATE APPARATUS AND BECAME STUCK AND WAS STRUCK BY AMTRAK TRAIN. DES | DT29: TROYING THE NORTH CROSSING APPARATUS. | EH29: 37.934512 | EI29: -121.430778 | EJ29: 1 | EK29: 1 | EL29: Q | EO29: STOCKTON
A30: 16 | B30: 05 | C30: CSX | D30: 000159721 | I30: 16 | J30: 05 | K30: CSX | L30: 000159721 | N30: 050458M | O30: 16 | P30: 05 | Q30: 13 | R30: 4 | S30: 20 | T30: AM | U30: 07 | V30: 0 | W30: 0 | X30: 0 | Y30: 0 | AA30: MORELAND | AB30: 0051.0 | AC30: 13 | AD30: 64 | AE30: 1 | AF30: 1 | AG30: 044 | AH30: R | AI30: Q183 | AJ30: 1 | AK30: 3997 | AL30: 1 | AM30: Y | AN30: SINGLE MAIN | AO30: 4 | AP30: 0041.9 | AQ30: 1 | AR30: BNSF | AS30: 005076 | AT30: 001 | AU30: N | AX30: 000 | AZ30: 4 | BA30: 0 | BB30: 0 | BC30: 0 | BD30: 0 | BE30: 0 | BF30: 0 | BG30: 0 | BH30: 0 | BI30: 0 | BJ30: 30 | BK30: 0 | BL30: 0 | BM30: 0 | BN30: 0 | BO30: 0 | BP30: 0 | BQ30: 0 | BR30: 0 | BS30: 0 | BT30: 5130 | BU30: 7459 | BV30: M302 | BX30: 0 | BY30: 1 | BZ30: 0 | CA30: 1 | CB30: M302 | CC30: 1 | CD30: 4 | CE30: 044 | CF30: 12589 | CH30: 13C077 | CI30: 1 | CJ30: 000000 | CK30: 0 | CL30: 1 | CM30: 0 | CN30: 1 | CO30: 0 | CP30: 08 | CQ30: 05 | CR30: 08 | CS30: 05 | CT30: 1 | CU30: 3 | CW30: 1L | DA30: 269 | DC30: 2016 | DD30: 0 | DE30: 1 | DF30: 0 | DG30: 0 | DH30: 0 | DI30: 0 | DJ30: COWETA | DK30: 077 | DO30: N | DP30: CWR | DR30: Q18312 STRUCK A TRACTOR TRAILER STOPPED ON THE CROSSING. LEAD ENGINE BNSF DAMAGED. EMPLOYEE WAS SITT | DS30: ING IN THE CONDUCTORS SEAT AND FACING THE MOVEMENT, EMPLOYEE COMPLAINS OF LOWER BACK PAIN. PROTECTIO | DT30: N ALSO AT CROSSING: PAVEMENT MARKINGS (STOP LINES & RR XING SYMBOLS). | EG30: 0 | EH30: 33.234333 | EI30: -84.835176 | EJ30: 1 | EK30: 1 | EO30: AWP W OF A
A31: 16 | B31: 08 | C31: MBTA | D31: 5703 | I31: 16 | J31: 08 | K31: MBTA | L31: 5703 | N31: 054320A | O31: 16 | P31: 08 | Q31: 11 | R31: 11 | S31: 26 | T31: AM | U31: 07 | V31: 0 | W31: 0 | X31: 0 | Y31: 0 | AA31: WAKEFIELD | AB31: 9.4 | AC31: 25 | AD31: 88 | AE31: 2 | AF31: 1 | AG31: 030 | AH31: R | AI31: 212 | AJ31: 4 | AK31: 0 | AL31: B | AM31: Y | AN31: 2 | AO31: 3 | AQ31: 1 | AR31: MBTA | AS31: 001628 | AT31: 001 | AU31: N | AX31: 000 | AZ31: 0 | BA31: 0 | BB31: 0 | BC31: 1 | BD31: 0 | BE31: 0 | BF31: 0 | BG31: 0 | BH31: 0 | BI31: 0 | BJ31: 0 | BK31: 5 | BL31: 0 | BM31: 0 | BN31: 0 | BO31: 0 | BP31: 0 | BQ31: 0 | BR31: 0 | BS31: 0 | BT31: 14622 | BU31: 0 | BV31: M304 | BX31: 0 | BY31: 1 | BZ31: 0 | CA31: 1 | CB31: M304 | CC31: 1 | CD31: 3 | CE31: 030 | CF31: 14622 | CH31: 25C017 | CI31: 1 | CJ31: 000000 | CK31: 0 | CL31: 2 | CN31: 2 | CP31: 05 | CQ31: 43 | CR31: 05 | CS31: 43 | CT31: 1 | CU31: 1 | CW31: 3 | DA31: 154 | DC31: 2016 | DD31: 0 | DE31: 0 | DF31: 0 | DG31: 0 | DH31: 0 | DI31: 1 | DJ31: MIDDLESEX | DK31: 017 | DO31: Y | DP31: CWR | DR31: LATE ENTRY. PICK UP TRUCK WENT AROUND GATES AND WAS STRUCK BY THE TRAIN. DRIVER WAS AIRLIFTED WITH I | DS31: NTERNAL INJURIES. TRAIN SUSTAINED DAMAGES OVER 14,000. | EG31: 0 | EH31: 42.4975 | EI31: -71.071667 | EJ31: 1 | EK31: 1 | EL31: D | EO31: SYSTEM
A32: 16 | B32: 05 | C32: PNWR | D32: PNW964816G | I32: 16 | J32: 05 | K32: PNWR | L32: PNW964816G | N32: 057910G | O32: 16 | P32: 05 | Q32: 05 | R32: 8 | S32: 39 | T32: AM | U32: 07 | V32: 0 | W32: 0 | X32: 0 | Y32: 0 | AA32: SCAPPOOSE | AB32: 21.5 | AC32: 41 | AD32: 59 | AE32: 2 | AF32: 1 | AG32: 010 | AH32: R | AI32: 4770 | AJ32: 3 | AK32: 1999 | AL32: 1 | AM32: Y | AN32: SINGLE MAIN TRACK | AO32: 2 | AQ32: 1 | AR32: PNWR | AS32: 003051 | AT32: 001 | AU32: N | AX32: 000 | AZ32: 2 | BA32: 0 | BB32: 0 | BC32: 0 | BD32: 0 | BE32: 0 | BF32: 0 | BG32: 0 | BH32: 0 | BI32: 0 | BJ32: 10 | BK32: 0 | BL32: 24 | BM32: 0 | BN32: 0 | BO32: 0 | BP32: 0 | BQ32: 0 | BR32: 0 | BS32: 0 | BT32: 463 | BU32: 11120 | BV32: M302 | BX32: 0 | BY32: 0 | BZ32: 0 | CA32: 0 | CB32: M302 | CC32: 1 | CD32: 2 | CE32: 010 | CF32: 11583 | CH32: 41C009 | CI32: 0 | CJ32: 000000 | CK32: 0 | CL32: 1 | CM32: 0 | CN32: 1 | CO32: 0 | CP32: 01 | CQ32: 39 | CR32: 01 | CS32: 39 | CT32: 1 | CU32: 8 | CW32: 3L | DA32: 387 | DC32: 2016 | DD32: 0 | DE32: 0 | DF32: 0 | DG32: 0 | DH32: 0 | DI32: 0 | DJ32: COLUMBIA | DK32: 009 | DO32: N | DP32: CWR | DR32: A TRAIN CREW WAS TRAVELING EASTBOUND AND NOTICED A SEMI TRUCK PULL OVER THE CROSSING AND STOP ON THE | DS32: TRACKS. THE ENGINEER WAS SOUNDING THE BELL AND WHISTLE FOR THE CROSSING. THE ENGINEER PUT THE TRAIN | DT32: INTO EMERGENCY BUT WAS NOT ABLE TO STOP SHORT OF THE CROSSING AND THE TRAIN STRUCK THE REAR OF THE | DU32: SEMI TRAILER. THERE WERE NO INJURIES TO THE TRAIN CREW OR THE DRIVER OF THE SEMI TRUCK. | EG32: 0 | EH32: 45.780235 | EI32: -122.873619 | EJ32: 2 | EK32: 2 | EL32: P | EM32: N | EN32: L | EO32: ASTORIA
A33: 16 | B33: 09 | C33: RRVW | D33: 92616GCDWI | I33: 16 | J33: 09 | K33: RRVW | L33: 92616GCDWI | N33: 062656S | O33: 16 | P33: 09 | Q33: 26 | R33: 10 | S33: 15 | T33: AM | U33: 07 | V33: 0 | W33: 0 | X33: 0 | Y33: 0 | AA33: DWIGHT | AB33: 8.13 | AC33: 38 | AD33: 50 | AE33: 2 | AF33: 1 | AG33: 025 | AH33: E | AI33: RRVW | AJ33: 4 | AK33: 1920 | AL33: 1 | AM33: Y | AN33: SINGLE MAIN TRACK | AO33: 2 | AP33: 4.8 | AQ33: 1 | AR33: RRVW | AS33: 002005 | AT33: 001 | AU33: N | AX33: 000 | AZ33: 2 | BA33: 0 | BB33: 0 | BC33: 0 | BD33: 0 | BE33: 1 | BF33: 0 | BG33: 0 | BH33: 0 | BI33: 0 | BJ33: 12 | BK33: 0 | BL33: 12 | BM33: 0 | BN33: 0 | BO33: 0 | BP33: 0 | BQ33: 1 | BR33: 0 | BS33: 0 | BT33: 39514 | BU33: 9200 | BV33: M302 | BX33: 0 | BY33: 2 | BZ33: 0 | CA33: 2 | CB33: M302 | CC33: 1 | CD33: 2 | CE33: 025 | CF33: 48714 | CH33: 38C077 | CI33: 2 | CJ33: 000000 | CK33: 0 | CL33: 1 | CM33: 0 | CN33: 1 | CO33: 0 | CP33: 01 | CQ33: 15 | CR33: 01 | CS33: 15 | CT33: 1 | CU33: 8 | CW33: 3L | DA33: 592 | DC33: 2016 | DD33: 0 | DE33: 1 | DF33: 0 | DG33: 0 | DH33: 0 | DI33: 1 | DJ33: RICHLAND | DK33: 077 | DO33: N | DP33: OTH | DR33: HIGHWAY USER WAS CITED FOR FAILURE TO YIELD TO TRAIN RRVW 2005 AT GRADE CROSSING DOT #062656S NEAR D | DS33: WIGHT, ND. LEAD LOCOMOTIVE DERAILED AFTER STRIKING THE SEMI CAB. AS THE CAB WAS SHOVED DOWN THE T | DT33: RACK, THE CAB STRUCK AN EMPTY HOPPER CAR SITTING ON THE SIDING AT THE LOCATION, DAMAGING AND DERAILI | DU33: NG THE HOPPER CAR. THE SEMI WAS DESTROYED IN A FIRE RESULTING FROM THE IMPACT. ONE OTHER GRAIN HOP | DV33: PER CAR SUSTAINED MINOR DAMAGE FROM THE HEAT FROM THE FIRE. DRIVER OF THE SEMI WAS TREATED AND RELE | DW33: ASED FOR MINOR INJURIES AND THE TRAIN CONDUCTOR SUSTAINED A SORE SHOULDER FROM THE INCIDENT. | EG33: 0 | EH33: 46.311391 | EI33: -96.74961 | EJ33: 2 | EK33: 2 | EL33: N | EO33: SECOND
A34: 16 | B34: 07 | C34: BNSF | D34: PR0716200 | I34: 16 | J34: 07 | K34: BNSF | L34: PR0716200 | N34: 064609R | O34: 16 | P34: 07 | Q34: 11 | R34: 9 | S34: 58 | T34: AM | U34: 07 | V34: 0 | W34: 0 | X34: 0 | Y34: 0 | AA34: MERNA | AB34: 186.6 | AC34: 31 | AD34: 80 | AE34: 2 | AF34: 1 | AG34: 053 | AH34: E | AI34: EMLM | AJ34: 4 | AK34: 3020 | AL34: 1 | AM34: Y | AN34: MAIN 2 TRACK | AO34: 4 | AP34: 114.75 | AQ34: 1 | AR34: BNSF | AS34: 008448 | AT34: 001 | AX34: 000 | AZ34: 2 | BA34: 0 | BB34: 0 | BC34: 1 | BD34: 0 | BE34: 0 | BF34: 0 | BG34: 0 | BH34: 0 | BI34: 0 | BJ34: 0 | BK34: 0 | BL34: 124 | BM34: 0 | BN34: 0 | BO34: 0 | BP34: 0 | BQ34: 0 | BR34: 0 | BS34: 0 | BT34: 11126 | BU34: 10500 | BV34: M302 | BX34: 0 | BY34: 0 | BZ34: 0 | CA34: 0 | CB34: M302 | CC34: 1 | CD34: 4 | CE34: 053 | CF34: 21626 | CH34: 31C041 | CI34: 0 | CJ34: 000000 | CK34: 0 | CL34: 1 | CM34: 0 | CN34: 1 | CO34: 0 | CP34: 03 | CQ34: 28 | CR34: 03 | CS34: 28 | CT34: 1 | CU34: 6 | CW34: 1L | DA34: 80 | DC34: 2016 | DD34: 0 | DE34: 0 | DF34: 0 | DG34: 0 | DH34: 0 | DI34: 0 | DJ34: CUSTER | DK34: 041 | DO34: N | DP34: CWR | DR34: NORTHBOUND TRUCK-TRAILER DID NOT STOP AND WAS STRUCK BY EASTBOUND E-MLMCAM0-15A. | EG34: 0 | EH34: 41.51036 | EI34: -99.771 | EJ34: 1 | EK34: 1 | EL34: Q | EO34: SAND HILLS
A35: 16 | B35: 09 | C35: BNSF | D35: CH0916200 | I35: 16 | J35: 09 | K35: BNSF | L35: CH0916200 | N35: 069970A | O35: 16 | P35: 09 | Q35: 07 | R35: 12 | S35: 54 | T35: PM | U35: 07 | V35: 0 | W35: 0 | X35: 0 | Y35: 0 | AA35: PRAIRIE DU CHIEN | AB35: 240.3 | AC35: 55 | AD35: 71 | AE35: 2 | AF35: 3 | AG35: 020 | AH35: E | AJ35: 4 | AK35: 0 | AL35: 9 | AM35: Y | AN35: MAIN 1 TRACK | AO35: 4 | AP35: 55.33 | AQ35: 1 | AR35: BNXX | AS35: 600181 | AT35: 001 | AU35: N | AX35: 000 | AZ35: 0 | BA35: 0 | BB35: 0 | BC35: 0 | BD35: 0 | BE35: 0 | BF35: 0 | BG35: 0 | BH35: 0 | BI35: 0 | BJ35: 0 | BK35: 0 | BL35: 1 | BM35: 0 | BN35: 0 | BO35: 0 | BP35: 0 | BQ35: 1 | BR35: 0 | BS35: 0 | BT35: 400000 | BU35: 0 | BV35: M302 | BX35: 0 | BY35: 1 | BZ35: 0 | CA35: 1 | CB35: M302 | CC35: 1 | CD35: 4 | CE35: 020 | CF35: 400000 | CH35: 55C023 | CI35: 1 | CJ35: 000000 | CK35: 0 | CL35: 1 | CM35: 0 | CN35: 0 | CO35: 0 | CP35: 08 | CQ35: 54 | CT35: 1 | CU35: 4 | CW35: 1L | DA35: 222 | DC35: 2016 | DD35: 0 | DE35: 0 | DF35: 0 | DG35: 0 | DH35: 0 | DI35: 1 | DJ35: CRAWFORD | DK35: 023 | DL35: 00 | DM35: 00 | DO35: N | DP35: CWR | DR35: OPERATOR ON PUP TAMPER WAS TRAVELING WEST BOUND ON MAIN 1, WHICH WAS PARALLEL WITH A TRAIN ON MAIN 2 | DS35: AS TRAIN WENT THROUGH CROSSING AND GATES RECOVERED THE TAMPER STRUCK A SEMI TRAILER. AS A RESULT TH | DT35: E PUP TAMPER DERAILED. | EG35: 0 | EH35: 43.064604 | EI35: -91.142635 | EJ35: 1 | EK35: 1 | EL35: Q | EO35: AURORA
A36: 16 | B36: 10 | C36: BNSF | D36: CH1016203 | I36: 16 | J36: 10 | K36: BNSF | L36: CH1016203 | N36: 072611M | O36: 16 | P36: 10 | Q36: 25 | R36: 1 | S36: 0 | T36: PM | U36: 07 | V36: 0 | W36: 0 | X36: 0 | Y36: 0 | AA36: PLYMOUTH | AB36: 220.0 | AC36: 17 | AD36: 65 | AE36: 2 | AF36: 1 | AG36: 005 | AH36: E | AJ36: 3 | AK36: 0 | AL36: 9 | AM36: Y | AN36: SINGLE MAIN TRACK | AO36: 4 | AP36: 27.13 | AQ36: 1 | AR36: BNXX | AS36: 400406 | AT36: 001 | AU36: N | AX36: 000 | AZ36: 0 | BA36: 0 | BB36: 0 | BC36: 0 | BD36: 0 | BE36: 0 | BF36: 0 | BG36: 0 | BH36: 0 | BI36: 0 | BJ36: 0 | BK36: 0 | BL36: 1 | BM36: 0 | BN36: 0 | BO36: 0 | BP36: 0 | BQ36: 0 | BR36: 0 | BS36: 0 | BT36: 80000 | BU36: 0 | BV36: M302 | BX36: 0 | BY36: 0 | BZ36: 0 | CA36: 0 | CB36: M302 | CC36: 1 | CD36: 4 | CE36: 005 | CF36: 80000 | CH36: 17C067 | CI36: 0 | CJ36: 000000 | CK36: 0 | CL36: 1 | CM36: 0 | CN36: 0 | CO36: 0 | CP36: 06 | CT36: 1 | CU36: 4 | CW36: 1L | DA36: 82 | DC36: 2016 | DD36: 0 | DE36: 0 | DF36: 0 | DG36: 0 | DH36: 0 | DI36: 0 | DJ36: HANCOCK | DK36: 067 | DL36: 00 | DM36: 00 | DO36: N | DP36: CWR | DR36: EASTBOUND MOW VEHICLE STRUCK A FARM TRACTOR THAT DID NOT STOP ON PRIVATE CROSSING. | EG36: 0 | EH36: 40.309218 | EI36: -90.907459 | EJ36: 1 | EK36: 1 | EL36: Q | EO36: BROOKFIELD
A37: 16 | B37: 04 | C37: BNSF | D37: NE0416200 | I37: 16 | J37: 04 | K37: BNSF | L37: NE0416200 | N37: 073280F | O37: 16 | P37: 04 | Q37: 01 | R37: 3 | S37: 33 | T37: PM | U37: 07 | V37: 0 | W37: 0 | X37: 0 | Y37: 0 | AA37: INLAND | AB37: 150.4 | AC37: 31 | AD37: 51 | AE37: 2 | AF37: 1 | AG37: 041 | AH37: R | AI37: BDEN | AJ37: 3 | AK37: 2760 | AL37: 1 | AM37: Y | AN37: SINGLE MAIN TRACK | AO37: 4 | AP37: 32.95 | AQ37: 1 | AR37: CREX | AS37: 001420 | AT37: 001 | AX37: 000 | AZ37: 2 | BA37: 0 | BB37: 0 | BC37: 0 | BD37: 0 | BE37: 2 | BF37: 0 | BG37: 0 | BH37: 0 | BI37: 0 | BJ37: 0 | BK37: 0 | BL37: 68 | BM37: 0 | BN37: 0 | BO37: 0 | BP37: 0 | BQ37: 6 | BR37: 0 | BS37: 0 | BT37: 41803 | BU37: 548615 | BV37: M302 | BX37: 1 | BY37: 0 | BZ37: 1 | CA37: 0 | CB37: M302 | CC37: 1 | CD37: 4 | CE37: 041 | CF37: 590418 | CH37: 31C035 | CI37: 0 | CJ37: 000000 | CK37: 1 | CL37: 1 | CM37: 0 | CN37: 1 | CO37: 0 | CP37: 07 | CQ37: 48 | CR37: 07 | CS37: 48 | CT37: 1 | CU37: 6 | CW37: 1L | DA37: 166 | DC37: 2016 | DD37: 0 | DE37: 0 | DF37: 0 | DG37: 0 | DH37: 1 | DI37: 0 | DJ37: CLAY | DK37: 035 | DO37: N | DP37: CWR | DR37: SOUTHBOUND TRUCK-TRAILER FAILED TO YIELD TO TRAIN B-DENCHI4-31A, RESULTING IN VEHICLE BEING STRUCK B | DS37: Y TRAIN AND SUBSEQUENT DERAILMENT OF 2 LOCOMOTIVES AND 6 RAILCARS. | EG37: 0 | EH37: 40.58835 | EI37: -98.2782 | EJ37: 1 | EK37: 1 | EL37: Q | EO37: HASTINGS
A38: 16 | B38: 08 | C38: ATK | D38: 143598 | I38: 16 | J38: 08 | K38: BNSF | L38: NE0816200 | N38: 074077S | O38: 16 | P38: 08 | Q38: 03 | R38: 8 | S38: 38 | T38: PM | U38: 07 | V38: 0 | W38: 0 | X38: 0 | Y38: 0 | AA38: MURRAY | AB38: 0366.9 | AC38: 19 | AD38: 77 | AE38: 3 | AF38: 1 | AG38: 077 | AH38: E | AI38: 5 | AJ38: 4 | AK38: 0 | AL38: 2 | AM38: Y | AN38: MAIN 1 | AO38: 4 | AQ38: 1 | AR38: AMT | AS38: 000162 | AT38: 001 | AX38: 000 | AZ38: 2 | BA38: 0 | BB38: 0 | BC38: 0 | BD38: 0 | BE38: 0 | BF38: 0 | BG38: 0 | BH38: 0 | BI38: 0 | BJ38: 0 | BK38: 10 | BL38: 0 | BM38: 0 | BN38: 0 | BO38: 0 | BP38: 0 | BQ38: 0 | BR38: 0 | BS38: 0 | BT38: 12996 | BU38: 0 | BV38: M302 | BX38: 0 | BY38: 0 | BZ38: 0 | CA38: 0 | CB38: M302 | CC38: 1 | CD38: 4 | CE38: 077 | CF38: 12996 | CH38: 19C039 | CI38: 0 | CJ38: 000000 | CK38: 0 | CL38: 1 | CM38: 1 | CN38: 1 | CO38: 1 | CP38: 02 | CQ38: 15 | CR38: 02 | CS38: 15 | CT38: 2 | CU38: 6 | CW38: 1L | DA38: 132 | DC38: 2016 | DD38: 0 | DE38: 0 | DF38: 0 | DG38: 0 | DH38: 0 | DI38: 0 | DJ38: CLARKE | DK38: 039 | DO38: Y | DP38: CWR | DR38: TRAIN 5 STRUCK AN UNOCCUPIED VEHICLE AT CROSSING. THE AGE OF THE DRIVER WAS NOT AVAILABLE. AMTRAKS | DS38: EQUIPMENT DAMAGE IS $12,996.00. | EG38: 0 | EH38: 41.041534 | EI38: -93.88888 | EJ38: 1 | EK38: 1 | EO38: OTTUMWA
A39: 16 | B39: 08 | C39: BNSF | D39: NE0816200 | E39: 16 | F39: 08 | G39: ATK | H39: 143598 | I39: 16 | J39: 08 | K39: BNSF | L39: NE0816200 | N39: 074077S | O39: 16 | P39: 08 | Q39: 03 | R39: 8 | S39: 38 | T39: PM | U39: 07 | V39: 0 | W39: 0 | X39: 0 | Y39: 0 | AA39: MURRAY | AB39: 366.8 | AC39: 19 | AD39: 77 | AE39: 3 | AF39: 1 | AG39: 000 | AK39: 0 | AN39: MAIN 1 TRACK | AO39: 4 | AP39: 60.13 | AQ39: 1 | AT39: 000 | AX39: 000 | AZ39: 0 | BA39: 0 | BB39: 0 | BC39: 0 | BD39: 0 | BE39: 0 | BF39: 0 | BG39: 0 | BH39: 0 | BI39: 0 | BJ39: 0 | BK39: 0 | BL39: 0 | BM39: 0 | BN39: 0 | BO39: 0 | BP39: 0 | BQ39: 0 | BR39: 0 | BS39: 0 | BT39: 0 | BU39: 0 | BV39: M302 | BX39: 0 | BY39: 0 | BZ39: 0 | CA39: 0 | CB39: M302 | CC39: 1 | CD39: 4 | CE39: 077 | CF39: 12996 | CH39: 19C039 | CI39: 0 | CJ39: 000000 | CK39: 0 | CL39: 0 | CM39: 0 | CN39: 0 | CO39: 0 | CT39: 1 | CU39: 6 | CW39: 1L | DA39: 51 | DC39: 2016 | DD39: 0 | DE39: 0 | DF39: 0 | DG39: 0 | DH39: 0 | DI39: 0 | DJ39: CLARKE | DK39: 039 | DP39: CWR | DR39: WESTBOUND AMTRAK TRAIN STRUCK AN ABANDONED VEHICLE. | EH39: 41.041534 | EI39: -93.88888 | EJ39: 1 | EK39: 1 | EL39: Q | EO39: OTTUMWA
A40: 16 | B40: 04 | C40: BNSF | D40: CH0416200 | E40: 16 | F40: 04 | G40: ATK | H40: 141820 | I40: 16 | J40: 04 | K40: BNSF | L40: CH0416200 | N40: 079609K | O40: 16 | P40: 04 | Q40: 03 | R40: 3 | S40: 1 | T40: PM | U40: 07 | V40: 0 | W40: 0 | X40: 0 | Y40: 0 | AA40: SOMONAUK | AB40: 59.4 | AC40: 17 | AD40: 68 | AE40: 2 | AF40: 1 | AG40: 000 | AK40: 0 | AN40: MAIN 1 TRACK | AO40: 4 | AP40: 28.17 | AQ40: 1 | AT40: 000 | AX40: 000 | AZ40: 0 | BA40: 0 | BB40: 0 | BC40: 0 | BD40: 0 | BE40: 0 | BF40: 0 | BG40: 0 | BH40: 0 | BI40: 0 | BJ40: 0 | BK40: 0 | BL40: 0 | BM40: 0 | BN40: 0 | BO40: 0 | BP40: 0 | BQ40: 0 | BR40: 0 | BS40: 0 | BT40: 0 | BU40: 0 | BV40: M302 | BX40: 0 | BY40: 0 | BZ40: 1 | CA40: 0 | CB40: M302 | CC40: 1 | CD40: 5 | CE40: 070 | CF40: 18512 | CH40: 17C037 | CI40: 0 | CJ40: 000000 | CK40: 0 | CL40: 0 | CM40: 0 | CN40: 0 | CO40: 0 | CT40: 2 | CU40: 4 | CW40: 1L | DA40: 84 | DC40: 2016 | DD40: 0 | DE40: 0 | DF40: 0 | DG40: 0 | DH40: 0 | DI40: 0 | DJ40: DE KALB | DK40: 037 | DP40: CWR | DR40: AMTRAK TRAIN 5 STRUCK AN OCCUPIED VEHICLE. AMTRAK''S EQUIPMENT DAMAGES WERE $18,512. | EH40: 41.634199 | EI40: -88.684207 | EJ40: 1 | EK40: 1 | EL40: Q | EO40: MENDOTA
A41: 16 | B41: 04 | C41: ATK | D41: 141820 | I41: 16 | J41: 04 | K41: BNSF | L41: CH0416200 | N41: 079609K | O41: 16 | P41: 04 | Q41: 03 | R41: 3 | S41: 1 | T41: PM | U41: 07 | V41: 0 | W41: 0 | X41: 0 | Y41: 0 | AA41: SOMONAUK | AB41: 0059.4 | AC41: 17 | AD41: 68 | AE41: 2 | AF41: 1 | AG41: 070 | AH41: E | AI41: 5 | AJ41: 4 | AK41: 0 | AL41: 2 | AM41: Y | AN41: MAIN ONE | AO41: 5 | AQ41: 1 | AR41: AMT | AS41: 000095 | AT41: 001 | AX41: 000 | AZ41: 2 | BA41: 0 | BB41: 0 | BC41: 0 | BD41: 0 | BE41: 0 | BF41: 0 | BG41: 0 | BH41: 0 | BI41: 0 | BJ41: 0 | BK41: 10 | BL41: 0 | BM41: 0 | BN41: 0 | BO41: 0 | BP41: 0 | BQ41: 0 | BR41: 0 | BS41: 0 | BT41: 18512 | BU41: 0 | BV41: M302 | BX41: 1 | BY41: 0 | BZ41: 1 | CA41: 0 | CB41: M302 | CC41: 1 | CD41: 5 | CE41: 070 | CF41: 18512 | CH41: 17C037 | CI41: 0 | CJ41: 000000 | CK41: 1 | CL41: 1 | CM41: 0 | CN41: 2 | CO41: 0 | CP41: 02 | CQ41: 31 | CR41: 02 | CS41: 31 | CT41: 1 | CU41: 4 | CW41: 1L | DA41: 163 | DC41: 2016 | DD41: 0 | DE41: 0 | DF41: 0 | DG41: 0 | DH41: 1 | DI41: 0 | DJ41: DE KALB | DK41: 037 | DO41: Y | DP41: CWR | DR41: TRAIN 5 OPERATING WITH LOCOMOTIVES E/95-E/152 AND 10 CARS STRUCK AN OCCUPIED VEHICLE AT MP 59.47, NO | DS41: RTH GREEN ST CROSSING. AMTRAKS EQUIPMENT DAMAGE IS $18,512.00. | EG41: 0 | EH41: 41.634199 | EI41: -88.684207 | EJ41: 1 | EK41: 1 | EL41: Q | EO41: MENDOTA
A42: 16 | B42: 04 | C42: ATK | D42: 141965 | I42: 16 | J42: 04 | K42: BNSF | L42: CH0416202 | N42: 079764P | O42: 16 | P42: 04 | Q42: 14 | R42: 9 | S42: 58 | T42: AM | U42: 07 | V42: 0 | W42: 0 | X42: 0 | Y42: 0 | AA42: GALVA | AB42: 0141.2 | AC42: 17 | AD42: 60 | AE42: 2 | AF42: 1 | AG42: 075 | AH42: E | AI42: 381 | AJ42: 4 | AK42: 0 | AL42: 2 | AM42: Y | AN42: MAIN TRACK 1 | AO42: 5 | AQ42: 1 | AR42: AMT | AS42: 000065 | AT42: 001 | AX42: 000 | AZ42: 1 | BA42: 0 | BB42: 0 | BC42: 0 | BD42: 0 | BE42: 0 | BF42: 0 | BG42: 0 | BH42: 0 | BI42: 0 | BJ42: 0 | BK42: 4 | BL42: 0 | BM42: 0 | BN42: 0 | BO42: 0 | BP42: 0 | BQ42: 0 | BR42: 0 | BS42: 0 | BT42: 154868 | BU42: 0 | BV42: M302 | BX42: 1 | BY42: 1 | BZ42: 1 | CA42: 1 | CB42: M302 | CC42: 1 | CD42: 5 | CE42: 075 | CF42: 154868 | CH42: 17C073 | CI42: 1 | CJ42: 000000 | CK42: 1 | CL42: 1 | CM42: 0 | CN42: 2 | CO42: 0 | CP42: 03 | CQ42: 03 | CR42: 03 | CS42: 03 | CT42: 1 | CU42: 4 | CW42: 1L | DA42: 98 | DC42: 2016 | DD42: 0 | DE42: 0 | DF42: 0 | DG42: 1 | DH42: 1 | DI42: 0 | DJ42: HENRY | DK42: 073 | DO42: Y | DP42: CWR | DR42: TRAIN 381 OPERATING WITH LOCOMOTIVE E/65 AND 4 CARS STRUCK AN OCCUPIED TRACTOR-TRAILER AT CROSSING | EG42: 0 | EH42: 41.152833 | EI42: -90.073888 | EJ42: 1 | EK42: 1 | EO42: MENDOTA
A43: 16 | B43: 02 | C43: BNSF | D43: CH0216200 | I43: 16 | J43: 02 | K43: BNSF | L43: CH0216200 | N43: 080033F | O43: 16 | P43: 02 | Q43: 12 | R43: 12 | S43: 30 | T43: PM | U43: 07 | V43: 0 | W43: 0 | X43: 0 | Y43: 0 | AA43: DIAMOND BLUFF | AB43: 396.4 | AC43: 55 | AD43: 12 | AE43: 2 | AF43: 1 | AG43: 040 | AH43: R | AI43: GFIN | AJ43: 3 | AK43: 16294 | AL43: 1 | AM43: Y | AN43: MAIN 2 TRACK | AO43: 4 | AP43: 58.24 | AQ43: 1 | AR43: BNSF | AS43: 473229 | AT43: 069 | AU43: Y | AX43: 000 | AZ43: 3 | BA43: 0 | BB43: 0 | BC43: 0 | BD43: 0 | BE43: 0 | BF43: 0 | BG43: 0 | BH43: 0 | BI43: 0 | BJ43: 114 | BK43: 0 | BL43: 0 | BM43: 0 | BN43: 0 | BO43: 0 | BP43: 0 | BQ43: 0 | BR43: 0 | BS43: 0 | BT43: 500 | BU43: 13000 | BV43: M302 | BX43: 0 | BY43: 1 | BZ43: 0 | CA43: 1 | CB43: M302 | CC43: 1 | CD43: 4 | CE43: 040 | CF43: 13500 | CH43: 55C093 | CI43: 1 | CJ43: 000000 | CK43: 0 | CL43: 2 | CM43: 0 | CN43: 1 | CO43: 0 | CP43: 04 | CR43: 04 | CT43: 1 | CU43: 4 | CW43: 1L | DA43: 122 | DC43: 2016 | DD43: 0 | DE43: 0 | DF43: 0 | DG43: 0 | DH43: 0 | DI43: 1 | DJ43: PIERCE | DK43: 093 | DO43: N | DP43: CWR | DR43: EASTBOUND AUTO STOPPED AT CROSSING WHEN FOOT SLIPPED OFF OF BRAKE PEDAL AND ROLLED INTO THE CROSSING | DS43: ARM AND STRUCK TRAIN. | EG43: 0 | EH43: 44.648402 | EI43: -92.623935 | EJ43: 1 | EK43: 1 | EL43: Q | EO43: ST CROIX
A44: 16 | B44: 06 | C44: BNSF | D44: NE0616200 | I44: 16 | J44: 06 | K44: BNSF | L44: NE0616200 | N44: 083498C | O44: 16 | P44: 06 | Q44: 13 | R44: 5 | S44: 0 | T44: PM | U44: 07 | V44: 0 | W44: 0 | X44: 0 | Y44: 0 | AA44: ASHLAND | AB44: 4.3 | AC44: 31 | AD44: 85 | AE44: 3 | AF44: 1 | AG44: 025 | AH44: E | AJ44: 1 | AK44: 0 | AL44: 9 | AM44: Y | AN44: SINGLE MAIN TRACK | AO44: 4 | AP44: 35.43 | AQ44: 1 | AR44: BNXX | AS44: 021529 | AT44: 001 | AU44: N | AX44: 000 | AZ44: 0 | BA44: 0 | BB44: 0 | BC44: 0 | BD44: 0 | BE44: 0 | BF44: 0 | BG44: 0 | BH44: 0 | BI44: 0 | BJ44: 0 | BK44: 0 | BL44: 1 | BM44: 0 | BN44: 0 | BO44: 0 | BP44: 0 | BQ44: 1 | BR44: 0 | BS44: 0 | BT44: 11000 | BU44: 0 | BV44: M302 | BX44: 0 | BY44: 2 | BZ44: 0 | CA44: 2 | CB44: M302 | CC44: 1 | CD44: 4 | CE44: 025 | CF44: 11000 | CH44: 31C155 | CI44: 2 | CJ44: 000000 | CK44: 0 | CL44: 1 | CM44: 0 | CN44: 0 | CO44: 0 | CP44: 09 | CQ44: 30 | CT44: 1 | CU44: 6 | CW44: 1L | DA44: 85 | DC44: 2016 | DD44: 0 | DE44: 0 | DF44: 0 | DG44: 0 | DH44: 0 | DI44: 2 | DJ44: SAUNDERS | DK44: 155 | DL44: 00 | DM44: 00 | DO44: N | DP44: CWR | DR44: TRACK INSPECTOR HYRAILING NORTH WAS STRUCK BY WESTBOUND VEHICLE IN THE REAR OF TRUCK. | EG44: 0 | EH44: 41.09962 | EI44: -96.3556 | EJ44: 2 | EK44: 2 | EL44: P | EO44: SIOUX CITY
A45: 16 | B45: 09 | C45: ATK | D45: 144459 | I45: 16 | J45: 09 | K45: BNSF | L45: NW0916202 | N45: 084735P | O45: 16 | P45: 09 | Q45: 29 | R45: 8 | S45: 13 | T45: PM | U45: 07 | V45: 0 | W45: 0 | X45: 0 | Y45: 0 | AA45: MOUNT VERNON | AB45: 0063.5 | AC45: 53 | AD45: 58 | AE45: 3 | AF45: 2 | AG45: 079 | AH45: E | AI45: 517 | AJ45: 2 | AK45: 0 | AL45: 2 | AM45: Y | AN45: SINGLE MAIN | AO45: 5 | AQ45: 1 | AR45: AMT | AS45: 000465 | AT45: 001 | AX45: 000 | AZ45: 1 | BA45: 0 | BB45: 0 | BC45: 0 | BD45: 0 | BE45: 0 | BF45: 0 | BG45: 0 | BH45: 0 | BI45: 0 | BJ45: 0 | BK45: 12 | BL45: 0 | BM45: 0 | BN45: 0 | BO45: 0 | BP45: 0 | BQ45: 0 | BR45: 0 | BS45: 0 | BT45: 10796 | BU45: 0 | BV45: M302 | BX45: 0 | BY45: 1 | BZ45: 0 | CA45: 1 | CB45: M302 | CC45: 1 | CD45: 5 | CE45: 079 | CF45: 10796 | CH45: 53C057 | CI45: 1 | CJ45: 000000 | CK45: 0 | CL45: 1 | CM45: 0 | CN45: 1 | CO45: 0 | CP45: 04 | CR45: 04 | CT45: 2 | CU45: 8 | CW45: 1L | DA45: 164 | DC45: 2016 | DD45: 0 | DE45: 0 | DF45: 0 | DG45: 0 | DH45: 0 | DI45: 1 | DJ45: SKAGIT | DK45: 057 | DO45: Y | DP45: CWR | DR45: TRAIN 517 OPERATING WITH LOCOMOTIVE E/465 AND 12 CARS STRUCK AN OCCUPIED AUTOMOBILE AT MP 63.57, PET | DS45: ER JOHNSON RD CROSSING. AMTRAKS EQUIPMENT DAMAGE IS $10,796.00. | EG45: 0 | EH45: 48.355898 | EI45: -122.340972 | EJ45: 1 | EK45: 1 | EO45: BELLINGHAM
A46: 16 | B46: 09 | C46: BNSF | D46: NW0916202 | E46: 16 | F46: 09 | G46: ATK | H46: 144459 | I46: 16 | J46: 09 | K46: BNSF | L46: NW0916202 | N46: 084735P | O46: 16 | P46: 09 | Q46: 29 | R46: 8 | S46: 13 | T46: PM | U46: 07 | V46: 0 | W46: 0 | X46: 0 | Y46: 0 | AA46: MOUNT VERNON | AB46: 62.6 | AC46: 53 | AD46: 58 | AE46: 3 | AF46: 2 | AG46: 000 | AK46: 0 | AN46: SINGLE MAIN TRACK | AO46: 5 | AP46: 54.03 | AQ46: 1 | AT46: 000 | AX46: 000 | AZ46: 0 | BA46: 0 | BB46: 0 | BC46: 0 | BD46: 0 | BE46: 0 | BF46: 0 | BG46: 0 | BH46: 0 | BI46: 0 | BJ46: 0 | BK46: 0 | BL46: 0 | BM46: 0 | BN46: 0 | BO46: 0 | BP46: 0 | BQ46: 0 | BR46: 0 | BS46: 0 | BT46: 0 | BU46: 0 | BV46: M302 | BX46: 0 | BY46: 0 | BZ46: 0 | CA46: 1 | CB46: M302 | CC46: 1 | CD46: 5 | CE46: 079 | CF46: 10796 | CH46: 53C057 | CI46: 0 | CJ46: 000000 | CK46: 0 | CL46: 0 | CM46: 0 | CN46: 0 | CO46: 0 | CT46: 1 | CU46: 8 | CW46: 1L | DA46: 59 | DC46: 2016 | DD46: 0 | DE46: 0 | DF46: 0 | DG46: 0 | DH46: 0 | DI46: 0 | DJ46: SKAGIT | DK46: 057 | DP46: CWR | DR46: EASTBOUND AUTO DID NOT STOP AND WAS STRUCK BY AMTRAK TRAIN. | EH46: 48.335589 | EI46: -122.340972 | EJ46: 1 | EK46: 1 | EL46: Q | EO46: BELLINGHAM
A47: 16 | B47: 11 | C47: ATK | D47: 145060 | I47: 16 | J47: 11 | K47: BNSF | L47: NW1116201 | N47: 085640K | O47: 16 | P47: 11 | Q47: 12 | R47: 7 | S47: 41 | T47: PM | U47: 07 | V47: 0 | W47: 0 | X47: 0 | Y47: 0 | AA47: KENT | AB47: 0016.5 | AC47: 53 | AD47: 54 | AE47: 4 | AF47: 1 | AG47: 063 | AH47: R | AI47: 14 | AJ47: 1 | AK47: 0 | AL47: 2 | AM47: Y | AN47: MAIN ONE | AO47: 5 | AQ47: 1 | AR47: AMT | AS47: 000003 | AT47: 001 | AX47: 000 | AZ47: 3 | BA47: 0 | BB47: 0 | BC47: 0 | BD47: 0 | BE47: 0 | BF47: 0 | BG47: 0 | BH47: 0 | BI47: 0 | BJ47: 0 | BK47: 12 | BL47: 0 | BM47: 0 | BN47: 0 | BO47: 0 | BP47: 0 | BQ47: 0 | BR47: 0 | BS47: 0 | BT47: 38489 | BU47: 0 | BV47: M302 | BX47: 0 | BY47: 0 | BZ47: 0 | CA47: 0 | CB47: M302 | CC47: 1 | CD47: 5 | CE47: 063 | CF47: 38489 | CH47: 53C033 | CI47: 0 | CJ47: 000000 | CK47: 0 | CL47: 1 | CM47: 0 | CN47: 2 | CO47: 0 | CP47: 04 | CQ47: 39 | CR47: 04 | CS47: 39 | CT47: 1 | CU47: 8 | CW47: 1L | DA47: 111 | DC47: 2016 | DD47: 0 | DE47: 0 | DF47: 0 | DG47: 0 | DH47: 0 | DI47: 0 | DJ47: KING | DK47: 033 | DO47: Y | DP47: CWR | DR47: TRAIN 14 STRUCK AN UNOCCUPIED VEHICLE AT MP 16.55, WILLIS ST CROSSING. AMTRAKS EQUIPMENT DAMAGE IS | DS47: $38,489.00. | EG47: 0 | EH47: 47.377792 | EI47: -122.232973 | EJ47: 1 | EK47: 1 | EL47: Q | EO47: SEATTLE
A48: 16 | B48: 08 | C48: CBRW | D48: 16080301 | I48: 16 | J48: 08 | K48: CBRW | L48: 16080301 | N48: 089775E | O48: 16 | P48: 08 | Q48: 03 | R48: 10 | S48: 5 | T48: AM | U48: 07 | V48: 2 | W48: 0 | X48: 0 | Y48: 0 | AA48: OTHELLO | AB48: 169.78 | AC48: 53 | AD48: 80 | AE48: 2 | AF48: 1 | AG48: 017 | AH48: R | AI48: 652 | AJ48: 4 | AK48: 2701 | AL48: 1 | AM48: Y | AN48: MAIN | AO48: 2 | AQ48: 1 | AR48: CBRW | AS48: 000652 | AT48: 001 | AU48: N | AX48: 000 | AZ48: 3 | BA48: 0 | BB48: 0 | BC48: 0 | BD48: 0 | BE48: 0 | BF48: 0 | BG48: 0 | BH48: 0 | BI48: 0 | BJ48: 6 | BK48: 0 | BL48: 54 | BM48: 0 | BN48: 0 | BO48: 0 | BP48: 0 | BQ48: 0 | BR48: 0 | BS48: 0 | BT48: 10000 | BU48: 500 | BV48: M302 | BX48: 0 | BY48: 0 | BZ48: 0 | CA48: 0 | CB48: M302 | CC48: 1 | CD48: 2 | CE48: 017 | CF48: 10500 | CH48: 53C001 | CI48: 0 | CJ48: 000000 | CK48: 0 | CL48: 1 | CM48: 0 | CN48: 1 | CO48: 0 | CP48: 01 | CQ48: 05 | CR48: 01 | CS48: 05 | CT48: 1 | CU48: 8 | CW48: 3 | DA48: 426 | DC48: 2016 | DD48: 0 | DE48: 0 | DF48: 0 | DG48: 0 | DH48: 0 | DI48: 0 | DJ48: ADAMS | DK48: 001 | DO48: N | DP48: OTH | DR48: THE WARDEN/CONNELL CREW WITH LOCOMOTIVES CBRW 652, CBRW 171, CBRW 302 WAS TRAVELING WEST AT 17 MPH W | DS48: ITH 6 LOADS AND 54 EMPTIES WHEN A TRUCK FAILED TO YIELD THE RIGHT OF WAY AND WAS STRUCK AT LEE ROAD | DT48: AT APPROXIMATELY 10:05 AM. AN EMERGENCY APPLICATION OF THE BRAKES WAS MADE. EMERGENCY RESPONSE PER | DU48: SONNEL WERE NOTIFIED. THE EVENT RECORDER INDICATES PROPER USE OF HORN AND WHISTLE AND TRAVELING BEL | DV48: OW THE 20 MPH SPEED LIMIT. | EG48: 0 | EH48: 46.839434 | EI48: -119.052357 | EJ48: 2 | EK48: 2 | EL48: P | EO48: FIRST
A49: 16 | B49: 11 | C49: ATK | D49: 145261 | I49: 16 | J49: 11 | K49: BNSF | L49: ZZZZZZZZZZ | N49: 092458D | O49: 16 | P49: 11 | Q49: 27 | R49: 5 | S49: 5 | T49: PM | U49: 07 | V49: 0 | W49: 0 | X49: 0 | Y49: 0 | AA49: KELSO | AB49: 0123.5 | AC49: 53 | AD49: 46 | AE49: 4 | AF49: 3 | AG49: 048 | AH49: E | AI49: 507 | AJ49: 2 | AK49: 0 | AL49: 2 | AM49: Y | AN49: MAIN 1 | AO49: 4 | AQ49: 1 | AR49: AMT | AS49: 090340 | AT49: 001 | AU49: Y | AX49: 000 | AZ49: 0 | BA49: 0 | BB49: 0 | BC49: 1 | BD49: 0 | BE49: 0 | BF49: 0 | BG49: 0 | BH49: 0 | BI49: 0 | BJ49: 0 | BK49: 14 | BL49: 0 | BM49: 0 | BN49: 0 | BO49: 0 | BP49: 0 | BQ49: 0 | BR49: 0 | BS49: 0 | BT49: 10573 | BU49: 0 | BV49: M302 | BX49: 0 | BY49: 0 | BZ49: 0 | CA49: 0 | CB49: M302 | CC49: 1 | CD49: 4 | CE49: 048 | CF49: 10573 | CH49: 53C015 | CI49: 0 | CJ49: 000000 | CK49: 0 | CL49: 1 | CM49: 0 | CN49: 2 | CO49: 0 | CP49: 03 | CQ49: 55 | CR49: 09 | CS49: 45 | CT49: 1 | CU49: 8 | CW49: 1L | DA49: 261 | DC49: 2016 | DD49: 0 | DE49: 0 | DF49: 0 | DG49: 0 | DH49: 0 | DI49: 0 | DJ49: COWLITZ | DK49: 015 | DO49: Y | DP49: CWR | DR49: TRAIN 507 OPERATING WITH LOCOMOTIVE E/467 AND 14 CARS STRUCK AN UNOCCUPIED VEHICLE AT MILL ST CROSSI | DS49: NG. DRIVER OF THE VEHICLE JUMPED OUT AND FLED THE SCENE BEFORE TRAIN ARRIVED. THE AGE OF THE DRIVE | DT49: R WAS NOT AVAILABLE. AMTRAKS EQUIPMENT DAMAGE IS $10,573.00. | EG49: 0 | EH49: 46.137501 | EI49: -122.91522 | EJ49: 1 | EK49: 1 | EL49: Q | EO49: SEATTLE
A50: 16 | B50: 11 | C50: BNSF | D50: MT1116201 | I50: 16 | J50: 11 | K50: BNSF | L50: MT1116201 | N50: 093305D | O50: 16 | P50: 11 | Q50: 28 | R50: 11 | S50: 15 | T50: AM | U50: 07 | V50: 0 | W50: 0 | X50: 0 | Y50: 0 | AA50: STANLEY | AB50: 53.6 | AC50: 38 | AD50: 27 | AE50: 2 | AF50: 6 | AG50: 055 | AH50: R | AI50: XPSA | AJ50: 3 | AK50: 3116 | AL50: 1 | AM50: Y | AN50: MAIN 2 TRACK | AO50: 5 | AP50: 43.09 | AQ50: 1 | AR50: BNSF | AS50: 497660 | AT50: 082 | AU50: N | AX50: 000 | AZ50: 2 | BA50: 0 | BB50: 0 | BC50: 0 | BD50: 1 | BE50: 0 | BF50: 0 | BG50: 0 | BH50: 0 | BI50: 0 | BJ50: 0 | BK50: 0 | BL50: 100 | BM50: 0 | BN50: 0 | BO50: 0 | BP50: 0 | BQ50: 14 | BR50: 0 | BS50: 0 | BT50: 203091 | BU50: 120000 | BV50: M302 | BX50: 0 | BY50: 1 | BZ50: 0 | CA50: 1 | CB50: M302 | CC50: 1 | CD50: 5 | CE50: 055 | CF50: 323091 | CH50: 38C061 | CI50: 1 | CJ50: 000000 | CK50: 0 | CL50: 1 | CM50: 0 | CN50: 1 | CO50: 0 | CP50: 09 | CR50: 09 | CT50: 1 | CU50: 8 | CW50: 1L | DA50: 200 | DC50: 2016 | DD50: 0 | DE50: 0 | DF50: 0 | DG50: 0 | DH50: 0 | DI50: 1 | DJ50: MOUNTRAIL | DK50: 061 | DO50: N | DP50: CWR | DR50: XPSAISI823A, WAS TRAVELING EASTWARD ON MT2, WHEN DRIVER DROVE THROUGH CROSSING GATES, STRUCK TRAIN A | DS50: T APPROXIMATELY LINE 79, BNSF 497660, CAUSING DERAILMENT OF 14 CARS AND DAMAGE TO THE CROSSING GATE. | EG50: 0 | EH50: 48.323329 | EI50: -102.37509 | EJ50: 1 | EK50: 1 | EL50: Q | EO50: GLASGOW
A51: 16 | B51: 07 | C51: BNSF | D51: PR0716203 | I51: 16 | J51: 07 | K51: BNSF | L51: PR0716203 | N51: 095088M | O51: 16 | P51: 07 | Q51: 20 | R51: 10 | S51: 52 | T51: PM | U51: 07 | V51: 0 | W51: 0 | X51: 0 | Y51: 0 | AA51: GURLEY | AB51: 62.2 | AC51: 31 | AD51: 77 | AE51: 4 | AF51: 1 | AG51: 044 | AH51: R | AI51: HDEN | AJ51: 1 | AK51: 2040 | AL51: 1 | AM51: Y | AN51: SINGLE MAIN TRACK | AO51: 4 | AP51: 75.55 | AQ51: 1 | AR51: BNSF | AS51: 005165 | AT51: 001 | AX51: 000 | AZ51: 2 | BA51: 0 | BB51: 0 | BC51: 0 | BD51: 0 | BE51: 0 | BF51: 0 | BG51: 0 | BH51: 0 | BI51: 0 | BJ51: 10 | BK51: 0 | BL51: 26 | BM51: 0 | BN51: 0 | BO51: 0 | BP51: 0 | BQ51: 0 | BR51: 0 | BS51: 0 | BT51: 6632 | BU51: 8870 | BV51: M302 | BX51: 0 | BY51: 0 | BZ51: 0 | CA51: 0 | CB51: M302 | CC51: 1 | CD51: 4 | CE51: 044 | CF51: 15502 | CH51: 31C033 | CI51: 0 | CJ51: 000000 | CK51: 0 | CL51: 1 | CM51: 0 | CN51: 1 | CO51: 0 | CP51: 02 | CQ51: 07 | CR51: 02 | CS51: 07 | CT51: 1 | CU51: 6 | CW51: 1L | DA51: 91 | DC51: 2016 | DD51: 0 | DE51: 0 | DF51: 0 | DG51: 0 | DH51: 0 | DI51: 0 | DJ51: CHEYENNE | DK51: 033 | DO51: N | DP51: CWR | DR51: LOADED GRAIN TRACTOR-TRAILER STALLED WHILE OCCUPYING CROSSING AND WAS STRUCK BY HDENLAU120A | EG51: 0 | EH51: 41.323078 | EI51: -102.973672 | EJ51: 1 | EK51: 1 | EL51: Q | EO51: ANGORA
A52: 16 | B52: 02 | C52: CSX | D52: 000157431 | I52: 16 | J52: 02 | K52: CSX | L52: 000157431 | N52: 146181M | O52: 16 | P52: 02 | Q52: 24 | R52: 2 | S52: 40 | T52: AM | U52: 07 | V52: 18 | W52: 0 | X52: 0 | Y52: 0 | AA52: JACKSONBURG | AB52: 0023.9 | AC52: 54 | AD52: 40 | AE52: 4 | AF52: 3 | AG52: 023 | AH52: R | AI52: Q317 | AJ52: 4 | AK52: 2068 | AL52: 1 | AM52: Y | AN52: SINGLE MAIN | AO52: 2 | AP52: 0005.7 | AQ52: 1 | AR52: CSXT | AS52: 000698 | AT52: 001 | AU52: N | AX52: 000 | AZ52: 2 | BA52: 0 | BB52: 0 | BC52: 0 | BD52: 0 | BE52: 0 | BF52: 0 | BG52: 0 | BH52: 0 | BI52: 0 | BJ52: 5 | BK52: 0 | BL52: 36 | BM52: 0 | BN52: 0 | BO52: 0 | BP52: 0 | BQ52: 0 | BR52: 0 | BS52: 0 | BT52: 17107 | BU52: 126 | BV52: M303 | BX52: 0 | BY52: 0 | BZ52: 0 | CA52: 0 | CB52: M303 | CC52: 1 | CD52: 2 | CE52: 023 | CF52: 17233 | CH52: 54C103 | CI52: 0 | CJ52: 000000 | CK52: 0 | CL52: 1 | CM52: 0 | CN52: 1 | CO52: 0 | CP52: 04 | CQ52: 05 | CR52: 04 | CS52: 05 | CT52: 1 | CU52: 2 | CW52: 1L | DA52: 62 | DC52: 2016 | DD52: 0 | DE52: 0 | DF52: 0 | DG52: 0 | DH52: 0 | DI52: 0 | DJ52: WETZEL | DK52: 103 | DO52: N | DP52: OTH | DR52: Q31723 STRUCK A SEMI TRUCK AT CROSSING. MOTORISTS AGE UNKNOWN. | EG52: 0 | EH52: 39.520234 | EI52: -80.621796 | EJ52: 2 | EK52: 2 | EO52: NON SUBDIVISION
A53: 16 | B53: 03 | C53: UP | D53: 0316SL008 | I53: 16 | J53: 03 | K53: UP | L53: 0316SL008 | N53: 167230P | O53: 16 | P53: 03 | Q53: 25 | R53: 8 | S53: 29 | T53: AM | U53: 07 | V53: 6 | W53: 0 | X53: 0 | Y53: 0 | AA53: GOODWINE | AB53: 91.83 | AC53: 17 | AD53: 41 | AE53: 2 | AF53: 2 | AG53: 045 | AH53: E | AI53: MYCA | AJ53: 2 | AK53: 4302 | AL53: 1 | AM53: Y | AN53: MAIN TRACK | AO53: 4 | AP53: 44.3 | AQ53: 1 | AR53: UP | AS53: 004637 | AT53: 001 | AX53: 000 | AZ53: 2 | BA53: 0 | BB53: 0 | BC53: 0 | BD53: 0 | BE53: 0 | BF53: 0 | BG53: 0 | BH53: 0 | BI53: 0 | BJ53: 23 | BK53: 0 | BL53: 62 | BM53: 0 | BN53: 0 | BO53: 0 | BP53: 0 | BQ53: 0 | BR53: 0 | BS53: 0 | BT53: 13597 | BU53: 0 | BV53: M308 | BX53: 0 | BY53: 1 | BZ53: 0 | CA53: 1 | CB53: M308 | CC53: 1 | CD53: 4 | CE53: 045 | CF53: 13597 | CH53: 17C075 | CI53: 1 | CJ53: 000000 | CK53: 0 | CL53: 1 | CM53: 0 | CN53: 1 | CO53: 0 | CP53: 05 | CQ53: 29 | CR53: 05 | CS53: 29 | CT53: 1 | CU53: 4 | CW53: 1L | DA53: 140 | DC53: 2016 | DD53: 0 | DE53: 0 | DF53: 0 | DG53: 0 | DH53: 0 | DI53: 1 | DJ53: IROQUOIS | DK53: 075 | DO53: N | DP53: CWR | DR53: MYCAS-25, UP4637; STRUCK A TRACTOR TRAILER TRUCK THAT DID NOT STOP AT STOP SIGN AND PULLED ACROSS TH | DS53: E TRACKS DIRECTLY IN FRONT OF THE TRAIN. | EG53: 0 | EH53: 40.574443 | EI53: -87.783717 | EJ53: 1 | EK53: 1 | EL53: D | EO53: VILLA GROVE SUB
A54: 16 | B54: 06 | C54: UP | D54: 0616PR011 | I54: 16 | J54: 06 | K54: UP | L54: 0616PR011 | N54: 174563H | O54: 16 | P54: 06 | Q54: 21 | R54: 7 | S54: 45 | T54: PM | U54: 07 | V54: 0 | W54: 0 | X54: 0 | Y54: 0 | AA54: UNION | AB54: 61.97 | AC54: 17 | AD54: 76 | AE54: 4 | AF54: 1 | AG54: 048 | AH54: R | AI54: ABEI | AJ54: 3 | AK54: 3563 | AL54: 1 | AM54: Y | AN54: MAIN TRACK | AO54: 4 | AP54: 4.4 | AQ54: 1 | AR54: UP | AS54: 008349 | AT54: 001 | AX54: 000 | AZ54: 2 | BA54: 0 | BB54: 0 | BC54: 0 | BD54: 0 | BE54: 0 | BF54: 0 | BG54: 0 | BH54: 0 | BI54: 0 | BJ54: 49 | BK54: 0 | BL54: 0 | BM54: 0 | BN54: 0 | BO54: 0 | BP54: 0 | BQ54: 0 | BR54: 0 | BS54: 0 | BT54: 39130 | BU54: 0 | BV54: M308 | BX54: 1 | BY54: 0 | BZ54: 1 | CA54: 0 | CB54: M308 | CC54: 1 | CD54: 4 | CE54: 048 | CF54: 39130 | CH54: 17C111 | CI54: 0 | CJ54: 000000 | CK54: 1 | CL54: 1 | CM54: 0 | CN54: 1 | CO54: 0 | CQ54: 45 | CS54: 45 | CT54: 1 | CU54: 4 | CW54: 1L | DA54: 108 | DC54: 2016 | DD54: 0 | DE54: 0 | DF54: 0 | DG54: 0 | DH54: 1 | DI54: 0 | DJ54: MCHENRY | DK54: 111 | DO54: N | DP54: OTH | DR54: EASTBOUND ABEIH21, WITH LEAD LOCOMOTIVE UP8349; STRUCK A JOHN DEERE TRACTOR/CROP DUSTER CARRYING FER | DS54: TILIZER. | EG54: 0 | EH54: 42.230576 | EI54: -88.53066 | EJ54: 2 | EK54: 2 | EL54: P | EO54: BELVIDERE SUB
A55: 16 | B55: 09 | C55: WC | D55: 900165 | I55: 16 | J55: 09 | K55: WC | L55: 900165 | N55: 180477A | O55: 16 | P55: 09 | Q55: 08 | R55: 9 | S55: 35 | T55: AM | U55: 07 | V55: 16 | W55: 0 | X55: 0 | Y55: 0 | AA55: STEPHENSON | AB55: 69.70 | AC55: 26 | AD55: 69 | AE55: 2 | AF55: 1 | AG55: 040 | AH55: E | AI55: L550 | AJ55: 2 | AK55: 7821 | AL55: 1 | AM55: Y | AN55: SINGLE MAIN | AO55: 3 | AP55: 5.88 | AQ55: 1 | AR55: CN | AS55: 002220 | AT55: 001 | AX55: 000 | AZ55: 2 | BA55: 0 | BB55: 0 | BC55: 0 | BD55: 0 | BE55: 0 | BF55: 0 | BG55: 0 | BH55: 0 | BI55: 0 | BJ55: 54 | BK55: 0 | BL55: 37 | BM55: 0 | BN55: 0 | BO55: 0 | BP55: 0 | BQ55: 0 | BR55: 0 | BS55: 0 | BT55: 78 | BU55: 48314 | BV55: M308 | BW55: M304 | BX55: 0 | BY55: 1 | BZ55: 0 | CA55: 1 | CB55: M308 | CC55: 1 | CD55: 3 | CE55: 040 | CF55: 48392 | CH55: 26C109 | CI55: 1 | CJ55: 000000 | CK55: 0 | CL55: 1 | CM55: 0 | CN55: 1 | CO55: 0 | CP55: 03 | CQ55: 35 | CR55: 03 | CS55: 35 | CT55: 1 | CU55: 4 | CW55: 3L | DA55: 271 | DC55: 2016 | DD55: 0 | DE55: 0 | DF55: 0 | DG55: 0 | DH55: 0 | DI55: 1 | DJ55: MENOMINEE | DK55: 109 | DO55: N | DP55: CWR | DR55: ELDERLY DRIVER OPERATING A FORD EXPLORER AND PULLING A UTILITY TRAILER FAILED TO STOP AT THE COUNTY | DS55: ROAD 348 CROSSING FOR THE ACTIVATED FLASHERS. THE ONCOMING TRAIN STRUCK THE VEHICLE AS IT WENT OVER | DT55: THE CROSSING, INJURING THE PASSENGER. BUNGALOW AT CROSSING WAS DAMAGED. | EG55: 0 | EH55: 45.376876 | EI55: -87.612228 | EJ55: 2 | EK55: 2 | EL55: F | EM55: P | EO55: MANISTIQUE
A56: 16 | B56: 05 | C56: UP | D56: 0516CB008 | I56: 16 | J56: 05 | K56: UP | L56: 0516CB008 | N56: 191683T | O56: 16 | P56: 05 | Q56: 22 | R56: 12 | S56: 19 | T56: AM | U56: 07 | V56: 12 | W56: 0 | X56: 0 | Y56: 0 | AA56: BLAIR | AB56: 343.72 | AC56: 31 | AD56: 62 | AE56: 4 | AF56: 1 | AG56: 039 | AH56: R | AI56: ZXG2 | AJ56: 4 | AK56: 3874 | AL56: 1 | AM56: Y | AN56: MAIN LINE | AO56: 5 | AP56: 87.7 | AQ56: 1 | AR56: UP | AS56: 004436 | AT56: 001 | AX56: 000 | AZ56: 4 | BA56: 0 | BB56: 0 | BC56: 0 | BD56: 0 | BE56: 0 | BF56: 0 | BG56: 0 | BH56: 0 | BI56: 0 | BJ56: 52 | BK56: 0 | BL56: 0 | BM56: 0 | BN56: 0 | BO56: 0 | BP56: 0 | BQ56: 0 | BR56: 0 | BS56: 0 | BT56: 455 | BU56: 25275 | BV56: M301 | BW56: M302 | BX56: 0 | BY56: 0 | BZ56: 0 | CA56: 0 | CB56: M301 | CC56: 1 | CD56: 5 | CE56: 039 | CF56: 25730 | CH56: 31C177 | CI56: 0 | CJ56: 000000 | CK56: 0 | CL56: 1 | CM56: 0 | CN56: 1 | CO56: 0 | CP56: 03 | CQ56: 06 | CR56: 03 | CS56: 04 | CT56: 1 | CU56: 6 | CW56: 1L | DA56: 175 | DC56: 2016 | DD56: 0 | DE56: 0 | DF56: 0 | DG56: 0 | DH56: 0 | DI56: 0 | DJ56: WASHINGTON | DK56: 177 | DO56: N | DP56: CWR | DR56: TRAIN ZG2OA-21, WITH LEAD LOCOMOTIVE UP4436; COLLIDED WITH AN UNOCCUPIED VEHICLE. THE DRIVER WAS AR | DS56: RESTED FOR DUI. THERE WERE NO DERAILMENTS OR INJURIES DUE TO THE INCIDENT. | EG56: 0 | EH56: 41.542695 | EI56: -96.155949 | EJ56: 1 | EK56: 1 | EL56: D | EM56: Q | EO56: BLAIR SUB
A57: 16 | B57: 07 | C57: UFRC | D57: 0726161 | I57: 16 | J57: 07 | K57: UFRC | L57: 0726161 | N57: 254630W | O57: 16 | P57: 07 | Q57: 25 | R57: 8 | S57: 8 | T57: PM | U57: 07 | V57: 0 | W57: 0 | X57: 0 | Y57: 0 | AA57: SALT LAKE CITY | AB57: MPS.80 | AC57: 49 | AD57: 95 | AE57: 2 | AF57: 1 | AG57: 047 | AH57: R | AI57: 6 | AJ57: 2 | AK57: 200 | AL57: C | AM57: Y | AN57: FRONTRUNNER MAIN | AO57: 4 | AP57: 6.4 | AQ57: 1 | AR57: FR | AS57: 000109 | AT57: 001 | AU57: N | AX57: 000 | AZ57: 0 | BA57: 0 | BB57: 0 | BC57: 0 | BD57: 1 | BE57: 0 | BF57: 0 | BG57: 0 | BH57: 0 | BI57: 0 | BJ57: 0 | BK57: 0 | BL57: 0 | BM57: 4 | BN57: 0 | BO57: 0 | BP57: 0 | BQ57: 0 | BR57: 0 | BS57: 0 | BT57: 25800 | BU57: 0 | BV57: M308 | BX57: 1 | BY57: 2 | BZ57: 1 | CA57: 2 | CB57: M308 | CC57: 1 | CD57: 4 | CE57: 047 | CF57: 25800 | CH57: 49C035 | CI57: 2 | CJ57: 000000 | CK57: 1 | CL57: 1 | CP57: 05 | CQ57: 08 | CT57: 1 | CU57: 7 | CW57: 3 | DA57: 500 | DC57: 2016 | DD57: 0 | DE57: 0 | DF57: 0 | DG57: 0 | DH57: 1 | DI57: 2 | DJ57: SALT LAKE | DK57: 035 | DO57: N | DP57: CWR | DR57: A WB SUV DROVE AROUND THE MEDIAN AND ENTERED AN ACTIVE GRADE CROSSING AT THE 900 NORTH GRADE CROSSIN | DS57: G. A SB, CAB FORWARD, TRAIN ENTERED THE CROSSING AT THE SAME TIME AND STRUCK THE PASSENGER SIDE OF | DT57: THE VEHICLE. THE PREGNANT FEMALE PASSENGER WAS FATALLY INJURED (THE INFANT WAS DELIVERED AND IS CRI | DU57: TICALLY INJURED). THE MALE DRIVER WAS SERIOUSLY INJURED. THE VEHICLE WAS TOTALED. THE TRAIN WAS NOT | DV57: IN SERVICE AND HAD ONE ENGINEER, WHO WAS NOT INJURED, ON BOARD. THERE WERE NO PASSENGERS ON BOARD. | EG57: 0 | EH57: 40.749752 | EI57: -111.908962 | EJ57: 1 | EK57: 1 | EL57: A | EM57: C | EN57: Q | EO57: FRONTRUNNER
A58: 16 | B58: 03 | C58: FEC | D58: X04031516 | I58: 16 | J58: 03 | K58: FEC | L58: X04031516 | N58: 272357P | O58: 16 | P58: 03 | Q58: 15 | R58: 3 | S58: 15 | T58: AM | U58: 07 | V58: 3 | W58: 0 | X58: 0 | Y58: 0 | AA58: STUART | AB58: 266+29 | AC58: 12 | AD58: 73 | AE58: 4 | AF58: 1 | AG58: 054 | AH58: E | AI58: 226 | AJ58: 1 | AK58: 5794 | AL58: 1 | AM58: Y | AN58: SINGLE MAIN TRACK | AO58: 4 | AP58: 25 | AQ58: 1 | AR58: FEC | AS58: 000823 | AT58: 001 | AU58: N | AX58: 000 | AZ58: 3 | BA58: 0 | BB58: 0 | BC58: 0 | BD58: 0 | BE58: 0 | BF58: 0 | BG58: 0 | BH58: 0 | BI58: 0 | BJ58: 61 | BK58: 0 | BL58: 0 | BM58: 0 | BN58: 0 | BO58: 0 | BP58: 0 | BQ58: 0 | BR58: 0 | BS58: 0 | BT58: 5083 | BU58: 6877 | BV58: M308 | BX58: 2 | BY58: 0 | BZ58: 2 | CA58: 0 | CB58: M308 | CC58: 1 | CD58: 4 | CE58: 054 | CF58: 11960 | CH58: 12C085 | CI58: 0 | CJ58: 000000 | CK58: 2 | CL58: 1 | CM58: 0 | CN58: 1 | CO58: 0 | CP58: 04 | CQ58: 45 | CR58: 04 | CS58: 45 | CT58: 1 | CU58: 3 | CW58: 2 | DA58: 301 | DC58: 2016 | DD58: 0 | DE58: 0 | DF58: 0 | DG58: 0 | DH58: 2 | DI58: 0 | DJ58: MARTIN | DK58: 085 | DO58: N | DP58: CWR | DR58: DRIVER, WITH ONE PASSENGER, WAS TRAVELING EAST ON SALERNO ROAD WHEN IT APPROACHED THE CROSSING. AFT | DS58: ER A MOMENTARY STOP, THE VEHICLE CONTINUED EAST AND ATTEMPTED TO DRIVE AROUND THE LOWERED GATE ARMS | DT58: AT THE SALERNO ROAD CROSSING AND WAS STRUCK BY TRAIN. DRIVER AND PASSENGER SUSTAINED FATAL INJURIES | DU58: . | EG58: 0 | EH58: 27.145696 | EI58: -80.197752 | EJ58: 1 | EK58: 1 | EL58: A | EM58: B | EO58: SYSTEM
A59: 16 | B59: 10 | C59: FEC | D59: X16102716 | I59: 16 | J59: 10 | K59: FEC | L59: X16102716 | N59: 272609N | O59: 16 | P59: 10 | Q59: 27 | R59: 11 | S59: 50 | T59: PM | U59: 07 | V59: 7 | W59: 0 | X59: 0 | Y59: 0 | AA59: NORTH MIAMI | AB59: 356.12 | AC59: 12 | AD59: 77 | AE59: 4 | AF59: 1 | AG59: 045 | AH59: E | AI59: 226 | AJ59: 1 | AK59: 4853 | AL59: 1 | AM59: Y | AN59: SINGLE MAIN | AO59: 4 | AP59: 25 | AQ59: 1 | AR59: FEC | AS59: 000804 | AT59: 001 | AU59: N | AX59: 000 | AZ59: 2 | BA59: 0 | BB59: 0 | BC59: 0 | BD59: 0 | BE59: 0 | BF59: 0 | BG59: 0 | BH59: 0 | BI59: 0 | BJ59: 48 | BK59: 0 | BL59: 0 | BM59: 0 | BN59: 0 | BO59: 0 | BP59: 0 | BQ59: 0 | BR59: 0 | BS59: 0 | BT59: 10501 | BU59: 214000 | BV59: M304 | BX59: 0 | BY59: 0 | BZ59: 0 | CA59: 0 | CB59: M304 | CC59: 1 | CD59: 4 | CE59: 045 | CF59: 224501 | CH59: 12C086 | CI59: 0 | CJ59: 000000 | CK59: 0 | CL59: 1 | CM59: 0 | CN59: 1 | CO59: 0 | CP59: 01 | CQ59: 20 | CR59: 01 | CS59: 20 | CT59: 1 | CU59: 3 | CW59: 2 | DA59: 293 | DC59: 2016 | DD59: 0 | DE59: 0 | DF59: 0 | DG59: 0 | DH59: 0 | DI59: 0 | DJ59: MIAMI-DADE | DK59: 086 | DO59: N | DP59: CWR | DR59: OPERATOR OF A TRACTOR TRAILER WITH A LOW GROUND CLEARANCE TRAILER ATTEMPTED TO CROSS AT A CROSSING | DS59: WHERE POSTED SIGNS PROHIBITED SUCH VEHICLES FROM CROSSING. THE TRAILER GOT STUCK ON THE TRACKS AND | DT59: WAS HIT BY THE TRAIN TOTALING THE TRAILER AND DOING SIGNIFICANT DAMAGE TO CROSSING EQUIPMENT. | EG59: 0 | EH59: 25.906006 | EI59: -80.159021 | EJ59: 1 | EK59: 1 | EL59: B | EM59: A | EO59: SYSTEM
A60: 16 | B60: 08 | C60: IC | D60: 899379 | E60: 16 | F60: 08 | G60: ATK | H60: 144059 | I60: 16 | J60: 08 | K60: IC | L60: 899379 | N60: 288991W | O60: 16 | P60: 08 | Q60: 31 | R60: 9 | S60: 30 | T60: PM | U60: 07 | V60: 0 | W60: 0 | X60: 0 | Y60: 0 | AA60: GILMAN | AB60: 83.20 | AC60: 17 | AD60: 65 | AE60: 4 | AF60: 1 | AG60: 000 | AJ60: 2 | AK60: 0 | AN60: MAIN #1 | AO60: 4 | AP60: 42.90 | AQ60: 1 | AT60: 000 | AX60: 000 | AZ60: 0 | BA60: 0 | BB60: 0 | BC60: 0 | BD60: 0 | BE60: 0 | BF60: 0 | BG60: 0 | BH60: 0 | BI60: 0 | BJ60: 0 | BK60: 0 | BL60: 0 | BM60: 0 | BN60: 0 | BO60: 0 | BP60: 0 | BQ60: 0 | BR60: 0 | BS60: 0 | BT60: 0 | BU60: 2422 | BV60: M308 | BX60: 0 | BY60: 0 | BZ60: 1 | CA60: 2 | CB60: M308 | CC60: 1 | CD60: 4 | CE60: 073 | CF60: 12964 | CH60: 17C075 | CI60: 0 | CJ60: 000000 | CK60: 0 | CL60: 0 | CM60: 0 | CN60: 0 | CO60: 0 | CT60: 1 | CU60: 4 | CW60: 1L | DA60: 160 | DC60: 2016 | DD60: 0 | DE60: 0 | DF60: 0 | DG60: 0 | DH60: 0 | DI60: 0 | DJ60: IROQUOIS | DK60: 075 | DP60: CWR | DR60: AMTRAK TRAIN 59 HIT A VEHICLE AT THE 1600 NORTH STREET CROSSING RESULTING IN A FATALITY TO THE DRIVE | DS60: R. NRC #1157840. AMTRAK ADVISED $10,542 IN EQUIPMENT DAMAGE. | EG60: 0 | EH60: 40.737068 | EI60: -88.001491 | EJ60: 1 | EK60: 1 | EL60: Q | EO60: CHICAGO
A61: 16 | B61: 08 | C61: ATK | D61: 144059 | I61: 16 | J61: 08 | K61: IC | L61: 899379 | N61: 288991W | O61: 16 | P61: 08 | Q61: 31 | R61: 9 | S61: 30 | T61: PM | U61: 07 | V61: 0 | W61: 0 | X61: 0 | Y61: 0 | AA61: GILMAN | AB61: 0083.2 | AC61: 17 | AD61: 65 | AE61: 4 | AF61: 1 | AG61: 073 | AH61: E | AI61: 59 | AJ61: 2 | AK61: 0 | AL61: 2 | AM61: Y | AN61: MAIN 1 | AO61: 4 | AQ61: 1 | AR61: AMT | AS61: 000130 | AT61: 001 | AX61: 000 | AZ61: 1 | BA61: 0 | BB61: 0 | BC61: 0 | BD61: 0 | BE61: 0 | BF61: 0 | BG61: 0 | BH61: 0 | BI61: 0 | BJ61: 0 | BK61: 8 | BL61: 0 | BM61: 0 | BN61: 0 | BO61: 0 | BP61: 0 | BQ61: 0 | BR61: 0 | BS61: 0 | BT61: 10542 | BU61: 0 | BV61: M308 | BX61: 1 | BY61: 2 | BZ61: 1 | CA61: 2 | CB61: M308 | CC61: 1 | CD61: 4 | CE61: 073 | CF61: 12964 | CH61: 17C075 | CI61: 2 | CJ61: 000000 | CK61: 1 | CL61: 1 | CM61: 0 | CN61: 2 | CO61: 0 | CP61: 02 | CQ61: 46 | CR61: 02 | CS61: 46 | CT61: 2 | CU61: 4 | CW61: 1L | DA61: 160 | DC61: 2016 | DD61: 0 | DE61: 0 | DF61: 0 | DG61: 2 | DH61: 1 | DI61: 0 | DJ61: IROQUOIS | DK61: 075 | DO61: Y | DP61: CWR | DR61: TRAIN 59 OPERATING WITH LOCOMOTIVE E/130 AND 8 CARS STRUCK AN OCCUPIED VEHICLE AT MP 83.20, 1600 NOR | DS61: TH STREET CROSSING. AMTRAKS EQUIPMENT DAMAGE IS $10,542.00. | EG61: 0 | EH61: 40.737068 | EI61: -88.001491 | EJ61: 1 | EK61: 1 | EL61: Q | EO61: CHICAGO
A62: 16 | B62: 11 | C62: NIRC | D62: MEJ100 | I62: 16 | J62: 11 | K62: NIRC | L62: MEJ100 | N62: 289539C | O62: 16 | P62: 11 | Q62: 01 | R62: 11 | S62: 44 | T62: AM | U62: 07 | V62: 0 | W62: 0 | X62: 0 | Y62: 0 | AA62: CHICAGO | AB62: 9.3 | AC62: 17 | AD62: 70 | AE62: 2 | AF62: 1 | AG62: 030 | AH62: E | AI62: 319 | AJ62: 2 | AK62: 0 | AL62: D | AM62: Y | AN62: 1 | AO62: 3 | AQ62: 1 | AR62: NA | AS62: 001275 | AT62: 001 | AU62: Y | AX62: 000 | AZ62: 0 | BA62: 0 | BB62: 0 | BC62: 0 | BD62: 0 | BE62: 0 | BF62: 0 | BG62: 0 | BH62: 0 | BI62: 0 | BJ62: 0 | BK62: 2 | BL62: 0 | BM62: 0 | BN62: 0 | BO62: 0 | BP62: 0 | BQ62: 0 | BR62: 0 | BS62: 0 | BT62: 2500 | BU62: 18700 | BV62: M302 | BX62: 0 | BY62: 2 | BZ62: 0 | CA62: 2 | CB62: M302 | CC62: 1 | CD62: 3 | CE62: 030 | CF62: 21200 | CH62: 17C031 | CI62: 2 | CJ62: 000000 | CK62: 0 | CL62: 1 | CN62: 1 | CO62: 1 | CP62: 05 | CQ62: 24 | CR62: 05 | CS62: 39 | CT62: 1 | CU62: 4 | CW62: 3L | DA62: 274 | DC62: 2016 | DD62: 0 | DE62: 0 | DF62: 0 | DG62: 0 | DH62: 0 | DI62: 2 | DJ62: COOK | DK62: 031 | DO62: Y | DP62: CWR | DR62: WHILE TRAVELING SOUTHBOUND, TRAIN 319 APPROACHED THE 71ST AND RIDGELAND INTERSECTION AND NOTICED A V | DS62: EHICLE ON THE TRACKS. THE ENGINEER BEGAN TO BLOW THE HORN AND PUT THE TRAIN INTO EMERGENCY, BUT WAS | DT62: UNABLE TO AVOID THE CAR. THE CAR SPUN AROUND AND STRUCK A GATE MECHANISM. | EG62: 0 | EH62: 41.766078 | EI62: -87.582429 | EJ62: 1 | EK62: 1 | EL62: D | EO62: SOUTH CHICAGO
A63: 16 | B63: 02 | C63: ATK | D63: 141217 | I63: 16 | J63: 02 | K63: UP | L63: 0216PR017 | N63: 289771E | O63: 16 | P63: 02 | Q63: 19 | R63: 10 | S63: 45 | T63: AM | U63: 07 | V63: 0 | W63: 0 | X63: 0 | Y63: 0 | AA63: JOLIET | AB63: 0040.5 | AC63: 17 | AD63: 61 | AE63: 2 | AF63: 1 | AG63: 064 | AH63: E | AI63: 303 | AJ63: 2 | AK63: 0 | AL63: 2 | AM63: Y | AN63: SINGLE MAIN | AO63: 6 | AQ63: 1 | AR63: AMT | AS63: 000066 | AT63: 001 | AX63: 000 | AZ63: 1 | BA63: 0 | BB63: 0 | BC63: 0 | BD63: 0 | BE63: 0 | BF63: 0 | BG63: 0 | BH63: 0 | BI63: 0 | BJ63: 0 | BK63: 5 | BL63: 0 | BM63: 0 | BN63: 0 | BO63: 0 | BP63: 0 | BQ63: 0 | BR63: 0 | BS63: 0 | BT63: 61000 | BU63: 0 | BV63: M308 | BX63: 0 | BY63: 3 | BZ63: 0 | CA63: 3 | CB63: M308 | CC63: 1 | CD63: 6 | CE63: 064 | CF63: 61000 | CH63: 17C197 | CI63: 3 | CJ63: 000000 | CK63: 0 | CL63: 2 | CM63: 0 | CN63: 2 | CO63: 0 | CP63: 01 | CQ63: 49 | CR63: 01 | CS63: 49 | CT63: 1 | CU63: 4 | CW63: 1L | DA63: 125 | DC63: 2016 | DD63: 0 | DE63: 0 | DF63: 0 | DG63: 3 | DH63: 0 | DI63: 0 | DJ63: WILL | DK63: 197 | DO63: Y | DP63: CWR | DR63: TRAIN 303 STRUCK AN OCCUPIED TRACTOR-TRAILER TRUCK AT MP 40.36, LARAWAY RD CROSSING. AMTRAKS EQUIPM | DS63: ENT DAMAGE IS $61,000.00. | EG63: 0 | EH63: 41.480524 | EI63: -88.090083 | EJ63: 1 | EK63: 1 | EO63: JOLIET
A64: 16 | B64: 02 | C64: UP | D64: 0216PR017 | E64: 16 | F64: 02 | G64: ATK | H64: 141217 | I64: 16 | J64: 02 | K64: UP | L64: 0216PR017 | N64: 289771E | O64: 16 | P64: 02 | Q64: 19 | R64: 10 | S64: 45 | T64: AM | U64: 07 | V64: 0 | W64: 0 | X64: 0 | Y64: 0 | AA64: JOLIET | AB64: 40.0 | AC64: 17 | AD64: 61 | AE64: 2 | AF64: 1 | AG64: 000 | AJ64: 2 | AK64: 0 | AN64: MAIN | AO64: 6 | AP64: 5.4 | AQ64: 1 | AT64: 000 | AX64: 000 | AZ64: 0 | BA64: 0 | BB64: 0 | BC64: 0 | BD64: 0 | BE64: 0 | BF64: 0 | BG64: 0 | BH64: 0 | BI64: 0 | BJ64: 0 | BK64: 0 | BL64: 0 | BM64: 0 | BN64: 0 | BO64: 0 | BP64: 0 | BQ64: 0 | BR64: 0 | BS64: 0 | BT64: 0 | BU64: 0 | BV64: M308 | BX64: 0 | BY64: 0 | BZ64: 0 | CA64: 3 | CB64: M308 | CC64: 1 | CD64: 6 | CE64: 064 | CF64: 61000 | CH64: 17C197 | CI64: 0 | CJ64: 000000 | CK64: 0 | CL64: 0 | CM64: 0 | CN64: 0 | CO64: 0 | CT64: 2 | CU64: 4 | CW64: 1L | DA64: 242 | DC64: 2016 | DD64: 0 | DE64: 0 | DF64: 0 | DG64: 0 | DH64: 0 | DI64: 0 | DJ64: WILL | DK64: 197 | DP64: CWR | DR64: AMTRAK 303-19 WAS TRAVELING SOUTHBOUND ON THE JOLIET SUB WHEN A TRUCK WENT AROUND THE GRADE CROSSING | DS64: AT LARAWAY ROAD. AS THE TRUCK WENT AROUND THE GATES, AMTRAK 303-19 STRUCK THE BACK OF THE TRUCK. | DT64: AMTRAK ESTIMATED EQUIPMENT DAMAGE = 61,000 | EH64: 41.480524 | EI64: -88.090083 | EJ64: 1 | EK64: 1 | EL64: Q | EO64: JOLIET INTERMODAL TE
A65: 16 | B65: 11 | C65: CC | D65: 906156 | I65: 16 | J65: 11 | K65: CC | L65: 906156 | N65: 289936A | O65: 16 | P65: 11 | Q65: 12 | R65: 2 | S65: 0 | T65: AM | U65: 07 | V65: 0 | W65: 0 | X65: 0 | Y65: 0 | AA65: BURLINGTON | AB65: 53.70 | AC65: 17 | AD65: 32 | AE65: 4 | AF65: 1 | AG65: 020 | AH65: R | AI65: G889 | AJ65: 1 | AK65: 3388 | AL65: 1 | AM65: Y | AN65: SINGLE MAIN | AO65: 4 | AP65: 13.70 | AQ65: 1 | AR65: NDYX | AS65: 832692 | AT65: 053 | AU65: N | AX65: 000 | AZ65: 2 | BA65: 0 | BB65: 0 | BC65: 0 | BD65: 0 | BE65: 0 | BF65: 0 | BG65: 0 | BH65: 0 | BI65: 0 | BJ65: 0 | BK65: 0 | BL65: 110 | BM65: 0 | BN65: 0 | BO65: 0 | BP65: 0 | BQ65: 4 | BR65: 0 | BS65: 0 | BT65: 41600 | BU65: 6935 | BV65: M308 | BW65: M304 | BX65: 0 | BY65: 1 | BZ65: 0 | CA65: 1 | CB65: M308 | CC65: 1 | CD65: 4 | CE65: 020 | CF65: 48535 | CH65: 17C089 | CI65: 1 | CJ65: 000000 | CK65: 0 | CL65: 1 | CM65: 0 | CN65: 1 | CO65: 0 | CP65: 04 | CQ65: 20 | CR65: 04 | CS65: 20 | CT65: 1 | CU65: 4 | CW65: 3L | DA65: 284 | DC65: 2016 | DD65: 0 | DE65: 0 | DF65: 0 | DG65: 0 | DH65: 0 | DI65: 1 | DJ65: KANE | DK65: 089 | DO65: N | DP65: CWR | DR65: DRIVER OF TRUCK FAILED TO STOP FOR THE ACTIVATED WARNING DEVICES AT THE PLANK ROAD CROSSING. DRIVER | DS65: DROVE THROUGH THE GATE AND STRUCK THE MIDDLE OF THE TRAIN, DERAILING 4 CARS AND DAMAGING 3 MORE. DRI | DT65: VER WAS TRANSPORTED TO THE LOCAL HOSPITAL FOR INJURIES AND CITED BY THE AUTHORITIES. | EG65: 0 | EH65: 42.050704 | EI65: -88.556519 | EJ65: 2 | EK65: 2 | EO65: FREEPORT
A66: 16 | B66: 08 | C66: PAL | D66: 2016AUG1X | I66: 16 | J66: 08 | K66: PAL | L66: 2016AUG1X | N66: 296939M | O66: 16 | P66: 08 | Q66: 02 | R66: 8 | S66: 34 | T66: AM | U66: 07 | V66: 0 | W66: 0 | X66: 0 | Y66: 0 | AA66: LEITCHFIELD | AB66: 70.4 | AC66: 21 | AD66: 85 | AE66: 2 | AF66: 1 | AG66: 030 | AH66: E | AI66: CC2 | AJ66: 2 | AK66: 0 | AL66: 8 | AM66: Y | AN66: SINGLE MAIN TRACK | AO66: 3 | AP66: 2.7 | AQ66: 1 | AR66: PAL | AS66: 003807 | AT66: 001 | AU66: N | AX66: 000 | AZ66: 1 | BA66: 0 | BB66: 0 | BC66: 0 | BD66: 0 | BE66: 1 | BF66: 0 | BG66: 0 | BH66: 0 | BI66: 0 | BJ66: 0 | BK66: 0 | BL66: 0 | BM66: 0 | BN66: 0 | BO66: 0 | BP66: 0 | BQ66: 0 | BR66: 0 | BS66: 0 | BT66: 40000 | BU66: 21209 | BV66: M302 | BX66: 0 | BY66: 0 | BZ66: 0 | CA66: 0 | CB66: M302 | CC66: 1 | CD66: 3 | CE66: 030 | CF66: 61209 | CH66: 21C085 | CI66: 0 | CJ66: 000000 | CK66: 0 | CL66: 1 | CM66: 0 | CN66: 1 | CO66: 0 | CP66: 03 | CR66: 04 | CT66: 1 | CU66: 3 | CW66: 3L | DA66: 164 | DC66: 2016 | DD66: 0 | DE66: 0 | DF66: 0 | DG66: 0 | DH66: 0 | DI66: 0 | DJ66: GRAYSON | DK66: 085 | DO66: N | DP66: CWR | DR66: HIGHWAY USER FAILED TO OBSERVE TRAFFIC SIGNS AND DID NOT STOP AT CROSSING. TRAIN STRUCK THE TRAILER | DS66: OF THE SEMI CAUSING LOCOMOTIVE TO DERAIL. NO INJURIES REPORTED | EG66: 0 | EH66: 37.485938 | EI66: -86.274926 | EJ66: 1 | EK66: 2 | EL66: D | EO66: LOUISVILLE
A67: 16 | B67: 10 | C67: IC | D67: 903217 | I67: 16 | J67: 10 | K67: IC | L67: 903217 | N67: 299859E | O67: 16 | P67: 10 | Q67: 09 | R67: 6 | S67: 15 | T67: PM | U67: 07 | V67: 0 | W67: 0 | X67: 0 | Y67: 0 | AA67: WESSON | AB67: 774.23 | AC67: 28 | AD67: 80 | AE67: 2 | AF67: 1 | AG67: 035 | AH67: E | AI67: G888 | AJ67: 2 | AK67: 14402 | AL67: 1 | AM67: Y | AN67: MAIN 1 | AO67: 4 | AP67: 25.73 | AQ67: 1 | AR67: CN | AS67: 002626 | AT67: 001 | AX67: 000 | AZ67: 2 | BA67: 0 | BB67: 0 | BC67: 0 | BD67: 0 | BE67: 0 | BF67: 0 | BG67: 0 | BH67: 0 | BI67: 0 | BJ67: 104 | BK67: 0 | BL67: 0 | BM67: 0 | BN67: 0 | BO67: 0 | BP67: 0 | BQ67: 0 | BR67: 0 | BS67: 0 | BT67: 30 | BU67: 19357 | BV67: M308 | BX67: 0 | BY67: 0 | BZ67: 0 | CA67: 0 | CB67: M308 | CC67: 1 | CD67: 4 | CE67: 035 | CF67: 19387 | CH67: 28C029 | CI67: 0 | CJ67: 000000 | CK67: 0 | CL67: 1 | CM67: 0 | CN67: 1 | CO67: 0 | CP67: 02 | CR67: 02 | CT67: 1 | CU67: 3 | CW67: 1L | DA67: 228 | DC67: 2016 | DD67: 0 | DE67: 0 | DF67: 0 | DG67: 0 | DH67: 0 | DI67: 0 | DJ67: COPIAH | DK67: 029 | DO67: N | DP67: CWR | DR67: DRIVER OF VEHICLE STOPPED ON THE TRACKS AT THE SPRING ST. CROSSING AFTER THE GATES LOWERED AND THEN | DS67: BACKED THROUGH THE GATE. OCCUPANTS EXITED VEHICLE BEFORE THE TRAIN IMPACTED IT. ACTIVE WARNING DEVIC | DT67: ES WERE WORKING AS INTENDED. | EG67: 0 | EH67: 31.70052 | EI67: -90.396584 | EJ67: 1 | EK67: 1 | EO67: MCCOMB
A68: 16 | B68: 07 | C68: ATK | D68: 143401 | I68: 16 | J68: 07 | K68: IC | L68: 895343 | N68: 300674X | O68: 16 | P68: 07 | Q68: 21 | R68: 8 | S68: 58 | T68: AM | U68: 07 | V68: 0 | W68: 0 | X68: 0 | Y68: 0 | AA68: GLENDORA | AB68: 0097.9 | AC68: 28 | AD68: 89 | AE68: 2 | AF68: 1 | AG68: 045 | AH68: E | AI68: 59 | AJ68: 2 | AK68: 0 | AL68: 2 | AM68: Y | AN68: SINGLE MAIN | AO68: 3 | AQ68: 1 | AR68: AMT | AS68: 000116 | AT68: 001 | AX68: 000 | AZ68: 1 | BA68: 0 | BB68: 0 | BC68: 0 | BD68: 0 | BE68: 0 | BF68: 0 | BG68: 0 | BH68: 0 | BI68: 0 | BJ68: 0 | BK68: 8 | BL68: 0 | BM68: 0 | BN68: 0 | BO68: 0 | BP68: 0 | BQ68: 0 | BR68: 0 | BS68: 0 | BT68: 46031 | BU68: 0 | BV68: M302 | BX68: 0 | BY68: 4 | BZ68: 0 | CA68: 4 | CB68: M302 | CC68: 1 | CD68: 4 | CE68: 045 | CF68: 46056 | CH68: 28C135 | CI68: 4 | CJ68: 000000 | CK68: 0 | CL68: 1 | CM68: 0 | CN68: 2 | CO68: 0 | CP68: 02 | CQ68: 38 | CR68: 08 | CS68: 02 | CT68: 2 | CU68: 3 | CW68: 1L | DA68: 97 | DC68: 2016 | DD68: 0 | DE68: 1 | DF68: 0 | DG68: 3 | DH68: 0 | DI68: 0 | DJ68: TALLAHATCHIE | DK68: 135 | DO68: Y | DP68: CWR | DR68: TRAIN 59 STRUCK AN OCCUPIED TRACTOR-TRAILER AT CROSSING. AMTRAKS EQUIPMENT DAMAGE IS $46,031.00. | EG68: 0 | EH68: 33.91824 | EI68: -90.286125 | EJ68: 1 | EK68: 1 | EO68: YAZOO
A69: 16 | B69: 07 | C69: IC | D69: 895343 | E69: 16 | F69: 07 | G69: ATK | H69: 143401 | I69: 16 | J69: 07 | K69: IC | L69: 895343 | N69: 300674X | O69: 16 | P69: 07 | Q69: 21 | R69: 8 | S69: 58 | T69: AM | U69: 07 | V69: 0 | W69: 0 | X69: 0 | Y69: 0 | AA69: GLENDORA | AB69: 97.93 | AC69: 28 | AD69: 94 | AE69: 2 | AF69: 1 | AG69: 000 | AK69: 0 | AN69: SINGLE MAIN | AO69: 4 | AP69: 49.16 | AQ69: 1 | AT69: 000 | AX69: 000 | AZ69: 0 | BA69: 0 | BB69: 0 | BC69: 0 | BD69: 0 | BE69: 0 | BF69: 0 | BG69: 0 | BH69: 0 | BI69: 0 | BJ69: 0 | BK69: 0 | BL69: 0 | BM69: 0 | BN69: 0 | BO69: 0 | BP69: 0 | BQ69: 0 | BR69: 0 | BS69: 0 | BT69: 0 | BU69: 25 | BV69: M302 | BX69: 0 | BY69: 0 | BZ69: 0 | CA69: 4 | CB69: M302 | CC69: 1 | CD69: 4 | CE69: 045 | CF69: 46056 | CH69: 28C135 | CI69: 0 | CJ69: 000000 | CK69: 0 | CL69: 0 | CM69: 0 | CN69: 0 | CO69: 0 | CT69: 1 | CU69: 3 | CW69: 1L | DA69: 121 | DC69: 2016 | DD69: 0 | DE69: 0 | DF69: 0 | DG69: 0 | DH69: 0 | DI69: 0 | DJ69: TALLAHATCHIE | DK69: 135 | DP69: CWR | DR69: AMTRAK TRAIN 59 STRUCK A TRACTOR-TRAILER THAT FAILED TO YIELD AT THE CROSSING. AMTRAK ADVISED $46031 | DS69: IN EQUIPMENT DAMAGE. | EG69: 0 | EH69: 33.91824 | EI69: -90.286125 | EJ69: 1 | EK69: 1 | EO69: YAZOO
A70: 16 | B70: 10 | C70: ATK | D70: 144521 | I70: 16 | J70: 10 | K70: IC | L70: 902836 | N70: 300748M | O70: 16 | P70: 10 | Q70: 05 | R70: 9 | S70: 31 | T70: AM | U70: 07 | V70: 0 | W70: 0 | X70: 0 | Y70: 0 | AA70: CRUGER | AB70: 0140.7 | AC70: 28 | AD70: 70 | AE70: 2 | AF70: 1 | AG70: 079 | AH70: E | AI70: 59 | AJ70: 2 | AK70: 0 | AL70: 2 | AM70: Y | AN70: SINGLE MAIN | AO70: 4 | AQ70: 1 | AR70: AMT | AS70: 000197 | AT70: 001 | AX70: 000 | AZ70: 1 | BA70: 0 | BB70: 0 | BC70: 0 | BD70: 0 | BE70: 0 | BF70: 0 | BG70: 0 | BH70: 0 | BI70: 0 | BJ70: 0 | BK70: 8 | BL70: 0 | BM70: 0 | BN70: 0 | BO70: 0 | BP70: 0 | BQ70: 0 | BR70: 0 | BS70: 0 | BT70: 120613 | BU70: 0 | BV70: M302 | BX70: 1 | BY70: 6 | BZ70: 1 | CA70: 6 | CB70: M302 | CC70: 1 | CD70: 4 | CE70: 079 | CF70: 120638 | CH70: 28C051 | CI70: 6 | CJ70: 000000 | CK70: 1 | CL70: 1 | CM70: 0 | CN70: 2 | CO70: 0 | CP70: 03 | CQ70: 06 | CR70: 01 | CS70: 01 | CT70: 2 | CU70: 3 | CW70: 1L | DA70: 168 | DC70: 2016 | DD70: 0 | DE70: 2 | DF70: 0 | DG70: 4 | DH70: 1 | DI70: 0 | DJ70: HOLMES | DK70: 051 | DO70: Y | DP70: CWR | DR70: TRAIN 59 OPERATING WITH LOCOMOTIVE E/197 AND 8 CARS STRUCK AN OCCUPIED TRACTOR-TRAILER TRUCK AT MP 1 | DS70: 40.78, LINDEN RD CROSSING. AMTRAKS EQUIPMENT DAMAGE IS $120,613.00. | EG70: 0 | EH70: 33.278488 | EI70: -90.222153 | EJ70: 1 | EK70: 1 | EO70: YAZOO
A71: 16 | B71: 10 | C71: IC | D71: 902836 | E71: 16 | F71: 10 | G71: ATK | H71: 144521 | I71: 16 | J71: 10 | K71: IC | L71: 902836 | N71: 300748M | O71: 16 | P71: 10 | Q71: 05 | R71: 9 | S71: 31 | T71: AM | U71: 07 | V71: 0 | W71: 0 | X71: 0 | Y71: 0 | AA71: CRUGER | AB71: 140.78 | AC71: 28 | AD71: 70 | AE71: 2 | AF71: 1 | AG71: 000 | AK71: 0 | AN71: SINGLE MAIN | AO71: 4 | AP71: 49.16 | AQ71: 1 | AT71: 000 | AX71: 000 | AZ71: 0 | BA71: 0 | BB71: 0 | BC71: 0 | BD71: 0 | BE71: 0 | BF71: 0 | BG71: 0 | BH71: 0 | BI71: 0 | BJ71: 0 | BK71: 0 | BL71: 0 | BM71: 0 | BN71: 0 | BO71: 0 | BP71: 0 | BQ71: 0 | BR71: 0 | BS71: 0 | BT71: 0 | BU71: 25 | BV71: M302 | BX71: 0 | BY71: 0 | BZ71: 1 | CA71: 6 | CB71: M302 | CC71: 1 | CD71: 4 | CE71: 079 | CF71: 120638 | CH71: 28C051 | CI71: 0 | CJ71: 000000 | CK71: 0 | CL71: 0 | CM71: 0 | CN71: 0 | CO71: 0 | CT71: 1 | CU71: 3 | CW71: 1L | DA71: 171 | DC71: 2016 | DD71: 0 | DE71: 0 | DF71: 0 | DG71: 0 | DH71: 0 | DI71: 0 | DJ71: HOLMES | DK71: 051 | DP71: CWR | DR71: AMTRAK TRAIN, P05991-05, HIT A GRAIN TRUCK THAT FAILED TO YIELD AT THE LINDEN ROAD CROSSING. DRIVER | DS71: SUSTAINED FATAL INJURIES. AMTRAK ADVISED $120,613 IN EQUIPMENT DAMAGES. | EH71: 33.278488 | EI71: -90.222153 | EJ71: 1 | EK71: 1 | EO71: YAZOO
A72: 16 | B72: 05 | C72: KCS | D72: 16050501 | I72: 16 | J72: 05 | K72: KCS | L72: 16050501 | N72: 302484B | O72: 16 | P72: 05 | Q72: 05 | R72: 8 | S72: 23 | T72: AM | U72: 07 | V72: 2 | W72: 0 | X72: 0 | Y72: 0 | AA72: RAYVILLE | AB72: 0051.9 | AC72: 22 | AD72: 70 | AE72: 2 | AF72: 1 | AG72: 035 | AH72: E | AI72: IDAA | AJ72: 3 | AK72: 4396 | AL72: 1 | AM72: Y | AN72: SINGLE MAIN TRACK | AO72: 4 | AP72: 000033 | AQ72: 1 | AR72: KCS | AS72: 004028 | AT72: 001 | AU72: N | AX72: 000 | AZ72: 2 | BA72: 0 | BB72: 0 | BC72: 0 | BD72: 0 | BE72: 0 | BF72: 0 | BG72: 0 | BH72: 0 | BI72: 0 | BJ72: 37 | BK72: 0 | BL72: 3 | BM72: 0 | BN72: 0 | BO72: 0 | BP72: 0 | BQ72: 0 | BR72: 0 | BS72: 0 | BT72: 18063 | BU72: 20886 | BV72: M304 | BX72: 0 | BY72: 1 | BZ72: 0 | CA72: 1 | CB72: M304 | CC72: 1 | CD72: 4 | CE72: 035 | CF72: 38949 | CH72: 22C083 | CI72: 1 | CJ72: 000000 | CK72: 0 | CL72: 1 | CM72: 0 | CN72: 1 | CO72: 0 | CP72: 04 | CQ72: 38 | CR72: 04 | CS72: 38 | CT72: 1 | CU72: 5 | CW72: 1L | DA72: 198 | DC72: 2016 | DD72: 0 | DE72: 1 | DF72: 0 | DG72: 0 | DH72: 0 | DI72: 0 | DJ72: RICHLAND | DK72: 083 | DO72: N | DP72: CWR | DR72: AN 18- WHEELER WAS AT A CROSSING WHEN HIS TRAILER, CARRYING A TRACTOR, BECAME STUCK ON THE TRACK AND | DS72: WAS SUBSEQUENTLY HIT BY THE TRAIN. TRUCK DRIVER HAD EXITED HIS CAB. ENGINEER REPORTED INJURIES. | EG72: 0 | EH72: 32.47893 | EI72: -91.77799 | EJ72: 1 | EK72: 1 | EL72: Q | EO72: VICKSBURG
A73: 16 | B73: 07 | C73: IC | D73: 894442 | I73: 16 | J73: 07 | K73: IC | L73: 894442 | N73: 305632D | O73: 16 | P73: 07 | Q73: 12 | R73: 8 | S73: 20 | T73: AM | U73: 07 | V73: 35 | W73: 0 | X73: 0 | Y73: 0 | AA73: NEW AUGUSTA | AB73: 77.80 | AC73: 28 | AD73: 73 | AE73: 2 | AF73: 1 | AG73: 050 | AH73: R | AI73: A488 | AJ73: 2 | AK73: 5530 | AL73: 1 | AM73: Y | AN73: SINGLE MAIN | AO73: 4 | AP73: 9.40 | AQ73: 1 | AR73: CN | AS73: 008879 | AT73: 001 | AX73: 000 | AZ73: 3 | BA73: 0 | BB73: 0 | BC73: 0 | BD73: 0 | BE73: 0 | BF73: 0 | BG73: 0 | BH73: 0 | BI73: 0 | BJ73: 37 | BK73: 0 | BL73: 22 | BM73: 0 | BN73: 0 | BO73: 0 | BP73: 0 | BQ73: 0 | BR73: 0 | BS73: 0 | BT73: 27000 | BU73: 25 | BV73: M302 | BX73: 0 | BY73: 2 | BZ73: 0 | CA73: 2 | CB73: M302 | CC73: 1 | CD73: 4 | CE73: 050 | CF73: 27025 | CH73: 28C111 | CI73: 2 | CJ73: 000000 | CK73: 0 | CL73: 1 | CM73: 0 | CN73: 1 | CO73: 0 | CP73: 01 | CQ73: 05 | CR73: 01 | CS73: 05 | CT73: 1 | CU73: 3 | CW73: 1L | DA73: 214 | DC73: 2016 | DD73: 0 | DE73: 2 | DF73: 0 | DG73: 0 | DH73: 0 | DI73: 0 | DJ73: PERRY | DK73: 111 | DO73: N | DP73: CWR | DR73: SEMI-TRUCK PULLED OVER THE CONWAY POLE RD PRIVATE CROSSING BUT DIDN''T CLEAR THE CROSSING BEFORE THE | DS73: APPROACHING TRAIN STRUCK THE TRAILER. TRAIN CREW SUSTAINED INJURIES IN THE IMPACT. UNIT CN 8879 SUST | DT73: AINED DAMAGED. | EG73: 0 | EH73: 31.202185 | EI73: -89.018936 | EJ73: 2 | EK73: 2 | EL73: P | EO73: BEAUMONT
A74: 16 | B74: 03 | C74: KCS | D74: 16032803 | I74: 16 | J74: 03 | K74: KCS | L74: 16032803 | N74: 309489J | O74: 16 | P74: 03 | Q74: 28 | R74: 9 | S74: 5 | T74: AM | U74: 07 | V74: 8 | W74: 0 | X74: 0 | Y74: 0 | AA74: CALHOUN | AB74: 0081.8 | AC74: 22 | AD74: 53 | AE74: 2 | AF74: 1 | AG74: 042 | AH74: E | AI74: MJAS | AJ74: 4 | AK74: 6126 | AL74: 1 | AM74: Y | AN74: SINGLE MAIN TRACK | AO74: 4 | AQ74: 1 | AR74: NS | AS74: 008065 | AT74: 001 | AU74: N | AX74: 000 | AZ74: 3 | BA74: 0 | BB74: 0 | BC74: 0 | BD74: 0 | BE74: 0 | BF74: 0 | BG74: 0 | BH74: 0 | BI74: 0 | BJ74: 45 | BK74: 0 | BL74: 16 | BM74: 0 | BN74: 0 | BO74: 0 | BP74: 0 | BQ74: 0 | BR74: 0 | BS74: 0 | BT74: 11324 | BU74: 1167 | BV74: M302 | BX74: 0 | BY74: 1 | BZ74: 0 | CA74: 1 | CB74: M302 | CC74: 1 | CD74: 4 | CE74: 042 | CF74: 12491 | CH74: 22C073 | CI74: 1 | CJ74: 000000 | CK74: 0 | CL74: 1 | CM74: 0 | CN74: 1 | CO74: 0 | CP74: 06 | CQ74: 35 | CR74: 06 | CS74: 35 | CT74: 1 | CU74: 5 | CW74: 1L | DA74: 112 | DC74: 2016 | DD74: 0 | DE74: 0 | DF74: 0 | DG74: 0 | DH74: 0 | DI74: 1 | DJ74: OUACHITA | DK74: 073 | DO74: N | DP74: CWR | DR74: A DUMP TRUCK FAILED TO STOP AT THE CROSSING AND WAS STRUCK BY THE TRAIN AT MP 81.8 IN THE VICKSBURG | DS74: SUBDIVISION. | EG74: 0 | EH74: 32.50411 | EI74: -92.28352 | EJ74: 1 | EK74: 1 | EL74: Q | EO74: VICKSBURG
A75: 16 | B75: 11 | C75: LI | D75: GR20161101 | I75: 16 | J75: 11 | K75: LI | L75: GR20161101 | N75: 338172V | O75: 16 | P75: 11 | Q75: 06 | R75: 5 | S75: 33 | T75: PM | U75: 07 | V75: 0 | W75: 0 | X75: 0 | Y75: 0 | AA75: CENTRAL ISLIP | AB75: 43.3 | AC75: 36 | AD75: 50 | AE75: 4 | AF75: 2 | AG75: 062 | AH75: R | AI75: 8058 | AJ75: 3 | AK75: 0 | AL75: D | AM75: Y | AN75: MAINLINE1 | AO75: 4 | AQ75: 1 | AR75: LI | AS75: 007572 | AT75: 001 | AU75: N | AX75: 000 | AZ75: 0 | BA75: 0 | BB75: 0 | BC75: 0 | BD75: 0 | BE75: 0 | BF75: 0 | BG75: 0 | BH75: 0 | BI75: 0 | BJ75: 0 | BK75: 12 | BL75: 0 | BM75: 0 | BN75: 0 | BO75: 0 | BP75: 0 | BQ75: 0 | BR75: 0 | BS75: 0 | BT75: 0 | BU75: 37879 | BV75: M303 | BX75: 0 | BY75: 0 | BZ75: 0 | CA75: 0 | CB75: M303 | CC75: 1 | CD75: 4 | CE75: 062 | CF75: 37879 | CH75: 36C103 | CI75: 0 | CJ75: 000000 | CK75: 0 | CL75: 1 | CM75: 0 | CN75: 1 | CO75: 1 | CP75: 07 | CQ75: 23 | CR75: 07 | CS75: 23 | CT75: 1 | CU75: 1 | CW75: 3L | DA75: 182 | DC75: 2016 | DD75: 0 | DE75: 0 | DF75: 0 | DG75: 0 | DH75: 0 | DI75: 0 | DJ75: SUFFOLK | DK75: 103 | DO75: Y | DP75: CWR | DR75: NORTHBOUND CAR HAD PREVIOUSLY EXPERIENCED MECHANICAL TROUBLE AND HAD STALLED ON THE CROSSING PADS FO | DS75: ULING MAINLINE ONE. BEFORE THE CROSSING WAS ACTIVATED IT WAS STRUCK BY TRAIN 8058. | EG75: 0 | EH75: 40.790337 | EI75: -73.201703 | EJ75: 1 | EK75: 1 | EO75: SYSTEM
A76: 16 | B76: 08 | C76: CSX | D76: 000161982 | I76: 16 | J76: 08 | K76: CSX | L76: 000161982 | N76: 341041V | O76: 16 | P76: 08 | Q76: 09 | R76: 5 | S76: 45 | T76: PM | U76: 07 | V76: 0 | W76: 0 | X76: 0 | Y76: 0 | AA76: NEW ORLEANS | AB76: 0793.3 | AC76: 22 | AD76: 86 | AE76: 2 | AF76: 1 | AG76: 049 | AH76: R | AI76: Q145 | AJ76: 2 | AK76: 5515 | AL76: 1 | AM76: Y | AN76: #1 MAIN | AO76: 4 | AP76: 0022.0 | AQ76: 1 | AR76: UP | AS76: 007726 | AT76: 001 | AU76: N | AX76: 000 | AZ76: 2 | BA76: 0 | BB76: 0 | BC76: 0 | BD76: 0 | BE76: 0 | BF76: 0 | BG76: 0 | BH76: 0 | BI76: 0 | BJ76: 42 | BK76: 0 | BL76: 2 | BM76: 0 | BN76: 0 | BO76: 0 | BP76: 0 | BQ76: 0 | BR76: 0 | BS76: 0 | BT76: 0 | BU76: 20000 | BV76: M302 | BX76: 0 | BY76: 2 | BZ76: 0 | CA76: 2 | CB76: M302 | CC76: 1 | CD76: 4 | CE76: 049 | CF76: 20000 | CH76: 22C071 | CI76: 2 | CJ76: 000000 | CK76: 0 | CL76: 1 | CM76: 0 | CN76: 1 | CO76: 0 | CP76: 06 | CQ76: 15 | CR76: 06 | CS76: 15 | CT76: 1 | CU76: 5 | CW76: 1L | DA76: 114 | DC76: 2016 | DD76: 0 | DE76: 1 | DF76: 0 | DG76: 0 | DH76: 0 | DI76: 1 | DJ76: ORLEANS | DK76: 071 | DO76: N | DP76: CWR | DR76: Q14508 WAS TRAVELING ON THE #1 MAIN WHEN IT STRUCK AN OCCUPIED TRACTOR TRAILER AT CROSSING. MOTORIST | DS76: S AGE UNKNOWN. | EG76: 0 | EH76: 30.040302 | EI76: -89.896742 | EJ76: 1 | EK76: 1 | EL76: J | EM76: Q | EO76: NO & M
A77: 16 | B77: 03 | C77: CSX | D77: 000158557 | I77: 16 | J77: 03 | K77: CSX | L77: 000158557 | N77: 343526X | O77: 16 | P77: 03 | Q77: 29 | R77: 8 | S77: 36 | T77: AM | U77: 07 | V77: 15 | W77: 0 | X77: 0 | Y77: 0 | AA77: HILLVIEW | AB77: 0014.7 | AC77: 21 | AD77: 48 | AE77: 2 | AF77: 1 | AG77: 047 | AH77: R | AI77: R502 | AJ77: 1 | AK77: 8246 | AL77: 1 | AM77: Y | AN77: SINGLE MAIN | AO77: 4 | AP77: 0030.9 | AQ77: 1 | AR77: CSXT | AS77: 000779 | AT77: 001 | AU77: N | AX77: 000 | AZ77: 2 | BA77: 0 | BB77: 0 | BC77: 0 | BD77: 0 | BE77: 0 | BF77: 0 | BG77: 0 | BH77: 0 | BI77: 0 | BJ77: 60 | BK77: 0 | BL77: 27 | BM77: 0 | BN77: 0 | BO77: 0 | BP77: 0 | BQ77: 0 | BR77: 0 | BS77: 0 | BT77: 1460 | BU77: 10000 | BV77: M303 | BX77: 1 | BY77: 0 | BZ77: 1 | CA77: 0 | CB77: M303 | CC77: 1 | CD77: 4 | CE77: 047 | CF77: 11460 | CH77: 21C029 | CI77: 0 | CJ77: 000000 | CK77: 1 | CL77: 1 | CM77: 0 | CN77: 1 | CO77: 0 | CP77: 07 | CQ77: 51 | CR77: 07 | CS77: 51 | CT77: 1 | CU77: 3 | CW77: 1L | DA77: 70 | DC77: 2016 | DD77: 0 | DE77: 0 | DF77: 0 | DG77: 0 | DH77: 1 | DI77: 0 | DJ77: BULLITT | DK77: 029 | DO77: N | DP77: CWR | DR77: R50228 STRUCK A VEHICLE AT BLUE LICK ROAD FATALLY INJURING THE DRIVER. | EG77: 0 | EH77: 38.039466 | EI77: -85.709594 | EJ77: 1 | EK77: 1 | EL77: Q | EO77: MAIN LINE
A78: 16 | B78: 03 | C78: CSX | D78: 000158461 | I78: 16 | J78: 03 | K78: CSX | L78: 000158461 | N78: 352076C | O78: 16 | P78: 03 | Q78: 25 | R78: 1 | S78: 25 | T78: PM | U78: 07 | V78: 0 | W78: 0 | X78: 0 | Y78: 0 | AA78: ATHENS | AB78: 0294.0 | AC78: 01 | AD78: 55 | AE78: 2 | AF78: 1 | AG78: 037 | AH78: R | AI78: Q102 | AJ78: 1 | AK78: 4625 | AL78: 1 | AM78: Y | AN78: SINGLE MAIN | AO78: 3 | AP78: 0633.0 | AQ78: 1 | AR78: CSXT | AS78: 005232 | AT78: 001 | AU78: N | AX78: 000 | AZ78: 2 | BA78: 0 | BB78: 0 | BC78: 0 | BD78: 0 | BE78: 0 | BF78: 0 | BG78: 0 | BH78: 0 | BI78: 0 | BJ78: 29 | BK78: 0 | BL78: 12 | BM78: 0 | BN78: 0 | BO78: 0 | BP78: 0 | BQ78: 0 | BR78: 0 | BS78: 0 | BT78: 8211 | BU78: 6800 | BV78: M303 | BX78: 0 | BY78: 0 | BZ78: 0 | CA78: 0 | CB78: M303 | CC78: 1 | CD78: 3 | CE78: 037 | CF78: 15011 | CH78: 01C083 | CI78: 0 | CJ78: 000000 | CK78: 0 | CL78: 1 | CM78: 0 | CN78: 1 | CO78: 0 | CP78: 06 | CQ78: 11 | CR78: 06 | CS78: 11 | CT78: 1 | CU78: 3 | CW78: 1L | DA78: 171 | DC78: 2016 | DD78: 0 | DE78: 0 | DF78: 0 | DG78: 0 | DH78: 0 | DI78: 0 | DJ78: LIMESTONE | DK78: 083 | DO78: N | DP78: CWR | DR78: A MOTORIST WAS TRAVELING EAST ON SOUTH ST. WHEN HIS VEHICLE STALLED ON THE TRACKS AND WAS STRUCK BY | DS78: THE NORTHBOUND Q10223. THE OCCUPANT EXITED THE VEHICLE PRIOR TO IMPACT. | EG78: 0 | EH78: 34.799035 | EI78: -86.970121 | EJ78: 1 | EK78: 1 | EO78: S & N A NORTH
A79: 16 | B79: 05 | C79: TCWR | D79: TCW052416A | I79: 16 | J79: 05 | K79: TCWR | L79: TCW052416A | N79: 379748J | O79: 16 | P79: 05 | Q79: 24 | R79: 4 | S79: 0 | T79: PM | U79: 07 | V79: 80 | W79: 0 | X79: 0 | Y79: 0 | AA79: HOPKINS | AB79: 431.8 | AC79: 27 | AD79: 75 | AE79: 2 | AF79: 1 | AG79: 010 | AH79: E | AI79: 680- | AJ79: 3 | AK79: 10400 | AL79: 1 | AM79: Y | AN79: MAIN | AO79: 1 | AP79: 100 | AQ79: 1 | AR79: NS | AS79: 009350 | AT79: 001 | AU79: Y | AX79: 000 | AZ79: 2 | BA79: 0 | BB79: 0 | BC79: 0 | BD79: 0 | BE79: 0 | BF79: 0 | BG79: 0 | BH79: 0 | BI79: 0 | BJ79: 80 | BK79: 0 | BL79: 0 | BM79: 0 | BN79: 0 | BO79: 0 | BP79: 0 | BQ79: 0 | BR79: 0 | BS79: 0 | BT79: 0 | BU79: 0 | BV79: M302 | BX79: 0 | BY79: 0 | BZ79: 0 | CA79: 0 | CB79: M302 | CC79: 1 | CD79: 1 | CE79: 010 | CF79: 0 | CH79: 27C053 | CI79: 0 | CJ79: 000000 | CK79: 0 | CL79: 1 | CM79: 0 | CN79: 1 | CO79: 0 | CP79: 07 | CR79: 07 | CT79: 1 | CU79: 4 | CW79: 3L | DA79: 70 | DC79: 2016 | DD79: 0 | DE79: 0 | DF79: 0 | DG79: 0 | DH79: 0 | DI79: 0 | DJ79: HENNEPIN | DK79: 053 | DL79: 00 | DM79: 00 | DO79: N | DP79: OTH | DR79: DRIVER STOPPED IN FOUL OF TRACK AT GRADE CROSSING AND WAS HIT BY TRAIN | EG79: 0 | EH79: 44.926079 | EI79: -93.404419 | EJ79: 2 | EK79: 2 | EO79: GLENCOE
A80: 16 | B80: 01 | C80: CP | D80: 1000326994 | I80: 16 | J80: 01 | K80: CP | L80: 1000326994 | N80: 386506F | O80: 16 | P80: 01 | Q80: 04 | R80: 9 | S80: 10 | T80: AM | U80: 07 | V80: 11 | W80: 0 | X80: 0 | Y80: 0 | AA80: MILWAUKEE | AB80: 86.8 | AC80: 55 | AD80: 27 | AE80: 2 | AF80: 2 | AG80: 019 | AH80: R | AI80: 2800 | AJ80: 3 | AK80: 5959 | AL80: 1 | AM80: Y | AN80: #2 MAIN TRACK | AO80: 2 | AP80: 50 | AQ80: 1 | AR80: CSXT | AS80: 000018 | AT80: 001 | AX80: 000 | AZ80: 2 | BA80: 0 | BB80: 0 | BC80: 0 | BD80: 0 | BE80: 0 | BF80: 0 | BG80: 0 | BH80: 0 | BI80: 0 | BJ80: 41 | BK80: 0 | BL80: 21 | BM80: 0 | BN80: 0 | BO80: 0 | BP80: 0 | BQ80: 0 | BR80: 0 | BS80: 0 | BT80: 1800 | BU80: 14800 | BV80: M304 | BX80: 0 | BY80: 1 | BZ80: 0 | CA80: 1 | CB80: M304 | CC80: 1 | CD80: 2 | CE80: 019 | CF80: 16600 | CH80: 55C079 | CI80: 1 | CJ80: 000000 | CK80: 0 | CL80: 1 | CM80: 0 | CN80: 1 | CO80: 0 | CP80: 03 | CQ80: 10 | CR80: 03 | CS80: 10 | CT80: 1 | CU80: 4 | CW80: 3 | DA80: 775 | DC80: 2016 | DD80: 0 | DE80: 0 | DF80: 0 | DG80: 0 | DH80: 0 | DI80: 1 | DJ80: MILWAUKEE | DK80: 079 | DO80: N | DP80: CWR | DR80: 280-04 WAS TRAVELING EAST ON #2 MAIN TRACK AT 19 MPH AND MADE CONTACT WITH AN OCCUPIED SEMI-TRAILER | DS80: AT 27TH STREET & GREVES - DOT CROSSING 386-506F. SEMI TRACTOR/TRAILER WAS ON SOUTH SIDE OF TRACKS TR | DT80: YING TO MANEUVER A TURN. SEMI HAD BACKED UP & PUT REAR OF TRAILER ON TRACKS. TRAIN CREW OBSERVED SEM | DU80: I MOVING FORWARD, THEN BACK UP & ATTEMPT TO MOVE FORWARD AGAIN. ENGINEER PLACED TRAIN IN EMERGENCY B | DV80: UT COULD NOT AVOID CONTACT. LEAD LOCOMOTIVE CSXT18 SUSTAINED DAMAGE TO FRONT PIN-LIFTER, SNOW PLOW, | DW80: ENGINEER SIDE GRAB IRONS AND MU DUMMY SOCKET AFTER COMING IN CONTACT WITH REAR OF TRAILER. THERE WAS | DX80: ALSO SIGNIFICANT DAMAGE TO CROSSING SIGNALS. SEMI DRIVER WAS TRANSPORTED FOR MEDICAL TO BE CHECKED | DY80: OUT. CROSSING PROTECTED WITH FLASHING LIGHTS, AUDIBLE AND CROSS BUCK SIGNS. | EG80: 0 | EH80: 43.032766 | EI80: -87.947722 | EJ80: 1 | EK80: 1 | EL80: Q | EO80: C&M
A81: 16 | B81: 06 | C81: ATK | D81: 142907 | I81: 16 | J81: 06 | K81: CP | L81: 1000412422 | N81: 387995W | O81: 16 | P81: 06 | Q81: 18 | R81: 11 | S81: 1 | T81: PM | U81: 07 | V81: 0 | W81: 0 | X81: 0 | Y81: 0 | AA81: CALEDONIA | AB81: 0065.9 | AC81: 55 | AD81: 65 | AE81: 4 | AF81: 1 | AG81: 079 | AH81: E | AI81: 344 | AJ81: 3 | AK81: 0 | AL81: B | AM81: Y | AN81: MAIN TRACK 2 | AO81: 4 | AP81: 000050 | AQ81: 1 | AR81: AMT | AS81: 090368 | AT81: 001 | AU81: N | AX81: 000 | AZ81: 0 | BA81: 0 | BB81: 0 | BC81: 1 | BD81: 0 | BE81: 0 | BF81: 0 | BG81: 0 | BH81: 0 | BI81: 0 | BJ81: 0 | BK81: 5 | BL81: 0 | BM81: 1 | BN81: 0 | BO81: 0 | BP81: 0 | BQ81: 0 | BR81: 0 | BS81: 0 | BT81: 19100 | BU81: 0 | BV81: M308 | BX81: 1 | BY81: 0 | BZ81: 1 | CA81: 0 | CB81: M308 | CC81: 1 | CD81: 4 | CE81: 079 | CF81: 19150 | CH81: 55C101 | CI81: 0 | CJ81: 000000 | CK81: 1 | CL81: 1 | CM81: 0 | CN81: 2 | CO81: 0 | CP81: 03 | CQ81: 26 | CR81: 03 | CS81: 26 | CT81: 1 | CU81: 4 | CW81: 1L | DA81: 301 | DC81: 2016 | DD81: 0 | DE81: 0 | DF81: 0 | DG81: 0 | DH81: 1 | DI81: 0 | DJ81: RACINE | DK81: 101 | DO81: Y | DP81: CWR | DR81: TRAIN 344 OPERATING WITH CAB CAR 90368, 6 CARS AND LOCOMOTIVE E/37 TRAILING WAS STRUCK BY A PICK-UP | DS81: TRUCK AT MP 65.74, NORTHWESTERN AVE CROSSING. THE IMPACT OCCURRED BETWEEN CAB CAR 90368 AND COACH 8 | DT81: 2710 CAUSING CAB CAR TO SEPARATE FROM THE REST OF THE TRAIN. AMTRAKS EQUIPMENT DAMAGE IS $19,100.00 | DU81: . | EG81: 0 | EH81: 42.760401 | EI81: -87.915013 | EJ81: 1 | EK81: 1 | EO81: C&M
A82: 16 | B82: 06 | C82: CP | D82: 1000412422 | E82: 16 | F82: 06 | G82: ATK | H82: 142907 | I82: 16 | J82: 06 | K82: CP | L82: 1000412422 | N82: 387995W | O82: 16 | P82: 06 | Q82: 18 | R82: 11 | S82: 1 | T82: PM | U82: 07 | V82: 0 | W82: 0 | X82: 0 | Y82: 0 | AA82: CALEDONIA | AB82: 65.9 | AC82: 55 | AD82: 65 | AE82: 4 | AF82: 1 | AG82: 000 | AJ82: 3 | AK82: 0 | AN82: MAIN #2 | AO82: 4 | AP82: 50 | AQ82: 1 | AT82: 000 | AX82: 000 | AZ82: 0 | BA82: 0 | BB82: 0 | BC82: 0 | BD82: 0 | BE82: 0 | BF82: 0 | BG82: 0 | BH82: 0 | BI82: 0 | BJ82: 0 | BK82: 0 | BL82: 0 | BM82: 0 | BN82: 0 | BO82: 0 | BP82: 0 | BQ82: 0 | BR82: 0 | BS82: 0 | BT82: 0 | BU82: 50 | BV82: M308 | BX82: 0 | BY82: 0 | BZ82: 1 | CA82: 0 | CB82: M308 | CC82: 1 | CD82: 4 | CE82: 079 | CF82: 19150 | CH82: 55C101 | CI82: 0 | CJ82: 000000 | CK82: 0 | CL82: 0 | CM82: 0 | CN82: 0 | CO82: 0 | CT82: 2 | CU82: 4 | CW82: 3 | DA82: 349 | DC82: 2016 | DD82: 0 | DE82: 0 | DF82: 0 | DG82: 0 | DH82: 0 | DI82: 0 | DJ82: RACINE | DK82: 101 | DP82: CWR | DR82: AMTRAK 344 WAS TRAVELING EAST ON MAIN TRACK 2 WHEN A VEHICLE STRUCK THE SIDE OF THE TRAIN AT CTH K ( | DS82: NORTHWESTERN AVE). THE CAB CAR AND THE COACH CAR WERE DAMAGED CAUSING THE TRAIN TO SEPARATE. AMTRAK | DT82: MECHANICAL WAS ON THE SCENE TO FIX THE DAMAGE AND GET THE MAIN LINE CLEARED AS SOON AS POSSIBLE. AMT | DU82: RAK REPORTED ON 8/16 EQUIPMENT DAMAGE IS $19,100. | EH82: 42.760401 | EI82: -87.915013 | EJ82: 1 | EK82: 1 | EL82: Q | EO82: C&M
A83: 16 | B83: 04 | C83: UP | D83: 0416LV008 | I83: 16 | J83: 04 | K83: UP | L83: 0416LV008 | N83: 425148H | O83: 16 | P83: 04 | Q83: 11 | R83: 7 | S83: 14 | T83: AM | U83: 07 | V83: 28 | W83: 0 | X83: 0 | Y83: 0 | AA83: MONROE | AB83: 511.95 | AC83: 22 | AD83: 65 | AE83: 2 | AF83: 1 | AG83: 048 | AH83: R | AI83: MPBL | AJ83: 2 | AK83: 2404 | AL83: 1 | AM83: Y | AN83: MAIN LINE | AO83: 4 | AP83: 36.0 | AQ83: 1 | AR83: CSXT | AS83: 005320 | AT83: 001 | AX83: 000 | AZ83: 4 | BA83: 0 | BB83: 0 | BC83: 0 | BD83: 0 | BE83: 0 | BF83: 0 | BG83: 0 | BH83: 0 | BI83: 0 | BJ83: 5 | BK83: 0 | BL83: 52 | BM83: 0 | BN83: 0 | BO83: 0 | BP83: 0 | BQ83: 0 | BR83: 0 | BS83: 0 | BT83: 184 | BU83: 98418 | BV83: M304 | BX83: 0 | BY83: 1 | BZ83: 0 | CA83: 1 | CB83: M304 | CC83: 1 | CD83: 4 | CE83: 048 | CF83: 98602 | CH83: 22C073 | CI83: 1 | CJ83: 000000 | CK83: 0 | CL83: 1 | CM83: 0 | CN83: 1 | CO83: 0 | CP83: 01 | CQ83: 14 | CR83: 01 | CS83: 14 | CT83: 1 | CU83: 5 | CW83: 1L | DA83: 578 | DC83: 2016 | DD83: 0 | DE83: 0 | DF83: 0 | DG83: 0 | DH83: 0 | DI83: 1 | DJ83: OUACHITA | DK83: 073 | DO83: N | DP83: CWR | DR83: THE MPBLI-11, LEAD LOCOMOTIVE CSXT5320; WAS TRAVELING SOUTHBOUND ON THE MONROE SUB WHEN IT STRUCK A | DS83: 2013 FORD EDGE WITH A SINGLE OCCUPANT. THE CREW AND WITNESSES AT THE SCENE STATED THAT THE DRIVER O | DT83: F THE VEHICLE PULLED UP TO THE CROSSING AND STOPPED, AND THEN AT THE LAST MINUTE DECIDED TO GO AROUN | DU83: D THE GATES. THE TRAIN STRUCK THE VEHICLE IN THE REAR AND THREW IT INTO THE SIGNAL BOX RIPPING IT P | DV83: ARTIALLY OUT OF THE GROUND AND KNOCKING THE POWER OUT. THERE WAS SLIGHT DAMAGE TO THE LEAD ENGINE. | DW83: DID NOT DERAIL. DRIVER WAS TRANSPORTED TO AN UNKNOWN HOSPITAL FOR TREATMENT. | EG83: 0 | EH83: 32.351031 | EI83: -92.105543 | EJ83: 1 | EK83: 1 | EL83: Q | EO83: MONROE SUB
A84: 16 | B84: 07 | C84: UP | D84: 0716LK014 | I84: 16 | J84: 07 | K84: UP | L84: 0716LK014 | N84: 425195R | O84: 16 | P84: 07 | Q84: 18 | R84: 9 | S84: 12 | T84: AM | U84: 07 | V84: 0 | W84: 0 | X84: 0 | Y84: 0 | AA84: WILMOT | AB84: 449.37 | AC84: 05 | AD84: 95 | AE84: 2 | AF84: 1 | AG84: 050 | AH84: R | AI84: OWVB | AJ84: 2 | AK84: 18441 | AL84: 1 | AM84: Y | AN84: MCGEHEE SUB MAINLINE | AO84: 4 | AP84: 33.3 | AQ84: 1 | AR84: UP | AS84: 006829 | AT84: 001 | AX84: 000 | AZ84: 2 | BA84: 0 | BB84: 0 | BC84: 0 | BD84: 2 | BE84: 0 | BF84: 0 | BG84: 0 | BH84: 0 | BI84: 0 | BJ84: 130 | BK84: 0 | BL84: 0 | BM84: 0 | BN84: 0 | BO84: 0 | BP84: 0 | BQ84: 0 | BR84: 0 | BS84: 0 | BT84: 9830 | BU84: 61165 | BV84: M303 | BX84: 0 | BY84: 0 | BZ84: 0 | CA84: 0 | CB84: M303 | CC84: 1 | CD84: 4 | CE84: 050 | CF84: 70995 | CH84: 05C003 | CI84: 0 | CJ84: 000000 | CK84: 0 | CL84: 1 | CM84: 0 | CN84: 1 | CO84: 0 | CP84: 08 | CQ84: 31 | CR84: 08 | CS84: 31 | CT84: 1 | CU84: 5 | CW84: 1L | DA84: 122 | DC84: 2016 | DD84: 0 | DE84: 0 | DF84: 0 | DG84: 0 | DH84: 0 | DI84: 0 | DJ84: ASHLEY | DK84: 003 | DO84: N | DP84: CWR | DR84: THE OWVBT1-14, LEAD LOCOMOTIVE UP6829; STRUCK AN UNOCCUPIED SEMI-TRUCK PULLING A TRAILER. NOTHING D | DS84: ERAILED. NO INJURIES. | EG84: 0 | EH84: 33.059868 | EI84: -91.573379 | EJ84: 1 | EK84: 1 | EL84: Q | EO84: MCGEHEE SUB
A85: 16 | B85: 04 | C85: UP | D85: 0416LK022 | I85: 16 | J85: 04 | K85: UP | L85: 0416LK022 | N85: 433819A | O85: 16 | P85: 04 | Q85: 29 | R85: 1 | S85: 0 | T85: PM | U85: 07 | V85: 0 | W85: 0 | X85: 0 | Y85: 0 | AA85: LITTLE ROCK | AB85: 353.09 | AC85: 05 | AD85: 71 | AE85: 2 | AF85: 3 | AG85: 018 | AH85: E | AI85: 5980 | AJ85: 1 | AK85: 0 | AL85: A | AM85: Y | AN85: MAIN LINE 1 | AO85: 5 | AP85: 7.7 | AQ85: 1 | AR85: UP | AS85: 059800 | AT85: 001 | AU85: N | AX85: 000 | AZ85: 0 | BA85: 0 | BB85: 0 | BC85: 0 | BD85: 0 | BE85: 0 | BF85: 0 | BG85: 0 | BH85: 0 | BI85: 0 | BJ85: 0 | BK85: 0 | BL85: 1 | BM85: 0 | BN85: 0 | BO85: 0 | BP85: 0 | BQ85: 0 | BR85: 0 | BS85: 0 | BT85: 12120 | BU85: 0 | BV85: M304 | BX85: 0 | BY85: 0 | BZ85: 0 | CA85: 0 | CB85: M304 | CC85: 1 | CD85: 5 | CE85: 018 | CF85: 12120 | CH85: 05C119 | CI85: 0 | CJ85: 000000 | CK85: 0 | CL85: 1 | CM85: 0 | CN85: 0 | CO85: 0 | CP85: 06 | CT85: 1 | CU85: 5 | CW85: 1L | DA85: 550 | DC85: 2016 | DD85: 0 | DE85: 0 | DF85: 0 | DG85: 0 | DH85: 0 | DI85: 0 | DJ85: PULASKI | DK85: 119 | DL85: 00 | DM85: 00 | DO85: N | DP85: CWR | DR85: TRACK INSPECTOR WAS IN HIS HYRAIL PICKUP, MAKING A SPECIAL INSPECTION FOR FLASH FLOODS ON MAIN LINE | DS85: 1. TRAVELING NORTH, HE CAME TO A FOUR LANE CROSSING WITH THE GATES DOWN ON THE APPROACH TO THE CROS | DT85: SING. THE GATES STARTED TO COME UP, AND AS THEY WERE COMING UP THE CLOSEST VEHICLE SPED OFF OVER TH | DU85: E CROSSING, SIDESWIPING THE FRONT HYRAIL EQUIPMENT AND FRONT END OF TRUCK. THE VEHICLE LEFT THE SCE | DV85: NE, BUT THE DRIVER LATER RETURNED WITH HIS MOTHER. POLICE ARRIVED. TWO CITATIONS ISSUED TO THE MOTO | DW85: R VEHICLE DRIVER. NO INJURIES. NOTHING DERAILED. | EG85: 0 | EH85: 34.672238 | EI85: -92.361678 | EJ85: 2 | EK85: 2 | EL85: L | EO85: LITTLE ROCK SUB
A86: 16 | B86: 04 | C86: UP | D86: 0416WH001 | I86: 16 | J86: 04 | K86: UP | L86: 0416WH001 | N86: 434216F | O86: 16 | P86: 04 | Q86: 05 | R86: 3 | S86: 20 | T86: AM | U86: 07 | V86: 6 | W86: 0 | X86: 0 | Y86: 0 | AA86: CONWAY | AB86: 367.5 | AC86: 05 | AD86: 50 | AE86: 4 | AF86: 1 | AG86: 040 | AH86: R | AI86: QNLN | AJ86: 1 | AK86: 6827 | AL86: 1 | AM86: Y | AN86: MAINLINE | AO86: 4 | AP86: 45.0 | AQ86: 1 | AR86: UP | AS86: 007808 | AT86: 001 | AX86: 000 | AZ86: 2 | BA86: 0 | BB86: 0 | BC86: 0 | BD86: 1 | BE86: 0 | BF86: 0 | BG86: 0 | BH86: 0 | BI86: 0 | BJ86: 40 | BK86: 0 | BL86: 46 | BM86: 0 | BN86: 0 | BO86: 0 | BP86: 0 | BQ86: 0 | BR86: 0 | BS86: 0 | BT86: 42354 | BU86: 364 | BV86: M304 | BX86: 0 | BY86: 0 | BZ86: 0 | CA86: 0 | CB86: M304 | CC86: 1 | CD86: 4 | CE86: 040 | CF86: 42718 | CH86: 05C045 | CI86: 0 | CJ86: 000000 | CK86: 0 | CL86: 1 | CM86: 0 | CN86: 1 | CO86: 0 | CP86: 02 | CQ86: 20 | CR86: 02 | CS86: 20 | CT86: 1 | CU86: 5 | CW86: 1L | DA86: 163 | DC86: 2016 | DD86: 0 | DE86: 0 | DF86: 0 | DG86: 0 | DH86: 0 | DI86: 0 | DJ86: FAULKNER | DK86: 045 | DO86: N | DP86: CWR | DR86: QNLNP-05, LEAD UNIT UP7808 WAS NORTHBOUND ON THE VAN BUREN SUBDIVISION WHEN THEY STRUCK A TRACTOR TR | DS86: AILER THAT WAS HIGH CENTERED ON UPRR TRACKS AT COUNTY ROAD 819. | EG86: 0 | EH86: 35.011519 | EI86: -92.41453 | EJ86: 1 | EK86: 1 | EL86: Q | EO86: VAN BUREN SUB
A87: 16 | B87: 08 | C87: UP | D87: 0816LK032 | I87: 16 | J87: 08 | K87: UP | L87: 0816LK032 | N87: 437902P | O87: 16 | P87: 08 | Q87: 31 | R87: 6 | S87: 45 | T87: AM | U87: 07 | V87: 24 | W87: 0 | X87: 0 | Y87: 0 | AA87: CORNING | AB87: 192.15 | AC87: 05 | AD87: 80 | AE87: 1 | AF87: 1 | AG87: 040 | AH87: E | AI87: QNLB | AJ87: 1 | AK87: 9057 | AL87: 1 | AM87: Y | AN87: MAIN LINE | AO87: 4 | AP87: 53.7 | AQ87: 1 | AR87: NS | AS87: 009102 | AT87: 001 | AX87: 000 | AZ87: 2 | BA87: 0 | BB87: 0 | BC87: 0 | BD87: 0 | BE87: 0 | BF87: 0 | BG87: 0 | BH87: 0 | BI87: 0 | BJ87: 70 | BK87: 0 | BL87: 16 | BM87: 0 | BN87: 0 | BO87: 0 | BP87: 0 | BQ87: 0 | BR87: 0 | BS87: 0 | BT87: 1218 | BU87: 161023 | BV87: M303 | BX87: 0 | BY87: 1 | BZ87: 0 | CA87: 1 | CB87: M303 | CC87: 1 | CD87: 4 | CE87: 040 | CF87: 162241 | CH87: 05C021 | CI87: 1 | CJ87: 000000 | CK87: 0 | CL87: 1 | CM87: 0 | CN87: 1 | CO87: 0 | CP87: 07 | CQ87: 30 | CR87: 07 | CS87: 30 | CT87: 1 | CU87: 5 | CW87: 1L | DA87: 361 | DC87: 2016 | DD87: 0 | DE87: 1 | DF87: 0 | DG87: 0 | DH87: 0 | DI87: 0 | DJ87: CLAY | DK87: 021 | DO87: N | DP87: CWR | DR87: QNLBV-31 WITH LEAD UNIT NS9102 WAS TRAVELING NORTHBOUND ON THE HOXIE SUB APPROACHING A GATED CROSSIN | DS87: G AT MP 192.15. THE CREW NOTICED A TRUCK AND LOWBOY TRAILER STUCK ON THE TRACKS AT THE SOUTH END OF | DT87: CORNING SIDING. TRAIN WAS PLACED IN EMERGENCY AND STRUCK THE NON-OCCUPIED VEHICLE. NOTHING DERAILED. | DU87: CREW REQUESTED TRANSPORT TO A LOCAL HOSPITAL FOR EVALUATION. | EG87: 0 | EH87: 36.407885 | EI87: -90.579824 | EJ87: 1 | EK87: 1 | EL87: Q | EO87: HOXIE SUB
A88: 16 | B88: 06 | C88: UP | D88: 0616SA013 | I88: 16 | J88: 06 | K88: UP | L88: 0616SA013 | N88: 446581J | O88: 16 | P88: 06 | Q88: 14 | R88: 11 | S88: 56 | T88: PM | U88: 07 | V88: 5 | W88: 0 | X88: 0 | Y88: 0 | AA88: TAYLOR | AB88: 147.39 | AC88: 48 | AD88: 85 | AE88: 4 | AF88: 1 | AG88: 032 | AH88: R | AI88: MSAN | AJ88: 1 | AK88: 5355 | AL88: 1 | AM88: Y | AN88: AUSTIN SUB | AO88: 3 | AP88: 37.0 | AQ88: 1 | AR88: UP | AS88: 004488 | AT88: 001 | AX88: 000 | AZ88: 2 | BA88: 0 | BB88: 0 | BC88: 0 | BD88: 0 | BE88: 0 | BF88: 0 | BG88: 0 | BH88: 0 | BI88: 0 | BJ88: 49 | BK88: 0 | BL88: 42 | BM88: 0 | BN88: 0 | BO88: 0 | BP88: 0 | BQ88: 0 | BR88: 0 | BS88: 0 | BT88: 121 | BU88: 18000 | BV88: M303 | BX88: 0 | BY88: 0 | BZ88: 0 | CA88: 0 | CB88: M303 | CC88: 1 | CD88: 3 | CE88: 032 | CF88: 18121 | CH88: 48C491 | CI88: 0 | CJ88: 000000 | CK88: 0 | CL88: 1 | CM88: 0 | CN88: 1 | CO88: 0 | CP88: 08 | CQ88: 56 | CR88: 08 | CS88: 56 | CT88: 1 | CU88: 5 | CW88: 1L | DA88: 180 | DC88: 2016 | DD88: 0 | DE88: 0 | DF88: 0 | DG88: 0 | DH88: 0 | DI88: 0 | DJ88: WILLIAMSON | DK88: 491 | DO88: N | DP88: CWR | DR88: MSANL-14, WITH LEAD UNIT UP4488, STRUCK AN 18 WHEELER THAT WAS STUCK ON THE CROSSING. NOTHING DERAI | DS88: LED. NO INJURY TO CREW OR DRIVER WHO WAS OUT OF THE VEHICLE WHEN IT WAS STRUCK. | EG88: 0 | EH88: 30.55765 | EI88: -97.452299 | EJ88: 1 | EK88: 1 | EL88: Q | EO88: AUSTIN SUB
A89: 16 | B89: 11 | C89: UP | D89: 1116SA015 | I89: 16 | J89: 11 | K89: UP | L89: 1116SA015 | N89: 446690M | O89: 16 | P89: 11 | Q89: 21 | R89: 6 | S89: 17 | T89: PM | U89: 07 | V89: 3 | W89: 0 | X89: 0 | Y89: 0 | AA89: LAREDO | AB89: 399.2 | AC89: 48 | AD89: 73 | AE89: 3 | AF89: 1 | AG89: 033 | AH89: R | AI89: ISAL | AJ89: 2 | AK89: 3809 | AL89: 1 | AM89: Y | AN89: MAIN TRACK | AO89: 4 | AP89: 17.7 | AQ89: 1 | AR89: UP | AS89: 004772 | AT89: 001 | AX89: 000 | AZ89: 1 | BA89: 0 | BB89: 0 | BC89: 0 | BD89: 0 | BE89: 0 | BF89: 0 | BG89: 0 | BH89: 0 | BI89: 0 | BJ89: 51 | BK89: 0 | BL89: 0 | BM89: 0 | BN89: 0 | BO89: 0 | BP89: 0 | BQ89: 0 | BR89: 0 | BS89: 0 | BT89: 18000 | BU89: 11500 | BV89: M308 | BW89: M304 | BX89: 0 | BY89: 1 | BZ89: 0 | CA89: 1 | CB89: M308 | CC89: 1 | CD89: 4 | CE89: 033 | CF89: 29500 | CH89: 48C479 | CI89: 1 | CJ89: 000000 | CK89: 0 | CL89: 1 | CM89: 0 | CN89: 1 | CO89: 0 | CP89: 07 | CQ89: 47 | CR89: 07 | CS89: 47 | CT89: 1 | CU89: 5 | CW89: 1L | DA89: 157 | DC89: 2016 | DD89: 0 | DE89: 0 | DF89: 0 | DG89: 0 | DH89: 0 | DI89: 1 | DJ89: WEBB | DK89: 479 | DO89: N | DP89: CWR | DR89: SOUTHBOUND ISALDB-21, LEAD LOCOMOTIVE UP4772; WAS STRUCK BY A TRUCK THAT WENT AROUND THE ACTIVATED G | DS89: ATES. NO INJURIES TO CREW. NO RELEASES. NO DERAILMENT. | EG89: 0 | EH89: 27.684999 | EI89: -99.462086 | EJ89: 1 | EK89: 1 | EL89: Q | EO89: LAREDO SUB
A90: 16 | B90: 01 | C90: UP | D90: 0116LV004 | I90: 16 | J90: 01 | K90: UP | L90: 0116LV004 | N90: 447707S | O90: 16 | P90: 01 | Q90: 09 | R90: 9 | S90: 19 | T90: PM | U90: 07 | V90: 28 | W90: 0 | X90: 0 | Y90: 0 | AA90: OAKDALE | AB90: 637.91 | AC90: 22 | AD90: 47 | AE90: 4 | AF90: 1 | AG90: 049 | AH90: R | AI90: MAXB | AJ90: 2 | AK90: 6053 | AL90: 1 | AM90: Y | AN90: MAIN LINE | AO90: 5 | AP90: 9.1 | AQ90: 1 | AR90: UP | AS90: 007703 | AT90: 001 | AX90: 000 | AZ90: 2 | BA90: 0 | BB90: 0 | BC90: 0 | BD90: 0 | BE90: 0 | BF90: 0 | BG90: 0 | BH90: 0 | BI90: 0 | BJ90: 23 | BK90: 0 | BL90: 87 | BM90: 0 | BN90: 0 | BO90: 0 | BP90: 0 | BQ90: 0 | BR90: 0 | BS90: 0 | BT90: 44297 | BU90: 15500 | BV90: M303 | BX90: 0 | BY90: 1 | BZ90: 0 | CA90: 1 | CB90: M303 | CC90: 1 | CD90: 5 | CE90: 049 | CF90: 59797 | CH90: 22C003 | CI90: 1 | CJ90: 000000 | CK90: 0 | CL90: 1 | CM90: 0 | CN90: 1 | CO90: 0 | CP90: 06 | CQ90: 19 | CR90: 06 | CS90: 19 | CT90: 1 | CU90: 5 | CW90: 1L | DA90: 279 | DC90: 2016 | DD90: 0 | DE90: 0 | DF90: 0 | DG90: 0 | DH90: 0 | DI90: 1 | DJ90: ALLEN | DK90: 003 | DO90: N | DP90: CWR | DR90: MAXBT-09 WAS SOUTHBOUND ON THE LAKE CHARLES SUB WHEN IT COLLIDED WITH A TRAILER THAT WAS ATTACHED TO | DS90: A TRUCK THAT WAS STOPPED ON THE CROSSING. THERE WERE NO INJURIES TO THE CREW. THERE WAS EXTENSIVE | DT90: DAMAGE TO LEAD LOCOMOTIVE UP7703 AND THE CROSSING GATES, BUT NOTHING DERAILED. | EG90: 0 | EH90: 30.787575 | EI90: -92.677632 | EJ90: 1 | EK90: 2 | EL90: P | EO90: LAKE CHARLES SUB
A91: 16 | B91: 08 | C91: UP | D91: 0816HO004 | I91: 16 | J91: 08 | K91: UP | L91: 0816HO004 | N91: 448400J | O91: 16 | P91: 08 | Q91: 02 | R91: 8 | S91: 0 | T91: AM | U91: 07 | V91: 96 | W91: 0 | X91: 0 | Y91: 0 | AA91: SPRING | AB91: 216.61 | AC91: 48 | AD91: 90 | AE91: 2 | AF91: 1 | AG91: 010 | AH91: E | AI91: UEOT | AJ91: 1 | AK91: 6098 | AL91: 1 | AM91: Y | AN91: MAIN LINE 2 | AO91: 4 | AP91: 40.7 | AQ91: 1 | AR91: UP | AS91: 006040 | AT91: 001 | AX91: 000 | AZ91: 3 | BA91: 0 | BB91: 0 | BC91: 0 | BD91: 0 | BE91: 0 | BF91: 0 | BG91: 0 | BH91: 0 | BI91: 0 | BJ91: 4 | BK91: 0 | BL91: 94 | BM91: 0 | BN91: 0 | BO91: 0 | BP91: 0 | BQ91: 0 | BR91: 0 | BS91: 0 | BT91: 447 | BU91: 46885 | BV91: M302 | BX91: 0 | BY91: 0 | BZ91: 0 | CA91: 0 | CB91: M302 | CC91: 1 | CD91: 4 | CE91: 010 | CF91: 47332 | CH91: 48C201 | CI91: 0 | CJ91: 000000 | CK91: 0 | CL91: 1 | CM91: 0 | CN91: 1 | CO91: 0 | CP91: 03 | CQ91: 30 | CR91: 03 | CS91: 30 | CT91: 1 | CU91: 5 | CW91: 1L | DA91: 386 | DC91: 2016 | DD91: 0 | DE91: 0 | DF91: 0 | DG91: 0 | DH91: 0 | DI91: 0 | DJ91: HARRIS | DK91: 201 | DO91: N | DP91: CWR | DR91: UEOTWK-01, LEAD UNIT UP6040 STRUCK AN 18 WHEELER. THE TRUCK WAS HEADING WESTBOUND AND HAD BROKEN ITS | DS91: REAR AXLE WHEN IT STRUCK THE RAISED MEDIAN AND WAS FOULING MAIN 2. UPON IMPACT, THE VEHICLE''S FUEL | DT91: TANK WAS RUPTURED AND SPILLED APPROXIMATELY 50-80 GALLONS OF DIESEL. THE DRIVER EXITED THE VEHICLE P | DU91: RIOR TO IMPACT. THE TRAIN''S LEAD ENGINE SUFFERED DAMAGE TO THE CONDUCTOR''S SIDE STEPS. | EG91: 0 | EH91: 29.996041 | EI91: -95.396207 | EJ91: 1 | EK91: 1 | EL91: Q | EO91: PALESTINE SUB
A92: 16 | B92: 10 | C92: UP | D92: 1016LV003 | I92: 16 | J92: 10 | K92: UP | L92: 1016LV003 | N92: 448922G | O92: 16 | P92: 10 | Q92: 09 | R92: 12 | S92: 15 | T92: PM | U92: 07 | V92: 11 | W92: 0 | X92: 0 | Y92: 0 | AA92: DONALDSONVILLE | AB92: 64.07 | AC92: 22 | AD92: 72 | AE92: 2 | AF92: 1 | AG92: 046 | AH92: R | AI92: QLIA | AJ92: 2 | AK92: 8606 | AL92: 1 | AM92: Y | AN92: MAIN LINE | AO92: 4 | AP92: 43.1 | AQ92: 1 | AR92: UP | AS92: 008252 | AT92: 001 | AX92: 000 | AZ92: 2 | BA92: 0 | BB92: 0 | BC92: 0 | BD92: 0 | BE92: 0 | BF92: 0 | BG92: 0 | BH92: 0 | BI92: 0 | BJ92: 76 | BK92: 0 | BL92: 7 | BM92: 0 | BN92: 0 | BO92: 0 | BP92: 0 | BQ92: 0 | BR92: 0 | BS92: 0 | BT92: 15000 | BU92: 0 | BV92: M302 | BX92: 0 | BY92: 0 | BZ92: 0 | CA92: 0 | CB92: M302 | CC92: 1 | CD92: 4 | CE92: 046 | CF92: 15000 | CH92: 22C005 | CI92: 0 | CJ92: 000000 | CK92: 0 | CL92: 1 | CM92: 0 | CN92: 1 | CO92: 0 | CP92: 06 | CQ92: 05 | CR92: 06 | CS92: 05 | CT92: 1 | CU92: 5 | CW92: 1L | DA92: 210 | DC92: 2016 | DD92: 0 | DE92: 0 | DF92: 0 | DG92: 0 | DH92: 0 | DI92: 0 | DJ92: ASCENSION | DK92: 005 | DO92: N | DP92: CWR | DR92: SOUTHBOUND QLIAT-08 WITH LEAD UNIT UP8252 COLLIDED WITH A TRACTOR TRAILER HAULING SUGAR CANE. THE C | DS92: REW WAS NOT RELIEVED AND DELIVERED THE TRAIN TO AVONDALE. THERE WAS ONE VEHICLE OCCUPANT WHO WAS NO | DT92: T INJURED. | EG92: 0 | EH92: 30.094234 | EI92: -90.983514 | EJ92: 1 | EK92: 1 | EL92: Q | EO92: LIVONIA SUB
A93: 16 | B93: 01 | C93: UP | D93: 0116SA004 | I93: 16 | J93: 01 | K93: UP | L93: 0116SA004 | N93: 448974Y | O93: 16 | P93: 01 | Q93: 09 | R93: 10 | S93: 46 | T93: AM | U93: 07 | V93: 1 | W93: 0 | X93: 0 | Y93: 0 | AA93: COTULLA | AB93: 331.99 | AC93: 48 | AD93: 55 | AE93: 2 | AF93: 1 | AG93: 057 | AH93: R | AI93: ZYCS | AJ93: 2 | AK93: 3222 | AL93: 1 | AM93: Y | AN93: MAIN LINE | AO93: 4 | AP93: 38.7 | AQ93: 1 | AR93: UP | AS93: 007684 | AT93: 001 | AX93: 000 | AZ93: 2 | BA93: 0 | BB93: 0 | BC93: 0 | BD93: 0 | BE93: 0 | BF93: 0 | BG93: 0 | BH93: 0 | BI93: 0 | BJ93: 50 | BK93: 0 | BL93: 7 | BM93: 0 | BN93: 0 | BO93: 0 | BP93: 0 | BQ93: 0 | BR93: 0 | BS93: 0 | BT93: 12102 | BU93: 0 | BV93: M303 | BX93: 0 | BY93: 0 | BZ93: 0 | CA93: 0 | CB93: M303 | CC93: 1 | CD93: 4 | CE93: 057 | CF93: 12102 | CH93: 48C283 | CI93: 0 | CJ93: 000000 | CK93: 0 | CL93: 1 | CM93: 0 | CN93: 1 | CO93: 0 | CP93: 04 | CQ93: 31 | CR93: 04 | CS93: 31 | CT93: 1 | CU93: 5 | CW93: 1L | DA93: 305 | DC93: 2016 | DD93: 0 | DE93: 0 | DF93: 0 | DG93: 0 | DH93: 0 | DI93: 0 | DJ93: LA SALLE | DK93: 283 | DO93: N | DP93: CWR | DR93: FARMER COMING FROM TIRE SHOP IN DILLEY HEADED BACK TO RANCH ON FARM ROAD ATTEMPTED TO CROSS RR TRACK | DS93: AT CROSSING WHEN HIS JOHN DEERE TRACTOR STALLED ON TOP OF RR XING. TRACK WAS STRUCK BY THE ZYCSL-0 | DT93: 7 WITH LEAD UNIT 7684. FARMER GOT OFF TRACTOR PRIOR TO IMPACT. NO INJURIES INVOLVED. NOTHING DERA | DU93: ILED. | EG93: 0 | EH93: 28.623944 | EI93: -99.183095 | EJ93: 1 | EK93: 1 | EO93: LAREDO SUB
A94: 16 | B94: 08 | C94: UP | D94: 0816SA008 | I94: 16 | J94: 08 | K94: UP | L94: 0816SA008 | N94: 450514W | O94: 16 | P94: 08 | Q94: 08 | R94: 2 | S94: 30 | T94: PM | U94: 07 | V94: 3 | W94: 0 | X94: 0 | Y94: 0 | AA94: LAREDO | AB94: 400.35 | AC94: 48 | AD94: 100 | AE94: 2 | AF94: 1 | AG94: 046 | AH94: R | AI94: ZDTM | AJ94: 2 | AK94: 4217 | AL94: 1 | AM94: Y | AN94: MAIN LINE 1 | AO94: 4 | AP94: 17.7 | AQ94: 1 | AR94: CSXT | AS94: 004551 | AT94: 001 | AX94: 000 | AZ94: 3 | BA94: 0 | BB94: 0 | BC94: 0 | BD94: 0 | BE94: 0 | BF94: 0 | BG94: 0 | BH94: 0 | BI94: 0 | BJ94: 80 | BK94: 0 | BL94: 2 | BM94: 0 | BN94: 0 | BO94: 0 | BP94: 0 | BQ94: 0 | BR94: 0 | BS94: 0 | BT94: 3422 | BU94: 80359 | BV94: M304 | BX94: 0 | BY94: 0 | BZ94: 0 | CA94: 0 | CB94: M304 | CC94: 1 | CD94: 4 | CE94: 046 | CF94: 83781 | CH94: 48C479 | CI94: 0 | CJ94: 000000 | CK94: 0 | CL94: 1 | CM94: 0 | CN94: 1 | CO94: 0 | CP94: 05 | CQ94: 30 | CR94: 05 | CS94: 30 | CT94: 1 | CU94: 5 | CW94: 1L | DA94: 410 | DC94: 2016 | DD94: 0 | DE94: 0 | DF94: 0 | DG94: 0 | DH94: 0 | DI94: 0 | DJ94: WEBB | DK94: 479 | DO94: N | DP94: CWR | DR94: ZDTMX-06, LEAD LOCOMOTIVE CSXT4551; WAS HEADED SOUTH. THEY HAD A CLEAR SIGNAL TO HEAD SOUTH AND WAS | DS94: APPROACHING THE MAIN GATE AT PORT LAREDO WHEN A SEMI TRUCK DECIDED TO GO OVER THE CROSSING WHICH RES | DT94: ULTED IN IMPACT OF TRAIN TO SEMI. THE LEAD LOCOMOTIVE (CSXT4551) DID GET DAMAGED AND WAS CHASSIS OFF | DU94: THE SEMI WAS DAMAGED ALONG WITH THE CANTILEVER THAT GOT TAKEN OUT BY THE CHASSIS. NO INJURIES. NO D | DV94: ERAILMENT. | EG94: 0 | EH94: 27.669209 | EI94: -99.46919 | EJ94: 1 | EK94: 1 | EL94: Q | EO94: LAREDO SUB
A95: 16 | B95: 05 | C95: NS | D95: 120628 | I95: 16 | J95: 05 | K95: NS | L95: 120628 | N95: 469460B | O95: 16 | P95: 05 | Q95: 24 | R95: 8 | S95: 45 | T95: AM | U95: 07 | V95: 0 | W95: 0 | X95: 0 | Y95: 0 | AA95: SALEM | AB95: V249.3 | AC95: 51 | AD95: 68 | AE95: 2 | AF95: 1 | AG95: 033 | AH95: R | AI95: 820V | AJ95: 3 | AK95: 21275 | AL95: 1 | AM95: Y | AN95: SINGLE MAIN TRACK | AO95: 3 | AP95: 0000 | AQ95: 1 | AR95: NS | AS95: 001042 | AT95: 001 | AU95: N | AX95: 000 | AZ95: 2 | BA95: 0 | BB95: 0 | BC95: 0 | BD95: 0 | BE95: 0 | BF95: 0 | BG95: 0 | BH95: 0 | BI95: 0 | BJ95: 150 | BK95: 0 | BL95: 0 | BM95: 0 | BN95: 0 | BO95: 0 | BP95: 0 | BQ95: 0 | BR95: 0 | BS95: 0 | BT95: 12175 | BU95: 0 | BV95: M308 | BX95: 0 | BY95: 1 | BZ95: 0 | CA95: 1 | CB95: M308 | CC95: 1 | CD95: 3 | CE95: 033 | CF95: 12175 | CH95: 51C775 | CI95: 1 | CJ95: 000000 | CK95: 0 | CL95: 1 | CM95: 0 | CN95: 1 | CO95: 0 | CP95: 06 | CQ95: 45 | CR95: 06 | CS95: 45 | CT95: 1 | CU95: 2 | CW95: 1L | DA95: 59 | DC95: 2016 | DD95: 0 | DE95: 0 | DF95: 0 | DG95: 0 | DH95: 0 | DI95: 1 | DJ95: SALEM | DK95: 775 | DO95: N | DP95: CWR | DR95: NS TRAIN 820V424 STRUCK A HWY-USER AT A HWY-GRADE CROSSING. | EG95: 0 | EH95: 37.270788 | EI95: -80.032845 | EJ95: 1 | EK95: 1 | EL95: Q | EO95: POCAHONTAS
A96: 16 | B96: 08 | C96: NS | D96: 121691 | I96: 16 | J96: 08 | K96: NS | L96: 121691 | N96: 471593T | O96: 16 | P96: 08 | Q96: 16 | R96: 9 | S96: 18 | T96: AM | U96: 07 | V96: 0 | W96: 0 | X96: 0 | Y96: 0 | AA96: CRUM | AB96: NA007. | AC96: 54 | AD96: 77 | AE96: 2 | AF96: 1 | AG96: 022 | AH96: E | AI96: NOTR | AJ96: 4 | AK96: 0 | AL96: A | AM96: Y | AN96: SINGLE MAIN TRACK | AO96: 3 | AP96: 0012 | AQ96: 1 | AR96: MISC | AS96: 000195 | AT96: 001 | AU96: N | AX96: 000 | AZ96: 1 | BA96: 0 | BB96: 0 | BC96: 0 | BD96: 0 | BE96: 0 | BF96: 0 | BG96: 0 | BH96: 0 | BI96: 0 | BJ96: 0 | BK96: 0 | BL96: 5 | BM96: 0 | BN96: 0 | BO96: 0 | BP96: 0 | BQ96: 0 | BR96: 0 | BS96: 0 | BT96: 31000 | BU96: 0 | BV96: M303 | BX96: 0 | BY96: 1 | BZ96: 0 | CA96: 1 | CB96: M303 | CC96: 1 | CD96: 3 | CE96: 022 | CF96: 31000 | CH96: 54C099 | CI96: 1 | CJ96: 000000 | CK96: 0 | CL96: 2 | CM96: 0 | CN96: 0 | CO96: 0 | CP96: 02 | CQ96: 18 | CT96: 1 | CU96: 2 | CW96: 1L | DA96: 123 | DC96: 2016 | DD96: 0 | DE96: 1 | DF96: 0 | DG96: 0 | DH96: 0 | DI96: 0 | DJ96: WAYNE | DK96: 099 | DL96: 00 | DM96: 00 | DO96: N | DP96: CWR | DR96: HERZOG MULTI-PURPOSE MACHINE (MPM) OPERATING ON MAIN ONE TRACK STRUCK A MAINTENANCE OF WAY BACKHOE A | DS96: T A HWY-GRADE CROSSING. | EG96: 0 | EH96: 37.868151 | EI96: -82.406885 | EJ96: 1 | EK96: 2 | EL96: P | EO96: LAKE
A97: 16 | B97: 11 | C97: NS | D97: 122637 | I97: 16 | J97: 11 | K97: NS | L97: 122637 | N97: 478509G | O97: 16 | P97: 11 | Q97: 02 | R97: 7 | S97: 21 | T97: PM | U97: 07 | V97: 0 | W97: 0 | X97: 0 | Y97: 0 | AA97: MENTONE | AB97: B419.7 | AC97: 18 | AD97: 71 | AE97: 3 | AF97: 3 | AG97: 055 | AH97: R | AI97: 280L | AJ97: 3 | AK97: 1588 | AL97: 1 | AM97: Y | AN97: SINGLE MAIN TRACK | AO97: 4 | AP97: 0030 | AQ97: 1 | AR97: NS | AS97: 007511 | AT97: 001 | AU97: N | AX97: 000 | AZ97: 3 | BA97: 0 | BB97: 0 | BC97: 0 | BD97: 0 | BE97: 0 | BF97: 0 | BG97: 0 | BH97: 0 | BI97: 0 | BJ97: 19 | BK97: 0 | BL97: 5 | BM97: 0 | BN97: 0 | BO97: 0 | BP97: 0 | BQ97: 0 | BR97: 0 | BS97: 0 | BT97: 2722 | BU97: 15000 | BV97: M303 | BX97: 1 | BY97: 0 | BZ97: 1 | CA97: 0 | CB97: M303 | CC97: 1 | CD97: 4 | CE97: 055 | CF97: 17722 | CH97: 18C085 | CI97: 0 | CJ97: 000000 | CK97: 1 | CL97: 1 | CM97: 0 | CN97: 1 | CO97: 0 | CP97: 06 | CQ97: 21 | CR97: 06 | CS97: 21 | CT97: 1 | CU97: 4 | CW97: 1L | DA97: 59 | DC97: 2016 | DD97: 0 | DE97: 0 | DF97: 0 | DG97: 0 | DH97: 1 | DI97: 0 | DJ97: KOSCIUSKO | DK97: 085 | DO97: N | DP97: CWR | DR97: NS TRAIN 280L402 STRUCK A HWY-USER AT A HWY-GRADE CROSSING. | EG97: 0 | EH97: 41.173143 | EI97: -86.038992 | EJ97: 1 | EK97: 1 | EL97: Q | EO97: LAKE
A98: 16 | B98: 08 | C98: NS | D98: 121731 | I98: 16 | J98: 08 | K98: NS | L98: 121731 | N98: 481374G | O98: 16 | P98: 08 | Q98: 18 | R98: 4 | S98: 0 | T98: PM | U98: 07 | V98: 7 | W98: 0 | X98: 0 | Y98: 0 | AA98: CHILLICOTHE | AB98: N652.0 | AC98: 39 | AD98: 84 | AE98: 3 | AF98: 2 | AG98: 034 | AH98: R | AI98: 234L | AJ98: 3 | AK98: 6148 | AL98: 1 | AM98: Y | AN98: SINGLE MAIN TRACK | AO98: 4 | AP98: 0000 | AQ98: 1 | AR98: NS | AS98: 009399 | AT98: 001 | AU98: N | AX98: 000 | AZ98: 3 | BA98: 0 | BB98: 0 | BC98: 0 | BD98: 0 | BE98: 0 | BF98: 0 | BG98: 0 | BH98: 0 | BI98: 0 | BJ98: 33 | BK98: 0 | BL98: 1 | BM98: 0 | BN98: 0 | BO98: 0 | BP98: 0 | BQ98: 0 | BR98: 0 | BS98: 0 | BT98: 22200 | BU98: 0 | BV98: M302 | BX98: 0 | BY98: 1 | BZ98: 0 | CA98: 1 | CB98: M302 | CC98: 1 | CD98: 4 | CE98: 034 | CF98: 22200 | CH98: 39C141 | CI98: 1 | CJ98: 000000 | CK98: 0 | CL98: 1 | CM98: 1 | CN98: 1 | CO98: 0 | CP98: 07 | CQ98: 50 | CR98: 07 | CS98: 50 | CT98: 1 | CU98: 2 | CW98: 1L | DA98: 59 | DC98: 2016 | DD98: 0 | DE98: 0 | DF98: 0 | DG98: 0 | DH98: 0 | DI98: 1 | DJ98: ROSS | DK98: 141 | DO98: N | DP98: CWR | DR98: NS TRAIN 234L817 STRUCK A HWY-USER AT A HWY-GRADE CROSSING. | EG98: 0 | EH98: 39.285487 | EI98: -82.938988 | EJ98: 1 | EK98: 1 | EL98: D | EM98: G | EO98: LAKE
A99: 16 | B99: 01 | C99: MNCW | D99: 2016012406 | I99: 16 | J99: 01 | K99: MNCW | L99: 2016012406 | N99: 500536L | O99: 16 | P99: 01 | Q99: 24 | R99: 9 | S99: 9 | T99: AM | U99: 07 | V99: 0 | W99: 0 | X99: 0 | Y99: 0 | AA99: STAMFORD | AB99: 3.0 | AC99: 09 | AD99: 32 | AE99: 2 | AF99: 6 | AG99: 038 | AH99: R | AI99: 9511 | AJ99: 4 | AK99: 0 | AL99: D | AM99: Y | AN99: SINGLE MAIN TRACK | AO99: 3 | AP99: 7.56 | AQ99: 1 | AR99: MNCW | AS99: 009511 | AT99: 001 | AU99: N | AX99: 000 | AZ99: 0 | BA99: 0 | BB99: 0 | BC99: 0 | BD99: 0 | BE99: 0 | BF99: 0 | BG99: 0 | BH99: 0 | BI99: 0 | BJ99: 0 | BK99: 0 | BL99: 0 | BM99: 6 | BN99: 0 | BO99: 0 | BP99: 0 | BQ99: 0 | BR99: 0 | BS99: 0 | BT99: 21650 | BU99: 0 | BV99: M399 | BX99: 0 | BY99: 0 | BZ99: 0 | CA99: 0 | CB99: M399 | CC99: 1 | CD99: 3 | CE99: 038 | CF99: 21650 | CH99: 09C001 | CI99: 0 | CJ99: 000000 | CK99: 0 | CL99: 1 | CM99: 0 | CN99: 1 | CO99: 0 | CP99: 03 | CQ99: 44 | CR99: 03 | CS99: 44 | CT99: 1 | CU99: 1 | CW99: 3L | DA99: 219 | DC99: 2016 | DD99: 0 | DE99: 0 | DF99: 0 | DG99: 0 | DH99: 0 | DI99: 0 | DJ99: FAIRFIELD | DK99: 001 | DO99: N | DP99: CWR | DR99: VEHICLE OPERATOR WAS PLOWING OVER CROSSING. VEHICLE BECAME STUCK WHEN PUSHING SNOW INTO PILES. VEHIC | DS99: LE OPERATOR ATTEMPTED TO FREE VEHICLE. NO EMERGENCY CALL MADE BY VEHICLE OPERATOR, AND ESCAPED VEHIC | DT99: LE PRIOR TO IMPACT. | EG99: 0 | EH99: 41.045793 | EI99: -73.311024 | EJ99: 1 | EK99: 1 | EL99: A | EM99: B | EN99: Q | EO99: NEW CANAAN BRANCH
A100: 16 | B100: 11 | C100: NS | D100: 122685 | I100: 16 | J100: 11 | K100: NS | L100: 122685 | N100: 503025L | O100: 16 | P100: 11 | Q100: 06 | R100: 6 | S100: 45 | T100: PM | U100: 07 | V100: 0 | W100: 0 | X100: 0 | Y100: 0 | AA100: ATWATER | AB100: RD074. | AC100: 39 | AD100: 45 | AE100: 3 | AF100: 1 | AG100: 047 | AH100: R | AI100: 573B | AJ100: 3 | AK100: 0 | AL100: 1 | AM100: Y | AN100: DOUBLE-CLEVELAND MAI | AO100: 4 | AP100: 0047 | AQ100: 1 | AR100: NS | AS100: 009828 | AT100: 001 | AU100: N | AX100: 000 | AZ100: 1 | BA100: 0 | BB100: 0 | BC100: 0 | BD100: 0 | BE100: 0 | BF100: 0 | BG100: 0 | BH100: 0 | BI100: 0 | BJ100: 0 | BK100: 0 | BL100: 118 | BM100: 0 | BN100: 0 | BO100: 0 | BP100: 0 | BQ100: 0 | BR100: 0 | BS100: 0 | BT100: 14889 | BU100: 0 | BV100: M303 | BX100: 0 | BY100: 0 | BZ100: 0 | CA100: 0 | CB100: M303 | CC100: 1 | CD100: 4 | CE100: 047 | CF100: 14889 | CH100: 39C133 | CI100: 0 | CJ100: 000000 | CK100: 0 | CL100: 1 | CM100: 0 | CN100: 1 | CO100: 0 | CP100: 07 | CQ100: 30 | CR100: 07 | CS100: 30 | CT100: 1 | CU100: 2 | CW100: 1L | DA100: 82 | DC100: 2016 | DD100: 0 | DE100: 0 | DF100: 0 | DG100: 0 | DH100: 0 | DI100: 0 | DJ100: PORTAGE | DK100: 133 | DO100: N | DP100: CWR | DR100: NS TRAIN 573B105 STRUCK A HWY-USER AT A HWY-GRADE CROSSING. DRIVER''S AGE VERIFIED. | EG100: 0 | EH100: 41.023681 | EI100: -81.163551 | EJ100: 1 | EK100: 1 | EL100: A | EO100: PITTSBURGH
A101: 16 | B101: 05 | C101: CSX | D101: 000159582 | I101: 16 | J101: 05 | K101: CSX | L101: 000159582 | N101: 518329W | O101: 16 | P101: 05 | Q101: 06 | R101: 7 | S101: 48 | T101: AM | U101: 07 | V101: 4 | W101: 0 | X101: 0 | Y101: 0 | AA101: EDISON | AB101: 0090.8 | AC101: 39 | AD101: 55 | AE101: 2 | AF101: 1 | AG101: 059 | AH101: R | AI101: Q022 | AJ101: 4 | AK101: 3333 | AL101: 1 | AM101: Y | AN101: SINGLE MAIN | AO101: 4 | AP101: 0006.8 | AQ101: 1 | AR101: CSXT | AS101: 003228 | AT101: 001 | AU101: N | AX101: 000 | AZ101: 3 | BA101: 0 | BB101: 0 | BC101: 0 | BD101: 0 | BE101: 0 | BF101: 0 | BG101: 0 | BH101: 0 | BI101: 0 | BJ101: 21 | BK101: 0 | BL101: 2 | BM101: 0 | BN101: 0 | BO101: 0 | BP101: 0 | BQ101: 0 | BR101: 0 | BS101: 0 | BT101: 85946 | BU101: 0 | BV101: M304 | BX101: 0 | BY101: 1 | BZ101: 0 | CA101: 1 | CB101: M304 | CC101: 1 | CD101: 4 | CE101: 059 | CF101: 85946 | CH101: 39C117 | CI101: 1 | CJ101: 000000 | CK101: 0 | CL101: 1 | CM101: 0 | CN101: 1 | CO101: 1 | CP101: 02 | CQ101: 48 | CR101: 02 | CS101: 48 | CT101: 1 | CU101: 2 | CW101: 1L | DA101: 108 | DC101: 2016 | DD101: 0 | DE101: 0 | DF101: 0 | DG101: 0 | DH101: 0 | DI101: 1 | DJ101: MORROW | DK101: 117 | DO101: N | DP101: CWR | DR101: Q02206 TRAVELING EAST, STRUCK TRACTOR TRAILER AT THE CROSSING. PROTECTION ALSO AT CROSSING: ADVANCE | DS101: WARNING. | EG101: 0 | EH101: 40.589077 | EI101: -82.849188 | EJ101: 1 | EK101: 1 | EL101: D | EO101: COLUMBUS LINE
A102: 16 | B102: 08 | C102: NS | D102: 121759 | I102: 16 | J102: 08 | K102: NS | L102: 121759 | N102: 522538L | O102: 16 | P102: 08 | Q102: 19 | R102: 3 | S102: 17 | T102: PM | U102: 07 | V102: 0 | W102: 0 | X102: 0 | Y102: 0 | AA102: MISHAWAKA | AB102: CD433. | AC102: 18 | AD102: 76 | AE102: 2 | AF102: 1 | AG102: 052 | AH102: R | AI102: 26NB | AJ102: 3 | AK102: 3195 | AL102: 1 | AM102: Y | AN102: DOUBLE-CHICAGO LINE | AO102: 4 | AP102: 0000 | AQ102: 1 | AR102: NS | AS102: 009561 | AT102: 001 | AU102: N | AX102: 000 | AZ102: 2 | BA102: 0 | BB102: 0 | BC102: 0 | BD102: 0 | BE102: 0 | BF102: 0 | BG102: 0 | BH102: 0 | BI102: 0 | BJ102: 23 | BK102: 0 | BL102: 0 | BM102: 0 | BN102: 0 | BO102: 0 | BP102: 0 | BQ102: 0 | BR102: 0 | BS102: 0 | BT102: 230 | BU102: 12000 | BV102: M303 | BX102: 0 | BY102: 0 | BZ102: 0 | CA102: 0 | CB102: M303 | CC102: 1 | CD102: 4 | CE102: 052 | CF102: 12230 | CH102: 18C141 | CI102: 0 | CJ102: 000000 | CK102: 0 | CL102: 1 | CM102: 0 | CN102: 1 | CO102: 0 | CP102: 04 | CQ102: 17 | CR102: 04 | CS102: 17 | CT102: 1 | CU102: 4 | CW102: 1L | DA102: 59 | DC102: 2016 | DD102: 0 | DE102: 0 | DF102: 0 | DG102: 0 | DH102: 0 | DI102: 0 | DJ102: ST JOSEPH | DK102: 141 | DO102: N | DP102: CWR | DR102: NS TRAIN 26NB319 STRUCK A HWY-USER AT A HWY-GRADE CROSSING. | EG102: 0 | EH102: 41.65755 | EI102: -86.196523 | EJ102: 1 | EK102: 1 | EL102: D | EM102: Z | EO102: DEARBORN
A103: 16 | B103: 10 | C103: NS | D103: 122395 | I103: 16 | J103: 10 | K103: NS | L103: 122395 | N103: 522639X | O103: 16 | P103: 10 | Q103: 12 | R103: 7 | S103: 21 | T103: PM | U103: 07 | V103: 0 | W103: 0 | X103: 0 | Y103: 0 | AA103: GARY | AB103: CD490. | AC103: 18 | AD103: 58 | AE103: 3 | AF103: 1 | AG103: 040 | AH103: E | AI103: 25NB | AJ103: 4 | AK103: 4614 | AL103: 1 | AM103: Y | AN103: DOUBLE-CHICAGO MAIN | AO103: 5 | AP103: 0068 | AQ103: 1 | AR103: BNSF | AS103: 007464 | AT103: 001 | AU103: N | AX103: 000 | AZ103: 2 | BA103: 0 | BB103: 0 | BC103: 0 | BD103: 0 | BE103: 0 | BF103: 0 | BG103: 0 | BH103: 0 | BI103: 0 | BJ103: 33 | BK103: 0 | BL103: 0 | BM103: 0 | BN103: 0 | BO103: 0 | BP103: 0 | BQ103: 0 | BR103: 0 | BS103: 0 | BT103: 90 | BU103: 20000 | BV103: M308 | BX103: 0 | BY103: 0 | BZ103: 0 | CA103: 0 | CB103: M308 | CC103: 1 | CD103: 5 | CE103: 040 | CF103: 20090 | CH103: 18C089 | CI103: 0 | CJ103: 000000 | CK103: 0 | CL103: 1 | CM103: 1 | CN103: 1 | CO103: 0 | CP103: 09 | CQ103: 02 | CR103: 09 | CS103: 02 | CT103: 1 | CU103: 4 | CW103: 1L | DA103: 89 | DC103: 2016 | DD103: 0 | DE103: 0 | DF103: 0 | DG103: 0 | DH103: 0 | DI103: 0 | DJ103: LAKE | DK103: 089 | DO103: N | DP103: CWR | DR103: NS TRAIN 25NB212 STRUCK A HWY-USER AT A HWY-GRADE CROSSING. DRIVER''S INFORMATION UNKNOWN. | EG103: 0 | EH103: 41.610357 | EI103: -87.222612 | EJ103: 1 | EK103: 1 | EL103: Q | EO103: DEARBORN
A104: 16 | B104: 10 | C104: NS | D104: 122579 | I104: 16 | J104: 10 | K104: NS | L104: 122579 | N104: 523836P | O104: 16 | P104: 10 | Q104: 28 | R104: 11 | S104: 30 | T104: AM | U104: 07 | V104: 0 | W104: 0 | X104: 0 | Y104: 0 | AA104: N/A | AB104: CD196. | AC104: 39 | AD104: 50 | AE104: 2 | AF104: 1 | AG104: 042 | AH104: R | AI104: 401B | AJ104: 4 | AK104: 2809 | AL104: 1 | AM104: Y | AN104: DOUBLE-CHICAGO MAIN | AO104: 5 | AP104: 0082 | AQ104: 1 | AR104: NS | AS104: 009439 | AT104: 001 | AU104: N | AX104: 000 | AZ104: 2 | BA104: 0 | BB104: 0 | BC104: 0 | BD104: 0 | BE104: 0 | BF104: 0 | BG104: 0 | BH104: 0 | BI104: 0 | BJ104: 0 | BK104: 0 | BL104: 128 | BM104: 0 | BN104: 0 | BO104: 0 | BP104: 0 | BQ104: 0 | BR104: 0 | BS104: 0 | BT104: 4191 | BU104: 10000 | BV104: M303 | BX104: 0 | BY104: 3 | BZ104: 0 | CA104: 3 | CB104: M303 | CC104: 1 | CD104: 5 | CE104: 042 | CF104: 14191 | CH104: 39C035 | CI104: 3 | CJ104: 000000 | CK104: 0 | CL104: 1 | CM104: 0 | CN104: 1 | CO104: 0 | CP104: 02 | CQ104: 55 | CR104: 02 | CS104: 55 | CT104: 1 | CU104: 2 | CW104: 1L | DA104: 59 | DC104: 2016 | DD104: 0 | DE104: 0 | DF104: 0 | DG104: 0 | DH104: 0 | DI104: 3 | DJ104: CUYAHOGA | DK104: 035 | DO104: N | DP104: CWR | DR104: NS TRAIN 401B125 STRUCK A HWY-USER AT A HWY-GRADE CROSSING. | EG104: 0 | EH104: 41.37518 | EI104: -81.902457 | EJ104: 1 | EK104: 1 | EL104: D | EO104: DEARBORN
A105: 16 | B105: 03 | C105: CSX | D105: 000157735 | I105: 16 | J105: 03 | K105: CSX | L105: 000157735 | N105: 539242N | O105: 16 | P105: 03 | Q105: 03 | R105: 5 | S105: 57 | T105: PM | U105: 07 | V105: 0 | W105: 0 | X105: 0 | Y105: 0 | AA105: INDIANAPOLIS | AB105: 0280.5 | AC105: 18 | AD105: 45 | AE105: 2 | AF105: 2 | AG105: 024 | AH105: R | AI105: S132 | AJ105: 3 | AK105: 5222 | AL105: 1 | AM105: Y | AN105: #1 MAIN | AO105: 3 | AP105: 0006.2 | AQ105: 1 | AR105: UP | AS105: 007633 | AT105: 001 | AU105: N | AX105: 000 | AZ105: 3 | BA105: 0 | BB105: 0 | BC105: 0 | BD105: 0 | BE105: 0 | BF105: 0 | BG105: 0 | BH105: 0 | BI105: 0 | BJ105: 48 | BK105: 0 | BL105: 0 | BM105: 0 | BN105: 0 | BO105: 0 | BP105: 0 | BQ105: 0 | BR105: 0 | BS105: 0 | BT105: 2071 | BU105: 26819 | BV105: M303 | BX105: 0 | BY105: 0 | BZ105: 0 | CA105: 0 | CB105: M303 | CC105: 1 | CD105: 3 | CE105: 024 | CF105: 28890 | CH105: 18C097 | CI105: 0 | CJ105: 000000 | CK105: 0 | CL105: 1 | CM105: 0 | CN105: 1 | CO105: 0 | CP105: 01 | CQ105: 57 | CR105: 01 | CS105: 57 | CT105: 1 | CU105: 4 | CW105: 1L | DA105: 164 | DC105: 2016 | DD105: 0 | DE105: 0 | DF105: 0 | DG105: 0 | DH105: 0 | DI105: 0 | DJ105: MARION | DK105: 097 | DO105: N | DP105: CWR | DR105: S13203 STRUCK SEMI TRAILER AT RURAL STREET #1 TRACK, SEMI STOPPED ON CROSSING. PROTECTION ALSO AT CR | DS105: OSSING: ADVANCE WARNING AND PAVEMENT MARKINGS (RR XING SYMBOLS). | EG105: 0 | EH105: 39.794097 | EI105: -86.1166 | EJ105: 1 | EK105: 1 | EO105: INDIANAPOLIS TERMINA
A106: 16 | B106: 06 | C106: CSX | D106: 000160620 | I106: 16 | J106: 06 | K106: CSX | L106: 000160620 | N106: 584648S | O106: 16 | P106: 06 | Q106: 16 | R106: 8 | S106: 20 | T106: PM | U106: 07 | V106: 4 | W106: 0 | X106: 0 | Y106: 0 | AA106: HOMESTEAD | AB106: 0006.9 | AC106: 42 | AD106: 65 | AE106: 4 | AF106: 3 | AG106: 036 | AH106: E | AI106: Q016 | AJ106: 4 | AK106: 6451 | AL106: 1 | AM106: Y | AN106: SINGLE MAIN TRACK | AO106: 3 | AP106: 0061.1 | AQ106: 1 | AR106: CSXT | AS106: 000992 | AT106: 001 | AU106: N | AX106: 000 | AZ106: 2 | BA106: 0 | BB106: 0 | BC106: 0 | BD106: 0 | BE106: 0 | BF106: 0 | BG106: 0 | BH106: 0 | BI106: 0 | BJ106: 50 | BK106: 0 | BL106: 2 | BM106: 0 | BN106: 0 | BO106: 0 | BP106: 0 | BQ106: 0 | BR106: 0 | BS106: 0 | BT106: 10906 | BU106: 8953 | BV106: M399 | BX106: 0 | BY106: 0 | BZ106: 0 | CA106: 0 | CB106: M399 | CC106: 1 | CD106: 3 | CE106: 036 | CF106: 19859 | CH106: 42C003 | CI106: 0 | CJ106: 000000 | CK106: 0 | CL106: 1 | CM106: 1 | CN106: 1 | CO106: 0 | CP106: 04 | CQ106: 20 | CR106: 04 | CS106: 20 | CT106: 1 | CU106: 2 | CW106: 1L | DA106: 64 | DC106: 2016 | DD106: 0 | DE106: 0 | DF106: 0 | DG106: 0 | DH106: 0 | DI106: 0 | DJ106: ALLEGHENY | DK106: 003 | DO106: N | DP106: CWR | DR106: Q01616 STRUCK AN UNOCCUPIED TRACTOR-TRAILER STOPPED ON CROSSING. | EG106: 0 | EH106: 40.408444 | EI106: -79.912475 | EJ106: 1 | EK106: 1 | EO106: PITTSBURGH
A107: 16 | B107: 02 | C107: SEPA | D107: 20480 | I107: 16 | J107: 02 | K107: SEPA | L107: 20480 | N107: 592696C | O107: 16 | P107: 02 | Q107: 03 | R107: 6 | S107: 20 | T107: AM | U107: 07 | V107: 0 | W107: 0 | X107: 0 | Y107: 0 | AA107: NORRISTOWN | AB107: 12.95 | AC107: 42 | AD107: 43 | AE107: 1 | AF107: 3 | AG107: 050 | AH107: E | AI107: 6212 | AJ107: 2 | AK107: 0 | AL107: 2 | AM107: Y | AN107: 1 | AO107: 4 | AQ107: 1 | AR107: MU | AS107: 000161 | AT107: 001 | AU107: Y | AX107: 000 | AZ107: 1 | BA107: 4 | BB107: 0 | BC107: 1 | BD107: 0 | BE107: 0 | BF107: 0 | BG107: 0 | BH107: 0 | BI107: 0 | BJ107: 0 | BK107: 0 | BL107: 0 | BM107: 0 | BN107: 0 | BO107: 0 | BP107: 0 | BQ107: 0 | BR107: 0 | BS107: 0 | BT107: 9928 | BU107: 0 | BV107: M302 | BX107: 0 | BY107: 2 | BZ107: 0 | CA107: 2 | CB107: M302 | CC107: 1 | CD107: 4 | CE107: 050 | CF107: 9928 | CH107: 42C091 | CI107: 2 | CJ107: 000000 | CK107: 0 | CL107: 1 | CM107: 0 | CN107: 1 | CO107: 1 | CP107: 01 | CR107: 01 | CT107: 1 | CU107: 2 | CW107: 3L | DA107: 65 | DC107: 2016 | DD107: 0 | DE107: 0 | DF107: 0 | DG107: 2 | DH107: 0 | DI107: 0 | DJ107: MONTGOMERY | DK107: 091 | DL107: 00 | DM107: 00 | DO107: Y | DP107: CWR | DR107: TRAIN 6212 HIT TAXI STUCK ON RAIL TRACKS. TOTAL LOSS ON TAXI CAB. | EG107: 0 | EH107: 40.124434 | EI107: -75.33019 | EJ107: 1 | EK107: 1 | EO107: SYSTEM
A108: 16 | B108: 11 | C108: UP | D108: 1116KC020 | I108: 16 | J108: 11 | K108: UP | L108: 1116KC020 | N108: 596101H | O108: 16 | P108: 11 | Q108: 28 | R108: 8 | S108: 50 | T108: AM | U108: 07 | V108: 10 | W108: 0 | X108: 0 | Y108: 0 | AA108: TEXHOMA | AB108: 504.2 | AC108: 48 | AD108: 50 | AE108: 2 | AF108: 1 | AG108: 064 | AH108: R | AI108: IGSD | AJ108: 3 | AK108: 6336 | AL108: 1 | AM108: Y | AN108: MAIN LINE | AO108: 5 | AP108: 39.5 | AQ108: 1 | AR108: UP | AS108: 007381 | AT108: 001 | AX108: 000 | AZ108: 2 | BA108: 0 | BB108: 0 | BC108: 0 | BD108: 1 | BE108: 0 | BF108: 0 | BG108: 0 | BH108: 0 | BI108: 0 | BJ108: 111 | BK108: 0 | BL108: 0 | BM108: 0 | BN108: 0 | BO108: 0 | BP108: 0 | BQ108: 0 | BR108: 0 | BS108: 0 | BT108: 20000 | BU108: 0 | BV108: M304 | BX108: 0 | BY108: 0 | BZ108: 0 | CA108: 0 | CB108: M304 | CC108: 1 | CD108: 5 | CE108: 064 | CF108: 20000 | CH108: 48C421 | CI108: 0 | CJ108: 000000 | CK108: 0 | CL108: 1 | CM108: 0 | CN108: 1 | CO108: 0 | CP108: 01 | CQ108: 30 | CR108: 01 | CS108: 30 | CT108: 1 | CU108: 5 | CW108: 1L | DA108: 117 | DC108: 2016 | DD108: 0 | DE108: 0 | DF108: 0 | DG108: 0 | DH108: 0 | DI108: 0 | DJ108: SHERMAN | DK108: 421 | DO108: N | DP108: CWR | DR108: IGSDUX-26, WITH LEAD LOCOMOTIVE UP7381, STRUCK THE TRAILER OF A SEMI-TRUCK. NO DERAILMENT, NO RELEA | DS108: SES, NO INJURIES. | EG108: 0 | EH108: 36.420981 | EI108: -101.923462 | EJ108: 1 | EK108: 1 | EL108: Q | EO108: PRATT SUB
A109: 16 | B109: 09 | C109: UP | D109: 0916KC008 | I109: 16 | J109: 09 | K109: UP | L109: 0916KC008 | N109: 596188B | O109: 16 | P109: 09 | Q109: 12 | R109: 9 | S109: 31 | T109: AM | U109: 07 | V109: 15 | W109: 0 | X109: 0 | Y109: 0 | AA109: STRATFORD | AB109: 525.91 | AC109: 48 | AD109: 75 | AE109: 2 | AF109: 1 | AG109: 043 | AH109: R | AI109: ZG4C | AJ109: 4 | AK109: 7476 | AL109: 1 | AM109: Y | AN109: MAIN LINE | AO109: 4 | AP109: 39.5 | AQ109: 1 | AR109: UP | AS109: 008262 | AT109: 001 | AX109: 000 | AZ109: 3 | BA109: 0 | BB109: 1 | BC109: 0 | BD109: 0 | BE109: 0 | BF109: 0 | BG109: 0 | BH109: 0 | BI109: 0 | BJ109: 108 | BK109: 0 | BL109: 0 | BM109: 0 | BN109: 0 | BO109: 0 | BP109: 0 | BQ109: 0 | BR109: 0 | BS109: 0 | BT109: 5210 | BU109: 62252 | BV109: M302 | BX109: 0 | BY109: 1 | BZ109: 0 | CA109: 1 | CB109: M302 | CC109: 1 | CD109: 4 | CE109: 043 | CF109: 67462 | CH109: 48C111 | CI109: 1 | CJ109: 000000 | CK109: 0 | CL109: 1 | CM109: 0 | CN109: 1 | CO109: 0 | CP109: 11 | CQ109: 46 | CR109: 11 | CS109: 46 | CT109: 1 | CU109: 5 | CW109: 1L | DA109: 86 | DC109: 2016 | DD109: 0 | DE109: 0 | DF109: 0 | DG109: 0 | DH109: 0 | DI109: 1 | DJ109: DALLAM | DK109: 111 | DO109: N | DP109: CWR | DR109: ZG4C1-11, LEAD LOCOMOTIVE UP8262, STRUCK A SEMI TRAILER. NO DERAILMENTS, NO RELEASES. | EG109: 0 | EH109: 36.23534 | EI109: -102.238331 | EJ109: 1 | EK109: 1 | EL109: Q | EO109: PRATT SUB
A110: 16 | B110: 07 | C110: UP | D110: 0716KC006 | I110: 16 | J110: 07 | K110: UP | L110: 0716KC006 | N110: 605862H | O110: 16 | P110: 07 | Q110: 06 | R110: 2 | S110: 29 | T110: PM | U110: 07 | V110: 0 | W110: 0 | X110: 0 | Y110: 0 | AA110: HAVILAND | AB110: 320.31 | AC110: 20 | AD110: 100 | AE110: 2 | AF110: 1 | AG110: 047 | AH110: R | AI110: WSBH | AJ110: 3 | AK110: 3419 | AL110: 4 | AM110: Y | AN110: MAIN LINE 1 | AO110: 4 | AP110: 25.5 | AQ110: 1 | AR110: UP | AS110: 005059 | AT110: 001 | AX110: 000 | AZ110: 3 | BA110: 0 | BB110: 0 | BC110: 0 | BD110: 0 | BE110: 0 | BF110: 0 | BG110: 0 | BH110: 0 | BI110: 0 | BJ110: 28 | BK110: 0 | BL110: 0 | BM110: 0 | BN110: 0 | BO110: 0 | BP110: 0 | BQ110: 0 | BR110: 0 | BS110: 0 | BT110: 25090 | BU110: 1000 | BV110: M302 | BX110: 0 | BY110: 0 | BZ110: 0 | CA110: 0 | CB110: M302 | CC110: 1 | CD110: 4 | CE110: 047 | CF110: 26090 | CH110: 20C097 | CI110: 0 | CJ110: 000000 | CK110: 0 | CL110: 1 | CM110: 0 | CN110: 1 | CO110: 0 | CP110: 08 | CQ110: 24 | CR110: 08 | CS110: 24 | CT110: 1 | CU110: 6 | CW110: 1L | DA110: 83 | DC110: 2016 | DD110: 0 | DE110: 0 | DF110: 0 | DG110: 0 | DH110: 0 | DI110: 0 | DJ110: KIOWA | DK110: 097 | DO110: N | DP110: CWR | DR110: WSBHKD-05, LEAD LOCOMOTIVE UP5059, STRUCK A SEMI THAT FAILED TO STOP AT A CROSSING. | EG110: 0 | EH110: 37.613037 | EI110: -99.14126 | EJ110: 1 | EK110: 1 | EL110: Q | EO110: PRATT SUB
A111: 16 | B111: 05 | C111: IAIS | D111: 2016024 | I111: 16 | J111: 05 | K111: IAIS | L111: 2016024 | N111: 606842A | O111: 16 | P111: 05 | Q111: 05 | R111: 7 | S111: 25 | T111: PM | U111: 07 | V111: 33 | W111: 0 | X111: 0 | Y111: 0 | AA111: ATALISSA | AB111: 216.1 | AC111: 19 | AD111: 65 | AE111: 3 | AF111: 1 | AG111: 038 | AH111: E | AI111: SASI | AJ111: 3 | AK111: 11918 | AL111: 1 | AM111: Y | AN111: SINGLE MAIN TRACK | AO111: 3 | AQ111: 1 | AR111: IAIS | AS111: 000505 | AT111: 001 | AU111: N | AX111: 000 | AZ111: 2 | BA111: 0 | BB111: 0 | BC111: 0 | BD111: 0 | BE111: 0 | BF111: 0 | BG111: 0 | BH111: 0 | BI111: 0 | BJ111: 86 | BK111: 0 | BL111: 21 | BM111: 0 | BN111: 0 | BO111: 0 | BP111: 0 | BQ111: 0 | BR111: 0 | BS111: 0 | BT111: 53000 | BU111: 159 | BV111: M302 | BX111: 0 | BY111: 3 | BZ111: 0 | CA111: 3 | CB111: M302 | CC111: 1 | CD111: 3 | CE111: 038 | CF111: 53159 | CH111: 19C139 | CI111: 3 | CJ111: 000000 | CK111: 0 | CL111: 1 | CM111: 0 | CN111: 1 | CO111: 0 | CP111: 02 | CQ111: 25 | CR111: 02 | CS111: 25 | CT111: 1 | CU111: 6 | CW111: 3L | DA111: 308 | DC111: 2016 | DD111: 0 | DE111: 2 | DF111: 0 | DG111: 0 | DH111: 0 | DI111: 1 | DJ111: MUSCATINE | DK111: 139 | DO111: N | DP111: CWR | DR111: PERSON DROVE A JOHN DEERE 4038R FARM SPRAYER OUT OF DRIVEWAY OF CROP PRODUCTION SERVICES, ONTO OAK S | DS111: T, THEN PROCEEDED ACROSS THE RAILROAD TRACKS WITHOUT YIELDING TO THE ONCOMING TRAIN. TRAIN STRUCK SP | DT111: RAYER RESULTING IN INJURIES TO HIGHWAY USER AND TRAIN CREW IN ADDITION TO DAMAGES TO SPRAYER AND LOC | DU111: OMOTIVE. | EG111: 0 | EH111: 41.569411 | EI111: -91.169032 | EJ111: 2 | EK111: 2 | EL111: P | EO111: IC
A112: 16 | B112: 01 | C112: ATK | D112: 140764 | I112: 16 | J112: 01 | K112: CSX | L112: 000156056 | N112: 620891F | O112: 16 | P112: 01 | Q112: 14 | R112: 6 | S112: 57 | T112: PM | U112: 07 | V112: 0 | W112: 0 | X112: 0 | Y112: 0 | AA112: JACKSONVILLE | AB112: 0651.2 | AC112: 12 | AD112: 60 | AE112: 4 | AF112: 1 | AG112: 063 | AH112: E | AI112: 52 | AJ112: 1 | AK112: 0 | AL112: 2 | AM112: Y | AN112: SINGLE MAIN | AO112: 4 | AQ112: 1 | AR112: AMT | AS112: 000835 | AT112: 001 | AX112: 000 | AZ112: 2 | BA112: 0 | BB112: 0 | BC112: 0 | BD112: 0 | BE112: 0 | BF112: 0 | BG112: 0 | BH112: 0 | BI112: 0 | BJ112: 0 | BK112: 47 | BL112: 0 | BM112: 0 | BN112: 0 | BO112: 0 | BP112: 0 | BQ112: 0 | BR112: 0 | BS112: 0 | BT112: 16744 | BU112: 0 | BV112: M302 | BX112: 1 | BY112: 0 | BZ112: 1 | CA112: 0 | CB112: M302 | CC112: 1 | CD112: 5 | CE112: 063 | CF112: 16890 | CH112: 12C031 | CI112: 0 | CJ112: 000000 | CK112: 1 | CL112: 2 | CM112: 0 | CN112: 2 | CO112: 0 | CP112: 03 | CQ112: 57 | CR112: 03 | CS112: 57 | CT112: 1 | CU112: 3 | CW112: 1L | DA112: 170 | DC112: 2016 | DD112: 0 | DE112: 0 | DF112: 0 | DG112: 0 | DH112: 1 | DI112: 0 | DJ112: DUVAL | DK112: 031 | DO112: Y | DP112: CWR | DR112: AUTO TRAIN 52 OPERATING WITH LOCOMOTIVES E/835-E/814 AND 47 CARS STRUCK AN OCCUPIED VEHICLE AT MP A6 | DS112: 51.29, TIMUQUANA RD CROSSING. AMTRAKS EQUIPMENT DAMAGE IS $16,744.00. | EG112: 0 | EH112: 30.247657 | EI112: -81.698087 | EJ112: 1 | EK112: 1 | EO112: SANFORD
A113: 16 | B113: 01 | C113: CSX | D113: 000156056 | E113: 16 | F113: 01 | G113: ATK | H113: 140764 | I113: 16 | J113: 01 | K113: CSX | L113: 000156056 | N113: 620891F | O113: 16 | P113: 01 | Q113: 14 | R113: 6 | S113: 57 | T113: PM | U113: 07 | V113: 0 | W113: 0 | X113: 0 | Y113: 0 | AA113: JACKSONVILLE | AB113: 0651.3 | AC113: 12 | AD113: 53 | AE113: 3 | AF113: 1 | AG113: 000 | AJ113: 1 | AK113: 0 | AN113: SINGLE MAIN | AO113: 5 | AP113: 0009.0 | AQ113: 1 | AT113: 000 | AX113: 000 | AZ113: 0 | BA113: 0 | BB113: 0 | BC113: 0 | BD113: 0 | BE113: 0 | BF113: 0 | BG113: 0 | BH113: 0 | BI113: 0 | BJ113: 0 | BK113: 0 | BL113: 0 | BM113: 0 | BN113: 0 | BO113: 0 | BP113: 0 | BQ113: 0 | BR113: 0 | BS113: 0 | BT113: 0 | BU113: 146 | BV113: M302 | BX113: 0 | BY113: 0 | BZ113: 1 | CA113: 0 | CB113: M302 | CC113: 1 | CD113: 5 | CE113: 063 | CF113: 16890 | CH113: 12C031 | CI113: 0 | CJ113: 000000 | CK113: 0 | CL113: 0 | CM113: 0 | CN113: 0 | CO113: 0 | CT113: 2 | CU113: 3 | CW113: 1L | DA113: 186 | DC113: 2016 | DD113: 0 | DE113: 0 | DF113: 0 | DG113: 0 | DH113: 0 | DI113: 0 | DJ113: DUVAL | DK113: 031 | DO113: N | DP113: CWR | DR113: AMTRAK TRAIN P05214 STRUCK AN OCCUPIED VEHICLE AT THE CROSSING. PROTECTION ALSO AT CROSSING: ADVANCE | DS113: WARNING AND PAVEMENT MARKINGS (STOP LINES & RR XING SYMBOLS). AMTRAK DAMAGES $16,744. | EH113: 30.247657 | EI113: -81.698087 | EJ113: 1 | EK113: 1 | EO113: SANFORD
A114: 16 | B114: 05 | C114: ATK | D114: 142222 | I114: 16 | J114: 05 | K114: CSX | L114: 000159507 | N114: 624308T | O114: 16 | P114: 05 | Q114: 03 | R114: 12 | S114: 50 | T114: PM | U114: 07 | V114: 0 | W114: 0 | X114: 0 | Y114: 0 | AA114: PLANT CITY | AB114: 0859.5 | AC114: 12 | AD114: 82 | AE114: 2 | AF114: 1 | AG114: 070 | AH114: E | AI114: 91 | AJ114: 2 | AK114: 0 | AL114: 2 | AM114: Y | AN114: SINGLE MAIN | AO114: 4 | AQ114: 1 | AR114: AMT | AS114: 000041 | AT114: 001 | AX114: 000 | AZ114: 1 | BA114: 0 | BB114: 0 | BC114: 0 | BD114: 0 | BE114: 0 | BF114: 0 | BG114: 0 | BH114: 0 | BI114: 0 | BJ114: 0 | BK114: 8 | BL114: 0 | BM114: 0 | BN114: 0 | BO114: 0 | BP114: 0 | BQ114: 0 | BR114: 0 | BS114: 0 | BT114: 15066 | BU114: 0 | BV114: M302 | BX114: 0 | BY114: 7 | BZ114: 0 | CA114: 7 | CB114: M302 | CC114: 1 | CD114: 5 | CE114: 070 | CF114: 15212 | CH114: 12C057 | CI114: 7 | CJ114: 000000 | CK114: 0 | CL114: 1 | CM114: 0 | CN114: 2 | CO114: 0 | CP114: 05 | CQ114: 51 | CR114: 05 | CS114: 51 | CT114: 1 | CU114: 3 | CW114: 1L | DA114: 223 | DC114: 2016 | DD114: 0 | DE114: 0 | DF114: 0 | DG114: 7 | DH114: 0 | DI114: 0 | DJ114: HILLSBOROUGH | DK114: 057 | DO114: Y | DP114: CWR | DR114: TRAIN 91 STRUCK AN OCCUPIED TRACTOR-TRAILER AT CROSSING. THERE WERE NO CROSSING SIGNS OR SIGNALS AT | DS114: THIS LOCATION. DRIVER OF THE SEMI WAS NOT INJURED AND HIS AGE WAS NOT AVAILABLE. AMTRAKS EQUIPMEN | DT114: T DAMAGE IS $15,066.00. | EG114: 0 | EH114: 27.997755 | EI114: -82.204376 | EJ114: 1 | EK114: 1 | EL114: D | EM114: Q | EO114: LAKELAND
A115: 16 | B115: 05 | C115: CSX | D115: 000159507 | E115: 16 | F115: 05 | G115: ATK | H115: 142222 | I115: 16 | J115: 05 | K115: CSX | L115: 000159507 | N115: 624309A | O115: 16 | P115: 05 | Q115: 03 | R115: 12 | S115: 50 | T115: PM | U115: 07 | V115: 0 | W115: 0 | X115: 0 | Y115: 0 | AA115: PLANT CITY | AB115: 0859.5 | AC115: 12 | AD115: 85 | AE115: 2 | AF115: 1 | AG115: 000 | AJ115: 1 | AK115: 0 | AN115: SINGLE MAIN | AO115: 5 | AP115: 0011.0 | AQ115: 1 | AT115: 000 | AX115: 000 | AZ115: 0 | BA115: 0 | BB115: 0 | BC115: 0 | BD115: 0 | BE115: 0 | BF115: 0 | BG115: 0 | BH115: 0 | BI115: 0 | BJ115: 0 | BK115: 0 | BL115: 0 | BM115: 0 | BN115: 0 | BO115: 0 | BP115: 0 | BQ115: 0 | BR115: 0 | BS115: 0 | BT115: 0 | BU115: 146 | BV115: M302 | BX115: 0 | BY115: 0 | BZ115: 0 | CA115: 7 | CB115: M302 | CC115: 1 | CD115: 5 | CE115: 070 | CF115: 15212 | CH115: 12C057 | CI115: 0 | CJ115: 000000 | CK115: 0 | CL115: 0 | CM115: 0 | CN115: 0 | CO115: 0 | CT115: 2 | CU115: 3 | CW115: 1L | DA115: 89 | DC115: 2016 | DD115: 0 | DE115: 0 | DF115: 0 | DG115: 0 | DH115: 0 | DI115: 0 | DJ115: HILLSBOROUGH | DK115: 057 | DO115: N | DP115: CWR | DR115: AMTRAK P09102 HIT A 18 WHEELER WHILE TRAVELING SOUTH TO TAMPA. AMTRAK DAMAGES $15,066.00. | EH115: 28.020007 | EI115: -82.095781 | EJ115: 1 | EK115: 1 | EO115: LAKELAND
A116: 16 | B116: 07 | C116: ATK | D116: 143215 | I116: 16 | J116: 07 | K116: SFRV | L116: 070616 | N116: 628116P | O116: 16 | P116: 07 | Q116: 06 | R116: 10 | S116: 0 | T116: AM | U116: 07 | V116: 0 | W116: 0 | X116: 0 | Y116: 0 | AA116: WEST PALM BEACH | AB116: 0968.2 | AC116: 12 | AD116: 90 | AE116: 2 | AF116: 1 | AG116: 050 | AH116: R | AI116: 98 | AJ116: 1 | AK116: 0 | AL116: 2 | AM116: Y | AN116: MAIN 2 | AO116: 3 | AQ116: 1 | AR116: AMT | AS116: 000146 | AT116: 001 | AX116: 000 | AZ116: 2 | BA116: 0 | BB116: 0 | BC116: 0 | BD116: 0 | BE116: 0 | BF116: 0 | BG116: 0 | BH116: 0 | BI116: 0 | BJ116: 0 | BK116: 11 | BL116: 0 | BM116: 0 | BN116: 0 | BO116: 0 | BP116: 0 | BQ116: 0 | BR116: 0 | BS116: 0 | BT116: 16305 | BU116: 0 | BV116: M399 | BX116: 0 | BY116: 1 | BZ116: 0 | CA116: 1 | CB116: M307 | CC116: 1 | CD116: 4 | CE116: 050 | CF116: 16305 | CH116: 12C099 | CI116: 1 | CJ116: 000000 | CK116: 0 | CL116: 2 | CM116: 0 | CN116: 2 | CO116: 0 | CP116: 02 | CQ116: 50 | CR116: 02 | CS116: 50 | CT116: 2 | CU116: 3 | CW116: 1L | DA116: 320 | DC116: 2016 | DD116: 0 | DE116: 0 | DF116: 0 | DG116: 0 | DH116: 0 | DI116: 1 | DJ116: PALM BEACH | DK116: 099 | DO116: Y | DP116: CWR | DR116: TRAIN 98 OPERATING WITH LOCOMOTIVES E/146-E/151 AND 11 CARS STRUCK A VEHICLE AT MP SX968.2, 25TH STR | DS116: EET CROSSING. THE INCIDENT IS CURRENTLY UNDER INVESTIGATION DUE TO CROSSING WARNINGS WERE NOT ACTIV | DT116: ATED AT THE TIME OF IMPACT AS A RESULT OF CREWS WERE FIXING THE SIGNAL PROBLEM. AMTRAKS EQUIPMENT D | DU116: AMAGE IS $16,305.00. | EG116: 0 | EH116: 26.736631 | EI116: -80.064581 | EJ116: 1 | EK116: 1 | EL116: Q | EO116: SOUTHFLRAILCORRIDOR
A117: 16 | B117: 07 | C117: SFRV | D117: 070616 | E117: 16 | F117: 07 | G117: ATK | H117: 143215 | I117: 16 | J117: 07 | K117: SFRV | L117: 070616 | N117: 628116P | O117: 16 | P117: 07 | Q117: 06 | R117: 10 | S117: 0 | T117: AM | U117: 07 | V117: 0 | W117: 0 | X117: 0 | Y117: 0 | AA117: WEST PALM BEACH | AB117: 968.2 | AC117: 12 | AD117: 90 | AE117: 2 | AF117: 1 | AG117: 000 | AJ117: 1 | AK117: 0 | AN117: MAIN 2 | AO117: 4 | AP117: 5.9 | AQ117: 1 | AT117: 000 | AX117: 000 | AZ117: 0 | BA117: 0 | BB117: 0 | BC117: 0 | BD117: 0 | BE117: 0 | BF117: 0 | BG117: 0 | BH117: 0 | BI117: 0 | BJ117: 0 | BK117: 0 | BL117: 0 | BM117: 0 | BN117: 0 | BO117: 0 | BP117: 0 | BQ117: 0 | BR117: 0 | BS117: 0 | BT117: 0 | BU117: 0 | BV117: M307 | BX117: 0 | BY117: 0 | BZ117: 0 | CA117: 1 | CB117: M307 | CC117: 1 | CD117: 4 | CE117: 050 | CF117: 16305 | CH117: 12C099 | CI117: 0 | CJ117: 000000 | CK117: 0 | CT117: 1 | CU117: 3 | CW117: 3L | DA117: 259 | DC117: 2016 | DD117: 0 | DE117: 0 | DF117: 0 | DG117: 0 | DH117: 0 | DI117: 0 | DJ117: PALM BEACH | DK117: 099 | DP117: CWR | DR117: NORTHBOUND AMTRAK TRAIN P098 STRUCK A WESTBOUND VEHICLE WHICH ENTERED THE UNPROTECTED 25TH STREET CR | DS117: OSSING. CROSSING WARNINGS WERE NOT ACTIVATED. THE INCIDENT IS CURRENTLY UNDER INVESTIGATION BY THE | DT117: NTSB AS A SIGNAL PERSON WAS PRESENT AT THE TIME OF IMPACT. | EH117: 26.736631 | EI117: -80.064581 | EJ117: 1 | EK117: 1 | EL117: Q | EO117: SOUTHFLRAILCORRIDOR
A118: 16 | B118: 01 | C118: SFRV | D118: 010416 | I118: 16 | J118: 01 | K118: SFRV | L118: 010416 | N118: 628146G | O118: 16 | P118: 01 | Q118: 04 | R118: 6 | S118: 49 | T118: AM | U118: 07 | V118: 0 | W118: 0 | X118: 0 | Y118: 80 | AA118: LAKE WORTH | AB118: 977.3 | AC118: 12 | AD118: 63 | AE118: 2 | AF118: 1 | AG118: 064 | AH118: R | AI118: P604 | AJ118: 1 | AK118: 0 | AL118: C | AM118: Y | AN118: MAIN LINE 2 | AO118: 4 | AP118: 5.9 | AQ118: 1 | AR118: SFRV | AS118: 000510 | AT118: 001 | AU118: Y | AX118: 000 | AZ118: 0 | BA118: 0 | BB118: 0 | BC118: 1 | BD118: 0 | BE118: 0 | BF118: 0 | BG118: 0 | BH118: 0 | BI118: 0 | BJ118: 0 | BK118: 4 | BL118: 0 | BM118: 0 | BN118: 0 | BO118: 0 | BP118: 1 | BQ118: 0 | BR118: 0 | BS118: 0 | BT118: 595768 | BU118: 146950 | BV118: M304 | BX118: 0 | BY118: 23 | BZ118: 0 | CA118: 23 | CB118: M304 | CC118: 1 | CD118: 4 | CE118: 064 | CF118: 742718 | CH118: 12C099 | CI118: 23 | CJ118: 000000 | CK118: 0 | CL118: 1 | CM118: 0 | CN118: 1 | CO118: 0 | CP118: 03 | CQ118: 20 | CR118: 03 | CS118: 20 | CT118: 1 | CU118: 3 | CW118: 3L | DA118: 394 | DC118: 2016 | DD118: 0 | DE118: 0 | DF118: 0 | DG118: 22 | DH118: 0 | DI118: 1 | DJ118: PALM BEACH | DK118: 099 | DO118: Y | DP118: CWR | DR118: OPERATOR OF A CITY OF LAKE WORTH GARBAGE TRUCK STOPPED ON THE CROSSING AND EXITED THE VEHICLE. TRAIN | DS118: ENGINEER OBSERVED THE VEHICLE ON THE TRACKS AND PLACED THE TRAIN IN EMERGENCY. TRAIN IMPACTED THE T | DT118: RUCK AND PUSHED IT UP THE ROW. THE LEAD CAR SUBSEQUENTLY DERAILED BUT REMAINED UPRIGHT. SEVERAL PASS | DU118: ENGERS WERE TRANSPORTED FOR POSSIBLE INJURIES. CROSSING WARNING SYSTEM FUNCTIONED AS INTENDED. | EG118: 0 | EH118: 26.608905 | EI118: -80.069356 | EJ118: 1 | EK118: 1 | EO118: SOUTHFLRAILCORRIDOR
A119: 16 | B119: 06 | C119: CSX | D119: 000160976 | I119: 16 | J119: 06 | K119: CSX | L119: 000160976 | N119: 638936P | O119: 16 | P119: 06 | Q119: 30 | R119: 5 | S119: 11 | T119: PM | U119: 07 | V119: 0 | W119: 0 | X119: 0 | Y119: 0 | AA119: CHESTER | AB119: 0345.7 | AC119: 45 | AD119: 88 | AE119: 2 | AF119: 1 | AG119: 035 | AH119: R | AI119: Q667 | AJ119: 1 | AK119: 9972 | AL119: 1 | AM119: Y | AN119: SINGLE MAIN | AO119: 3 | AP119: 0017.1 | AQ119: 1 | AR119: CIGX | AS119: 802361 | AT119: 007 | AU119: N | AX119: 000 | AZ119: 3 | BA119: 0 | BB119: 0 | BC119: 0 | BD119: 0 | BE119: 0 | BF119: 0 | BG119: 0 | BH119: 0 | BI119: 0 | BJ119: 60 | BK119: 0 | BL119: 82 | BM119: 0 | BN119: 0 | BO119: 0 | BP119: 0 | BQ119: 1 | BR119: 0 | BS119: 0 | BT119: 42980 | BU119: 627 | BV119: M303 | BX119: 0 | BY119: 0 | BZ119: 0 | CA119: 0 | CB119: M303 | CC119: 1 | CD119: 3 | CE119: 035 | CF119: 43607 | CH119: 45C023 | CI119: 0 | CJ119: 000000 | CK119: 0 | CL119: 1 | CM119: 0 | CN119: 1 | CO119: 0 | CP119: 06 | CQ119: 11 | CR119: 06 | CS119: 11 | CT119: 1 | CU119: 3 | CW119: 1L | DA119: 254 | DC119: 2016 | DD119: 0 | DE119: 0 | DF119: 0 | DG119: 0 | DH119: 0 | DI119: 0 | DJ119: CHESTER | DK119: 023 | DO119: N | DP119: CWR | DR119: LOADED DUMP TRUCK TRAVELING WEST ON SR 186 FAILED TO CONTROL AND STOP A LOADED GRAVEL TRUCK AND IMPA | DS119: CTED SIDE OF Q66730. RESULTED IN DERAILING CIGX 802379. PROTECTION ALSO AT CROSSING: ADVANCE WARNING | DT119: AND PAVEMENT MARKINGS (STOP LINES & RR XING SYMBOLS). | EG119: 0 | EH119: 34.739364 | EI119: -81.131681 | EJ119: 1 | EK119: 1 | EL119: D | EO119: MONROE
A120: 16 | B120: 07 | C120: CSX | D120: 000161596 | I120: 16 | J120: 07 | K120: CSX | L120: 000161596 | N120: 639419E | O120: 16 | P120: 07 | Q120: 25 | R120: 12 | S120: 48 | T120: AM | U120: 07 | V120: 0 | W120: 0 | X120: 0 | Y120: 0 | AA120: CHELSEA | AB120: 0945.2 | AC120: 01 | AD120: 80 | AE120: 4 | AF120: 1 | AG120: 035 | AH120: R | AI120: Q125 | AJ120: 2 | AK120: 2057 | AL120: 1 | AM120: Y | AN120: SINGLE MAIN | AO120: 3 | AP120: 0000.0 | AQ120: 1 | AR120: CSXT | AS120: 000382 | AT120: 001 | AU120: N | AX120: 000 | AZ120: 2 | BA120: 0 | BB120: 0 | BC120: 0 | BD120: 0 | BE120: 0 | BF120: 0 | BG120: 0 | BH120: 0 | BI120: 0 | BJ120: 14 | BK120: 0 | BL120: 1 | BM120: 0 | BN120: 0 | BO120: 0 | BP120: 0 | BQ120: 0 | BR120: 0 | BS120: 0 | BT120: 0 | BU120: 32000 | BV120: M302 | BX120: 1 | BY120: 0 | BZ120: 1 | CA120: 0 | CB120: M302 | CC120: 1 | CD120: 3 | CE120: 035 | CF120: 32000 | CH120: 01C117 | CI120: 0 | CJ120: 000000 | CK120: 1 | CL120: 1 | CM120: 0 | CN120: 1 | CO120: 0 | CP120: 02 | CQ120: 48 | CR120: 02 | CS120: 48 | CT120: 1 | CU120: 3 | CW120: 1L | DA120: 136 | DC120: 2016 | DD120: 0 | DE120: 0 | DF120: 0 | DG120: 0 | DH120: 1 | DI120: 0 | DJ120: SHELBY | DK120: 117 | DO120: N | DP120: CWR | DR120: TRAIN Q12524 STRUCK OCCUPIED VEHICLE. PROTECTION ALSO AT CROSSING: ADVANCE WARNING AND PAVEMENT MARK | DS120: INGS (STOP LINES & RR XING SYMBOLS). | EG120: 0 | EH120: 33.340998 | EI120: -86.630428 | EJ120: 1 | EK120: 1 | EL120: D | EO120: LINEVILLE
A121: 16 | B121: 09 | C121: CSX | D121: 000163068 | I121: 16 | J121: 09 | K121: CSX | L121: 000163068 | N121: 639540P | O121: 16 | P121: 09 | Q121: 22 | R121: 11 | S121: 9 | T121: AM | U121: 07 | V121: 14 | W121: 0 | X121: 0 | Y121: 0 | AA121: PELHAM | AB121: 0959.8 | AC121: 01 | AD121: 90 | AE121: 2 | AF121: 1 | AG121: 040 | AH121: E | AI121: Q685 | AJ121: 2 | AK121: 12272 | AL121: 1 | AM121: Y | AN121: SINGLE MAIN | AO121: 3 | AP121: 0000.0 | AQ121: 1 | AR121: CSXT | AS121: 007359 | AT121: 001 | AU121: N | AX121: 000 | AZ121: 3 | BA121: 0 | BB121: 0 | BC121: 0 | BD121: 0 | BE121: 0 | BF121: 0 | BG121: 0 | BH121: 0 | BI121: 0 | BJ121: 90 | BK121: 0 | BL121: 30 | BM121: 0 | BN121: 0 | BO121: 0 | BP121: 0 | BQ121: 0 | BR121: 0 | BS121: 0 | BT121: 17997 | BU121: 250 | BV121: M302 | BX121: 0 | BY121: 1 | BZ121: 0 | CA121: 1 | CB121: M302 | CC121: 1 | CD121: 3 | CE121: 040 | CF121: 18247 | CH121: 01C117 | CI121: 1 | CJ121: 000000 | CK121: 0 | CL121: 1 | CM121: 0 | CN121: 1 | CO121: 0 | CP121: 07 | CQ121: 09 | CR121: 07 | CS121: 09 | CT121: 1 | CU121: 3 | CW121: 1L | DA121: 267 | DC121: 2016 | DD121: 0 | DE121: 0 | DF121: 0 | DG121: 0 | DH121: 0 | DI121: 1 | DJ121: SHELBY | DK121: 117 | DO121: N | DP121: CWR | DR121: Q68521 STRUCK A SEMI THAT WAS PULLING OUT OF BUSINESS AND FAILED TO STOP AT CROSSING. DRIVER WAS TRA | DS121: NSPORTED TO UAB MEDICAL CENTER FOR EVALUATION. MOTORIST AGE UNKNOWN. PROTECTION ALSO AT CROSSING: AD | DT121: VANCE WARNING AND PAVEMENT MARKINGS (STOP LINES & RR XING SYMBOLS). | EG121: 0 | EH121: 33.288358 | EI121: -86.814445 | EJ121: 1 | EK121: 1 | EL121: D | EO121: LINEVILLE
A122: 16 | B122: 04 | C122: BNSF | D122: SF0416202 | I122: 16 | J122: 04 | K122: BNSF | L122: SF0416202 | N122: 664837K | O122: 16 | P122: 04 | Q122: 20 | R122: 7 | S122: 45 | T122: AM | U122: 07 | V122: 1 | W122: 0 | X122: 0 | Y122: 0 | AA122: DORA | AB122: 710.0 | AC122: 01 | AD122: 78 | AE122: 1 | AF122: 1 | AG122: 034 | AH122: R | AI122: ZATG | AJ122: 1 | AK122: 4258 | AL122: 1 | AM122: Y | AN122: SINGLE MAIN TRACK | AO122: 3 | AP122: 36.95 | AQ122: 1 | AR122: BNSF | AS122: 008077 | AT122: 001 | AX122: 000 | AZ122: 3 | BA122: 0 | BB122: 0 | BC122: 0 | BD122: 0 | BE122: 0 | BF122: 0 | BG122: 0 | BH122: 0 | BI122: 0 | BJ122: 59 | BK122: 0 | BL122: 0 | BM122: 0 | BN122: 0 | BO122: 0 | BP122: 0 | BQ122: 0 | BR122: 0 | BS122: 0 | BT122: 35783 | BU122: 0 | BV122: M302 | BX122: 0 | BY122: 1 | BZ122: 0 | CA122: 1 | CB122: M302 | CC122: 1 | CD122: 3 | CE122: 034 | CF122: 35783 | CH122: 01C127 | CI122: 1 | CJ122: 000000 | CK122: 0 | CL122: 1 | CM122: 0 | CN122: 1 | CO122: 0 | CP122: 03 | CQ122: 15 | CR122: 03 | CS122: 15 | CT122: 1 | CU122: 3 | CW122: 1L | DA122: 179 | DC122: 2016 | DD122: 0 | DE122: 0 | DF122: 0 | DG122: 0 | DH122: 0 | DI122: 1 | DJ122: WALKER | DK122: 127 | DO122: N | DP122: CWR | DR122: WESTBOUND DUMP TRUCK PULLING BULLDOZER ON A TRAILER WAS PULLING SLOWLY ACROSS THE CROSSING AND WAS S | DS122: TRUCK BY Z-ATGSBD7-19 MOVING NORTHBOUND. NO HAZARDOUS MATERIALS WERE RELEASED. | EG122: 0 | EH122: 33.700178 | EI122: -87.081798 | EJ122: 1 | EK122: 1 | EL122: Q | EO122: BIRMINGHAM
A123: 16 | B123: 02 | C123: DMVW | D123: FRED218 | I123: 16 | J123: 02 | K123: DMVW | L123: FRED218 | N123: 690539D | O123: 16 | P123: 02 | Q123: 18 | R123: 11 | S123: 25 | T123: PM | U123: 07 | V123: 0 | W123: 0 | X123: 0 | Y123: 0 | AA123: FREDONIA | AB123: 317 | AC123: 38 | AD123: 30 | AE123: 4 | AF123: 4 | AG123: 010 | AH123: E | AI123: 3132 | AJ123: 3 | AK123: 13650 | AL123: 1 | AM123: Y | AN123: MAIN LINE | AO123: 2 | AP123: 2 | AQ123: 1 | AR123: CP | AS123: 606616 | AT123: 087 | AU123: Y | AX123: 000 | AZ123: 4 | BA123: 0 | BB123: 0 | BC123: 0 | BD123: 0 | BE123: 0 | BF123: 0 | BG123: 0 | BH123: 0 | BI123: 0 | BJ123: 105 | BK123: 0 | BL123: 0 | BM123: 0 | BN123: 0 | BO123: 0 | BP123: 0 | BQ123: 0 | BR123: 0 | BS123: 0 | BT123: 26298 | BU123: 0 | BV123: M306 | BX123: 0 | BY123: 0 | BZ123: 0 | CA123: 0 | CB123: M306 | CC123: 1 | CD123: 2 | CE123: 010 | CF123: 26298 | CH123: 38C047 | CI123: 0 | CJ123: 000000 | CK123: 0 | CL123: 1 | CM123: 0 | CN123: 1 | CO123: 0 | CP123: 07 | CQ123: 25 | CR123: 07 | CS123: 25 | CT123: 1 | CU123: 8 | CW123: 3L | DA123: 383 | DC123: 2016 | DD123: 0 | DE123: 0 | DF123: 0 | DG123: 0 | DH123: 0 | DI123: 0 | DJ123: LOGAN | DK123: 047 | DO123: N | DP123: OTH | DR123: AT APPROXIMATELY 23:00 ON 2/18 AN EASTBOUND TRAIN WITH 105 CARS AND 4 LOCOMOTIVES WAS STRUCK BY A SE | DS123: MI AT THE HWY 56 CROSSING IN FREDONIA. IT WAS RAINY AND FOGGY WITH VERY LIMITED VISIBILITY AND THE S | DT123: EMI TRAILER WAS UNABLE TO STOP, HITTING THE TRAIN. ONCE HE MADE CONTACT WITH THE TRAIN IT RIPPED THE | DU123: HOOD OFF THE SEMI AND 22 CARS PASSED CAUSING MORE DAMAGE TO THE SEMI AND THE CARS. | EG123: 0 | EH123: 46.326593 | EI123: -99.100262 | EJ123: 2 | EK123: 2 | EL123: P | EO123: DAKOTA
A124: 16 | B124: 03 | C124: CP | D124: 1000368739 | I124: 16 | J124: 03 | K124: CP | L124: 1000368739 | N124: 695722B | O124: 16 | P124: 03 | Q124: 24 | R124: 12 | S124: 23 | T124: PM | U124: 07 | V124: 0 | W124: 0 | X124: 0 | Y124: 231 | AA124: CALLAWAY | AB124: 225.7 | AC124: 27 | AD124: 37 | AE124: 2 | AF124: 1 | AG124: 040 | AH124: E | AI124: 691 | AJ124: 4 | AK124: 2675 | AL124: 1 | AM124: Y | AN124: SINGLE MAIN TRACK | AO124: 3 | AP124: 12 | AQ124: 1 | AR124: CP | AS124: 008709 | AT124: 001 | AX124: 000 | AZ124: 1 | BA124: 0 | BB124: 0 | BC124: 0 | BD124: 1 | BE124: 1 | BF124: 0 | BG124: 0 | BH124: 0 | BI124: 0 | BJ124: 0 | BK124: 0 | BL124: 81 | BM124: 0 | BN124: 0 | BO124: 0 | BP124: 0 | BQ124: 11 | BR124: 0 | BS124: 0 | BT124: 228855 | BU124: 230860 | BV124: M302 | BW124: M304 | BX124: 0 | BY124: 1 | BZ124: 0 | CA124: 1 | CB124: M302 | CC124: 1 | CD124: 3 | CE124: 040 | CF124: 459715 | CH124: 27C005 | CI124: 1 | CJ124: 000000 | CK124: 0 | CL124: 1 | CM124: 0 | CN124: 1 | CO124: 0 | CP124: 05 | CQ124: 18 | CR124: 05 | CS124: 18 | CT124: 1 | CU124: 4 | CW124: 3 | DA124: 463 | DC124: 2016 | DD124: 0 | DE124: 1 | DF124: 0 | DG124: 0 | DH124: 0 | DI124: 0 | DJ124: BECKER | DK124: 005 | DO124: N | DP124: CWR | DR124: 691-315 TIMETABLE WEST (COMPASS NORTH) MADE CONTACT WITH A SEMI TRANSPORTING FULL LOAD OF LPG (LIQUE | DS124: FIED PETROLEUM GAS - APPROXIMATELY 10,500 GALLONS) AT CALLAWAY MINNESOTA, RESULTING IN FIRE INVOLVIN | DT124: G THE LPG AND NECESSITATED EVACUATION OF 231 RESIDENTS. CONTACT WAS MADE WITH THE SEMI TRAILER/TANK. | DU124: THE SEMI TRACTOR WAS NOT HIT. TRAIN CREW MEMBERS WERE TRANSPORTED FOR MEDICAL. SEMI DRIVER REFUSED | DV124: MEDICAL. SPEED OF TRAIN AT TIME OF IMPACT RECORDED AT 39.9 MPH. | EG124: 0 | EH124: 46.977341 | EI124: -95.911177 | EJ124: 2 | EK124: 2 | EL124: P | EO124: DETROIT LAKES
A125: 16 | B125: 11 | C125: NS | D125: 122814 | I125: 16 | J125: 11 | K125: NS | L125: 122814 | N125: 716243H | O125: 16 | P125: 11 | Q125: 18 | R125: 12 | S125: 3 | T125: PM | U125: 07 | V125: 0 | W125: 0 | X125: 0 | Y125: 0 | AA125: BESSEMER CITY | AB125: 405.44 | AC125: 37 | AD125: 45 | AE125: 2 | AF125: 1 | AG125: 049 | AH125: R | AI125: 204P | AJ125: 1 | AK125: 1946 | AL125: 1 | AM125: Y | AN125: SINGLE MAIN TRACK | AO125: 4 | AP125: 0013 | AQ125: 1 | AR125: NS | AS125: 009727 | AT125: 001 | AU125: N | AX125: 000 | AZ125: 3 | BA125: 0 | BB125: 0 | BC125: 0 | BD125: 0 | BE125: 0 | BF125: 0 | BG125: 0 | BH125: 0 | BI125: 0 | BJ125: 15 | BK125: 0 | BL125: 0 | BM125: 0 | BN125: 0 | BO125: 0 | BP125: 0 | BQ125: 0 | BR125: 0 | BS125: 0 | BT125: 200 | BU125: 20000 | BV125: M303 | BX125: 0 | BY125: 0 | BZ125: 0 | CA125: 0 | CB125: M303 | CC125: 1 | CD125: 4 | CE125: 049 | CF125: 20200 | CH125: 37C071 | CI125: 0 | CJ125: 000000 | CK125: 0 | CL125: 1 | CM125: 0 | CN125: 1 | CO125: 0 | CP125: 09 | CQ125: 18 | CR125: 09 | CS125: 18 | CT125: 1 | CU125: 3 | CW125: 1L | DA125: 81 | DC125: 2016 | DD125: 0 | DE125: 0 | DF125: 0 | DG125: 0 | DH125: 0 | DI125: 0 | DJ125: GASTON | DK125: 071 | DO125: N | DP125: CWR | DR125: NS TRAIN 204P418 STRUCK A HWY-USER AT A HWY-GRADE CROSSING. DRIVER''S AGE UNKNOWN. | EG125: 0 | EH125: 35.281766 | EI125: -81.275634 | EJ125: 1 | EK125: 1 | EL125: Q | EO125: PIEDMONT
A126: 16 | B126: 07 | C126: HRT | D126: 160719 | I126: 16 | J126: 07 | K126: HRT | L126: 160719 | N126: 717418M | O126: 16 | P126: 07 | Q126: 19 | R126: 1 | S126: 55 | T126: PM | U126: 07 | V126: 0 | W126: 0 | X126: 0 | Y126: 0 | AA126: BOWMAN | AB126: 42.7 | AC126: 13 | AD126: 97 | AE126: 2 | AF126: 1 | AG126: 003 | AH126: E | AI126: 3000 | AJ126: 1 | AK126: 11500 | AL126: 1 | AM126: Y | AN126: HARTWELL RAILROAD | AO126: X | AP126: 42.7 | AQ126: 1 | AR126: HRT | AS126: 003000 | AT126: 001 | AU126: Y | AX126: 000 | AZ126: 2 | BA126: 0 | BB126: 0 | BC126: 0 | BD126: 0 | BE126: 0 | BF126: 0 | BG126: 0 | BH126: 0 | BI126: 0 | BJ126: 6 | BK126: 0 | BL126: 1 | BM126: 0 | BN126: 0 | BO126: 0 | BP126: 0 | BQ126: 0 | BR126: 0 | BS126: 0 | BT126: 10500 | BU126: 0 | BV126: M304 | BX126: 0 | BY126: 0 | BZ126: 0 | CA126: 0 | CB126: M304 | CC126: 1 | CD126: X | CE126: 003 | CF126: 10500 | CH126: 13C105 | CI126: 0 | CJ126: 000000 | CK126: 0 | CL126: 1 | CM126: 0 | CN126: 1 | CO126: 0 | CP126: 06 | CQ126: 55 | CR126: 06 | CS126: 55 | CT126: 1 | CU126: 3 | CW126: 3 | DA126: 228 | DC126: 2016 | DD126: 0 | DE126: 0 | DF126: 0 | DG126: 0 | DH126: 0 | DI126: 0 | DJ126: ELBERT | DK126: 105 | DO126: N | DP126: OTH | DR126: LOGGING TRUCK CROSSED TRACKS AS TRAIN WAS COMING. LOGGING TRUCK DRIVER CHARGED BY GEORGIA STATE PATR | DS126: OL FOR VIOLATION OF 40-6-72(B) FAILURE TO YIELD AFTER STOPPING AT A STOP SIGN. DAMAGE ESTIMATES FROM | DT126: ADJUSTER NOT YET AVAILABLE. | EG126: 0 | EH126: 34.176937 | EI126: -82.959373 | EJ126: 2 | EK126: 2 | EO126: SYSTEM
A127: 16 | B127: 05 | C127: NS | D127: 120654 | I127: 16 | J127: 05 | K127: NS | L127: 120654 | N127: 725627R | O127: 16 | P127: 05 | Q127: 26 | R127: 9 | S127: 45 | T127: AM | U127: 07 | V127: 1 | W127: 0 | X127: 0 | Y127: 0 | AA127: N/A | AB127: NO106. | AC127: 28 | AD127: 78 | AE127: 2 | AF127: 1 | AG127: 054 | AH127: E | AI127: 298A | AJ127: 1 | AK127: 262 | AL127: 1 | AM127: Y | AN127: SINGLE MAIN TRACK | AO127: 5 | AP127: 0000 | AQ127: 1 | AR127: NS | AS127: 009374 | AT127: 001 | AU127: N | AX127: 000 | AZ127: 2 | BA127: 0 | BB127: 0 | BC127: 0 | BD127: 0 | BE127: 0 | BF127: 0 | BG127: 0 | BH127: 0 | BI127: 0 | BJ127: 4 | BK127: 0 | BL127: 0 | BM127: 0 | BN127: 0 | BO127: 0 | BP127: 0 | BQ127: 0 | BR127: 0 | BS127: 0 | BT127: 5000 | BU127: 45000 | BV127: M302 | BX127: 0 | BY127: 1 | BZ127: 0 | CA127: 1 | CB127: M302 | CC127: 1 | CD127: 5 | CE127: 054 | CF127: 50000 | CH127: 28C073 | CI127: 1 | CJ127: 000000 | CK127: 0 | CL127: 1 | CM127: 0 | CN127: 1 | CO127: 0 | CP127: 03 | CQ127: 45 | CR127: 03 | CS127: 45 | CT127: 1 | CU127: 3 | CW127: 1L | DA127: 59 | DC127: 2016 | DD127: 0 | DE127: 0 | DF127: 0 | DG127: 0 | DH127: 0 | DI127: 1 | DJ127: LAMAR | DK127: 073 | DO127: N | DP127: CWR | DR127: NS TRAIN 298A826 STRUCK A HWY-USER AT A HWY-GRADE CROSSING. | EG127: 0 | EH127: 31.077129 | EI127: -89.436204 | EJ127: 1 | EK127: 1 | EL127: D | EO127: ALABAMA
A128: 16 | B128: 07 | C128: NS | D128: 121260 | I128: 16 | J128: 07 | K128: NS | L128: 121260 | N128: 725686T | O128: 16 | P128: 07 | Q128: 14 | R128: 8 | S128: 18 | T128: AM | U128: 07 | V128: 5 | W128: 0 | X128: 0 | Y128: 0 | AA128: N/A | AB128: 005.42 | AC128: 47 | AD128: 80 | AE128: 2 | AF128: 1 | AG128: 040 | AH128: R | AI128: I64A | AJ128: 1 | AK128: 7107 | AL128: 1 | AM128: Y | AN128: DOUBLE-AGS MAIN #1 | AO128: 4 | AP128: 0000 | AQ128: 1 | AR128: NS | AS128: 008505 | AT128: 001 | AU128: N | AX128: 000 | AZ128: 3 | BA128: 0 | BB128: 0 | BC128: 0 | BD128: 0 | BE128: 3 | BF128: 0 | BG128: 0 | BH128: 0 | BI128: 0 | BJ128: 45 | BK128: 0 | BL128: 56 | BM128: 0 | BN128: 0 | BO128: 3 | BP128: 0 | BQ128: 7 | BR128: 0 | BS128: 0 | BT128: 1731641 | BU128: 210000 | BV128: M304 | BX128: 0 | BY128: 3 | BZ128: 0 | CA128: 3 | CB128: M304 | CC128: 1 | CD128: 4 | CE128: 040 | CF128: 1941641 | CH128: 47C065 | CI128: 3 | CJ128: 000000 | CK128: 0 | CL128: 1 | CM128: 0 | CN128: 1 | CO128: 0 | CP128: 05 | CQ128: 20 | CR128: 05 | CS128: 20 | CT128: 1 | CU128: 3 | CW128: 1L | DA128: 97 | DC128: 2016 | DD128: 0 | DE128: 2 | DF128: 0 | DG128: 0 | DH128: 0 | DI128: 1 | DJ128: HAMILTON | DK128: 065 | DO128: N | DP128: CWR | DR128: NS TRAIN 164A614 STRUCK A HWY-USER AT A HWY-GRADE CROSSING. 6000 GALLONS OF DIESEL FUEL RELEASED. | EG128: 0 | EH128: 35.00812 | EI128: -85.37467 | EJ128: 1 | EK128: 1 | EL128: Q | EO128: ALABAMA
A129: 16 | B129: 04 | C129: NS | D129: 120060 | I129: 16 | J129: 04 | K129: NS | L129: 120060 | N129: 727825T | O129: 16 | P129: 04 | Q129: 08 | R129: 1 | S129: 40 | T129: PM | U129: 07 | V129: 1 | W129: 0 | X129: 0 | Y129: 0 | AA129: SARALAND | AB129: 138.66 | AC129: 01 | AD129: 78 | AE129: 2 | AF129: 1 | AG129: 042 | AH129: E | AI129: A89A | AJ129: 2 | AK129: 2648 | AL129: 1 | AM129: Y | AN129: SINGLE MAIN TRACK | AO129: 4 | AP129: 0000 | AQ129: 1 | AR129: NS | AS129: 009279 | AT129: 001 | AU129: N | AX129: 000 | AZ129: 1 | BA129: 0 | BB129: 0 | BC129: 0 | BD129: 0 | BE129: 0 | BF129: 0 | BG129: 0 | BH129: 0 | BI129: 0 | BJ129: 17 | BK129: 0 | BL129: 13 | BM129: 0 | BN129: 0 | BO129: 0 | BP129: 0 | BQ129: 0 | BR129: 0 | BS129: 0 | BT129: 11356 | BU129: 0 | BV129: M302 | BX129: 0 | BY129: 4 | BZ129: 0 | CA129: 4 | CB129: M302 | CC129: 1 | CD129: 4 | CE129: 042 | CF129: 11356 | CH129: 01C097 | CI129: 4 | CJ129: 000000 | CK129: 0 | CL129: 1 | CM129: 0 | CN129: 1 | CO129: 0 | CP129: 05 | CQ129: 40 | CR129: 05 | CS129: 40 | CT129: 1 | CU129: 3 | CW129: 1L | DA129: 59 | DC129: 2016 | DD129: 0 | DE129: 2 | DF129: 0 | DG129: 0 | DH129: 0 | DI129: 2 | DJ129: MOBILE | DK129: 097 | DO129: N | DP129: CWR | DR129: NS TRAIN A89A408 STRUCK A HWY-USER AT A HWY-GRADE CROSSING. | EG129: 0 | EH129: 30.82706 | EI129: -88.066986 | EJ129: 1 | EK129: 2 | EL129: P | EO129: ALABAMA
A130: 16 | B130: 05 | C130: NS | D130: 120363 | I130: 16 | J130: 05 | K130: NS | L130: 120363 | N130: 728030G | O130: 16 | P130: 05 | Q130: 03 | R130: 10 | S130: 15 | T130: PM | U130: 07 | V130: 0 | W130: 0 | X130: 0 | Y130: 0 | AA130: BIRMINGHAM | AB130: 146.31 | AC130: 01 | AD130: 62 | AE130: 4 | AF130: 1 | AG130: 042 | AH130: R | AI130: A38A | AJ130: 1 | AK130: 814 | AL130: 1 | AM130: Y | AN130: DOUBLE-AGS MAIN #2 | AO130: 4 | AP130: 0033 | AQ130: 1 | AR130: NS | AS130: 003332 | AT130: 001 | AU130: N | AX130: 000 | AZ130: 3 | BA130: 0 | BB130: 0 | BC130: 0 | BD130: 0 | BE130: 0 | BF130: 0 | BG130: 0 | BH130: 0 | BI130: 0 | BJ130: 0 | BK130: 0 | BL130: 14 | BM130: 0 | BN130: 0 | BO130: 0 | BP130: 0 | BQ130: 0 | BR130: 0 | BS130: 0 | BT130: 1010 | BU130: 105552 | BV130: M308 | BX130: 2 | BY130: 1 | BZ130: 2 | CA130: 1 | CB130: M308 | CC130: 1 | CD130: 4 | CE130: 042 | CF130: 106562 | CH130: 01C073 | CI130: 1 | CJ130: 000000 | CK130: 2 | CL130: 1 | CM130: 1 | CN130: 1 | CO130: 0 | CP130: 03 | CQ130: 15 | CR130: 03 | CS130: 15 | CT130: 1 | CU130: 3 | CW130: 1L | DA130: 59 | DC130: 2016 | DD130: 0 | DE130: 0 | DF130: 0 | DG130: 0 | DH130: 2 | DI130: 1 | DJ130: JEFFERSON | DK130: 073 | DO130: N | DP130: CWR | DR130: NS TRAIN A38A703 STRUCK A HWY-USER AT A HWY-GRADE CROSSING. | EG130: 0 | EH130: 33.486908 | EI130: -86.855613 | EJ130: 1 | EK130: 2 | EL130: D | EO130: ALABAMA
A131: 16 | B131: 08 | C131: NS | D131: 121765 | I131: 16 | J131: 08 | K131: NS | L131: 121765 | N131: 735680E | O131: 16 | P131: 08 | Q131: 20 | R131: 1 | S131: 0 | T131: PM | U131: 07 | V131: 0 | W131: 0 | X131: 0 | Y131: 0 | AA131: HARRODSBURG | AB131: 350.17 | AC131: 21 | AD131: 80 | AE131: 2 | AF131: 2 | AG131: 015 | AH131: E | AI131: 22AT | AJ131: 4 | AK131: 3911 | AL131: 1 | AM131: Y | AN131: SINGLE MAIN TRACK | AO131: 2 | AP131: 0000 | AQ131: 1 | AR131: NS | AS131: 007595 | AT131: 001 | AU131: N | AX131: 000 | AZ131: 2 | BA131: 0 | BB131: 0 | BC131: 0 | BD131: 0 | BE131: 0 | BF131: 0 | BG131: 0 | BH131: 0 | BI131: 0 | BJ131: 12 | BK131: 0 | BL131: 12 | BM131: 0 | BN131: 0 | BO131: 0 | BP131: 0 | BQ131: 0 | BR131: 0 | BS131: 0 | BT131: 581 | BU131: 40000 | BV131: M303 | BX131: 0 | BY131: 0 | BZ131: 0 | CA131: 0 | CB131: M303 | CC131: 1 | CD131: 2 | CE131: 015 | CF131: 40581 | CH131: 21C167 | CI131: 0 | CJ131: 000000 | CK131: 0 | CL131: 1 | CM131: 1 | CN131: 1 | CO131: 0 | CP131: 05 | CR131: 05 | CT131: 1 | CU131: 3 | CW131: 1L | DA131: 81 | DC131: 2016 | DD131: 0 | DE131: 0 | DF131: 0 | DG131: 0 | DH131: 0 | DI131: 0 | DJ131: MERCER | DK131: 167 | DO131: N | DP131: CWR | DR131: NS TRAIN 22ATA18 STRUCK A HWY-USER AT A HWY-GRADE CROSSING. DRIVER''S AGE UNKNOWN. | EG131: 0 | EH131: 37.770827 | EI131: -84.857387 | EJ131: 1 | EK131: 2 | EL131: D | EO131: CENTRAL
A132: 16 | B132: 08 | C132: UP | D132: 0816ST001 | I132: 16 | J132: 08 | K132: UP | L132: 0816ST001 | N132: 741416K | O132: 16 | P132: 08 | Q132: 02 | R132: 3 | S132: 34 | T132: PM | U132: 07 | V132: 0 | W132: 0 | X132: 0 | Y132: 0 | AA132: FLORENCE | AB132: 950.77 | AC132: 04 | AD132: 100 | AE132: 2 | AF132: 1 | AG132: 050 | AH132: R | AI132: LKT7 | AJ132: 3 | AK132: 162 | AL132: 1 | AM132: Y | AN132: SINGLE MAIN | AO132: 4 | AP132: 4.1 | AQ132: 1 | AR132: UP | AS132: 003845 | AT132: 001 | AX132: 000 | AZ132: 5 | BA132: 0 | BB132: 0 | BC132: 0 | BD132: 0 | BE132: 0 | BF132: 0 | BG132: 0 | BH132: 0 | BI132: 0 | BJ132: 7 | BK132: 0 | BL132: 12 | BM132: 0 | BN132: 0 | BO132: 0 | BP132: 0 | BQ132: 0 | BR132: 0 | BS132: 0 | BT132: 730 | BU132: 120000 | BV132: M308 | BX132: 0 | BY132: 1 | BZ132: 0 | CA132: 1 | CB132: M308 | CC132: 1 | CD132: 4 | CE132: 050 | CF132: 120730 | CH132: 04C021 | CI132: 1 | CJ132: 000000 | CK132: 0 | CL132: 1 | CM132: 0 | CN132: 1 | CO132: 1 | CP132: 05 | CQ132: 34 | CR132: 05 | CS132: 34 | CT132: 1 | CU132: 7 | CW132: 1L | DA132: 125 | DC132: 2016 | DD132: 0 | DE132: 0 | DF132: 0 | DG132: 0 | DH132: 0 | DI132: 1 | DJ132: PINAL | DK132: 021 | DO132: N | DP132: CWR | DR132: VEHICLE STRUCK THE SIDE OF TRAIN LKT71-02, LEAD LOCOMOTIVE UP3845; AT A GATED CROSSING AFTER DRIVER | DS132: FELL ASLEEP AT THE WHEEL. | EG132: 0 | EH132: 33.117904 | EI132: -111.499677 | EJ132: 1 | EK132: 1 | EL132: D | EO132: PHOENIX SUB
A133: 16 | B133: 09 | C133: UP | D133: 0916ST010 | I133: 16 | J133: 09 | K133: UP | L133: 0916ST010 | N133: 742889S | O133: 16 | P133: 09 | Q133: 07 | R133: 7 | S133: 7 | T133: PM | U133: 07 | V133: 5 | W133: 0 | X133: 0 | Y133: 0 | AA133: VALENTINE | AB133: 695.6 | AC133: 48 | AD133: 85 | AE133: 2 | AF133: 2 | AG133: 069 | AH133: R | AI133: ZSLA | AJ133: 4 | AK133: 5432 | AL133: 1 | AM133: Y | AN133: SINGLE MAIN | AO133: 6 | AP133: 23.7 | AQ133: 1 | AR133: UP | AS133: 008761 | AT133: 001 | AX133: 000 | AZ133: 2 | BA133: 0 | BB133: 0 | BC133: 0 | BD133: 0 | BE133: 0 | BF133: 0 | BG133: 0 | BH133: 0 | BI133: 0 | BJ133: 90 | BK133: 0 | BL133: 0 | BM133: 0 | BN133: 0 | BO133: 0 | BP133: 0 | BQ133: 0 | BR133: 0 | BS133: 0 | BT133: 20907 | BU133: 0 | BV133: M308 | BX133: 0 | BY133: 1 | BZ133: 0 | CA133: 1 | CB133: M308 | CC133: 1 | CD133: 6 | CE133: 069 | CF133: 20907 | CH133: 48C109 | CI133: 1 | CJ133: 000000 | CK133: 0 | CL133: 1 | CM133: 0 | CN133: 1 | CO133: 0 | CP133: 04 | CQ133: 27 | CR133: 04 | CS133: 27 | CT133: 1 | CU133: 5 | CW133: 1L | DA133: 123 | DC133: 2016 | DD133: 0 | DE133: 1 | DF133: 0 | DG133: 0 | DH133: 0 | DI133: 0 | DJ133: CULBERSON | DK133: 109 | DO133: N | DP133: CWR | DR133: THE ZSALC-07, LEAD LOCOMOTIVE UP8761; STRUCK A SEMI TRUCK THAT FAILED TO STOP AT THE STOP SIGN AND I | DS133: GNORED WARNING SIGNALS. | EG133: 0 | EH133: 30.890758 | EI133: -104.782209 | EJ133: 1 | EK133: 1 | EL133: Q | EM133: D | EO133: VALENTINE SUB
A134: 16 | B134: 03 | C134: UP | D134: 0316HO018 | I134: 16 | J134: 03 | K134: UP | L134: 0316HO018 | N134: 743668T | O134: 16 | P134: 03 | Q134: 22 | R134: 7 | S134: 55 | T134: AM | U134: 07 | V134: 1 | W134: 0 | X134: 0 | Y134: 0 | AA134: HOUSTON | AB134: 3.77 | AC134: 48 | AD134: 65 | AE134: 2 | AF134: 1 | AG134: 025 | AH134: R | AI134: LER5 | AJ134: 1 | AK134: 659 | AL134: 1 | AM134: Y | AN134: MAIN LINE | AO134: 2 | AP134: 16.8 | AQ134: 1 | AR134: UPY | AS134: 002102 | AT134: 001 | AX134: 000 | AZ134: 1 | BA134: 0 | BB134: 0 | BC134: 0 | BD134: 0 | BE134: 0 | BF134: 0 | BG134: 0 | BH134: 0 | BI134: 0 | BJ134: 5 | BK134: 0 | BL134: 5 | BM134: 0 | BN134: 0 | BO134: 0 | BP134: 0 | BQ134: 0 | BR134: 0 | BS134: 0 | BT134: 1015 | BU134: 26950 | BV134: M302 | BX134: 0 | BY134: 0 | BZ134: 0 | CA134: 0 | CB134: M302 | CC134: 1 | CD134: 2 | CE134: 025 | CF134: 27965 | CH134: 48C201 | CI134: 0 | CJ134: 000000 | CK134: 0 | CL134: 1 | CM134: 0 | CN134: 1 | CO134: 1 | CP134: 01 | CQ134: 55 | CR134: 01 | CS134: 55 | CT134: 1 | CU134: 5 | CW134: 1L | DA134: 386 | DC134: 2016 | DD134: 0 | DE134: 0 | DF134: 0 | DG134: 0 | DH134: 0 | DI134: 0 | DJ134: HARRIS | DK134: 201 | DO134: N | DP134: OTH | DR134: LER51-22, LEAD UNIT UPY2102 WAS TRAVELING NORTH ON THE EUREKA SUB WHEN THEY STRUCK A CAR. THE TRAIN | DS134: WAS TRAVELING 25 MPH, BELLS AND WHISTLE WERE SOUNDING CORRECTLY. THE VEHICLE WAS A FORD RANGER WIT | DT134: H A 6 FT TRAILER ATTACHED THAT HAD STALLED ON THE CROSSING. THE ENGINEER PLUGGED THE TRAIN AND TRAV | DU134: ELED AN ADDITIONAL 811 FT AFTER IMPACT. NO INJURIES TO CREW OR DRIVER OF THE VEHICLE. | EG134: 0 | EH134: 29.81813 | EI134: -95.483472 | EJ134: 1 | EK134: 2 | EL134: P | EM134: D | EO134: EUREKA SUB
A135: 16 | B135: 11 | C135: UP | D135: 1116HO014 | I135: 16 | J135: 11 | K135: UP | L135: 1116HO014 | N135: 743688E | O135: 16 | P135: 11 | Q135: 11 | R135: 10 | S135: 50 | T135: PM | U135: 07 | V135: 1 | W135: 0 | X135: 0 | Y135: 0 | AA135: MISSOURI CITY | AB135: 17.62 | AC135: 48 | AD135: 80 | AE135: 4 | AF135: 1 | AG135: 043 | AH135: E | AI135: MLDL | AJ135: 3 | AK135: 5630 | AL135: 1 | AM135: Y | AN135: MAIN 2 | AO135: 4 | AP135: 34.6 | AQ135: 1 | AR135: UP | AS135: 006035 | AT135: 001 | AX135: 000 | AZ135: 1 | BA135: 0 | BB135: 0 | BC135: 0 | BD135: 0 | BE135: 0 | BF135: 0 | BG135: 0 | BH135: 0 | BI135: 0 | BJ135: 47 | BK135: 0 | BL135: 55 | BM135: 0 | BN135: 0 | BO135: 0 | BP135: 0 | BQ135: 0 | BR135: 0 | BS135: 0 | BT135: 500 | BU135: 23442 | BV135: M302 | BX135: 0 | BY135: 1 | BZ135: 0 | CA135: 1 | CB135: M302 | CC135: 1 | CD135: 4 | CE135: 043 | CF135: 23942 | CH135: 48C157 | CI135: 1 | CJ135: 000000 | CK135: 0 | CL135: 1 | CM135: 0 | CN135: 1 | CO135: 0 | CP135: 08 | CQ135: 50 | CR135: 08 | CS135: 50 | CT135: 1 | CU135: 5 | CW135: 1L | DA135: 177 | DC135: 2016 | DD135: 0 | DE135: 0 | DF135: 0 | DG135: 0 | DH135: 0 | DI135: 1 | DJ135: FORT BEND | DK135: 157 | DO135: N | DP135: OTH | DR135: MLDLI-11, WITH LEAD UNIT UP6035, STRUCK THE REAR TRAILER OF A FEDEX TRUCK THAT WAS SITTING ON THE TR | DS135: ACK WHILE THE DRIVER WAS WAITING ON TRAFFIC TO CLEAR UP ON SOUTH MAIN STREET. | EG135: 0 | EH135: 29.623806 | EI135: -95.526192 | EJ135: 1 | EK135: 1 | EL135: Q | EO135: GLIDDEN SUB
A136: 16 | B136: 08 | C136: UP | D136: 0816HO032 | I136: 16 | J136: 08 | K136: UP | L136: 0816HO032 | N136: 743750M | O136: 16 | P136: 08 | Q136: 17 | R136: 3 | S136: 35 | T136: AM | U136: 07 | V136: 0 | W136: 0 | X136: 0 | Y136: 0 | AA136: ALTAIR | AB136: 5.74 | AC136: 48 | AD136: 92 | AE136: 4 | AF136: 2 | AG136: 006 | AH136: R | AI136: RGOG | AJ136: 4 | AK136: 2486 | AL136: 1 | AM136: Y | AN136: ARENAL LEAD | AO136: 1 | AQ136: 4 | AR136: MWAX | AS136: 004510 | AT136: 015 | AU136: N | AX136: 000 | AZ136: 3 | BA136: 0 | BB136: 0 | BC136: 0 | BD136: 0 | BE136: 0 | BF136: 0 | BG136: 0 | BH136: 0 | BI136: 0 | BJ136: 0 | BK136: 0 | BL136: 90 | BM136: 0 | BN136: 0 | BO136: 0 | BP136: 0 | BQ136: 1 | BR136: 0 | BS136: 0 | BT136: 10609 | BU136: 870 | BV136: M308 | BX136: 0 | BY136: 1 | BZ136: 0 | CA136: 1 | CB136: M308 | CC136: 4 | CD136: 1 | CE136: 006 | CF136: 11479 | CH136: 48C089 | CI136: 1 | CJ136: 000000 | CK136: 0 | CL136: 1 | CM136: 0 | CN136: 1 | CO136: 0 | CP136: 03 | CQ136: 34 | CR136: 03 | CS136: 34 | CT136: 1 | CU136: 5 | CW136: 1L | DA136: 348 | DC136: 2016 | DD136: 0 | DE136: 0 | DF136: 0 | DG136: 0 | DH136: 0 | DI136: 1 | DJ136: COLORADO | DK136: 089 | DO136: N | DP136: CWR | DR136: RGOGW-15 WITH LEAD UNIT UP8486 HAD 12 CARS OVER THE CROSSING WHEN THEY WERE STRUCK BY A TRUCK ON HWY | DS136: 90. THE ENGINEER NOTICED THAT SOMETHING WAS DRAGGING HIS TRAIN DOWN AND STOPPED. THE CONDUCTOR WALK | DT136: ED BACK AND SAW THAT THE TRUCK HAD STRUCK THE TRAIN AND RAILCAR MWAX4393 DERAILED. NO INJURY TO CREW | DU136: . DRIVER OF VEHICLE WAS TRANSPORTED TO HOSPITAL. | EG136: 0 | EH136: 29.59991 | EI136: -96.344887 | EJ136: 2 | EK136: 5 | EL136: K | EM136: L | EO136: ARENAL IND LD
A137: 16 | B137: 09 | C137: UP | D137: 0916HO018 | I137: 16 | J137: 09 | K137: UP | L137: 0916HO018 | N137: 743794M | O137: 16 | P137: 09 | Q137: 13 | R137: 1 | S137: 5 | T137: AM | U137: 07 | V137: 0 | W137: 0 | X137: 0 | Y137: 0 | AA137: EAST BERNARD | AB137: 47.06 | AC137: 48 | AD137: 73 | AE137: 4 | AF137: 1 | AG137: 046 | AH137: R | AI137: RNYM | AJ137: 4 | AK137: 3490 | AL137: 1 | AM137: Y | AN137: GLIDDEN SUB MAIN TRA | AO137: 4 | AP137: 82.5 | AQ137: 1 | AR137: UP | AS137: 008886 | AT137: 001 | AX137: 000 | AZ137: 2 | BA137: 0 | BB137: 0 | BC137: 0 | BD137: 2 | BE137: 0 | BF137: 0 | BG137: 0 | BH137: 0 | BI137: 0 | BJ137: 0 | BK137: 0 | BL137: 129 | BM137: 0 | BN137: 0 | BO137: 0 | BP137: 0 | BQ137: 0 | BR137: 0 | BS137: 0 | BT137: 91 | BU137: 89665 | BV137: M308 | BX137: 0 | BY137: 1 | BZ137: 0 | CA137: 1 | CB137: M308 | CC137: 1 | CD137: 4 | CE137: 046 | CF137: 89756 | CH137: 48C157 | CI137: 1 | CJ137: 000000 | CK137: 0 | CL137: 1 | CM137: 0 | CN137: 1 | CO137: 0 | CP137: 03 | CQ137: 05 | CR137: 03 | CS137: 05 | CT137: 1 | CU137: 5 | CW137: 1L | DA137: 249 | DC137: 2016 | DD137: 0 | DE137: 0 | DF137: 0 | DG137: 0 | DH137: 0 | DI137: 1 | DJ137: FORT BEND | DK137: 157 | DO137: N | DP137: CWR | DR137: RNYMEQ-11, LEAD UNIT UP 8886 WAS TRAVELING WESTBOUND, STRUCK A VEHICLE THAT WAS TRAVELING SOUTH ON F | DS137: M1952. THE DRIVER OF THE VEHICLE DROVE AROUND THE GATES THAT WERE FLASHING AND WAS STRUCK ON THE RE | DT137: AR DRIVER SIDE BY THE TRAIN. DRIVER WAS INJURED. | EG137: 0 | EH137: 29.540489 | EI137: -95.989313 | EJ137: 1 | EK137: 1 | EL137: Q | EO137: GLIDDEN SUB
A138: 16 | B138: 07 | C138: UP | D138: 0716LA011 | I138: 16 | J138: 07 | K138: UP | L138: 0716LA011 | N138: 747857D | O138: 16 | P138: 07 | Q138: 14 | R138: 6 | S138: 8 | T138: PM | U138: 07 | V138: 0 | W138: 0 | X138: 0 | Y138: 0 | AA138: LOS ANGELES | AB138: 3.96 | AC138: 06 | AD138: 76 | AE138: 2 | AF138: 1 | AG138: 025 | AH138: R | AI138: RWCW | AJ138: 2 | AK138: 5673 | AL138: 1 | AM138: Y | AN138: MAIN LINE | AO138: 3 | AP138: 1.8 | AQ138: 1 | AR138: UP | AS138: 008872 | AT138: 001 | AX138: 000 | AZ138: 1 | BA138: 0 | BB138: 0 | BC138: 0 | BD138: 1 | BE138: 0 | BF138: 0 | BG138: 0 | BH138: 0 | BI138: 0 | BJ138: 40 | BK138: 0 | BL138: 0 | BM138: 0 | BN138: 0 | BO138: 0 | BP138: 0 | BQ138: 0 | BR138: 0 | BS138: 0 | BT138: 10000 | BU138: 40975 | BV138: M302 | BX138: 0 | BY138: 0 | BZ138: 0 | CA138: 0 | CB138: M302 | CC138: 1 | CD138: 3 | CE138: 025 | CF138: 50975 | CH138: 06C037 | CI138: 0 | CJ138: 000000 | CK138: 0 | CL138: 1 | CM138: 0 | CN138: 1 | CO138: 0 | CP138: 02 | CQ138: 04 | CR138: 02 | CS138: 04 | CT138: 1 | CU138: 7 | CW138: 1L | DA138: 310 | DC138: 2016 | DD138: 0 | DE138: 0 | DF138: 0 | DG138: 0 | DH138: 0 | DI138: 0 | DJ138: LOS ANGELES | DK138: 037 | DO138: N | DP138: CWR | DR138: THE RWCWCG-17, LEAD LOCOMOTIVE UP8872; STRUCK AN OCCUPIED VEHICLE THAT WAS ON THE TRACKS AT THE NADE | DS138: AU STREET CROSSING. THE IMPACT CAUSED THE VEHICLE TO BE PUSHED INTO THE CROSSING MAST ON THE WEST S | DT138: IDE OF THE CROSSING, DESTROYING MAST. TRAIN WAS PLACED INTO EMERGENCY. NO INJURIES TO DRIVER NOR P | DU138: ASSENGERS. | EG138: 0 | EH138: 33.966941 | EI138: -118.243387 | EJ138: 1 | EK138: 1 | EL138: Q | EO138: WILMINGTON SUB
A139: 16 | B139: 05 | C139: UP | D139: 0516RS025 | E139: 16 | F139: 05 | G139: ATK | H139: 142548 | I139: 16 | J139: 05 | K139: UP | L139: 0516RS025 | N139: 749743X | O139: 16 | P139: 05 | Q139: 24 | R139: 1 | S139: 20 | T139: PM | U139: 07 | V139: 0 | W139: 0 | X139: 0 | Y139: 0 | AA139: SAN LEANDRO | AB139: 16.5 | AC139: 06 | AD139: 50 | AE139: 2 | AF139: 2 | AG139: 000 | AJ139: 1 | AK139: 0 | AN139: MAIN TRACK | AO139: 4 | AP139: 2.5 | AQ139: 1 | AT139: 000 | AX139: 000 | AZ139: 0 | BA139: 0 | BB139: 0 | BC139: 0 | BD139: 0 | BE139: 0 | BF139: 0 | BG139: 0 | BH139: 0 | BI139: 0 | BJ139: 0 | BK139: 0 | BL139: 0 | BM139: 0 | BN139: 0 | BO139: 0 | BP139: 0 | BQ139: 0 | BR139: 0 | BS139: 0 | BT139: 0 | BU139: 0 | BV139: M302 | BX139: 0 | BY139: 0 | BZ139: 2 | CA139: 0 | CB139: M302 | CC139: 1 | CD139: 4 | CE139: 079 | CF139: 21686 | CH139: 06C001 | CI139: 0 | CJ139: 000000 | CK139: 0 | CL139: 0 | CM139: 0 | CN139: 0 | CO139: 0 | CT139: 2 | CU139: 7 | CW139: 1L | DA139: 193 | DC139: 2016 | DD139: 0 | DE139: 0 | DF139: 0 | DG139: 0 | DH139: 0 | DI139: 0 | DJ139: ALAMEDA | DK139: 001 | DP139: CWR | DR139: THE NORTHBOUND AMT532-24 STRUCK AN OCCUPIED VEHICLE THAT WAS STOPPED ON THE TRACKS WAITING TO MAKE A | DS139: RIGHT TURN AT A LIGHT. THERE WAS NO DERAILMENT INVOLVED. AMTRAK EQUIPMENT DAMAGES: $21,686 | EH139: 37.704417 | EI139: -122.143412 | EJ139: 1 | EK139: 1 | EL139: Q | EO139: NILES SUB
A140: 16 | B140: 05 | C140: ATK | D140: 142548 | I140: 16 | J140: 05 | K140: UP | L140: 0516RS025 | N140: 749743X | O140: 16 | P140: 05 | Q140: 24 | R140: 1 | S140: 20 | T140: PM | U140: 07 | V140: 0 | W140: 0 | X140: 0 | Y140: 0 | AA140: SAN LEANDRO | AB140: 0016.6 | AC140: 06 | AD140: 61 | AE140: 2 | AF140: 1 | AG140: 079 | AH140: E | AI140: 532 | AJ140: 1 | AK140: 0 | AL140: B | AM140: Y | AN140: SINGLE MAIN | AO140: 4 | AQ140: 1 | AR140: CDTX | AS140: 008307 | AT140: 001 | AU140: Y | AX140: 000 | AZ140: 0 | BA140: 0 | BB140: 0 | BC140: 1 | BD140: 0 | BE140: 0 | BF140: 0 | BG140: 0 | BH140: 0 | BI140: 0 | BJ140: 0 | BK140: 4 | BL140: 0 | BM140: 0 | BN140: 0 | BO140: 0 | BP140: 0 | BQ140: 0 | BR140: 0 | BS140: 0 | BT140: 21686 | BU140: 0 | BV140: M302 | BX140: 2 | BY140: 0 | BZ140: 2 | CA140: 0 | CB140: M302 | CC140: 1 | CD140: 4 | CE140: 079 | CF140: 21686 | CH140: 06C001 | CI140: 0 | CJ140: 000000 | CK140: 2 | CL140: 1 | CM140: 0 | CN140: 1 | CO140: 1 | CP140: 07 | CQ140: 25 | CR140: 07 | CS140: 25 | CT140: 1 | CU140: 7 | CW140: 1L | DA140: 270 | DC140: 2016 | DD140: 0 | DE140: 0 | DF140: 0 | DG140: 0 | DH140: 2 | DI140: 0 | DJ140: ALAMEDA | DK140: 001 | DO140: Y | DP140: CWR | DR140: TRAIN 532 OPERATING WITH CAB CAR CDTX 8307 IN THE LEAD, 3 CARS AND LOCOMOTIVE E/179 TRAILING, STRUCK | DS140: AN OCCUPIED VEHICLE AT CROSSING. THE SUV WAS TRAPPED IN TRAFFIC AND WAS STUCK ON THE TRACKS PRIOR | DT140: TO CROSSING GATES GOING DOWN. AMTRAKS EQUIPMENT DAMAGE IS $21,686.00. | EG140: 0 | EH140: 37.704417 | EI140: -122.143412 | EJ140: 1 | EK140: 1 | EL140: Q | EO140: NILES
A141: 16 | B141: 09 | C141: ATK | D141: 144137 | I141: 16 | J141: 09 | K141: UP | L141: 0916RS010 | N141: 749776K | O141: 16 | P141: 09 | Q141: 06 | R141: 6 | S141: 34 | T141: PM | U141: 07 | V141: 0 | W141: 0 | X141: 0 | Y141: 0 | AA141: UNION CITY | AB141: 0025.6 | AC141: 06 | AD141: 75 | AE141: 2 | AF141: 1 | AG141: 079 | AH141: E | AI141: 546 | AJ141: 1 | AK141: 0 | AL141: B | AM141: Y | AN141: MAIN | AO141: 4 | AQ141: 1 | AR141: AMT | AS141: 006962 | AT141: 001 | AU141: Y | AX141: 000 | AZ141: 0 | BA141: 0 | BB141: 0 | BC141: 1 | BD141: 0 | BE141: 0 | BF141: 0 | BG141: 0 | BH141: 0 | BI141: 0 | BJ141: 0 | BK141: 5 | BL141: 0 | BM141: 0 | BN141: 0 | BO141: 0 | BP141: 0 | BQ141: 0 | BR141: 0 | BS141: 0 | BT141: 13002 | BU141: 0 | BV141: M302 | BX141: 0 | BY141: 0 | BZ141: 0 | CA141: 0 | CB141: M302 | CC141: 1 | CD141: 4 | CE141: 079 | CF141: 13002 | CH141: 06C001 | CI141: 0 | CJ141: 000000 | CK141: 0 | CL141: 1 | CM141: 0 | CN141: 1 | CO141: 1 | CP141: 07 | CQ141: 10 | CR141: 07 | CS141: 10 | CT141: 2 | CU141: 7 | CW141: 1L | DA141: 213 | DC141: 2016 | DD141: 0 | DE141: 0 | DF141: 0 | DG141: 0 | DH141: 0 | DI141: 0 | DJ141: ALAMEDA | DK141: 001 | DO141: Y | DP141: CWR | DR141: TRAIN 546 OPERATING WITH CC/6962, 4 CARS AND E/2014 TRAILING STRUCK AN UNOCCUPIED VEHICLE AT MP 25.6 | DS141: 7, WHIPPLE RD CROSSING. AMTRAKS EQUIPMENT DAMAGE IS $13,002.00. AGE AND GENDER OF THE DRIVER WAS N | DT141: OT AVAILABLE. | EG141: 0 | EH141: 37.605986 | EI141: -122.031027 | EJ141: 1 | EK141: 1 | EL141: Q | EO141: NILES
A142: 16 | B142: 09 | C142: UP | D142: 0916RS010 | E142: 16 | F142: 09 | G142: ATK | H142: 144137 | I142: 16 | J142: 09 | K142: UP | L142: 0916RS010 | N142: 749776K | O142: 16 | P142: 09 | Q142: 06 | R142: 6 | S142: 34 | T142: PM | U142: 07 | V142: 0 | W142: 0 | X142: 0 | Y142: 0 | AA142: UNION CITY | AB142: 25.67 | AC142: 06 | AD142: 75 | AE142: 2 | AF142: 1 | AG142: 000 | AJ142: 1 | AK142: 0 | AN142: MAIN TRACK | AO142: 4 | AP142: 2.6 | AQ142: 1 | AT142: 000 | AX142: 000 | AZ142: 0 | BA142: 0 | BB142: 0 | BC142: 0 | BD142: 0 | BE142: 0 | BF142: 0 | BG142: 0 | BH142: 0 | BI142: 0 | BJ142: 0 | BK142: 0 | BL142: 0 | BM142: 0 | BN142: 0 | BO142: 0 | BP142: 0 | BQ142: 0 | BR142: 0 | BS142: 0 | BT142: 0 | BU142: 0 | BV142: M302 | BX142: 0 | BY142: 0 | BZ142: 0 | CA142: 0 | CB142: M302 | CC142: 1 | CD142: 4 | CE142: 079 | CF142: 13002 | CH142: 06C001 | CI142: 0 | CJ142: 000000 | CK142: 0 | CL142: 0 | CM142: 0 | CN142: 0 | CO142: 0 | CT142: 1 | CU142: 7 | CW142: 1L | DA142: 266 | DC142: 2016 | DD142: 0 | DE142: 0 | DF142: 0 | DG142: 0 | DH142: 0 | DI142: 0 | DJ142: ALAMEDA | DK142: 001 | DP142: CWR | DR142: AMT546-06 WITH LEAD UNIT CDTX2014 STRUCK A UNOCCUPIED VEHICLE ON THE WHIPPLE ROAD CROSSING AT MILEPO | DS142: ST 25.67 OF THE NILES SUBDIVISION. THE VEHICLE WAS VACATED JUST BEFORE THE COLLISION. THERE WERE N | DT142: O INJURIES OR DERAILMENT INVOLVED. ATK EQUIPMENT DAMAGE = $13,002 | EH142: 37.605986 | EI142: -122.031027 | EJ142: 1 | EK142: 1 | EL142: Q | EO142: NILES SUB
A143: 16 | B143: 08 | C143: UP | D143: 0816LA001 | I143: 16 | J143: 08 | K143: UP | L143: 0816LA001 | N143: 750741F | O143: 16 | P143: 08 | Q143: 01 | R143: 5 | S143: 57 | T143: AM | U143: 07 | V143: 0 | W143: 0 | X143: 0 | Y143: 0 | AA143: HESPERIA | AB143: 453.7 | AC143: 06 | AD143: 71 | AE143: 1 | AF143: 1 | AG143: 005 | AH143: E | AI143: OTNL | AJ143: 1 | AK143: 1871 | AL143: 1 | AM143: Y | AN143: SINGLE MAIN | AO143: 4 | AP143: 31.2 | AQ143: 1 | AR143: UP | AS143: 002002 | AT143: 001 | AX143: 000 | AZ143: 3 | BA143: 0 | BB143: 0 | BC143: 0 | BD143: 0 | BE143: 0 | BF143: 0 | BG143: 0 | BH143: 0 | BI143: 0 | BJ143: 0 | BK143: 0 | BL143: 61 | BM143: 0 | BN143: 0 | BO143: 0 | BP143: 0 | BQ143: 0 | BR143: 0 | BS143: 0 | BT143: 1000 | BU143: 61885 | BV143: M303 | BX143: 0 | BY143: 0 | BZ143: 0 | CA143: 0 | CB143: M303 | CC143: 1 | CD143: 4 | CE143: 005 | CF143: 62885 | CH143: 06C071 | CI143: 0 | CJ143: 000000 | CK143: 0 | CL143: 1 | CM143: 0 | CN143: 1 | CO143: 0 | CP143: 02 | CQ143: 42 | CR143: 02 | CS143: 42 | CT143: 1 | CU143: 7 | CW143: 1L | DA143: 403 | DC143: 2016 | DD143: 0 | DE143: 0 | DF143: 0 | DG143: 0 | DH143: 0 | DI143: 0 | DJ143: SAN BERNARDINO | DK143: 071 | DO143: N | DP143: CWR | DR143: THE OTNLB-31, LEAD UNIT UP2002, WHILE TRAVELING NORTH APPROACHING PHELAN RD CROSSING OBSERVED A SEMI | DS143: TRACTOR TRAILER SKID INTO THE GRADE CROSSING AND SWERVE ACROSS THE MIDDLE DIVIDER KNOCKING DOWN THE | DT143: CROSSING APPARATUS. ENGINEER AND CONDUCTOR BOTH PLACED TRAIN INTO EMERGENCY. TRAIN STRUCK VEHICLE O | DU143: N THE SOUTH END OF THE CROSSING, OCCUPANT EXITED THE VEHICLE PRIOR TO IMPACT. NO TRACK DAMAGE RESULT | DV143: ED. | EG143: 0 | EH143: 34.426578 | EI143: -117.465886 | EJ143: 1 | EK143: 1 | EL143: Q | EO143: MOJAVE SUB
A144: 16 | B144: 03 | C144: ATK | D144: 141417 | I144: 16 | J144: 03 | K144: UP | L144: 0316RS003 | N144: 751176H | O144: 16 | P144: 03 | Q144: 03 | R144: 6 | S144: 8 | T144: PM | U144: 07 | V144: 0 | W144: 0 | X144: 0 | Y144: 0 | AA144: BERKELEY | AB144: 0006.0 | AC144: 06 | AD144: 60 | AE144: 3 | AF144: 1 | AG144: 079 | AH144: E | AI144: 718 | AJ144: 2 | AK144: 0 | AL144: B | AM144: Y | AN144: MAIN TRACK 1 | AO144: 1 | AQ144: 1 | AR144: AMT | AS144: 008312 | AT144: 001 | AU144: Y | AX144: 000 | AZ144: 0 | BA144: 0 | BB144: 0 | BC144: 1 | BD144: 0 | BE144: 0 | BF144: 0 | BG144: 0 | BH144: 0 | BI144: 0 | BJ144: 0 | BK144: 5 | BL144: 0 | BM144: 0 | BN144: 0 | BO144: 0 | BP144: 0 | BQ144: 0 | BR144: 0 | BS144: 0 | BT144: 34667 | BU144: 0 | BV144: M308 | BX144: 0 | BY144: 5 | BZ144: 0 | CA144: 5 | CB144: M308 | CC144: 1 | CD144: 4 | CE144: 079 | CF144: 34667 | CH144: 06C001 | CI144: 5 | CJ144: 000000 | CK144: 0 | CL144: 1 | CM144: 0 | CN144: 1 | CO144: 1 | CP144: 01 | CQ144: 38 | CR144: 01 | CS144: 38 | CT144: 1 | CU144: 7 | CW144: 1L | DA144: 228 | DC144: 2016 | DD144: 0 | DE144: 0 | DF144: 0 | DG144: 4 | DH144: 0 | DI144: 1 | DJ144: ALAMEDA | DK144: 001 | DO144: Y | DP144: CWR | DR144: TRAIN 718 OPERATING WITH CAB CAR 8312, 4 CARS AND 1 LOCOMOTIVE TRAILING, STRUCK AN OCCUPIED MOTOR-HO | DS144: ME STALLED ON THE TRACKS WITH THE CROSSING GATES DOWN AT MP 6.0, BANCROFT WAY CROSSING. AMTRAKS EQU | DT144: IPMENT DAMAGE IS $34,667.00. | EG144: 0 | EH144: 37.862908 | EI144: -122.299505 | EJ144: 1 | EK144: 1 | EO144: MARTINEZ
A145: 16 | B145: 03 | C145: UP | D145: 0316RS003 | E145: 16 | F145: 03 | G145: ATK | H145: 141417 | I145: 16 | J145: 03 | K145: UP | L145: 0316RS003 | N145: 751176H | O145: 16 | P145: 03 | Q145: 03 | R145: 6 | S145: 8 | T145: PM | U145: 07 | V145: 0 | W145: 0 | X145: 0 | Y145: 0 | AA145: BERKELEY | AB145: 5.92 | AC145: 06 | AD145: 62 | AE145: 3 | AF145: 2 | AG145: 000 | AJ145: 3 | AK145: 0 | AN145: MAIN TRACK #1 | AO145: 4 | AP145: 12.5 | AQ145: 1 | AT145: 000 | AX145: 000 | AZ145: 0 | BA145: 0 | BB145: 0 | BC145: 0 | BD145: 0 | BE145: 0 | BF145: 0 | BG145: 0 | BH145: 0 | BI145: 0 | BJ145: 0 | BK145: 0 | BL145: 0 | BM145: 0 | BN145: 0 | BO145: 0 | BP145: 0 | BQ145: 0 | BR145: 0 | BS145: 0 | BT145: 0 | BU145: 0 | BV145: M308 | BX145: 0 | BY145: 0 | BZ145: 0 | CA145: 5 | CB145: M308 | CC145: 1 | CD145: 4 | CE145: 079 | CF145: 34667 | CH145: 06C001 | CI145: 0 | CJ145: 000000 | CK145: 0 | CL145: 0 | CM145: 0 | CN145: 0 | CO145: 0 | CT145: 2 | CU145: 7 | CW145: 1L | DA145: 287 | DC145: 2016 | DD145: 0 | DE145: 0 | DF145: 0 | DG145: 0 | DH145: 0 | DI145: 0 | DJ145: ALAMEDA | DK145: 001 | DP145: CWR | DR145: AMT718-03, WITH LEAD UNIT CDTX2006, STRUCK AN UNOCCUPIED RECREATIONAL VEHICLE WHICH WAS HIGH CENTERE | DS145: D ON THE BANCROFT WAY CROSSING. AFTER THE COLLISION THE VEHICLE SPUN AND STRUCK THE DRIVER CAUSING N | DT145: ON-LIFE THREATENING INJURIES. NO DERAILMENT INVOLVED. ATK EQUIPMENT DAMAGE = $34,667. | EH145: 37.862908 | EI145: -122.299505 | EJ145: 1 | EK145: 1 | EL145: Q | EO145: MARTINEZ SUB
A146: 16 | B146: 03 | C146: ATK | D146: 141666 | I146: 16 | J146: 03 | K146: UP | L146: 0316RS033 | N146: 752108K | O146: 16 | P146: 03 | Q146: 24 | R146: 7 | S146: 30 | T146: PM | U146: 07 | V146: 0 | W146: 0 | X146: 0 | Y146: 0 | AA146: KING CITY | AB146: 0175.4 | AC146: 06 | AD146: 65 | AE146: 2 | AF146: 1 | AG146: 060 | AH146: E | AI146: 14 | AJ146: 1 | AK146: 0 | AL146: 2 | AM146: Y | AN146: SINGLE MAIN | AO146: 4 | AQ146: 1 | AR146: AMT | AS146: 000197 | AT146: 001 | AX146: 000 | AZ146: 2 | BA146: 0 | BB146: 0 | BC146: 0 | BD146: 0 | BE146: 0 | BF146: 0 | BG146: 0 | BH146: 0 | BI146: 0 | BJ146: 0 | BK146: 13 | BL146: 0 | BM146: 0 | BN146: 0 | BO146: 0 | BP146: 0 | BQ146: 0 | BR146: 0 | BS146: 0 | BT146: 26238 | BU146: 0 | BV146: M302 | BX146: 0 | BY146: 0 | BZ146: 0 | CA146: 0 | CB146: M302 | CC146: 1 | CD146: 4 | CE146: 060 | CF146: 26238 | CH146: 06C053 | CI146: 0 | CJ146: 000000 | CK146: 0 | CL146: 1 | CM146: 0 | CN146: 1 | CO146: 1 | CP146: 04 | CQ146: 10 | CR146: 04 | CS146: 10 | CT146: 1 | CU146: 7 | CW146: 1L | DA146: 172 | DC146: 2016 | DD146: 0 | DE146: 0 | DF146: 0 | DG146: 0 | DH146: 0 | DI146: 0 | DJ146: MONTEREY | DK146: 053 | DO146: Y | DP146: CWR | DR146: TRAIN 14 STRUCK AN OCCUPIED FARM TRACTOR AND TRAILER AT MP 175.4 A PRIVATE FARM CROSSING. AMTRAKS E | DS146: QUIPMENT DAMAGE IS $26,238.00. THE AGE OF THE DRIVER WAS NOT AVAILABLE. | EG146: 0 | EH146: 36.070457 | EI146: -120.935252 | EJ146: 1 | EK146: 1 | EO146: COAST
A147: 16 | B147: 03 | C147: UP | D147: 0316RS033 | E147: 16 | F147: 03 | G147: ATK | H147: 141666 | I147: 16 | J147: 03 | K147: UP | L147: 0316RS033 | N147: 752108K | O147: 16 | P147: 03 | Q147: 24 | R147: 7 | S147: 30 | T147: PM | U147: 07 | V147: 0 | W147: 0 | X147: 0 | Y147: 0 | AA147: KING CITY | AB147: 175.5 | AC147: 06 | AD147: 57 | AE147: 4 | AF147: 1 | AG147: 000 | AJ147: 1 | AK147: 0 | AN147: MAIN TRACK | AO147: 4 | AP147: 1.9 | AQ147: 1 | AT147: 000 | AX147: 000 | AZ147: 0 | BA147: 0 | BB147: 0 | BC147: 0 | BD147: 0 | BE147: 0 | BF147: 0 | BG147: 0 | BH147: 0 | BI147: 0 | BJ147: 0 | BK147: 0 | BL147: 0 | BM147: 0 | BN147: 0 | BO147: 0 | BP147: 0 | BQ147: 0 | BR147: 0 | BS147: 0 | BT147: 0 | BU147: 0 | BV147: M302 | BX147: 0 | BY147: 0 | BZ147: 0 | CA147: 0 | CB147: M302 | CC147: 1 | CD147: 4 | CE147: 060 | CF147: 26238 | CH147: 06C053 | CI147: 0 | CJ147: 000000 | CK147: 0 | CL147: 0 | CM147: 0 | CN147: 0 | CO147: 0 | CT147: 2 | CU147: 7 | CW147: 1L | DA147: 213 | DC147: 2016 | DD147: 0 | DE147: 0 | DF147: 0 | DG147: 0 | DH147: 0 | DI147: 0 | DJ147: MONTEREY | DK147: 053 | DP147: CWR | DR147: AMT14-24 WITH LEAD UNIT AMTK197 STRUCK A OCCUPIED PICKUP WHICH WAS FOULING THE CROSSING AT PINE VALL | DS147: EY RD. THE DRIVER SUSTAINED UNKNOWN INJURIES. THERE WAS NO DERAILMENT INVOLVED. ATK EQUIPMENT DAM | DT147: AGE = $26,238 | EH147: 36.070457 | EI147: -120.935252 | EJ147: 1 | EK147: 1 | EO147: COAST SUB
A148: 16 | B148: 06 | C148: SCRT | D148: 06172016 | I148: 16 | J148: 06 | K148: SCRT | L148: 06172016 | N148: 753524R | O148: 16 | P148: 06 | Q148: 17 | R148: 7 | S148: 44 | T148: AM | U148: 07 | V148: 0 | W148: 0 | X148: 0 | Y148: 0 | AA148: RANCHO CORDOVA | AB148: 10.0 | AC148: 06 | AD148: 70 | AE148: 1 | AF148: 1 | AG148: 050 | AH148: E | AI148: 26 | AJ148: 3 | AK148: 0 | AL148: D | AM148: Y | AN148: GOLD LINE | AO148: 3 | AQ148: 1 | AR148: AA | AS148: 000124 | AT148: 001 | AU148: Y | AX148: 000 | AZ148: 0 | BA148: 0 | BB148: 0 | BC148: 0 | BD148: 0 | BE148: 0 | BF148: 0 | BG148: 0 | BH148: 0 | BI148: 0 | BJ148: 0 | BK148: 4 | BL148: 0 | BM148: 0 | BN148: 0 | BO148: 0 | BP148: 0 | BQ148: 0 | BR148: 0 | BS148: 0 | BT148: 32023 | BU148: 0 | BV148: M303 | BX148: 0 | BY148: 0 | BZ148: 0 | CA148: 0 | CB148: M303 | CC148: 1 | CD148: 3 | CE148: 050 | CF148: 32023 | CH148: 06C067 | CI148: 0 | CJ148: 000000 | CK148: 0 | CL148: 1 | CM148: 0 | CN148: 0 | CO148: 0 | CP148: 03 | CQ148: 25 | CT148: 1 | CU148: 7 | CW148: 3 | DA148: 620 | DC148: 2016 | DD148: 0 | DE148: 0 | DF148: 0 | DG148: 0 | DH148: 0 | DI148: 0 | DJ148: SACRAMENTO | DK148: 067 | DO148: Y | DP148: CWR | DR148: BASED ON THE CROSSING VIDEO, THE PICKUP TRUCK WAS STOPPED WITH THE CROSSING GATE ACROSS THE TRUCK BE | DS148: D. AS THE TRAIN APPROACHED, THE PICKUP TRUCK ACCELLERATED QUICKLY INTO THE PATH OF THE TRAIN. ALL | DT148: THE CROSSING EQUIPMENT WAS FUNCTIONING AS INTENDED ACCORDING TO THE VIDEO. THE DRIVER OF THE PICKUP | DU148: TRUCK STATED THAT HE THOUGHT THE TRAIN WAS ON THE TRACK CLOSEST TO HIM AND HE WAS TRYING TO MOVE OU | DV148: T OF THE PATH OF THE TRAIN. THE TRAIN OPERATOR SAW THE PICKUP TRUCK STOPPED AS HE APPROACHED THE CR | DW148: OSSING, HOWEVER HE DIDN''T ANTICIPATE THE PICKUP MOVING AT THE LAST MOMENT INTO HIS PATH. HE WAS UNA | DX148: BLE TO STOP IN TIME. | EG148: 0 | EH148: 38.572144 | EI148: -121.33656 | EJ148: 1 | EK148: 2 | EL148: D | EM148: N | EO148: LIGHT RAIL
A149: 16 | B149: 08 | C149: SCRT | D149: 08182016 | I149: 16 | J149: 08 | K149: SCRT | L149: 08182016 | N149: 753823X | O149: 16 | P149: 08 | Q149: 18 | R149: 8 | S149: 32 | T149: PM | U149: 07 | V149: 0 | W149: 0 | X149: 0 | Y149: 0 | AA149: RANCHO CORDOVA | AB149: 10.75 | AC149: 06 | AD149: 80 | AE149: 4 | AF149: 1 | AG149: 050 | AH149: E | AI149: 21 | AJ149: 3 | AK149: 0 | AL149: D | AM149: Y | AN149: GOLD LINE | AO149: 3 | AQ149: 1 | AR149: AA | AS149: 000134 | AT149: 001 | AU149: Y | AX149: 000 | AZ149: 0 | BA149: 0 | BB149: 0 | BC149: 0 | BD149: 0 | BE149: 0 | BF149: 0 | BG149: 0 | BH149: 0 | BI149: 0 | BJ149: 0 | BK149: 2 | BL149: 0 | BM149: 0 | BN149: 0 | BO149: 0 | BP149: 0 | BQ149: 0 | BR149: 0 | BS149: 0 | BT149: 36136 | BU149: 0 | BV149: M301 | BX149: 1 | BY149: 0 | BZ149: 1 | CA149: 0 | CB149: M301 | CC149: 1 | CD149: 3 | CE149: 050 | CF149: 36136 | CH149: 06C067 | CI149: 0 | CJ149: 000000 | CK149: 1 | CL149: 1 | CP149: 05 | CQ149: 42 | CT149: 1 | CU149: 7 | CW149: 3 | DA149: 367 | DC149: 2016 | DD149: 0 | DE149: 0 | DF149: 0 | DG149: 0 | DH149: 1 | DI149: 0 | DJ149: SACRAMENTO | DK149: 067 | DO149: Y | DP149: CWR | DR149: TRAIN APPROACHED CROSSING, OPERATOR VISUALLY CONFIRMED CROSSING PROTECTION. OPERATOR NOTICED A VEHI | DS149: CLE TURNING TOWARD CROSSING AND NOT STOPPING. VEHICLE TURNED IN FRONT OF TRAIN, WENT THROUGH THE CR | DT149: OSSING GATE INTO THE PATH OF THE ONCOMING TRAIN. OPERATOR USED EMERGENCY BRAKING BUT COULD NOT STOP | DU149: IN TIME. LAW ENFORCEMENT REPORT THAT VEHICLE DRIVER WAS IMPAIRED. | EG149: 0 | EH149: 38.575731 | EI149: -121.329383 | EJ149: 1 | EK149: 1 | EL149: D | EO149: LIGHT RAIL
